Workbook

Sheet Instructions
A1: Project Name: | C1: Reclaim Model - Overview of Program
B2: Enter Mine Name | C2: All users are urged to read the Reclaim Model User Manual - Scroll down for overview description of program.
A3: Reclaim Menu | C3: The default Excel menu bar has an additional tab labelled "Add-Ins" that provides options specific to the Reclaim Model.
B4: Clear | C4: This option deletes all input data, deletes any duplicated elements and blanks out the project name. It also allows for segregation into land costs vs water costs if required.
B5: Duplicate | C5: This option Duplicates components of the project. E.g. if there is more than one Open Pit, use duplicate to add a second Open Pit. Quantities for the new Open Pit are erased, but the Activities and Cost Codes are carried over from the original Open Pit. The new Open Pit subtotal is added to the Summary page.
B6: Unit Costs | C6: This option opens a window of unit costs to provide easy reference. NOTE: the unit cost table has a filter in the 'UNITS' column. You can select to only see a particular unit (e.g. km) or multiple units (km and m3) or all units.
A8: Worksheets
B9: Summary | C9: This worksheet contains a cumulative summary of costs for each component of the project. Associated costs such as engineering and project management are added as a percentage of the component costs.
B10: Components | C10: Costs are derived for individual closure and reclamation activities by multiplying a "quantity" of activity by a "unit cost". An activity can be edited, added, or deleted from worksheet. However, care should be taken not to modify cells that are defined and used elsewhere in the program.
C11: Do not change the content or column width of the first column of each component worksheet.
B12: Unit Costs | C12: This worksheet contains a look up table with costs for typical work associated with each closure and reclamation activity
A14: Limitations | C14: The Reclaim Program will NOT work if the worksheets are changed such that the following requirements are not met. Please review the following prior to modifying worksheets.
B15: Worksheet Names | C15: The names of the worksheets must not be changed.
B16: Defined Names | C16: Certain cells have defined names, which must not be changed. Where the cell is named, the name will appear in the "Name Box" to the left of the formula bar.
B17: First line of data | C17: The first line of data for any component worksheet starts on line 4. Do not change the first line of a component worksheet, i.e. the component name.
B18: Cell A1 | C18: Cell A1 on the component sheet MUST always contain the count of that component for the duplicate function to operate. DO NOT CHANGE.
B19: Adding Lines | C19: You can add lines to components and the unit cost table, as long as they are not the last lines. The last line might fall outside the named ranges. You can check the size of the named range by selecting the name from the drop down box at the top left of the sheet. Usually this box has a cell reference, or a name.
A21: Conditions of Use | C21: The Reclamation Cost Estimating Model was prepared to serve as a guide for Government Agencies, mining companies, and others to estimate the cost of mine reclamation. This model is not intended to replace reclamation planning or to be used to determine the activities required to reclaim a site or to dictate how much should be spent on reclamation.
C23: Reclaim was prepared by CIRNAC and GNWT and are not responsible for the completeness or accuracy of any reclamation estimate made using this model. The user agrees to check and take responsibility for all aspects of any cost estimate made using this model.
A25: The following table provides guidance as to whether water management and treatment is considered short term or long term. All water treatment is covered under the 'Water Treatment" sheet.
A26: Water treatment during ICM is linked to the "ICM" sheet. Water treatment during construction is linked to the "Water Management" sheet. Long term or post-closure water treatment is linked
A27: and in the "PostClosure" sheet.
D28: ICM/ Capital Ex. | E28: Long term
A29: Open Pit | C29: flood pit - install/operate pumping system | D29: x
C30: construct diversion ditches | D30: x
C31: treat 1st filling | D31: x
C32: install pump/decant system | D32: x
C33: passive/biological treatment | D33: x
C34: overflow treatment | E34: x
A35: Rock Pile/Heap Leach Facility | C35: construct diversion ditches | D35: x
C36: install groundwater collection system | D36: x
C37: install toe seepage collection system | D37: x
C38: collect and treat groundwater | E38: x
C39: collect and treat seepage (ARD/ML) | E39: x
C40: install passive treatment system | D40: x
C41: operate and maintain passive treatment system | E41: x
C42: operate pump and detoxify heap leach pile (cyanide destruction) | D42: x
A43: Tailings Facility | C43: construct diversion ditches | D43: x
C44: pump supernatant (to pit, U/G) | D44: x
C45: treat supernatant | D45: x
C46: install toe seepage collection system | D46: x
C47: collect and treat seepage (ARD/ML) | E47: x
C48: install passive treatment system | D48: x
C49: operate and maintain passive treatment system | E49: x
A50: U/G Mine | C50: accelerate flooding | D50: x
C51: install seepage collection system | D51: x
C52: install dewatering/pumping system | D52: x
C53: operate seepage/dewatering system (ARD/ML) | E53: x
A54: Water Management | C54: refill lakes | D54: x
C55: redirect creeks/streams | D55: x
C56: stabilize water management ponds | D56: x
C57: stabilize/close sediment ponds | D57: x
C58: fresh water supply - breach embankment | D58: x
C59: fresh water supply - remove piping system | D59: x
C60: construct water treatment plant | D60: x
C61: construct sludge pond | D61: x
C62: water control in reclamation quarry | D62: x
C63: operate/maintain water treatment plant | E63: x

Sheet Tools
B2: Save file before clearing all data
B5: These functions duplicate components within worksheet
B8: Shows both active worksheet as well as table of Unit Costs in a separate window

Sheet Summary
J1: Site Specific Future Value Inputs
J2: Number of Years of ICM | K2: 3
J3: When will Post-Closure Begin | K3: 8
J4: Estimated Annual Inflation | K4: 0.03
B6: =CONCATENATE("SUMMARY OF COSTS (",Unit_Costs!B3," Dollars)") -> SUMMARY OF COSTS (2024 Dollars) | K6: SUMMARY OF COSTS (Future Value)
A8: CAPITAL COSTS | B8: COMPONENT NAME | D8: COST | F8: LAND LIABILITY | H8: WATER LIABILITY | J8: CAPITAL COSTS | K8: COMPONENT NAME | M8: COST | O8: LAND LIABILITY | Q8: WATER LIABILITY
A9: INTERIM CARE AND MAINTENANCE | B9: =IF(ISBLANK(ICM!$C$1),"",ICM!$C$1) ->  | D9: =ICMTotal -> 6.37e-05 | F9: - | H9: =D9 -> 6.37e-05 | J9: INTERIM CARE AND MAINTENANCE | K9: =IF(ISBLANK(ICM!$C$1),"",ICM!$C$1) ->  | M9: =D9 -> 6.37e-05 | O9: - | Q9: =H9 -> 6.37e-05
A10: OPEN PIT | B10: =IF(ISBLANK('Open Pit'!$C$1),"",'Open Pit'!$C$1) ->  | D10: =Pit1Total -> 0.0001 | F10: =Pit1LandTotal -> 0 | H10: =Pit1WaterTotal -> 0 | J10: OPEN PIT | K10: =IF(ISBLANK('Open Pit'!$C$1),"",'Open Pit'!$C$1) ->  | M10: =D10*(1+$K$4)^$K$2 -> 0.0001092727 | O10: =F10/D10*M10 -> 0 | Q10: =M10-O10 -> 0.0001092727
A11: UNDERGROUND MINE | B11: =IF(ISBLANK('UG Mine'!$C$1),"",'UG Mine'!$C$1) ->  | D11: =UG1Total -> 0.0001 | F11: =UG1LandTotal -> 0 | H11: =UG1WaterTotal -> 0 | J11: UNDERGROUND MINE | K11: =IF(ISBLANK('UG Mine'!$C$1),"",'UG Mine'!$C$1) ->  | M11: =D11*(1+$K$4)^$K$2 -> 0.0001092727 | O11: =F11/D11*M11 -> 0 | Q11: =M11-O11 -> 0.0001092727
A12: TAILINGS FACILITY | B12: =IF(ISBLANK(Tailings!$C$1),"",Tailings!$C$1) ->  | D12: =Tailings1Total -> 0.0001 | F12: =Tailings1LandTotal -> 0 | H12: =Tailings1WaterTotal -> 0 | J12: TAILINGS FACILITY | K12: =IF(ISBLANK(Tailings!$C$1),"",Tailings!$C$1) ->  | M12: 0.0001092727 | O12: 0 | Q12: 0.0001092727
A13: ROCK PILE | B13: =IF(ISBLANK('Rock Pile'!$C$1),"",'Rock Pile'!$C$1) ->  | D13: =RP1Total -> 0.0001 | F13: =RP1LandTotal -> 0 | H13: =RP1WaterTotal -> 0 | J13: ROCK PILE | K13: =IF(ISBLANK('Rock Pile'!$C$1),"",'Rock Pile'!$C$1) ->  | M13: 0.0001092727 | O13: 0 | Q13: 0.0001092727
A14: BUILDINGS AND EQUIPMENT | B14: =IF(ISBLANK('Bldgs & Equip'!$C$1),"",'Bldgs & Equip'!$C$1) ->  | D14: =Bldg1Total -> 0.0001 | F14: =Bldg1LandTotal -> 0 | H14: =Bldg1WaterTotal -> 0 | J14: BUILDINGS AND EQUIPMENT | K14: =IF(ISBLANK('Bldgs & Equip'!$C$1),"",'Bldgs & Equip'!$C$1) ->  | M14: 0.0001092727 | O14: 0 | Q14: 0.0001092727
A15: CHEMICALS AND CONTAMINATED SOIL MANAGEMENT | B15: =IF(ISBLANK(Chemicals!$C$1),"",Chemicals!$C$1) ->  | D15: =Chem1Total -> 0.0001 | F15: =Chem1LandTotal -> 0 | H15: =Chem1WaterTotal -> 0 | J15: CHEMICALS AND CONTAMINATED SOIL MANAGEMENT | K15: =IF(ISBLANK(Chemicals!$C$1),"",Chemicals!$C$1) ->  | M15: 0.0001092727 | O15: 0 | Q15: 0.0001092727
A16: WATER MANAGEMENT | D16: ='Water Management'!H54 -> 1e-05 | F16: - | H16: =Water1Total -> 1e-05 | J16: WATER MANAGEMENT | M16: 1.092727e-05 | O16: - | Q16: =M16 -> 1.092727e-05
A17: MOBILIZATION/DEMOBILIZATION | D17: =SUM(Mobilization!H58,Mobilization!R58,Mobilization!AB58) -> 0.0003 | F17: =D17*$F$21 -> 0 | H17: =D17*$H$21 -> 0 | J17: MOBILIZATION/DEMOBILIZATION | M17: 0.0003278181 | O17: 0 | Q17: 0.0003278181
A18: POST-CLOSURE ACTIVITIES | B18: =IF(ISBLANK(PostClosure!$C$1),"",PostClosure!$C$1) ->  | D18: =PC1Total -> 1e-07 | F18: =D18*$F$21 -> 0 | H18: =D18*$H$21 -> 0 | J18: POST-CLOSURE ACTIVITIES | K18: =IF(ISBLANK(PostClosure!$C$1),"",PostClosure!$C$1) ->  | M18: =SUMIF(PostClosure!$B$209:$B$637,"<" & (PostClosure!$E$27+Summary!$K$3),PostClosure!$C$209:$C$637)+SUMIF('Water Treatment'!$B$127:$B$264,"<" & ('Water Treatment'!$U$35+Summary!$K$3),'Water Treatment'!$C$127:$C$264) -> 0 | O18: =F18/D18*M18 -> 0 | Q18: 0
B20: SUBTOTAL: Capital Costs | D20: =SUM(D9:D18) -> 0.0009738 | F20: =SUM(F9:F18) -> 0 | H20: =SUM(H9:H18) -> 7.37e-05 | K20: SUBTOTAL: Capital Costs | M20: =SUM(M9:M18) -> 0.00105808157 | O20: =SUM(O9:O18) -> 0 | Q20: =SUM(Q9:Q18) -> 0.00105808157
B21: PERCENT OF SUBTOTAL | F21: =SUM(F9:F16)/SUM(D9:D16) -> 0 | H21: =IF(F21<0.01,0,1-F21) -> 0 | K21: PERCENT OF SUBTOTAL | O21: =F21 -> 0 | Q21: =H21 -> 0
A23: INDIRECT COSTS | D23: COST | F23: LAND LIABILITY | H23: WATER LIABILITY | J23: INDIRECT COSTS | M23: COST | O23: LAND LIABILITY | Q23: WATER LIABILITY
A24: ENGINEERING DESIGN | B24: 0.08 | D24: =B24*$D$20 -> 7.7904e-05 | F24: =+$F$21*D24 -> 0 | H24: =+$H$21*D24 -> 0 | J24: ENGINEERING DESIGN | K24: =B24 -> 0.08 | M24: =K24*$M$20 -> 8.46465256e-05 | O24: =+$F$21*M24 -> 0 | Q24: =+$H$21*M24 -> 0
A25: PROJECT MANAGEMENT | B25: 0.1 | D25: =B25*$D$20 -> 9.738e-05 | F25: 0 | H25: 0 | J25: PROJECT MANAGEMENT | K25: 0.1 | M25: 0.000105808157 | O25: 0 | Q25: 0
A26: HEALTH AND SAFETY PLANS/MONITORING & QC | B26: 0.01 | D26: =B26*$D$20 -> 9.738e-06 | F26: =+$F$21*D26 -> 0 | H26: =+$H$21*D26 -> 0 | J26: HEALTH AND SAFETY PLANS/MONITORING & QC | K26: 0.01 | M26: =K26*$M$20 -> 1.05808157e-05 | O26: =+$F$21*M26 -> 0 | Q26: =+$H$21*M26 -> 0
A27: BONDING/INSURANCE | B27: 0.03 | D27: 2.9214e-05 | F27: 0 | H27: 0 | J27: BONDING/INSURANCE | K27: 0.03 | M27: 3.17424471e-05 | O27: 0 | Q27: 0
A28: ENGAGEMENT AND REGULATORY COMPLIANCE | B28: 0.03 | D28: 2.9214e-05 | F28: 0 | H28: 0 | J28: ENGAGEMENT AND REGULATORY COMPLIANCE | K28: 0.03 | M28: 3.17424471e-05 | O28: 0 | Q28: 0
A29: CONTINGENCY | B29: 0.25 | D29: =B29*$D$20 -> 0.00024345 | F29: 0 | H29: 0 | J29: CONTINGENCY | K29: 0.25 | M29: 0.0002645203925 | O29: 0 | Q29: 0
A30: OWNERS REPRESENTATIVE | B30: 0.08 | D30: =B30*$D$20 -> 7.7904e-05 | F30: =+$F$21*D30 -> 0 | H30: =+$H$21*D30 -> 0 | J30: OWNERS REPRESENTATIVE | K30: =B30 -> 0.08 | M30: =K30*$M$20 -> 8.46465256e-05 | O30: =+$F$21*M30 -> 0 | Q30: =+$H$21*M30 -> 0
A31: MARKET PRICE FACTOR ADJUSTMENT | B31: 0 | D31: =B31*$D$20 -> 0 | F31: =+$F$21*D31 -> 0 | H31: =+$H$21*D31 -> 0 | J31: MARKET PRICE FACTOR ADJUSTMENT | K31: =B31 -> 0 | M31: =K31*$M$20 -> 0 | O31: =+$F$21*M31 -> 0 | Q31: =+$H$21*M31 -> 0
B32: SUBTOTAL: Indirect Costs | D32: =SUM(D24:D31) -> 0.000564804 | F32: =SUM(F24:F31) -> 0 | H32: =SUM(H24:H31) -> 0 | K32: SUBTOTAL: Indirect Costs | M32: =SUM(M24:M31) -> 0.0006136873106 | O32: =SUM(O24:O31) -> 0 | Q32: =SUM(Q24:Q31) -> 0
A34: TOTAL COSTS | D34: =D20+D32 -> 0.001538604 | F34: =F20+F32 -> 0 | H34: =H20+H32 -> 7.37e-05 | J34: TOTAL COSTS | M34: =M20+M32 -> 0.001671768881 | O34: =O20+O32 -> 0 | Q34: =Q20+Q32 -> 0.00105808157

Sheet ICM
A1: 1 | B1: Interim Care and Maintenance
B3: ACTIVITY/MATERIAL | C3: Notes | D3: Units | E3: Quantity | F3: Cost Code | G3: Unit Cost | H3: Cost
B4: INTERIM CARE & MAINTENANCE
B5: On-site caretaker | D5: hr | F5: =NA() ->  | G5: =IF(ISNA(F5),0,INDEX(IF(RIGHT(F5,1)="L",UnitCostLow, IF(RIGHT(F5,1)="H",UnitCostHigh,UnitCostSpecified)),MATCH(LEFT(F5,LEN(F5)-1),CostCode,0))) -> 0 | H5: =G5*E5 -> 0
B6: Extra personnel | D6: hr | F6: =NA() ->  | G6: 0 | H6: 0
B7: -electrician | D7: hr | F7: =NA() ->  | G7: 0 | H7: =G7*E7 -> 0
B8: -mechanic | D8: hr | F8: =NA() ->  | G8: 0 | H8: =G8*E8 -> 0
B9: Annual fuel | D9: litre | F9: =NA() ->  | G9: 0 | H9: 0
B10: Misc. supplies | D10: allow | F10: =NA() ->  | G10: 0 | H10: =G10*E10 -> 0
B11: Pick-up truck | D11: each | F11: =NA() ->  | G11: 0 | H11: 0
B12: Small dozer | D12: allow | F12: =NA() ->  | G12: 0 | H12: 0
B13: Small excavator | D13: allow | F13: =NA() ->  | G13: 0 | H13: 0
B14: Snow machine | D14: allow | F14: =NA() ->  | G14: 0 | H14: 0
B15: Communications | D15: allow | F15: =NA() ->  | G15: 0 | H15: 0
B16: SNP/AEMP water sampling & reporting | D16: each | F16: =NA() ->  | G16: 0 | H16: 0
B17: Geotechnical assessment & reporting | D17: each | F17: =NA() ->  | G17: 0 | H17: 0
B18: Other | D18: each | F18: =NA() ->  | G18: 0 | H18: 0
G19: Annual Interim C&M Cost | H19: =SUM(H4:H18) -> 0
B20: Number of years of ICM | D20: years | E20: 3 | G20: Sub Total | H20: =H19*E20 -> 0
B21: Total water treatment cost, from "ICM Water Treatment" | H21: ='Water Treatment'!H36 -> 0
B22: Human Health and Ecological Risk Assessment (% Closure Costs) | D22: allow | E22: 1 | G22: 0.03 | H22: =IF(E22="",0,G22*SUM(Summary!D10:D17)*E22) -> 2.73e-05
B23: Finalize Closure and Reclamation Plan (% Closure Costs) | D23: allow | E23: 1 | G23: 0.04 | H23: =IF(E23="",0,G23*SUM(Summary!D10:D17)*E23) -> 3.64e-05
G24: Total | H24: =H21+H20+H22+H23 -> 6.37e-05

Sheet Open Pit
A1: =COUNTIF(B1:YH1,"*Open Pit Name*") -> 1 | B1: Open Pit Name | G1: Pit # | H1: 1
B3: ACTIVITY/MATERIAL | C3: Notes | D3: Units | E3: Quantity | F3: Cost Code | G3: Unit Cost | H3: Cost | I3: % Land | J3: Land Cost | K3: Water Cost
B4: CONTROL ACCESS
B5: Fence | D5: m | F5: =NA() ->  | G5: =IF(ISNA(F5),0,INDEX(IF(RIGHT(F5,1)="L",UnitCostLow, IF(RIGHT(F5,1)="H",UnitCostHigh,UnitCostSpecified)),MATCH(LEFT(F5,LEN(F5)-1),CostCode,0))) -> 0 | H5: =G5*E5 -> 0 | J5: =H5*I5 -> 0 | K5: =H5-J5 -> 0
B6: Signs | D6: each | F6: =NA() ->  | G6: =IF(ISNA(F6),0,INDEX(IF(RIGHT(F6,1)="L",UnitCostLow, IF(RIGHT(F6,1)="H",UnitCostHigh,UnitCostSpecified)),MATCH(LEFT(F6,LEN(F6)-1),CostCode,0))) -> 0 | H6: =G6*E6 -> 0 | J6: 0 | K6: 0
B7: Berm at crest | D7: m3 | F7: =NA() ->  | G7: =IF(ISNA(F7),0,INDEX(IF(RIGHT(F7,1)="L",UnitCostLow, IF(RIGHT(F7,1)="H",UnitCostHigh,UnitCostSpecified)),MATCH(LEFT(F7,LEN(F7)-1),CostCode,0))) -> 0 | H7: =G7*E7 -> 0 | J7: 0 | K7: 0
B8: Block roads | D8: m3 | F8: =NA() ->  | G8: =IF(ISNA(F8),0,INDEX(IF(RIGHT(F8,1)="L",UnitCostLow, IF(RIGHT(F8,1)="H",UnitCostHigh,UnitCostSpecified)),MATCH(LEFT(F8,LEN(F8)-1),CostCode,0))) -> 0 | H8: =G8*E8 -> 0 | J8: 0 | K8: 0
B9: Other | F9: =NA() ->  | G9: =IF(ISNA(F9),0,INDEX(IF(RIGHT(F9,1)="L",UnitCostLow, IF(RIGHT(F9,1)="H",UnitCostHigh,UnitCostSpecified)),MATCH(LEFT(F9,LEN(F9)-1),CostCode,0))) -> 0 | H9: =G9*E9 -> 0 | J9: 0 | K9: 0
B10: STABILITY STUDY
B11: Conduct stability and setback study | D11: allow | F11: =NA() ->  | G11: =IF(ISNA(F11),0,INDEX(IF(RIGHT(F11,1)="L",UnitCostLow, IF(RIGHT(F11,1)="H",UnitCostHigh,UnitCostSpecified)),MATCH(LEFT(F11,LEN(F11)-1),CostCode,0))) -> 0 | H11: =G11*E11 -> 0 | J11: =H11*I11 -> 0 | K11: =H11-J11 -> 0
B12: STABILIZE SLOPES
B13: Off-load crest, soil A | D13: m3 | F13: =NA() ->  | G13: =IF(ISNA(F13),0,INDEX(IF(RIGHT(F13,1)="L",UnitCostLow, IF(RIGHT(F13,1)="H",UnitCostHigh,UnitCostSpecified)),MATCH(LEFT(F13,LEN(F13)-1),CostCode,0))) -> 0 | H13: =G13*E13 -> 0 | J13: =H13*I13 -> 0 | K13: =H13-J13 -> 0
B14: Off-load crest, soil B | D14: m3 | F14: =NA() ->  | G14: 0 | H14: 0 | J14: 0 | K14: 0
B15: Doze/trim overburden at crest | D15: m3 | F15: =NA() ->  | G15: 0 | H15: 0 | J15: 0 | K15: 0
B16: Drill & blast pit crest | D16: m3 | F16: =NA() ->  | G16: 0 | H16: 0 | J16: 0 | K16: 0
B17: Buttress slope | D17: m3 | F17: =NA() ->  | G17: 0 | H17: 0 | J17: 0 | K17: 0
B18: Other | F18: =NA() ->  | G18: 0 | H18: 0 | J18: 0 | K18: 0
B19: COVER/CONTOUR SLOPES
B20: Place fill, soil A | D20: m3 | F20: =NA() ->  | G20: =IF(ISNA(F20),0,INDEX(IF(RIGHT(F20,1)="L",UnitCostLow, IF(RIGHT(F20,1)="H",UnitCostHigh,UnitCostSpecified)),MATCH(LEFT(F20,LEN(F20)-1),CostCode,0))) -> 0 | H20: =G20*E20 -> 0 | J20: =H20*I20 -> 0 | K20: =H20-J20 -> 0
B21: Place fill, soil B | D21: m3 | F21: =NA() ->  | G21: 0 | H21: 0 | J21: 0 | K21: 0
B22: Rip rap | D22: m3 | F22: =NA() ->  | G22: 0 | H22: 0 | J22: 0 | K22: 0
B23: Vegetate slopes | D23: ha | F23: =NA() ->  | G23: 0 | H23: 0 | J23: 0 | K23: 0
B24: Vegetate pit floor | D24: ha | F24: =NA() ->  | G24: 0 | H24: 0 | J24: 0 | K24: 0
B25: Other | F25: =NA() ->  | G25: 0 | H25: 0 | J25: 0 | K25: 0
B26: CONSTRUCT DIVERSION DITCHES
B27: Excavate ditches -soil | D27: m3 | F27: =NA() ->  | G27: =IF(ISNA(F27),0,INDEX(IF(RIGHT(F27,1)="L",UnitCostLow, IF(RIGHT(F27,1)="H",UnitCostHigh,UnitCostSpecified)),MATCH(LEFT(F27,LEN(F27)-1),CostCode,0))) -> 0 | H27: =G27*E27 -> 0 | J27: =H27*I27 -> 0 | K27: =H27-J27 -> 0
B28: Excavate ditches -rock | D28: m3 | F28: =NA() ->  | G28: =IF(ISNA(F28),0,INDEX(IF(RIGHT(F28,1)="L",UnitCostLow, IF(RIGHT(F28,1)="H",UnitCostHigh,UnitCostSpecified)),MATCH(LEFT(F28,LEN(F28)-1),CostCode,0))) -> 0 | H28: =G28*E28 -> 0 | J28: 0 | K28: 0
B29: Rip rap in channel base | D29: m3 | F29: =NA() ->  | G29: =IF(ISNA(F29),0,INDEX(IF(RIGHT(F29,1)="L",UnitCostLow, IF(RIGHT(F29,1)="H",UnitCostHigh,UnitCostSpecified)),MATCH(LEFT(F29,LEN(F29)-1),CostCode,0))) -> 0 | H29: =G29*E29 -> 0 | J29: 0 | K29: 0
B30: CONSTRUCT SPILLWAY
B31: Excavate channel | D31: m3 | F31: =NA() ->  | G31: =IF(ISNA(F31),0,INDEX(IF(RIGHT(F31,1)="L",UnitCostLow, IF(RIGHT(F31,1)="H",UnitCostHigh,UnitCostSpecified)),MATCH(LEFT(F31,LEN(F31)-1),CostCode,0))) -> 0 | H31: =G31*E31 -> 0 | J31: =H31*I31 -> 0 | K31: =H31-J31 -> 0
B32: Concrete | D32: m3 | F32: =NA() ->  | G32: =IF(ISNA(F32),0,INDEX(IF(RIGHT(F32,1)="L",UnitCostLow, IF(RIGHT(F32,1)="H",UnitCostHigh,UnitCostSpecified)),MATCH(LEFT(F32,LEN(F32)-1),CostCode,0))) -> 0 | H32: =G32*E32 -> 0 | J32: 0 | K32: 0
B33: Rip rap | D33: m3 | F33: =NA() ->  | G33: =IF(ISNA(F33),0,INDEX(IF(RIGHT(F33,1)="L",UnitCostLow, IF(RIGHT(F33,1)="H",UnitCostHigh,UnitCostSpecified)),MATCH(LEFT(F33,LEN(F33)-1),CostCode,0))) -> 0 | H33: =G33*E33 -> 0 | J33: 0 | K33: 0
B34: Other | F34: =NA() ->  | G34: =IF(ISNA(F34),0,INDEX(IF(RIGHT(F34,1)="L",UnitCostLow, IF(RIGHT(F34,1)="H",UnitCostHigh,UnitCostSpecified)),MATCH(LEFT(F34,LEN(F34)-1),CostCode,0))) -> 0 | H34: =G34*E34 -> 0 | J34: 0 | K34: 0
B35: RECLAIM QUARRIES
B36: Contour slopes | D36: m3 | F36: =NA() ->  | G36: =IF(ISNA(F36),0,INDEX(IF(RIGHT(F36,1)="L",UnitCostLow, IF(RIGHT(F36,1)="H",UnitCostHigh,UnitCostSpecified)),MATCH(LEFT(F36,LEN(F36)-1),CostCode,0))) -> 0 | H36: =G36*E36 -> 0 | J36: =H36*I36 -> 0 | K36: =H36-J36 -> 0
B37: Place overburden | D37: m3 | F37: =NA() ->  | G37: =IF(ISNA(F37),0,INDEX(IF(RIGHT(F37,1)="L",UnitCostLow, IF(RIGHT(F37,1)="H",UnitCostHigh,UnitCostSpecified)),MATCH(LEFT(F37,LEN(F37)-1),CostCode,0))) -> 0 | H37: =G37*E37 -> 0 | J37: 0 | K37: 0
B38: Vegetate | D38: m3 | F38: =NA() ->  | G38: =IF(ISNA(F38),0,INDEX(IF(RIGHT(F38,1)="L",UnitCostLow, IF(RIGHT(F38,1)="H",UnitCostHigh,UnitCostSpecified)),MATCH(LEFT(F38,LEN(F38)-1),CostCode,0))) -> 0 | H38: =G38*E38 -> 0 | J38: 0 | K38: 0
B39: FLOOD PIT-Capital
B40: Remove stationary equipment (sump pumps) | D40: each | F40: =NA() ->  | G40: =IF(ISNA(F40),0,INDEX(IF(RIGHT(F40,1)="L",UnitCostLow, IF(RIGHT(F40,1)="H",UnitCostHigh,UnitCostSpecified)),MATCH(LEFT(F40,LEN(F40)-1),CostCode,0))) -> 0 | H40: =G40*E40 -> 0 | J40: =H40*I40 -> 0 | K40: =H40-J40 -> 0
B41: Remove dewatering pipeline | D41: m | F41: =NA() ->  | G41: 0 | H41: 0 | J41: 0 | K41: 0
B42: Remove power lines | D42: each | F42: =NA() ->  | G42: 0 | H42: 0 | J42: 0 | K42: 0
B43: Construct diversion ditches | D43: m3 | F43: =NA() ->  | G43: 0 | H43: 0 | J43: 0 | K43: 0
B44: -Ditch, mat'l A | D44: m3 | F44: =NA() ->  | G44: 0 | H44: 0 | J44: 0 | K44: 0
B45: -Ditch, mat'l B | D45: m3 | F45: =NA() ->  | G45: 0 | H45: 0 | J45: 0 | K45: 0
B46: Construct embankment/dam | D46: m3 | F46: =NA() ->  | G46: 0 | H46: 0 | J46: 0 | K46: 0
B47: Supply/install pump station | D47: each | F47: =NA() ->  | G47: 0 | H47: 0 | J47: 0 | K47: 0
B48: Supply/install piping system | D48: m | F48: =NA() ->  | G48: 0 | H48: 0 | J48: 0 | K48: 0
B49: Remove pump post-closure | D49: each | F49: =NA() ->  | G49: 0 | H49: 0 | J49: 0 | K49: 0
B50: Remove pipeline post-closure | D50: m | F50: =NA() ->  | G50: 0 | H50: 0 | J50: 0 | K50: 0
B51: FLOOD PIT-Annual Cost
B52: Operate pumps (power) | D52: m3 | F52: =NA() ->  | G52: =IF(ISNA(F52),0,INDEX(IF(RIGHT(F52,1)="L",UnitCostLow, IF(RIGHT(F52,1)="H",UnitCostHigh,UnitCostSpecified)),MATCH(LEFT(F52,LEN(F52)-1),CostCode,0))) -> 0 | H52: =G52*E52 -> 0 | J52: =H52*I52 -> 0 | K52: =H52*(1-I52) -> 0
B53: Maintain pump/pipeline | D53: allow | F53: =NA() ->  | G53: 0 | H53: 0 | J53: =H53*I53 -> 0 | K53: =H53*(1-I53) -> 0
B54: Labour: fuel management, commissioning/decom | D54: $/h | F54: =NA() ->  | G54: 0 | H54: 0 | J54: =H54*I54 -> 0 | K54: =H54*(1-I54) -> 0
B55: Chemical addition, _____ kg/m3 of water | D55: kg | F55: =NA() ->  | G55: 0 | H55: 0 | J55: 0 | K55: 0
B56: Chemicals, purchase and shipping | D56: kg | F56: =NA() ->  | G56: 0 | H56: 0 | J56: 0 | K56: 0
B57: Passive/biological additives | D57: $/ha | F57: =NA() ->  | G57: 0 | H57: 0 | J57: =H57*I57 -> 0 | K57: =H57*(1-I57) -> 0
B58: Passive additives purchase and shipping | D58: tonne | F58: =NA() ->  | G58: 0 | H58: 0 | J58: =H58*I58 -> 0 | K58: =H58*(1-I58) -> 0
B59: Other | F59: =NA() ->  | G59: 0 | H59: 0 | J59: =H59*I59 -> 0 | K59: 0
G60: Annual pumping costs | H60: =SUM(H51:H59) -> 0
B61: Number of years of pump flooding | D61: years
G62: Total pumping costs | H62: =H60*E61 -> 0 | J62: =H62*I62 -> 0 | K62: =H62*(1-I62) -> 0
G63: Total | H63: =SUM(H4:H50)+H62+0.0001 -> 0.0001 | J63: =SUM(J4:J50)+J62 -> 0 | K63: =SUM(K4:K50)+K62 -> 0
G64: % of Total | J64: =J63/H63 -> 0 | K64: =K63/H63 -> 0

Sheet UG Mine
A1: 1 | B1: Underground Mine Name | G1: UG Mine # | H1: 1
B3: ACTIVITY/MATERIAL | C3: Notes | D3: Unit | E3: Qty | F3: Cost Code | G3: Unit Cost | H3: Cost | I3: % Land | J3: Land Cost | K3: Water Cost
B4: CONTROL ACCESS
B5: Fence | D5: m | F5: =NA() ->  | G5: =IF(ISNA(F5),0,INDEX(IF(RIGHT(F5,1)="L",UnitCostLow, IF(RIGHT(F5,1)="H",UnitCostHigh,UnitCostSpecified)),MATCH(LEFT(F5,LEN(F5)-1),CostCode,0))) -> 0 | H5: =G5*E5 -> 0 | J5: =H5*I5 -> 0 | K5: =H5-J5 -> 0
B6: Signs | D6: each | F6: =NA() ->  | G6: 0 | H6: 0 | J6: 0 | K6: 0
B7: Block roads | D7: m3 | F7: =NA() ->  | G7: 0 | H7: =G7*E7 -> 0 | J7: 0 | K7: 0
B8: Berm | D8: m3 | F8: =NA() ->  | G8: 0 | H8: 0 | J8: 0 | K8: 0
B9: Concrete wall in portals | D9: m3 | F9: =NA() ->  | G9: 0 | H9: 0 | J9: 0 | K9: 0
B10: Backfill portal #1 | D10: m3 | F10: =NA() ->  | G10: 0 | H10: 0 | J10: 0 | K10: 0
B11: Backfill portal #2 | D11: m3 | F11: =NA() ->  | G11: 0 | H11: 0 | J11: 0 | K11: 0
B12: Cap raise # 1 | D12: m3 | F12: =NA() ->  | G12: 0 | H12: 0 | J12: 0 | K12: 0
B13: Cap raise #2 | D13: m3 | F13: =NA() ->  | G13: 0 | H13: 0 | J13: 0 | K13: 0
B14: Cap shaft #1 | D14: m3 | F14: =NA() ->  | G14: 0 | H14: 0 | J14: 0 | K14: 0
B15: Cap shaft #2 | D15: m3 | F15: =NA() ->  | G15: 0 | H15: 0 | J15: 0 | K15: 0
B16: Backfill adits | D16: m3 | F16: =NA() ->  | G16: 0 | H16: 0 | J16: 0 | K16: 0
B17: Backfill open stope | D17: m3 | F17: =NA() ->  | G17: 0 | H17: 0 | J17: 0 | K17: 0
B18: Concrete cap over open stope | D18: m3 | F18: =NA() ->  | G18: 0 | H18: 0 | J18: 0 | K18: 0
B19: Other | F19: =NA() ->  | G19: 0 | H19: 0 | J19: 0 | K19: 0
B20: REMOVE HAZARDOUS MATERIALS
B21: Remove hazardous materials, U/G labor | D21: mandays | F21: =NA() ->  | G21: =IF(ISNA(F21),0,INDEX(IF(RIGHT(F21,1)="L",UnitCostLow, IF(RIGHT(F21,1)="H",UnitCostHigh,UnitCostSpecified)),MATCH(LEFT(F21,LEN(F21)-1),CostCode,0))) -> 0 | H21: =G21*E21 -> 0 | J21: =H21*I21 -> 0 | K21: =H21-J21 -> 0
B22: Remove/decontam. stationary & elect. equip | D22: mandays | F22: =NA() ->  | G22: =IF(ISNA(F22),0,INDEX(IF(RIGHT(F22,1)="L",UnitCostLow, IF(RIGHT(F22,1)="H",UnitCostHigh,UnitCostSpecified)),MATCH(LEFT(F22,LEN(F22)-1),CostCode,0))) -> 0 | H22: =G22*E22 -> 0 | J22: 0 | K22: 0
B23: Remove/decontam. mobile equipment | D23: each | F23: =NA() ->  | G23: =IF(ISNA(F23),0,INDEX(IF(RIGHT(F23,1)="L",UnitCostLow, IF(RIGHT(F23,1)="H",UnitCostHigh,UnitCostSpecified)),MATCH(LEFT(F23,LEN(F23)-1),CostCode,0))) -> 0 | H23: =G23*E23 -> 0 | J23: 0 | K23: 0
B24: Remove misc. haz. mat & explosives | D24: kg | F24: =NA() ->  | G24: =IF(ISNA(F24),0,INDEX(IF(RIGHT(F24,1)="L",UnitCostLow, IF(RIGHT(F24,1)="H",UnitCostHigh,UnitCostSpecified)),MATCH(LEFT(F24,LEN(F24)-1),CostCode,0))) -> 0 | H24: =G24*E24 -> 0 | J24: 0 | K24: 0
B25: Other | F25: =NA() ->  | G25: =IF(ISNA(F25),0,INDEX(IF(RIGHT(F25,1)="L",UnitCostLow, IF(RIGHT(F25,1)="H",UnitCostHigh,UnitCostSpecified)),MATCH(LEFT(F25,LEN(F25)-1),CostCode,0))) -> 0 | H25: =G25*E25 -> 0 | J25: 0 | K25: 0
B26: INSTALL BULKHEADS
B27: Bulkheads to control water flow | D27: each | F27: =NA() ->  | G27: =IF(ISNA(F27),0,INDEX(IF(RIGHT(F27,1)="L",UnitCostLow, IF(RIGHT(F27,1)="H",UnitCostHigh,UnitCostSpecified)),MATCH(LEFT(F27,LEN(F27)-1),CostCode,0))) -> 0 | H27: =G27*E27 -> 0 | J27: =H27*I27 -> 0 | K27: =H27-J27 -> 0
B28: Grout bulkhead | D28: m3 | F28: =NA() ->  | G28: =IF(ISNA(F28),0,INDEX(IF(RIGHT(F28,1)="L",UnitCostLow, IF(RIGHT(F28,1)="H",UnitCostHigh,UnitCostSpecified)),MATCH(LEFT(F28,LEN(F28)-1),CostCode,0))) -> 0 | H28: =G28*E28 -> 0 | J28: 0 | K28: 0
B29: FLOOD MINE
B30: Supply/install pump | D30: each | F30: =NA() ->  | G30: =IF(ISNA(F30),0,INDEX(IF(RIGHT(F30,1)="L",UnitCostLow, IF(RIGHT(F30,1)="H",UnitCostHigh,UnitCostSpecified)),MATCH(LEFT(F30,LEN(F30)-1),CostCode,0))) -> 0 | H30: =G30*E30 -> 0 | J30: =H30*I30 -> 0 | K30: =H30-J30 -> 0
B31: Supply/install piping system | D31: each | F31: =NA() ->  | G31: =IF(ISNA(F31),0,INDEX(IF(RIGHT(F31,1)="L",UnitCostLow, IF(RIGHT(F31,1)="H",UnitCostHigh,UnitCostSpecified)),MATCH(LEFT(F31,LEN(F31)-1),CostCode,0))) -> 0 | H31: =G31*E31 -> 0 | J31: 0 | K31: 0
B32: Operate pumps to flood workings | D32: m3 | F32: =NA() ->  | G32: =IF(ISNA(F32),0,INDEX(IF(RIGHT(F32,1)="L",UnitCostLow, IF(RIGHT(F32,1)="H",UnitCostHigh,UnitCostSpecified)),MATCH(LEFT(F32,LEN(F32)-1),CostCode,0))) -> 0 | H32: =G32*E32 -> 0 | J32: 0 | K32: 0
B33: Other | F33: =NA() ->  | G33: =IF(ISNA(F33),0,INDEX(IF(RIGHT(F33,1)="L",UnitCostLow, IF(RIGHT(F33,1)="H",UnitCostHigh,UnitCostSpecified)),MATCH(LEFT(F33,LEN(F33)-1),CostCode,0))) -> 0 | H33: =G33*E33 -> 0 | J33: 0 | K33: 0
B34: INSTALL GROUNDWATER COLLECTION SYSTEM
B35: Excavate/install sumps | D35: m2 | F35: =NA() ->  | G35: =IF(ISNA(F35),0,INDEX(IF(RIGHT(F35,1)="L",UnitCostLow, IF(RIGHT(F35,1)="H",UnitCostHigh,UnitCostSpecified)),MATCH(LEFT(F35,LEN(F35)-1),CostCode,0))) -> 0 | H35: =G35*E35 -> 0 | J35: =H35*I35 -> 0 | K35: =H35-J35 -> 0
B36: Install pumping wells | D36: m3 | F36: =NA() ->  | G36: =IF(ISNA(F36),0,INDEX(IF(RIGHT(F36,1)="L",UnitCostLow, IF(RIGHT(F36,1)="H",UnitCostHigh,UnitCostSpecified)),MATCH(LEFT(F36,LEN(F36)-1),CostCode,0))) -> 0 | H36: =G36*E36 -> 0 | J36: 0 | K36: 0
B37: Install pumps/pipelines/power supply | D37: LS | F37: =NA() ->  | G37: =IF(ISNA(F37),0,INDEX(IF(RIGHT(F37,1)="L",UnitCostLow, IF(RIGHT(F37,1)="H",UnitCostHigh,UnitCostSpecified)),MATCH(LEFT(F37,LEN(F37)-1),CostCode,0))) -> 0 | H37: =G37*E37 -> 0 | J37: 0 | K37: 0
B38: SPECIALIZED ITEMS
B39: Install water quality monitoring pipes | D39: each | F39: =NA() ->  | G39: =IF(ISNA(F39),0,INDEX(IF(RIGHT(F39,1)="L",UnitCostLow, IF(RIGHT(F39,1)="H",UnitCostHigh,UnitCostSpecified)),MATCH(LEFT(F39,LEN(F39)-1),CostCode,0))) -> 0 | H39: =G39*E39 -> 0 | J39: =H39*I39 -> 0 | K39: =H39-J39 -> 0
B40: Install permanent pumping system | D40: each | F40: =NA() ->  | G40: =IF(ISNA(F40),0,INDEX(IF(RIGHT(F40,1)="L",UnitCostLow, IF(RIGHT(F40,1)="H",UnitCostHigh,UnitCostSpecified)),MATCH(LEFT(F40,LEN(F40)-1),CostCode,0))) -> 0 | H40: =G40*E40 -> 0 | J40: 0 | K40: 0
B41: Other | F41: =NA() ->  | G41: =IF(ISNA(F41),0,INDEX(IF(RIGHT(F41,1)="L",UnitCostLow, IF(RIGHT(F41,1)="H",UnitCostHigh,UnitCostSpecified)),MATCH(LEFT(F41,LEN(F41)-1),CostCode,0))) -> 0 | H41: =G41*E41 -> 0 | J41: 0 | K41: 0
G42: Total | H42: =SUM(H4:H41)+0.0001 -> 0.0001 | J42: =SUM(J4:J41) -> 0 | K42: =SUM(K4:K41) -> 0
G43: % of Total | J43: =J42/H42 -> 0 | K43: =K42/H42 -> 0

Sheet Tailings
A1: 1 | B1: Tailings Impoundment Name: | G1: Pond # | H1: 1
B3: ACTIVITY/MATERIAL | C3: Notes | D3: Units | E3: Quantity | F3: Cost Code | G3: Unit Cost | H3: Cost | I3: % Land | J3: Land Cost | K3: Water Cost
B4: CONTROL ACCESS
B5: Fence | D5: m | F5: =NA() ->  | G5: =IF(ISNA(F5),0,INDEX(IF(RIGHT(F5,1)="L",UnitCostLow, IF(RIGHT(F5,1)="H",UnitCostHigh,UnitCostSpecified)),MATCH(LEFT(F5,LEN(F5)-1),CostCode,0))) -> 0 | H5: =G5*E5 -> 0 | J5: =H5*I5 -> 0 | K5: =H5-J5 -> 0
B6: Signs | D6: each | F6: =NA() ->  | G6: =IF(ISNA(F6),0,INDEX(IF(RIGHT(F6,1)="L",UnitCostLow, IF(RIGHT(F6,1)="H",UnitCostHigh,UnitCostSpecified)),MATCH(LEFT(F6,LEN(F6)-1),CostCode,0))) -> 0 | H6: =G6*E6 -> 0 | J6: 0 | K6: 0
B7: Berm | D7: m3 | F7: =NA() ->  | G7: =IF(ISNA(F7),0,INDEX(IF(RIGHT(F7,1)="L",UnitCostLow, IF(RIGHT(F7,1)="H",UnitCostHigh,UnitCostSpecified)),MATCH(LEFT(F7,LEN(F7)-1),CostCode,0))) -> 0 | H7: =G7*E7 -> 0 | J7: 0 | K7: 0
B8: Block roads | D8: m3 | F8: =NA() ->  | G8: =IF(ISNA(F8),0,INDEX(IF(RIGHT(F8,1)="L",UnitCostLow, IF(RIGHT(F8,1)="H",UnitCostHigh,UnitCostSpecified)),MATCH(LEFT(F8,LEN(F8)-1),CostCode,0))) -> 0 | H8: =G8*E8 -> 0 | J8: 0 | K8: 0
B9: Other | F9: =NA() ->  | G9: =IF(ISNA(F9),0,INDEX(IF(RIGHT(F9,1)="L",UnitCostLow, IF(RIGHT(F9,1)="H",UnitCostHigh,UnitCostSpecified)),MATCH(LEFT(F9,LEN(F9)-1),CostCode,0))) -> 0 | H9: =G9*E9 -> 0 | J9: 0 | K9: 0
B10: STABILIZE EMBANKMENT(S)
B11: Toe buttress, drainage layer | D11: m3 | F11: =NA() ->  | G11: =IF(ISNA(F11),0,INDEX(IF(RIGHT(F11,1)="L",UnitCostLow, IF(RIGHT(F11,1)="H",UnitCostHigh,UnitCostSpecified)),MATCH(LEFT(F11,LEN(F11)-1),CostCode,0))) -> 0 | H11: =G11*E11 -> 0 | J11: =H11*I11 -> 0 | K11: =H11-J11 -> 0
B12: Toe buttress, bulk fill | D12: m3 | F12: =NA() ->  | G12: 0 | H12: 0 | J12: 0 | K12: 0
B13: Rip rap | D13: m3 | F13: =NA() ->  | G13: 0 | H13: 0 | J13: 0 | K13: 0
B14: Vegetate | D14: ha | F14: =NA() ->  | G14: 0 | H14: 0 | J14: 0 | K14: 0
B15: Raise crest | D15: m3 | F15: =NA() ->  | G15: 0 | H15: 0 | J15: 0 | K15: 0
B16: Flatten slopes | D16: m3 | F16: =NA() ->  | G16: 0 | H16: 0 | J16: 0 | K16: 0
B17: Other | F17: =NA() ->  | G17: 0 | H17: 0 | J17: 0 | K17: 0
B18: COVER TAILINGS
B19: Grade/shape tailings surface | D19: m3 | F19: =NA() ->  | G19: =IF(ISNA(F19),0,INDEX(IF(RIGHT(F19,1)="L",UnitCostLow, IF(RIGHT(F19,1)="H",UnitCostHigh,UnitCostSpecified)),MATCH(LEFT(F19,LEN(F19)-1),CostCode,0))) -> 0 | H19: =G19*E19 -> 0 | J19: =H19*I19 -> 0 | K19: =H19-J19 -> 0
B20: Liner bedding | D20: m3 | F20: =NA() ->  | G20: 0 | H20: =G20*E20 -> 0 | J20: =H20*I20 -> 0 | K20: =H20-J20 -> 0
B21: Subgrade preparation - compact | D21: m2 | F21: =NA() ->  | G21: 0 | H21: =G21*E21 -> 0 | J21: 0 | K21: 0
B22: Supply geotextile/geosynthetic | D22: m2 | F22: =NA() ->  | G22: 0 | H22: 0 | J22: 0 | K22: 0
B23: Install geotextile/geosynthetic | D23: m2 | F23: =NA() ->  | G23: 0 | H23: =G23*E23 -> 0 | J23: 0 | K23: 0
B24: Soil cover | D24: m3 | F24: =NA() ->  | G24: 0 | H24: 0 | J24: 0 | K24: 0
B25: Rock cover | D25: m3 | F25: =NA() ->  | G25: 0 | H25: =G25*E25 -> 0 | J25: 0 | K25: 0
B26: Vegetate | D26: m2 | F26: =NA() ->  | G26: 0 | H26: 0 | J26: 0 | K26: 0
B27: Other | F27: =NA() ->  | G27: 0 | H27: =G27*E27 -> 0 | J27: 0 | K27: 0
B28: BURY PAG ROCK
B29: Relocate PAG rock | D29: m3 | F29: =NA() ->  | G29: =IF(ISNA(F29),0,INDEX(IF(RIGHT(F29,1)="L",UnitCostLow, IF(RIGHT(F29,1)="H",UnitCostHigh,UnitCostSpecified)),MATCH(LEFT(F29,LEN(F29)-1),CostCode,0))) -> 0 | H29: =G29*E29 -> 0 | J29: =H29*I29 -> 0 | K29: =H29-J29 -> 0
B30: Place cover over PAG rock | D30: m3 | F30: =NA() ->  | G30: =IF(ISNA(F30),0,INDEX(IF(RIGHT(F30,1)="L",UnitCostLow, IF(RIGHT(F30,1)="H",UnitCostHigh,UnitCostSpecified)),MATCH(LEFT(F30,LEN(F30)-1),CostCode,0))) -> 0 | H30: =G30*E30 -> 0 | J30: 0 | K30: 0
B31: Raise crest of dam | D31: m3 | F31: =NA() ->  | G31: =IF(ISNA(F31),0,INDEX(IF(RIGHT(F31,1)="L",UnitCostLow, IF(RIGHT(F31,1)="H",UnitCostHigh,UnitCostSpecified)),MATCH(LEFT(F31,LEN(F31)-1),CostCode,0))) -> 0 | H31: =G31*E31 -> 0 | J31: 0 | K31: 0
B32: Other | F32: =NA() ->  | G32: =IF(ISNA(F32),0,INDEX(IF(RIGHT(F32,1)="L",UnitCostLow, IF(RIGHT(F32,1)="H",UnitCostHigh,UnitCostSpecified)),MATCH(LEFT(F32,LEN(F32)-1),CostCode,0))) -> 0 | H32: =G32*E32 -> 0 | J32: 0 | K32: 0
B33: STABILIZE DECANT SYSTEM
B34: Excavate and replace | D34: m3 | F34: =NA() ->  | G34: =IF(ISNA(F34),0,INDEX(IF(RIGHT(F34,1)="L",UnitCostLow, IF(RIGHT(F34,1)="H",UnitCostHigh,UnitCostSpecified)),MATCH(LEFT(F34,LEN(F34)-1),CostCode,0))) -> 0 | H34: =G34*E34 -> 0 | J34: =H34*I34 -> 0 | K34: =H34-J34 -> 0
B35: Plug/backfill with concrete or clay | D35: m3 | F35: =NA() ->  | G35: =IF(ISNA(F35),0,INDEX(IF(RIGHT(F35,1)="L",UnitCostLow, IF(RIGHT(F35,1)="H",UnitCostHigh,UnitCostSpecified)),MATCH(LEFT(F35,LEN(F35)-1),CostCode,0))) -> 0 | H35: =G35*E35 -> 0 | J35: 0 | K35: 0
B36: Other | F36: =NA() ->  | G36: =IF(ISNA(F36),0,INDEX(IF(RIGHT(F36,1)="L",UnitCostLow, IF(RIGHT(F36,1)="H",UnitCostHigh,UnitCostSpecified)),MATCH(LEFT(F36,LEN(F36)-1),CostCode,0))) -> 0 | H36: =G36*E36 -> 0 | J36: 0 | K36: 0
B37: REMOVE TAILINGS DISCHARGE
B38: Cyclones | D38: m3 | F38: =NA() ->  | G38: =IF(ISNA(F38),0,INDEX(IF(RIGHT(F38,1)="L",UnitCostLow, IF(RIGHT(F38,1)="H",UnitCostHigh,UnitCostSpecified)),MATCH(LEFT(F38,LEN(F38)-1),CostCode,0))) -> 0 | H38: =G38*E38 -> 0 | J38: =H38*I38 -> 0 | K38: =H38-J38 -> 0
B39: Pipe | D39: m3 | F39: =NA() ->  | G39: =IF(ISNA(F39),0,INDEX(IF(RIGHT(F39,1)="L",UnitCostLow, IF(RIGHT(F39,1)="H",UnitCostHigh,UnitCostSpecified)),MATCH(LEFT(F39,LEN(F39)-1),CostCode,0))) -> 0 | H39: =G39*E39 -> 0 | J39: 0 | K39: 0
B40: Remove reclaim barge | D40: allow | F40: =NA() ->  | G40: =IF(ISNA(F40),0,INDEX(IF(RIGHT(F40,1)="L",UnitCostLow, IF(RIGHT(F40,1)="H",UnitCostHigh,UnitCostSpecified)),MATCH(LEFT(F40,LEN(F40)-1),CostCode,0))) -> 0 | H40: =G40*E40 -> 0 | J40: 0 | K40: 0
B41: CONSTRUCT DIVERSION DITCHES
B42: Excavate ditches -soil | D42: m3 | F42: =NA() ->  | G42: =IF(ISNA(F42),0,INDEX(IF(RIGHT(F42,1)="L",UnitCostLow, IF(RIGHT(F42,1)="H",UnitCostHigh,UnitCostSpecified)),MATCH(LEFT(F42,LEN(F42)-1),CostCode,0))) -> 0 | H42: =G42*E42 -> 0 | J42: =H42*I42 -> 0 | K42: =H42-J42 -> 0
B43: Excavate ditches -rock | D43: m3 | F43: =NA() ->  | G43: =IF(ISNA(F43),0,INDEX(IF(RIGHT(F43,1)="L",UnitCostLow, IF(RIGHT(F43,1)="H",UnitCostHigh,UnitCostSpecified)),MATCH(LEFT(F43,LEN(F43)-1),CostCode,0))) -> 0 | H43: =G43*E43 -> 0 | J43: 0 | K43: 0
B44: Rip rap in channel base | D44: m3 | F44: =NA() ->  | G44: =IF(ISNA(F44),0,INDEX(IF(RIGHT(F44,1)="L",UnitCostLow, IF(RIGHT(F44,1)="H",UnitCostHigh,UnitCostSpecified)),MATCH(LEFT(F44,LEN(F44)-1),CostCode,0))) -> 0 | H44: =G44*E44 -> 0 | J44: 0 | K44: 0
B45: FLOOD TAILINGS
B46: Doze tailings to final contour | D46: m3 | F46: =NA() ->  | G46: =IF(ISNA(F46),0,INDEX(IF(RIGHT(F46,1)="L",UnitCostLow, IF(RIGHT(F46,1)="H",UnitCostHigh,UnitCostSpecified)),MATCH(LEFT(F46,LEN(F46)-1),CostCode,0))) -> 0 | H46: =G46*E46 -> 0 | J46: =H46*I46 -> 0 | K46: =H46-J46 -> 0
B47: Raise crest of dam | D47: m3 | F47: =NA() ->  | G47: =IF(ISNA(F47),0,INDEX(IF(RIGHT(F47,1)="L",UnitCostLow, IF(RIGHT(F47,1)="H",UnitCostHigh,UnitCostSpecified)),MATCH(LEFT(F47,LEN(F47)-1),CostCode,0))) -> 0 | H47: =G47*E47 -> 0 | J47: 0 | K47: 0
B48: Other | F48: =NA() ->  | G48: =IF(ISNA(F48),0,INDEX(IF(RIGHT(F48,1)="L",UnitCostLow, IF(RIGHT(F48,1)="H",UnitCostHigh,UnitCostSpecified)),MATCH(LEFT(F48,LEN(F48)-1),CostCode,0))) -> 0 | H48: =G48*E48 -> 0 | J48: 0 | K48: 0
B49: UPGRADE SPILLWAY
B50: Excavate channel, rock | D50: m3 | F50: =NA() ->  | G50: =IF(ISNA(F50),0,INDEX(IF(RIGHT(F50,1)="L",UnitCostLow, IF(RIGHT(F50,1)="H",UnitCostHigh,UnitCostSpecified)),MATCH(LEFT(F50,LEN(F50)-1),CostCode,0))) -> 0 | H50: =G50*E50 -> 0 | J50: =H50*I50 -> 0 | K50: =H50-J50 -> 0
B51: Excavate channel, soil | D51: m3 | F51: =NA() ->  | G51: =IF(ISNA(F51),0,INDEX(IF(RIGHT(F51,1)="L",UnitCostLow, IF(RIGHT(F51,1)="H",UnitCostHigh,UnitCostSpecified)),MATCH(LEFT(F51,LEN(F51)-1),CostCode,0))) -> 0 | H51: =G51*E51 -> 0 | J51: 0 | K51: 0
B52: Concrete | D52: m3 | F52: =NA() ->  | G52: =IF(ISNA(F52),0,INDEX(IF(RIGHT(F52,1)="L",UnitCostLow, IF(RIGHT(F52,1)="H",UnitCostHigh,UnitCostSpecified)),MATCH(LEFT(F52,LEN(F52)-1),CostCode,0))) -> 0 | H52: =G52*E52 -> 0 | J52: 0 | K52: 0
B53: Rip rap | D53: m3 | F53: =NA() ->  | G53: =IF(ISNA(F53),0,INDEX(IF(RIGHT(F53,1)="L",UnitCostLow, IF(RIGHT(F53,1)="H",UnitCostHigh,UnitCostSpecified)),MATCH(LEFT(F53,LEN(F53)-1),CostCode,0))) -> 0 | H53: =G53*E53 -> 0 | J53: 0 | K53: 0
B54: Other | F54: =NA() ->  | G54: =IF(ISNA(F54),0,INDEX(IF(RIGHT(F54,1)="L",UnitCostLow, IF(RIGHT(F54,1)="H",UnitCostHigh,UnitCostSpecified)),MATCH(LEFT(F54,LEN(F54)-1),CostCode,0))) -> 0 | H54: =G54*E54 -> 0 | J54: 0 | K54: 0
B55: CONSTRUCT SEEPAGE COLLECTION POND
B56: Excavate seepage collection pond | D56: m3 | F56: =NA() ->  | G56: =IF(ISNA(F56),0,INDEX(IF(RIGHT(F56,1)="L",UnitCostLow, IF(RIGHT(F56,1)="H",UnitCostHigh,UnitCostSpecified)),MATCH(LEFT(F56,LEN(F56)-1),CostCode,0))) -> 0 | H56: =G56*E56 -> 0 | J56: =H56*I56 -> 0 | K56: =H56-J56 -> 0
B57: Doze & spread excavated material | D57: m3 | F57: =NA() ->  | G57: 0 | H57: 0 | J57: 0 | K57: 0
B58: Vegetate spread material | D58: ha | F58: =NA() ->  | G58: 0 | H58: 0 | J58: 0 | K58: 0
B59: Bedding layer | D59: m3 | F59: =NA() ->  | G59: 0 | H59: 0 | J59: 0 | K59: 0
B60: Supply geomembrane | D60: m2 | F60: =NA() ->  | G60: 0 | H60: 0 | J60: 0 | K60: 0
B61: Install geomembrane | D61: m2 | F61: =NA() ->  | G61: 0 | H61: 0 | J61: 0 | K61: 0
B62: Erosion protection layer | D62: m3 | F62: =NA() ->  | G62: 0 | H62: 0 | J62: 0 | K62: 0
B63: INSTALL GROUNDWATER COLLECTION SYSTEM
B64: Excavate/install sumps | D64: m3 | F64: =NA() ->  | G64: =IF(ISNA(F64),0,INDEX(IF(RIGHT(F64,1)="L",UnitCostLow, IF(RIGHT(F64,1)="H",UnitCostHigh,UnitCostSpecified)),MATCH(LEFT(F64,LEN(F64)-1),CostCode,0))) -> 0 | H64: =G64*E64 -> 0 | J64: =H64*I64 -> 0 | K64: =H64-J64 -> 0
B65: Install pumping wells | D65: m3 | F65: =NA() ->  | G65: =IF(ISNA(F65),0,INDEX(IF(RIGHT(F65,1)="L",UnitCostLow, IF(RIGHT(F65,1)="H",UnitCostHigh,UnitCostSpecified)),MATCH(LEFT(F65,LEN(F65)-1),CostCode,0))) -> 0 | H65: =G65*E65 -> 0 | J65: 0 | K65: 0
B66: Install pumps/pipelines/power supply | D66: LS | F66: =NA() ->  | G66: =IF(ISNA(F66),0,INDEX(IF(RIGHT(F66,1)="L",UnitCostLow, IF(RIGHT(F66,1)="H",UnitCostHigh,UnitCostSpecified)),MATCH(LEFT(F66,LEN(F66)-1),CostCode,0))) -> 0 | H66: =G66*E66 -> 0 | J66: 0 | K66: 0
B67: SPECIALIZED ITEMS
B68: Install permanent instrumentation, supply & technician | D68: each | F68: =NA() ->  | G68: =IF(ISNA(F68),0,INDEX(IF(RIGHT(F68,1)="L",UnitCostLow, IF(RIGHT(F68,1)="H",UnitCostHigh,UnitCostSpecified)),MATCH(LEFT(F68,LEN(F68)-1),CostCode,0))) -> 0 | H68: =G68*E68 -> 0 | J68: =H68*I68 -> 0 | K68: =H68-J68 -> 0
B69: Install permanent instrumentation, drilling | D69: each | F69: =NA() ->  | G69: =IF(ISNA(F69),0,INDEX(IF(RIGHT(F69,1)="L",UnitCostLow, IF(RIGHT(F69,1)="H",UnitCostHigh,UnitCostSpecified)),MATCH(LEFT(F69,LEN(F69)-1),CostCode,0))) -> 0 | H69: =G69*E69 -> 0 | J69: 0 | K69: 0
B70: TREAT SEEPAGE - see "Water Management" *
B71: Total water treatment cost | G71: Total treatment costs | H71: ='Water Treatment'!P36 -> 0 | K71: =H71 -> 0
G72: Total | H72: =SUM(H4:H70)+H71+0.0001 -> 0.0001 | J72: =SUM(J4:J70)+J71 -> 0 | K72: =SUM(K4:K70)+K71 -> 0
G73: % of Total | J73: =J72/H72 -> 0 | K73: =K72/H72 -> 0
B75: * For construction of passive or temporary treatment system refer to "Water Management". ARD/ML seepage treatment becomes post-closure water treatment cost

Sheet Rock Pile
A1: 1 | B1: Rock Pile Name: | G1: Rock Pile # | H1: 1
B3: ACTIVITY/MATERIAL | C3: Notes | D3: Units | E3: Quantity | F3: Cost Code | G3: Unit Cost | H3: Cost | I3: % Land | J3: Land Cost | K3: Water Cost
B4: STABILIZE SLOPES
B5: Flatten slopes with dozer | D5: m3 | F5: =NA() ->  | G5: =IF(ISNA(F5),0,INDEX(IF(RIGHT(F5,1)="L",UnitCostLow, IF(RIGHT(F5,1)="H",UnitCostHigh,UnitCostSpecified)),MATCH(LEFT(F5,LEN(F5)-1),CostCode,0))) -> 0 | H5: =G5*E5 -> 0 | J5: =H5*I5 -> 0 | K5: =+H5*(1-I5) -> 0
B6: Flatten "bubble dump" areas | D6: m3 | F6: =NA() ->  | G6: 0 | H6: 0 | J6: 0 | K6: 0
B7: Divert runon, ditch mat'l A | D7: m3 | F7: =NA() ->  | G7: 0 | H7: 0 | J7: 0 | K7: 0
B8: Divert runon, ditch mat'l B | D8: m3 | F8: =NA() ->  | G8: 0 | H8: 0 | J8: 0 | K8: 0
B9: Toe buttress, drain mat'l | D9: m3 | F9: =NA() ->  | G9: 0 | H9: 0 | J9: 0 | K9: 0
B10: Toe buttress, fill mat'l A | D10: m3 | F10: =NA() ->  | G10: 0 | H10: 0 | J10: 0 | K10: 0
B11: Toe buttress, fill mat'l B | D11: m3 | F11: =NA() ->  | G11: 0 | H11: 0 | J11: 0 | K11: 0
B12: Other | F12: =NA() ->  | G12: 0 | H12: 0 | J12: 0 | K12: 0
B13: COVER ROCK PILE
B14: Subgrade preparation - doze surface | D14: m3 | F14: =NA() ->  | G14: =IF(ISNA(F14),0,INDEX(IF(RIGHT(F14,1)="L",UnitCostLow, IF(RIGHT(F14,1)="H",UnitCostHigh,UnitCostSpecified)),MATCH(LEFT(F14,LEN(F14)-1),CostCode,0))) -> 0 | H14: =G14*E14 -> 0 | J14: =H14*I14 -> 0 | K14: =+H14*(1-I14) -> 0
B15: Soil cover - excavate, haul, spread & compact | D15: m3 | F15: =NA() ->  | G15: 0 | H15: 0 | J15: 0 | K15: 0
B16: Rock cover - excavate, haul & spread | D16: m3 | F16: =NA() ->  | G16: 0 | H16: 0 | J16: 0 | K16: 0
B17: Excavate downslope drainage channel & chute | D17: m3 | F17: =NA() ->  | G17: 0 | H17: 0 | J17: 0 | K17: 0
B18: Rip rap drainage channel and chute | D18: m3 | F18: =NA() ->  | G18: 0 | H18: 0 | J18: 0 | K18: 0
B19: Vegetate | D19: ha | F19: =NA() ->  | G19: 0 | H19: 0 | J19: 0 | K19: 0
B20: Other | F20: =NA() ->  | G20: 0 | H20: 0 | J20: 0 | K20: 0
B21: VERY LOW PERMEABILITY COVER (in addition to above)
B22: Liner subgrade preparation - compact | D22: m3 | F22: =NA() ->  | G22: =IF(ISNA(F22),0,INDEX(IF(RIGHT(F22,1)="L",UnitCostLow, IF(RIGHT(F22,1)="H",UnitCostHigh,UnitCostSpecified)),MATCH(LEFT(F22,LEN(F22)-1),CostCode,0))) -> 0 | H22: =G22*E22 -> 0 | J22: =H22*I22 -> 0 | K22: =+H22*(1-I22) -> 0
B23: Supply geomembrane | D23: m2 | F23: =NA() ->  | G23: 0 | H23: =G23*E23 -> 0 | J23: 0 | K23: 0
B24: Install geomembrane | D24: m2 | F24: =NA() ->  | G24: 0 | H24: =G24*E24 -> 0 | J24: 0 | K24: 0
B25: Protective cover - excavate, haul, spread & compact | D25: m3 | F25: =NA() ->  | G25: 0 | H25: 0 | J25: 0 | K25: 0
B26: Vegetate | D26: ha | F26: =NA() ->  | G26: 0 | H26: 0 | J26: 0 | K26: 0
B27: Install infiltration/seepage instrumentation | D27: allow | F27: =NA() ->  | G27: 0 | H27: 0 | J27: 0 | K27: 0
B28: CONSTRUCT DIVERSION DITCHES
B29: Excavate ditches -soil | D29: m3 | F29: =NA() ->  | G29: =IF(ISNA(F29),0,INDEX(IF(RIGHT(F29,1)="L",UnitCostLow, IF(RIGHT(F29,1)="H",UnitCostHigh,UnitCostSpecified)),MATCH(LEFT(F29,LEN(F29)-1),CostCode,0))) -> 0 | H29: =G29*E29 -> 0 | J29: =H29*I29 -> 0 | K29: =+H29*(1-I29) -> 0
B30: Excavate ditches -rock | D30: m3 | F30: =NA() ->  | G30: =IF(ISNA(F30),0,INDEX(IF(RIGHT(F30,1)="L",UnitCostLow, IF(RIGHT(F30,1)="H",UnitCostHigh,UnitCostSpecified)),MATCH(LEFT(F30,LEN(F30)-1),CostCode,0))) -> 0 | H30: =G30*E30 -> 0 | J30: =H30*I30 -> 0 | K30: =+H30*(1-I30) -> 0
B31: Rip rap in channel base | D31: m3 | F31: =NA() ->  | G31: =IF(ISNA(F31),0,INDEX(IF(RIGHT(F31,1)="L",UnitCostLow, IF(RIGHT(F31,1)="H",UnitCostHigh,UnitCostSpecified)),MATCH(LEFT(F31,LEN(F31)-1),CostCode,0))) -> 0 | H31: =G31*E31 -> 0 | J31: =H31*I31 -> 0 | K31: =+H31*(1-I31) -> 0
B32: CONSTRUCT SEEPAGE COLLECTION POND
B33: Excavate seepage collection pond | D33: m3 | F33: =NA() ->  | G33: =IF(ISNA(F33),0,INDEX(IF(RIGHT(F33,1)="L",UnitCostLow, IF(RIGHT(F33,1)="H",UnitCostHigh,UnitCostSpecified)),MATCH(LEFT(F33,LEN(F33)-1),CostCode,0))) -> 0 | H33: 0 | J33: =H33*I33 -> 0 | K33: =+H33*(1-I33) -> 0
B34: Doze & spread excavated material | D34: m3 | F34: =NA() ->  | G34: 0 | H34: 0 | J34: 0 | K34: 0
B35: Vegetate spread material | D35: ha | F35: =NA() ->  | G35: 0 | H35: 0 | J35: 0 | K35: 0
B36: Bedding layer | D36: m3 | F36: =NA() ->  | G36: 0 | H36: 0 | J36: 0 | K36: 0
B37: Supply geomembrane | D37: m2 | F37: =NA() ->  | G37: 0 | H37: 0 | J37: 0 | K37: 0
B38: Install geomembrane | D38: m2 | F38: =NA() ->  | G38: 0 | H38: 0 | J38: 0 | K38: 0
B39: Erosion protection layer | D39: m3 | F39: =NA() ->  | G39: 0 | H39: 0 | J39: 0 | K39: 0
B40: INSTALL GROUNDWATER COLLECTION SYSTEM
B41: Excavate/install sumps | D41: m3 | F41: =NA() ->  | G41: =IF(ISNA(F41),0,INDEX(IF(RIGHT(F41,1)="L",UnitCostLow, IF(RIGHT(F41,1)="H",UnitCostHigh,UnitCostSpecified)),MATCH(LEFT(F41,LEN(F41)-1),CostCode,0))) -> 0 | H41: =G41*E41 -> 0 | J41: =H41*I41 -> 0 | K41: =+H41*(1-I41) -> 0
B42: Install pumping wells | D42: m3 | F42: =NA() ->  | G42: =IF(ISNA(F42),0,INDEX(IF(RIGHT(F42,1)="L",UnitCostLow, IF(RIGHT(F42,1)="H",UnitCostHigh,UnitCostSpecified)),MATCH(LEFT(F42,LEN(F42)-1),CostCode,0))) -> 0 | H42: =G42*E42 -> 0 | J42: =H42*I42 -> 0 | K42: =+H42*(1-I42) -> 0
B43: Install pumps/pipelines/power supply | D43: allow | F43: =NA() ->  | G43: =IF(ISNA(F43),0,INDEX(IF(RIGHT(F43,1)="L",UnitCostLow, IF(RIGHT(F43,1)="H",UnitCostHigh,UnitCostSpecified)),MATCH(LEFT(F43,LEN(F43)-1),CostCode,0))) -> 0 | H43: =G43*E43 -> 0 | J43: =H43*I43 -> 0 | K43: =+H43*(1-I43) -> 0
B44: RELOCATE DUMPS
B45: Load, haul, dump or doze | D45: m3 | F45: =NA() ->  | G45: =IF(ISNA(F45),0,INDEX(IF(RIGHT(F45,1)="L",UnitCostLow, IF(RIGHT(F45,1)="H",UnitCostHigh,UnitCostSpecified)),MATCH(LEFT(F45,LEN(F45)-1),CostCode,0))) -> 0 | H45: =G45*E45 -> 0 | J45: =H45*I45 -> 0 | K45: =+H45*(1-I45) -> 0
B46: Add lime | D46: tonne | F46: =NA() ->  | G46: =IF(ISNA(F46),0,INDEX(IF(RIGHT(F46,1)="L",UnitCostLow, IF(RIGHT(F46,1)="H",UnitCostHigh,UnitCostSpecified)),MATCH(LEFT(F46,LEN(F46)-1),CostCode,0))) -> 0 | H46: =G46*E46 -> 0 | J46: =H46*I46 -> 0 | K46: =+H46*(1-I46) -> 0
B47: Contour reclaimed area | D47: ha | F47: =NA() ->  | G47: =IF(ISNA(F47),0,INDEX(IF(RIGHT(F47,1)="L",UnitCostLow, IF(RIGHT(F47,1)="H",UnitCostHigh,UnitCostSpecified)),MATCH(LEFT(F47,LEN(F47)-1),CostCode,0))) -> 0 | H47: =G47*E47 -> 0 | J47: =H47*I47 -> 0 | K47: =+H47*(1-I47) -> 0
B48: Other | F48: =NA() ->  | G48: =IF(ISNA(F48),0,INDEX(IF(RIGHT(F48,1)="L",UnitCostLow, IF(RIGHT(F48,1)="H",UnitCostHigh,UnitCostSpecified)),MATCH(LEFT(F48,LEN(F48)-1),CostCode,0))) -> 0 | H48: =G48*E48 -> 0 | J48: =H48*I48 -> 0 | K48: =+H48*(1-I48) -> 0
B49: SPECIALIZED ITEMS
B50: Install permanent instrumentation | D50: each | F50: =NA() ->  | G50: =IF(ISNA(F50),0,INDEX(IF(RIGHT(F50,1)="L",UnitCostLow, IF(RIGHT(F50,1)="H",UnitCostHigh,UnitCostSpecified)),MATCH(LEFT(F50,LEN(F50)-1),CostCode,0))) -> 0 | H50: =G50*E50 -> 0 | J50: =H50*I50 -> 0 | K50: =+H50*(1-I50) -> 0
B51: Install permanent instrumentation, drilling | D51: each | F51: =NA() ->  | G51: =IF(ISNA(F51),0,INDEX(IF(RIGHT(F51,1)="L",UnitCostLow, IF(RIGHT(F51,1)="H",UnitCostHigh,UnitCostSpecified)),MATCH(LEFT(F51,LEN(F51)-1),CostCode,0))) -> 0 | H51: =G51*E51 -> 0 | J51: =H51*I51 -> 0 | K51: =+H51*(1-I51) -> 0
G52: Total | H52: =SUM(H4:H51)+0.0001 -> 0.0001 | J52: =SUM(J4:J51) -> 0 | K52: =SUM(K4:K51) -> 0
G53: % of Total | J53: =J52/H52 -> 0 | K53: =K52/H52 -> 0
B55: * For construction of passive treatment system refer to "Water Management". ARD/ML seepage treatment becomes post-closure water treatment cost

Sheet Bldgs & Equip
A1: 1 | B1: Building / Equip Name: | G1: Bldg / Equip #: | H1: 1
B3: ACTIVITY/MATERIAL | C3: Notes | D3: Units | E3: Quantity | F3: Cost Code | G3: Unit Cost | H3: Cost | I3: % Land | J3: Land Cost | K3: Water Cost
B4: DISPOSE MOBILE EQUIPMENT
B5: Decontaminate and ship off-site | D5: allow | F5: =NA() ->  | G5: =IF(ISNA(F5),0,INDEX(IF(RIGHT(F5,1)="L",UnitCostLow, IF(RIGHT(F5,1)="H",UnitCostHigh,UnitCostSpecified)),MATCH(LEFT(F5,LEN(F5)-1),CostCode,0))) -> 0 | H5: =G5*E5 -> 0 | J5: =H5*I5 -> 0 | K5: =+H5*(1-I5) -> 0
B6: Decontaminate and dispose on-site | D6: allow | F6: =NA() ->  | G6: =IF(ISNA(F6),0,INDEX(IF(RIGHT(F6,1)="L",UnitCostLow, IF(RIGHT(F6,1)="H",UnitCostHigh,UnitCostSpecified)),MATCH(LEFT(F6,LEN(F6)-1),CostCode,0))) -> 0 | H6: =G6*E6 -> 0 | J6: =H6*I6 -> 0 | K6: =+H6*(1-I6) -> 0
B7: Other | F7: =NA() ->  | G7: =IF(ISNA(F7),0,INDEX(IF(RIGHT(F7,1)="L",UnitCostLow, IF(RIGHT(F7,1)="H",UnitCostHigh,UnitCostSpecified)),MATCH(LEFT(F7,LEN(F7)-1),CostCode,0))) -> 0 | H7: =G7*E7 -> 0 | J7: 0 | K7: 0
B8: REMOVE BUILDINGS
B9: Accommodation Complex | D9: m3 | F9: =NA() ->  | G9: =IF(ISNA(F9),0,INDEX(IF(RIGHT(F9,1)="L",UnitCostLow, IF(RIGHT(F9,1)="H",UnitCostHigh,UnitCostSpecified)),MATCH(LEFT(F9,LEN(F9)-1),CostCode,0))) -> 0 | H9: =G9*E9 -> 0 | J9: 0 | K9: 0
B10: Process Facilities | D10: m3 | F10: =NA() ->  | G10: 0 | H10: 0 | J10: 0 | K10: 0
B11: Offices, Repair, Lab, Warehouse | D11: m3 | F11: =NA() ->  | G11: 0 | H11: 0 | J11: 0 | K11: 0
B12: Storage Facilities | D12: m3 | F12: =NA() ->  | G12: 0 | H12: 0 | J12: 0 | K12: 0
B13: Water and Wastewater Treatment Facilities | D13: m3 | F13: =NA() ->  | G13: 0 | H13: 0 | J13: 0 | K13: 0
B14: U/G Heating Plant | D14: m3 | F14: =NA() ->  | G14: 0 | H14: 0 | J14: 0 | K14: 0
B15: Emulsion Plant | D15: m3 | F15: =NA() ->  | G15: 0 | H15: 0 | J15: 0 | K15: 0
B16: AN Storage Facility | D16: m3 | F16: =NA() ->  | G16: 0 | H16: 0 | J16: =H16*I16 -> 0 | K16: =+H16*(1-I16) -> 0
B17: Warehouse, Shops and Other | D17: m3 | F17: =NA() ->  | G17: 0 | H17: 0 | J17: =H17*I17 -> 0 | K17: =+H17*(1-I17) -> 0
B18: Storage Facility at Laydown/Airstrip | D18: m3 | F18: =NA() ->  | G18: 0 | H18: 0 | J18: =H18*I18 -> 0 | K18: =+H18*(1-I18) -> 0
B19: Fuel tanks | D19: m3 | F19: =NA() ->  | G19: 0 | H19: 0 | J19: =H19*I19 -> 0 | K19: =+H19*(1-I19) -> 0
B20: Fuel Tanks | D20: m3 | F20: =NA() ->  | G20: 0 | H20: 0 | J20: =H20*I20 -> 0 | K20: =+H20*(1-I20) -> 0
B21: Freshwater intake | D21: m3 | F21: =NA() ->  | G21: 0 | H21: 0 | J21: 0 | K21: 0
B22: Reclaim pumps | D22: m3 | F22: =NA() ->  | G22: 0 | H22: 0 | J22: 0 | K22: 0
B23: Outfall & Diffuser | D23: m3 | F23: =NA() ->  | G23: 0 | H23: 0 | J23: 0 | K23: 0
B24: Airstrip lighting, navigation, electrician | D24: hr | F24: =NA() ->  | G24: 0 | H24: 0 | J24: 0 | K24: 0
B25: Airstrip lighting, navigation, mechanical | D25: hr | F25: =NA() ->  | G25: 0 | H25: 0 | J25: 0 | K25: 0
B26: Break foundation slabs | D26: m3 | F26: =NA() ->  | G26: 0 | H26: =G26*E26 -> 0 | J26: =H26*I26 -> 0 | K26: =+H26*(1-I26) -> 0
B27: Consolidate & dump boneyard debris | D27: m3 | F27: =NA() ->  | G27: 0 | H27: 0 | J27: 0 | K27: 0
B28: Other | F28: =NA() ->  | G28: 0 | H28: 0 | J28: 0 | K28: 0
B29: LANDFILL FOR DEMOLITION WASTE
B30: Place rock cover | D30: m3 | F30: =NA() ->  | G30: =IF(ISNA(F30),0,INDEX(IF(RIGHT(F30,1)="L",UnitCostLow, IF(RIGHT(F30,1)="H",UnitCostHigh,UnitCostSpecified)),MATCH(LEFT(F30,LEN(F30)-1),CostCode,0))) -> 0 | H30: =G30*E30 -> 0 | J30: =H30*I30 -> 0 | K30: =+H30*(1-I30) -> 0
B31: Place soil cover | D31: m3 | F31: =NA() ->  | G31: =IF(ISNA(F31),0,INDEX(IF(RIGHT(F31,1)="L",UnitCostLow, IF(RIGHT(F31,1)="H",UnitCostHigh,UnitCostSpecified)),MATCH(LEFT(F31,LEN(F31)-1),CostCode,0))) -> 0 | H31: =G31*E31 -> 0 | J31: 0 | K31: =+H31*(1-I31) -> 0
B32: Vegetate | D32: ha | F32: =NA() ->  | G32: =IF(ISNA(F32),0,INDEX(IF(RIGHT(F32,1)="L",UnitCostLow, IF(RIGHT(F32,1)="H",UnitCostHigh,UnitCostSpecified)),MATCH(LEFT(F32,LEN(F32)-1),CostCode,0))) -> 0 | H32: =G32*E32 -> 0 | J32: 0 | K32: 0
B33: GRADE AND CONTOUR PADS
B34: Accommodation Complex | D34: m3 | F34: =NA() ->  | G34: =IF(ISNA(F34),0,INDEX(IF(RIGHT(F34,1)="L",UnitCostLow, IF(RIGHT(F34,1)="H",UnitCostHigh,UnitCostSpecified)),MATCH(LEFT(F34,LEN(F34)-1),CostCode,0))) -> 0 | H34: =G34*E34 -> 0 | J34: 0 | K34: 0
B35: Process Facilities | D35: m3 | F35: =NA() ->  | G35: 0 | H35: 0 | J35: 0 | K35: 0
B36: Offices, Repair, Lab, Warehouse | D36: m3 | F36: =NA() ->  | G36: 0 | H36: 0 | J36: 0 | K36: 0
B37: Storage Facilities | D37: m3 | F37: =NA() ->  | G37: 0 | H37: 0 | J37: 0 | K37: 0
B38: Water and Wastewater Treatment Facilities | D38: m3 | F38: =NA() ->  | G38: 0 | H38: 0 | J38: 0 | K38: 0
B39: U/G Heating Plant | D39: m3 | F39: =NA() ->  | G39: 0 | H39: 0 | J39: 0 | K39: 0
B40: Emulsion Plant | D40: m3 | F40: =NA() ->  | G40: 0 | H40: 0 | J40: 0 | K40: 0
B41: Warehouse, Shops and Other | D41: m3 | F41: =NA() ->  | G41: 0 | H41: 0 | J41: 0 | K41: 0
B42: Place rock cover | D42: m3 | F42: =NA() ->  | G42: 0 | H42: 0 | J42: 0 | K42: 0
B43: Vegetate | D43: ha | F43: =NA() ->  | G43: 0 | H43: 0 | J43: 0 | K43: 0
B44: Other | F44: =NA() ->  | G44: 0 | H44: 0 | J44: 0 | K44: 0
B45: PUNCTURE LINED SUMPS
B46: Puncture liner and place soil cover | D46: m3 | F46: =NA() ->  | G46: =IF(ISNA(F46),0,INDEX(IF(RIGHT(F46,1)="L",UnitCostLow, IF(RIGHT(F46,1)="H",UnitCostHigh,UnitCostSpecified)),MATCH(LEFT(F46,LEN(F46)-1),CostCode,0))) -> 0 | H46: =G46*E46 -> 0 | J46: =H46*I46 -> 0 | K46: =+H46*(1-I46) -> 0
B47: RECLAIM ROADS
B48: Remove culverts | D48: each | F48: =NA() ->  | G48: =IF(ISNA(F48),0,INDEX(IF(RIGHT(F48,1)="L",UnitCostLow, IF(RIGHT(F48,1)="H",UnitCostHigh,UnitCostSpecified)),MATCH(LEFT(F48,LEN(F48)-1),CostCode,0))) -> 0 | H48: =G48*E48 -> 0 | J48: 0 | K48: 0
B49: Remove bridges | D49: each | F49: =NA() ->  | G49: 0 | H49: 0 | J49: 0 | K49: 0
B50: Scarify and install water breaks | D50: ha | F50: =NA() ->  | G50: 0 | H50: 0 | J50: 0 | K50: 0
B51: Scarify airstrip | D51: ha | F51: =NA() ->  | G51: 0 | H51: 0 | J51: 0 | K51: 0
B52: Scarify laydown areas | D52: ha | F52: =NA() ->  | G52: 0 | H52: 0 | J52: 0 | K52: 0
B53: Vegetate | D53: ha | F53: =NA() ->  | G53: 0 | H53: 0 | J53: =H53*I53 -> 0 | K53: 0
B54: Other | F54: =NA() ->  | G54: 0 | H54: 0 | J54: =H54*I54 -> 0 | K54: 0
B55: SPECIALIZED ITEMS
B56: Dispose of misc. debris and laydown area refuse | F56: =NA() ->  | G56: =IF(ISNA(F56),0,INDEX(IF(RIGHT(F56,1)="L",UnitCostLow, IF(RIGHT(F56,1)="H",UnitCostHigh,UnitCostSpecified)),MATCH(LEFT(F56,LEN(F56)-1),CostCode,0))) -> 0 | H56: =G56*E56 -> 0 | J56: =H56*I56 -> 0 | K56: 0
G57: Total | H57: =SUM(H4:H56)+0.0001 -> 0.0001 | J57: =SUM(J4:J56) -> 0 | K57: =SUM(K4:K56) -> 0
G58: % of Total | J58: =J57/H57 -> 0 | K58: =K57/H57 -> 0

Sheet Chemicals
A1: 1 | B1: Chemicals/Soil Area Name:
B3: Note: The procedures, equipment and packaging for clean up and removal of chemicals or contaminated soils are highly dependent on the nature of the chemicals and their existing state of containment. Government guidelines should be consulted on an individual chemical basis. Any estimate made here should be considered very rough unless specific evaluations have been conducted.
B4: ACTIVITY/MATERIAL | C4: Notes | D4: Units | E4: Quantity | F4: Cost Code | G4: Unit Cost | H4: Cost | I4: % Land | J4: Land Cost | K4: Water Cost
B5: HAZARDOUS MATERIALS AUDIT
B6: Hazardous materials audit | D6: hr | F6: =NA() ->  | G6: =IF(ISNA(F6),0,INDEX(IF(RIGHT(F6,1)="L",UnitCostLow, IF(RIGHT(F6,1)="H",UnitCostHigh,UnitCostSpecified)),MATCH(LEFT(F6,LEN(F6)-1),CostCode,0))) -> 0 | H6: =G6*E6 -> 0 | J6: =H6*I6 -> 0 | K6: =+H6*(1-I6) -> 0
B7: BUILDING DECONTAMINATION & CONSOLIDATION OF HAZARDOUS MATERIALS
B8: Environmental technician/coordinator | D8: m3 | F8: =NA() ->  | G8: =IF(ISNA(F8),0,INDEX(IF(RIGHT(F8,1)="L",UnitCostLow, IF(RIGHT(F8,1)="H",UnitCostHigh,UnitCostSpecified)),MATCH(LEFT(F8,LEN(F8)-1),CostCode,0))) -> 0 | H8: =G8*E8 -> 0 | J8: =H8*I8 -> 0 | K8: =+H8*(1-I8) -> 0
B9: Decontaminate: oil, fuel | D9: m3 | F9: =NA() ->  | G9: 0 | H9: 0 | J9: 0 | K9: 0
B10: Decontaminate maintenance shop | D10: m3 | F10: =NA() ->  | G10: 0 | H10: 0 | J10: 0 | K10: 0
B11: Decontaminate power plant | D11: m3 | F11: =NA() ->  | G11: 0 | H11: 0 | J11: 0 | K11: 0
B12: Decontaminate bulk fuel storage | D12: m3 | F12: =NA() ->  | G12: 0 | H12: 0 | J12: 0 | K12: 0
B13: Decontaminate ANFO plant | D13: m3 | F13: =NA() ->  | G13: 0 | H13: 0 | J13: 0 | K13: 0
B14: Decontaminate offices/warehouse/accom | D14: m3 | F14: =NA() ->  | G14: 0 | H14: 0 | J14: 0 | K14: 0
B15: Removal of asbestos siding on buildings | D15: m3 | F15: =NA() ->  | G15: 0 | H15: 0 | J15: 0 | K15: 0
B16: Removal of friable asbestos on equipment | D16: m3 | F16: =NA() ->  | G16: 0 | H16: 0 | J16: 0 | K16: 0
B17: Other | F17: =NA() ->  | G17: 0 | H17: 0 | J17: 0 | K17: 0
B18: HAZARDOUS MATERIALS REMOVAL
B19: Waste oils | D19: litre | F19: =NA() ->  | G19: =IF(ISNA(F19),0,INDEX(IF(RIGHT(F19,1)="L",UnitCostLow, IF(RIGHT(F19,1)="H",UnitCostHigh,UnitCostSpecified)),MATCH(LEFT(F19,LEN(F19)-1),CostCode,0))) -> 0 | H19: =G19*E19 -> 0 | J19: =H19*I19 -> 0 | K19: =+H19*(1-I19) -> 0
B20: Waste fuel | D20: litre | F20: =NA() ->  | G20: 0 | H20: 0 | J20: 0 | K20: 0
B21: Waste batteries | D21: kg | F21: =NA() ->  | G21: 0 | H21: 0 | J21: 0 | K21: 0
B22: Assay & environmental lab reagents | D22: kg | F22: =NA() ->  | G22: 0 | H22: 0 | J22: 0 | K22: 0
B23: Machine shop paints, solvents etc. | D23: litre | F23: =NA() ->  | G23: 0 | H23: 0 | J23: 0 | K23: 0
B24: Glycol | D24: litre | F24: =NA() ->  | G24: 0 | H24: 0 | J24: 0 | K24: 0
B25: Process reagents | D25: kg | F25: =NA() ->  | G25: 0 | H25: =G25*E25 -> 0 | J25: 0 | K25: 0
B26: Nuclear sources | D26: allow | F26: =NA() ->  | G26: 0 | H26: 0 | J26: 0 | K26: 0
B27: Other hazardous materials | D27: allow | F27: =NA() ->  | G27: 0 | H27: =G27*E27 -> 0 | J27: 0 | K27: 0
B28: HAZARDOUS MATERIALS
B29: Transportation to disposal facility | D29: allow | F29: =NA() ->  | G29: =IF(ISNA(F29),0,INDEX(IF(RIGHT(F29,1)="L",UnitCostLow, IF(RIGHT(F29,1)="H",UnitCostHigh,UnitCostSpecified)),MATCH(LEFT(F29,LEN(F29)-1),CostCode,0))) -> 0 | H29: =G29*E29 -> 0 | J29: =H29*I29 -> 0 | K29: =+H29*(1-I29) -> 0
B30: Disposal fees | D30: allow | F30: =NA() ->  | G30: =IF(ISNA(F30),0,INDEX(IF(RIGHT(F30,1)="L",UnitCostLow, IF(RIGHT(F30,1)="H",UnitCostHigh,UnitCostSpecified)),MATCH(LEFT(F30,LEN(F30)-1),CostCode,0))) -> 0 | H30: =G30*E30 -> 0 | J30: =H30*I30 -> 0 | K30: =+H30*(1-I30) -> 0
B31: Other | F31: =NA() ->  | G31: =IF(ISNA(F31),0,INDEX(IF(RIGHT(F31,1)="L",UnitCostLow, IF(RIGHT(F31,1)="H",UnitCostHigh,UnitCostSpecified)),MATCH(LEFT(F31,LEN(F31)-1),CostCode,0))) -> 0 | H31: =G31*E31 -> 0 | J31: =H31*I31 -> 0 | K31: =+H31*(1-I31) -> 0
B32: CONTAMINATED SOILS
B33: Contam. soil investigation - Phase 1 | D33: each | F33: =NA() ->  | G33: =IF(ISNA(F33),0,INDEX(IF(RIGHT(F33,1)="L",UnitCostLow, IF(RIGHT(F33,1)="H",UnitCostHigh,UnitCostSpecified)),MATCH(LEFT(F33,LEN(F33)-1),CostCode,0))) -> 0 | H33: =G33*E33 -> 0 | J33: =H33*I33 -> 0 | K33: =+H33*(1-I33) -> 0
B34: Contam. soil investigation - Phase 2 | D34: each | F34: =NA() ->  | G34: =IF(ISNA(F34),0,INDEX(IF(RIGHT(F34,1)="L",UnitCostLow, IF(RIGHT(F34,1)="H",UnitCostHigh,UnitCostSpecified)),MATCH(LEFT(F34,LEN(F34)-1),CostCode,0))) -> 0 | H34: 0 | J34: 0 | K34: 0
B35: CONTAMINATED SOIL REMOVAL
B36: Excavate and transport to onsite facility | D36: m3 | F36: =NA() ->  | G36: =IF(ISNA(F36),0,INDEX(IF(RIGHT(F36,1)="L",UnitCostLow, IF(RIGHT(F36,1)="H",UnitCostHigh,UnitCostSpecified)),MATCH(LEFT(F36,LEN(F36)-1),CostCode,0))) -> 0 | H36: =G36*E36 -> 0 | J36: =H36*I36 -> 0 | K36: =+H36*(1-I36) -> 0
B37: Manage hydrocarbon remediation at facility | D37: m3 | F37: =NA() ->  | G37: =IF(ISNA(F37),0,INDEX(IF(RIGHT(F37,1)="L",UnitCostLow, IF(RIGHT(F37,1)="H",UnitCostHigh,UnitCostSpecified)),MATCH(LEFT(F37,LEN(F37)-1),CostCode,0))) -> 0 | H37: 0 | J37: 0 | K37: 0
B38: Reagents/stabilizing agent | D38: m2 | F38: =NA() ->  | G38: =IF(ISNA(F38),0,INDEX(IF(RIGHT(F38,1)="L",UnitCostLow, IF(RIGHT(F38,1)="H",UnitCostHigh,UnitCostSpecified)),MATCH(LEFT(F38,LEN(F38)-1),CostCode,0))) -> 0 | H38: =G38*E38 -> 0 | J38: =H38*I38 -> 0 | K38: =+H38*(1-I38) -> 0
B39: Excavate and transport to offsite facility | D39: m3 | F39: =NA() ->  | G39: =IF(ISNA(F39),0,INDEX(IF(RIGHT(F39,1)="L",UnitCostLow, IF(RIGHT(F39,1)="H",UnitCostHigh,UnitCostSpecified)),MATCH(LEFT(F39,LEN(F39)-1),CostCode,0))) -> 0 | H39: 0 | J39: 0 | K39: 0
B40: Contour decontaminated area | D40: m3 | F40: =NA() ->  | G40: =IF(ISNA(F40),0,INDEX(IF(RIGHT(F40,1)="L",UnitCostLow, IF(RIGHT(F40,1)="H",UnitCostHigh,UnitCostSpecified)),MATCH(LEFT(F40,LEN(F40)-1),CostCode,0))) -> 0 | H40: 0 | J40: =H40*I40 -> 0 | K40: =+H40*(1-I40) -> 0
B41: CONTAMINATED SOIL VERY LOW PERMEABILITY COVER
B42: Supply geomembrane, HDPE, ES3, GCL | D42: m2 | F42: =NA() ->  | G42: =IF(ISNA(F42),0,INDEX(IF(RIGHT(F42,1)="L",UnitCostLow, IF(RIGHT(F42,1)="H",UnitCostHigh,UnitCostSpecified)),MATCH(LEFT(F42,LEN(F42)-1),CostCode,0))) -> 0 | H42: =G42*E42 -> 0 | J42: =H42*I42 -> 0 | K42: =+H42*(1-I42) -> 0
B43: Upper and lower bedding layers | D43: m3 | F43: =NA() ->  | G43: 0 | H43: 0 | J43: 0 | K43: 0
B44: Install geomembrane, HDPE, ES3, GCL | D44: m2 | F44: =NA() ->  | G44: 0 | H44: 0 | J44: 0 | K44: 0
B45: Erosion protection layer | D45: m3 | F45: =NA() ->  | G45: 0 | H45: 0 | J45: 0 | K45: 0
B46: Vegetate | D46: m2 | F46: =NA() ->  | G46: 0 | H46: 0 | J46: 0 | K46: 0
B47: Install infiltration/seepage instrumentation | D47: allow | F47: =NA() ->  | G47: 0 | H47: 0 | J47: 0 | K47: 0
B48: Other | F48: =NA() ->  | G48: 0 | H48: 0 | J48: 0 | K48: 0
B49: OTHER
F50: =NA() ->  | G50: =IF(ISNA(F50),0,INDEX(IF(RIGHT(F50,1)="L",UnitCostLow, IF(RIGHT(F50,1)="H",UnitCostHigh,UnitCostSpecified)),MATCH(LEFT(F50,LEN(F50)-1),CostCode,0))) -> 0 | H50: =G50*E50 -> 0 | J50: =H50*I50 -> 0 | K50: =+H50*(1-I50) -> 0
G51: Total | H51: =SUM(H5:H50)+0.0001 -> 0.0001 | J51: =SUM(J5:J50) -> 0 | K51: =SUM(K5:K50) -> 0
G52: % of Total | J52: =J51/H51 -> 0 | K52: =K51/H51 -> 0

Sheet Water Management
A1: 1 | B1: Capital Expenditures and Short Term Surface and Groundwater Treatment identified in 'Instructions' worksheet
B3: ACTIVITY/MATERIAL | C3: Notes | D3: Units | E3: Quantity | F3: Cost Code | G3: Unit Cost | H3: Cost
B4: BREACH DYKE EMBANKMENT
B5: Remove fill | D5: m3 | F5: =NA() ->  | G5: =IF(ISNA(F5),0,INDEX(IF(RIGHT(F5,1)="L",UnitCostLow, IF(RIGHT(F5,1)="H",UnitCostHigh,UnitCostSpecified)),MATCH(LEFT(F5,LEN(F5)-1),CostCode,0))) -> 0 | H5: =G5*E5 -> 0
B6: Contour water intake area | D6: m3 | F6: =NA() ->  | G6: =IF(ISNA(F6),0,INDEX(IF(RIGHT(F6,1)="L",UnitCostLow, IF(RIGHT(F6,1)="H",UnitCostHigh,UnitCostSpecified)),MATCH(LEFT(F6,LEN(F6)-1),CostCode,0))) -> 0 | H6: =G6*E6 -> 0
B7: STABILIZE SEDIMENT PONDS/WATER MANAGEMENT PONDS
B8: Place soil cover | D8: m3 | F8: =NA() ->  | G8: =IF(ISNA(F8),0,INDEX(IF(RIGHT(F8,1)="L",UnitCostLow, IF(RIGHT(F8,1)="H",UnitCostHigh,UnitCostSpecified)),MATCH(LEFT(F8,LEN(F8)-1),CostCode,0))) -> 0 | H8: =G8*E8 -> 0
B9: Doze & spread excavated material | D9: m3 | F9: =NA() ->  | G9: =IF(ISNA(F9),0,INDEX(IF(RIGHT(F9,1)="L",UnitCostLow, IF(RIGHT(F9,1)="H",UnitCostHigh,UnitCostSpecified)),MATCH(LEFT(F9,LEN(F9)-1),CostCode,0))) -> 0 | H9: =G9*E9 -> 0
B10: Vegetate spread material | D10: ha | F10: =NA() ->  | G10: =IF(ISNA(F10),0,INDEX(IF(RIGHT(F10,1)="L",UnitCostLow, IF(RIGHT(F10,1)="H",UnitCostHigh,UnitCostSpecified)),MATCH(LEFT(F10,LEN(F10)-1),CostCode,0))) -> 0 | H10: =G10*E10 -> 0
B11: Rip rap in channel base | D11: each | F11: =NA() ->  | G11: =IF(ISNA(F11),0,INDEX(IF(RIGHT(F11,1)="L",UnitCostLow, IF(RIGHT(F11,1)="H",UnitCostHigh,UnitCostSpecified)),MATCH(LEFT(F11,LEN(F11)-1),CostCode,0))) -> 0 | H11: =G11*E11 -> 0
B12: REDIRECT RUNOFF/CONSTRUCT DIVERSION DITCHES
B13: Excavate ditches -soil | D13: m3 | F13: =NA() ->  | G13: =IF(ISNA(F13),0,INDEX(IF(RIGHT(F13,1)="L",UnitCostLow, IF(RIGHT(F13,1)="H",UnitCostHigh,UnitCostSpecified)),MATCH(LEFT(F13,LEN(F13)-1),CostCode,0))) -> 0 | H13: =G13*E13 -> 0
B14: Excavate ditches -rock | D14: m3 | F14: =NA() ->  | G14: =IF(ISNA(F14),0,INDEX(IF(RIGHT(F14,1)="L",UnitCostLow, IF(RIGHT(F14,1)="H",UnitCostHigh,UnitCostSpecified)),MATCH(LEFT(F14,LEN(F14)-1),CostCode,0))) -> 0 | H14: =G14*E14 -> 0
B15: Stabilize side slopes | D15: m3 | F15: =NA() ->  | G15: =IF(ISNA(F15),0,INDEX(IF(RIGHT(F15,1)="L",UnitCostLow, IF(RIGHT(F15,1)="H",UnitCostHigh,UnitCostSpecified)),MATCH(LEFT(F15,LEN(F15)-1),CostCode,0))) -> 0 | H15: =G15*E15 -> 0
B16: Rip rap in channel base | D16: m3 | F16: =NA() ->  | G16: =IF(ISNA(F16),0,INDEX(IF(RIGHT(F16,1)="L",UnitCostLow, IF(RIGHT(F16,1)="H",UnitCostHigh,UnitCostSpecified)),MATCH(LEFT(F16,LEN(F16)-1),CostCode,0))) -> 0 | H16: =G16*E16 -> 0
B17: BREACH DITCHES
B18: Excavate breaches | D18: m3 | F18: =NA() ->  | G18: =IF(ISNA(F18),0,INDEX(IF(RIGHT(F18,1)="L",UnitCostLow, IF(RIGHT(F18,1)="H",UnitCostHigh,UnitCostSpecified)),MATCH(LEFT(F18,LEN(F18)-1),CostCode,0))) -> 0 | H18: =G18*E18 -> 0
B19: Backfill/recontour | D19: m3 | F19: =NA() ->  | G19: =IF(ISNA(F19),0,INDEX(IF(RIGHT(F19,1)="L",UnitCostLow, IF(RIGHT(F19,1)="H",UnitCostHigh,UnitCostSpecified)),MATCH(LEFT(F19,LEN(F19)-1),CostCode,0))) -> 0 | H19: =G19*E19 -> 0
B20: Install flow dissipation | D20: m3 | F20: =NA() ->  | G20: =IF(ISNA(F20),0,INDEX(IF(RIGHT(F20,1)="L",UnitCostLow, IF(RIGHT(F20,1)="H",UnitCostHigh,UnitCostSpecified)),MATCH(LEFT(F20,LEN(F20)-1),CostCode,0))) -> 0 | H20: =G20*E20 -> 0
B21: Vegetate remainder of ditch | D21: Ha | F21: =NA() ->  | G21: =IF(ISNA(F21),0,INDEX(IF(RIGHT(F21,1)="L",UnitCostLow, IF(RIGHT(F21,1)="H",UnitCostHigh,UnitCostSpecified)),MATCH(LEFT(F21,LEN(F21)-1),CostCode,0))) -> 0 | H21: =G21*E21 -> 0
B22: DECOMISSION FRESH WATER SUPPLY
B23: Breach embankment | D23: m | F23: =NA() ->  | G23: =IF(ISNA(F23),0,INDEX(IF(RIGHT(F23,1)="L",UnitCostLow, IF(RIGHT(F23,1)="H",UnitCostHigh,UnitCostSpecified)),MATCH(LEFT(F23,LEN(F23)-1),CostCode,0))) -> 0 | H23: =G23*E23 -> 0
B24: Remove pump | D24: LS | F24: =NA() ->  | G24: =IF(ISNA(F24),0,INDEX(IF(RIGHT(F24,1)="L",UnitCostLow, IF(RIGHT(F24,1)="H",UnitCostHigh,UnitCostSpecified)),MATCH(LEFT(F24,LEN(F24)-1),CostCode,0))) -> 0 | H24: =G24*E24 -> 0
B25: Remove pipeline | D25: m | F25: =NA() ->  | G25: =IF(ISNA(F25),0,INDEX(IF(RIGHT(F25,1)="L",UnitCostLow, IF(RIGHT(F25,1)="H",UnitCostHigh,UnitCostSpecified)),MATCH(LEFT(F25,LEN(F25)-1),CostCode,0))) -> 0 | H25: =G25*E25 -> 0
B26: WATER CONTROL IN RECLAMATION QUARRY
B27: Install pumping system | D27: LS | F27: =NA() ->  | G27: =IF(ISNA(F27),0,INDEX(IF(RIGHT(F27,1)="L",UnitCostLow, IF(RIGHT(F27,1)="H",UnitCostHigh,UnitCostSpecified)),MATCH(LEFT(F27,LEN(F27)-1),CostCode,0))) -> 0 | H27: =G27*E27 -> 0
B28: Remove pumping system | D28: LS | F28: =NA() ->  | G28: =IF(ISNA(F28),0,INDEX(IF(RIGHT(F28,1)="L",UnitCostLow, IF(RIGHT(F28,1)="H",UnitCostHigh,UnitCostSpecified)),MATCH(LEFT(F28,LEN(F28)-1),CostCode,0))) -> 0 | H28: =G28*E28 -> 0
B29: REMOVE PIPELINES
B30: Remove pipes | D30: m | F30: =NA() ->  | G30: =IF(ISNA(F30),0,INDEX(IF(RIGHT(F30,1)="L",UnitCostLow, IF(RIGHT(F30,1)="H",UnitCostHigh,UnitCostSpecified)),MATCH(LEFT(F30,LEN(F30)-1),CostCode,0))) -> 0 | H30: =G30*E30 -> 0
B31: Concrete plug deep pipes | D31: m3 | F31: =NA() ->  | G31: =IF(ISNA(F31),0,INDEX(IF(RIGHT(F31,1)="L",UnitCostLow, IF(RIGHT(F31,1)="H",UnitCostHigh,UnitCostSpecified)),MATCH(LEFT(F31,LEN(F31)-1),CostCode,0))) -> 0 | H31: =G31*E31 -> 0
B32: Other | F32: =NA() ->  | G32: =IF(ISNA(F32),0,INDEX(IF(RIGHT(F32,1)="L",UnitCostLow, IF(RIGHT(F32,1)="H",UnitCostHigh,UnitCostSpecified)),MATCH(LEFT(F32,LEN(F32)-1),CostCode,0))) -> 0 | H32: =G32*E32 -> 0
B33: GROUNDWATER COLLECTION SYSTEM
B34: Excavate/install sumps | D34: m3 | F34: =NA() ->  | G34: =IF(ISNA(F34),0,INDEX(IF(RIGHT(F34,1)="L",UnitCostLow, IF(RIGHT(F34,1)="H",UnitCostHigh,UnitCostSpecified)),MATCH(LEFT(F34,LEN(F34)-1),CostCode,0))) -> 0 | H34: =G34*E34 -> 0
B35: Install pumping wells | D35: m3 | F35: =NA() ->  | G35: =IF(ISNA(F35),0,INDEX(IF(RIGHT(F35,1)="L",UnitCostLow, IF(RIGHT(F35,1)="H",UnitCostHigh,UnitCostSpecified)),MATCH(LEFT(F35,LEN(F35)-1),CostCode,0))) -> 0 | H35: =G35*E35 -> 0
B36: Install pumps/pipelines/power supply | D36: LS | F36: =NA() ->  | G36: =IF(ISNA(F36),0,INDEX(IF(RIGHT(F36,1)="L",UnitCostLow, IF(RIGHT(F36,1)="H",UnitCostHigh,UnitCostSpecified)),MATCH(LEFT(F36,LEN(F36)-1),CostCode,0))) -> 0 | H36: =G36*E36 -> 0
B37: CONSTRUCT CONTAMINATED WATER STORAGE POND
B38: Excavate pond | D38: m3 | F38: =NA() ->  | G38: =IF(ISNA(F38),0,INDEX(IF(RIGHT(F38,1)="L",UnitCostLow, IF(RIGHT(F38,1)="H",UnitCostHigh,UnitCostSpecified)),MATCH(LEFT(F38,LEN(F38)-1),CostCode,0))) -> 0 | H38: =G38*E38 -> 0
B39: Doze & spread excavated material | D39: m3 | F39: =NA() ->  | G39: 0 | H39: 0
B40: Vegetate spread material | D40: ha | F40: =NA() ->  | G40: 0 | H40: 0
B41: Bedding layer | D41: m3 | F41: =NA() ->  | G41: 0 | H41: 0
B42: Supply geomembrane | D42: m2 | F42: =NA() ->  | G42: 0 | H42: 0
B43: Install geomembrane | D43: m2 | F43: =NA() ->  | G43: 0 | H43: 0
B44: Erosion protection layer | D44: m3 | F44: =NA() ->  | G44: 0 | H44: 0
B45: CONSTRUCT PASSIVE TREATMENT SYSTEM (e.g. Constructed Wetland)
B46: Construct access roads | D46: km | F46: =NA() ->  | G46: =IF(ISNA(F46),0,INDEX(IF(RIGHT(F46,1)="L",UnitCostLow, IF(RIGHT(F46,1)="H",UnitCostHigh,UnitCostSpecified)),MATCH(LEFT(F46,LEN(F46)-1),CostCode,0))) -> 0 | H46: =G46*E46 -> 0
B47: Install HDPE piping system from collection pond | D47: m | F47: =NA() ->  | G47: 0 | H47: 0
B48: Inter-cell flow structures | D48: allow | F48: =NA() ->  | G48: 0 | H48: 0
B49: Install liners | D49: m2 | F49: =NA() ->  | G49: 0 | H49: 0
B50: Install growth media | D50: m3 | F50: =NA() ->  | G50: 0 | H50: 0
B51: Wetland vegetation | D51: ha | F51: =NA() ->  | G51: 0 | H51: 0
B52: CONSTRUCTION WATER TREATMENT*
B53: Total short term water treatment cost, from "Water Treatment" | H53: ='Water Treatment'!P36 -> 0
G54: Total | H54: =SUM(H4:H53)+0.00001 -> 1e-05
B55: *Note: include water treatment cost from "Water Treatment" worksheet if treatment is considered short term (i.e. temporary water treatment plan)

Sheet Mobilization
A1: 1 | B1: Mobilization/Demobilization: | C1: ICM | J1: 2 | K1: Mobilization/Demobilization: | L1: Mobilization/Demobilization: | M1: Closure Activities | T1: 3 | U1: Mobilization/Demobilization: | V1: Mobilization/Demobilization: | W1: Post Closure Activities
B3: ACTIVITY/MATERIAL | C3: Notes | D3: Units | E3: Quantity | F3: Cost Code | G3: Unit Cost | H3: Cost | K3: ACTIVITY/MATERIAL | L3: ACTIVITY/MATERIAL | M3: Notes | N3: Units | O3: Quantity | P3: Cost Code | Q3: Unit Cost | R3: Cost | U3: ACTIVITY/MATERIAL | V3: ACTIVITY/MATERIAL | W3: Notes | X3: Units | Y3: Quantity | Z3: Cost Code | AA3: Unit Cost | AB3: Cost
B4: MOBILIZE HEAVY EQUIPMENT | K4: MOBILIZE HEAVY EQUIPMENT | L4: MOBILIZE HEAVY EQUIPMENT | U4: MOBILIZE HEAVY EQUIPMENT | V4: MOBILIZE HEAVY EQUIPMENT
B5: Excavators | D5: kmtonne | F5: =NA() ->  | G5: =IF(ISNA(F5),0,INDEX(IF(RIGHT(F5,1)="L",UnitCostLow, IF(RIGHT(F5,1)="H",UnitCostHigh,UnitCostSpecified)),MATCH(LEFT(F5,LEN(F5)-1),CostCode,0))) -> 0 | H5: =G5*E5 -> 0 | K5: Excavators | L5: Excavators | N5: kmtonne | P5: =NA() ->  | Q5: =IF(ISNA(P5),0,INDEX(IF(RIGHT(P5,1)="L",UnitCostLow, IF(RIGHT(P5,1)="H",UnitCostHigh,UnitCostSpecified)),MATCH(LEFT(P5,LEN(P5)-1),CostCode,0))) -> 0 | R5: =Q5*O5 -> 0 | U5: Excavators | V5: Excavators | X5: kmtonne | Z5: =NA() ->  | AA5: =IF(ISNA(Z5),0,INDEX(IF(RIGHT(Z5,1)="L",UnitCostLow, IF(RIGHT(Z5,1)="H",UnitCostHigh,UnitCostSpecified)),MATCH(LEFT(Z5,LEN(Z5)-1),CostCode,0))) -> 0 | AB5: =AA5*Y5 -> 0
B6: Dump trucks | D6: kmtonne | F6: =NA() ->  | G6: 0 | H6: 0 | K6: Dump trucks | L6: Dump trucks | N6: kmtonne | P6: =NA() ->  | Q6: 0 | R6: 0 | U6: Dump trucks | V6: Dump trucks | X6: kmtonne | Z6: =NA() ->  | AA6: 0 | AB6: 0
B7: Dozers | D7: kmtonne | F7: =NA() ->  | G7: 0 | H7: 0 | K7: Dozers | L7: Dozers | N7: kmtonne | P7: =NA() ->  | Q7: 0 | R7: 0 | U7: Dozers | V7: Dozers | X7: kmtonne | Z7: =NA() ->  | AA7: 0 | AB7: 0
B8: Demolition shears | D8: kmtonne | F8: =NA() ->  | G8: 0 | H8: 0 | K8: Demolition shears | L8: Demolition shears | N8: kmtonne | P8: =NA() ->  | Q8: 0 | R8: 0 | U8: Demolition shears | V8: Demolition shears | X8: kmtonne | Z8: =NA() ->  | AA8: 0 | AB8: 0
B9: Crane | D9: kmtonne | F9: =NA() ->  | G9: 0 | H9: 0 | K9: Crane | L9: Crane | N9: kmtonne | P9: =NA() ->  | Q9: 0 | R9: 0 | U9: Crane | V9: Crane | X9: kmtonne | Z9: =NA() ->  | AA9: 0 | AB9: 0
B10: Loader | D10: kmtonne | F10: =NA() ->  | G10: 0 | H10: =G10*E10 -> 0 | K10: Loader | L10: Loader | N10: kmtonne | P10: =NA() ->  | Q10: 0 | R10: =Q10*O10 -> 0 | U10: Loader | V10: Loader | X10: kmtonne | Z10: =NA() ->  | AA10: 0 | AB10: =AA10*Y10 -> 0
B11: Compactor | D11: kmtonne | F11: =NA() ->  | G11: 0 | H11: =G11*E11 -> 0 | K11: Compactor | L11: Compactor | N11: kmtonne | P11: =NA() ->  | Q11: 0 | R11: =Q11*O11 -> 0 | U11: Compactor | V11: Compactor | X11: kmtonne | Z11: =NA() ->  | AA11: 0 | AB11: =AA11*Y11 -> 0
B12: Light duty vehicles | D12: kmtonne | F12: =NA() ->  | G12: 0 | H12: 0 | K12: Light duty vehicles | L12: Light duty vehicles | N12: kmtonne | P12: =NA() ->  | Q12: 0 | R12: =Q12*O12 -> 0 | U12: Light duty vehicles | V12: Light duty vehicles | X12: kmtonne | Z12: =NA() ->  | AA12: 0 | AB12: =AA12*Y12 -> 0
B13: MOBILIZE MISC. EQUIPMENT | K13: MOBILIZE MISC. EQUIPMENT | L13: MOBILIZE MISC. EQUIPMENT | U13: MOBILIZE MISC. EQUIPMENT | V13: MOBILIZE MISC. EQUIPMENT
B14: Pump shipping | D14: each | F14: =NA() ->  | G14: =IF(ISNA(F14),0,INDEX(IF(RIGHT(F14,1)="L",UnitCostLow, IF(RIGHT(F14,1)="H",UnitCostHigh,UnitCostSpecified)),MATCH(LEFT(F14,LEN(F14)-1),CostCode,0))) -> 0 | H14: =G14*E14 -> 0 | K14: Pump shipping | L14: Pump shipping | N14: each | P14: =NA() ->  | Q14: =IF(ISNA(P14),0,INDEX(IF(RIGHT(P14,1)="L",UnitCostLow, IF(RIGHT(P14,1)="H",UnitCostHigh,UnitCostSpecified)),MATCH(LEFT(P14,LEN(P14)-1),CostCode,0))) -> 0 | R14: =Q14*O14 -> 0 | U14: Pump shipping | V14: Pump shipping | X14: each | Z14: =NA() ->  | AA14: =IF(ISNA(Z14),0,INDEX(IF(RIGHT(Z14,1)="L",UnitCostLow, IF(RIGHT(Z14,1)="H",UnitCostHigh,UnitCostSpecified)),MATCH(LEFT(Z14,LEN(Z14)-1),CostCode,0))) -> 0 | AB14: =AA14*Y14 -> 0
B15: Pipe shipping | D15: m | F15: =NA() ->  | G15: =IF(ISNA(F15),0,INDEX(IF(RIGHT(F15,1)="L",UnitCostLow, IF(RIGHT(F15,1)="H",UnitCostHigh,UnitCostSpecified)),MATCH(LEFT(F15,LEN(F15)-1),CostCode,0))) -> 0 | H15: =G15*E15 -> 0 | K15: Pipe shipping | L15: Pipe shipping | N15: m | P15: =NA() ->  | Q15: =IF(ISNA(P15),0,INDEX(IF(RIGHT(P15,1)="L",UnitCostLow, IF(RIGHT(P15,1)="H",UnitCostHigh,UnitCostSpecified)),MATCH(LEFT(P15,LEN(P15)-1),CostCode,0))) -> 0 | R15: =Q15*O15 -> 0 | U15: Pipe shipping | V15: Pipe shipping | X15: m | Z15: =NA() ->  | AA15: =IF(ISNA(Z15),0,INDEX(IF(RIGHT(Z15,1)="L",UnitCostLow, IF(RIGHT(Z15,1)="H",UnitCostHigh,UnitCostSpecified)),MATCH(LEFT(Z15,LEN(Z15)-1),CostCode,0))) -> 0 | AB15: =AA15*Y15 -> 0
B16: Minor tools and equipment | D16: allow | F16: =NA() ->  | G16: =IF(ISNA(F16),0,INDEX(IF(RIGHT(F16,1)="L",UnitCostLow, IF(RIGHT(F16,1)="H",UnitCostHigh,UnitCostSpecified)),MATCH(LEFT(F16,LEN(F16)-1),CostCode,0))) -> 0 | H16: =G16*E16 -> 0 | K16: Minor tools and equipment | L16: Minor tools and equipment | N16: allow | P16: =NA() ->  | Q16: =IF(ISNA(P16),0,INDEX(IF(RIGHT(P16,1)="L",UnitCostLow, IF(RIGHT(P16,1)="H",UnitCostHigh,UnitCostSpecified)),MATCH(LEFT(P16,LEN(P16)-1),CostCode,0))) -> 0 | R16: =Q16*O16 -> 0 | U16: Minor tools and equipment | V16: Minor tools and equipment | X16: allow | Z16: =NA() ->  | AA16: =IF(ISNA(Z16),0,INDEX(IF(RIGHT(Z16,1)="L",UnitCostLow, IF(RIGHT(Z16,1)="H",UnitCostHigh,UnitCostSpecified)),MATCH(LEFT(Z16,LEN(Z16)-1),CostCode,0))) -> 0 | AB16: =AA16*Y16 -> 0
B17: Truck tires | D17: allow | F17: =NA() ->  | G17: =IF(ISNA(F17),0,INDEX(IF(RIGHT(F17,1)="L",UnitCostLow, IF(RIGHT(F17,1)="H",UnitCostHigh,UnitCostSpecified)),MATCH(LEFT(F17,LEN(F17)-1),CostCode,0))) -> 0 | H17: =G17*E17 -> 0 | K17: Truck tires | L17: Truck tires | N17: allow | P17: =NA() ->  | Q17: =IF(ISNA(P17),0,INDEX(IF(RIGHT(P17,1)="L",UnitCostLow, IF(RIGHT(P17,1)="H",UnitCostHigh,UnitCostSpecified)),MATCH(LEFT(P17,LEN(P17)-1),CostCode,0))) -> 0 | R17: =Q17*O17 -> 0 | U17: Truck tires | V17: Truck tires | X17: allow | Z17: =NA() ->  | AA17: =IF(ISNA(Z17),0,INDEX(IF(RIGHT(Z17,1)="L",UnitCostLow, IF(RIGHT(Z17,1)="H",UnitCostHigh,UnitCostSpecified)),MATCH(LEFT(Z17,LEN(Z17)-1),CostCode,0))) -> 0 | AB17: =AA17*Y17 -> 0
B18: Other (e.g. air shipment) | D18: allow | F18: =NA() ->  | G18: =IF(ISNA(F18),0,INDEX(IF(RIGHT(F18,1)="L",UnitCostLow, IF(RIGHT(F18,1)="H",UnitCostHigh,UnitCostSpecified)),MATCH(LEFT(F18,LEN(F18)-1),CostCode,0))) -> 0 | H18: 0 | K18: Other | L18: Other (e.g. air shipment) | N18: allow | P18: =NA() ->  | Q18: =IF(ISNA(P18),0,INDEX(IF(RIGHT(P18,1)="L",UnitCostLow, IF(RIGHT(P18,1)="H",UnitCostHigh,UnitCostSpecified)),MATCH(LEFT(P18,LEN(P18)-1),CostCode,0))) -> 0 | R18: =Q18*O18 -> 0 | U18: Other | V18: Other (e.g. air shipment) | X18: allow | Z18: =NA() ->  | AA18: =IF(ISNA(Z18),0,INDEX(IF(RIGHT(Z18,1)="L",UnitCostLow, IF(RIGHT(Z18,1)="H",UnitCostHigh,UnitCostSpecified)),MATCH(LEFT(Z18,LEN(Z18)-1),CostCode,0))) -> 0 | AB18: =AA18*Y18 -> 0
B19: MOBILIZE CAMP | K19: MOBILIZE CAMP | L19: MOBILIZE CAMP | U19: MOBILIZE CAMP | V19: MOBILIZE CAMP
B20: Reclamation activities | D20: allow | F20: =NA() ->  | G20: =IF(ISNA(F20),0,INDEX(IF(RIGHT(F20,1)="L",UnitCostLow, IF(RIGHT(F20,1)="H",UnitCostHigh,UnitCostSpecified)),MATCH(LEFT(F20,LEN(F20)-1),CostCode,0))) -> 0 | H20: =G20*E20 -> 0 | K20: Reclamation activities | L20: Reclamation activities | N20: allow | P20: =NA() ->  | Q20: =IF(ISNA(P20),0,INDEX(IF(RIGHT(P20,1)="L",UnitCostLow, IF(RIGHT(P20,1)="H",UnitCostHigh,UnitCostSpecified)),MATCH(LEFT(P20,LEN(P20)-1),CostCode,0))) -> 0 | R20: =Q20*O20 -> 0 | U20: Reclamation activities | V20: Reclamation activities | X20: allow | Z20: =NA() ->  | AA20: =IF(ISNA(Z20),0,INDEX(IF(RIGHT(Z20,1)="L",UnitCostLow, IF(RIGHT(Z20,1)="H",UnitCostHigh,UnitCostSpecified)),MATCH(LEFT(Z20,LEN(Z20)-1),CostCode,0))) -> 0 | AB20: =AA20*Y20 -> 0
B21: Long term reclamation activities (e.g. pump flooding) | D21: allow | F21: =NA() ->  | G21: =IF(ISNA(F21),0,INDEX(IF(RIGHT(F21,1)="L",UnitCostLow, IF(RIGHT(F21,1)="H",UnitCostHigh,UnitCostSpecified)),MATCH(LEFT(F21,LEN(F21)-1),CostCode,0))) -> 0 | H21: =G21*E21 -> 0 | K21: Long term reclamation activities (eg pump flooding) | L21: Long term reclamation activities (e.g. pump flooding) | N21: allow | P21: =NA() ->  | Q21: =IF(ISNA(P21),0,INDEX(IF(RIGHT(P21,1)="L",UnitCostLow, IF(RIGHT(P21,1)="H",UnitCostHigh,UnitCostSpecified)),MATCH(LEFT(P21,LEN(P21)-1),CostCode,0))) -> 0 | R21: =Q21*O21 -> 0 | U21: Long term reclamation activities (eg pump flooding) | V21: Long term reclamation activities (e.g. pump flooding) | X21: allow | Z21: =NA() ->  | AA21: =IF(ISNA(Z21),0,INDEX(IF(RIGHT(Z21,1)="L",UnitCostLow, IF(RIGHT(Z21,1)="H",UnitCostHigh,UnitCostSpecified)),MATCH(LEFT(Z21,LEN(Z21)-1),CostCode,0))) -> 0 | AB21: =AA21*Y21 -> 0
B22: MOBILIZE WORKERS | K22: MOBILIZE WORKERS | L22: MOBILIZE WORKERS | U22: MOBILIZE WORKERS | V22: MOBILIZE WORKERS
B23: Reclamation activities - transport | D23: each | F23: =NA() ->  | G23: =IF(ISNA(F23),0,INDEX(IF(RIGHT(F23,1)="L",UnitCostLow, IF(RIGHT(F23,1)="H",UnitCostHigh,UnitCostSpecified)),MATCH(LEFT(F23,LEN(F23)-1),CostCode,0))) -> 0 | H23: =G23*E23 -> 0 | K23: Reclamation activities - transport | L23: Reclamation activities - transport | N23: each | P23: =NA() ->  | Q23: =IF(ISNA(P23),0,INDEX(IF(RIGHT(P23,1)="L",UnitCostLow, IF(RIGHT(P23,1)="H",UnitCostHigh,UnitCostSpecified)),MATCH(LEFT(P23,LEN(P23)-1),CostCode,0))) -> 0 | R23: =Q23*O23 -> 0 | U23: Reclamation activities - transport | V23: Reclamation activities - transport | X23: each | Z23: =NA() ->  | AA23: =IF(ISNA(Z23),0,INDEX(IF(RIGHT(Z23,1)="L",UnitCostLow, IF(RIGHT(Z23,1)="H",UnitCostHigh,UnitCostSpecified)),MATCH(LEFT(Z23,LEN(Z23)-1),CostCode,0))) -> 0 | AB23: =AA23*Y23 -> 0
B24: Reclamation activities - travel time | D24: manhours | F24: =NA() ->  | G24: =IF(ISNA(F24),0,INDEX(IF(RIGHT(F24,1)="L",UnitCostLow, IF(RIGHT(F24,1)="H",UnitCostHigh,UnitCostSpecified)),MATCH(LEFT(F24,LEN(F24)-1),CostCode,0))) -> 0 | H24: =G24*E24 -> 0 | K24: Reclamation activities - travel time | L24: Reclamation activities - travel time | N24: manhours | P24: =NA() ->  | Q24: =IF(ISNA(P24),0,INDEX(IF(RIGHT(P24,1)="L",UnitCostLow, IF(RIGHT(P24,1)="H",UnitCostHigh,UnitCostSpecified)),MATCH(LEFT(P24,LEN(P24)-1),CostCode,0))) -> 0 | R24: =Q24*O24 -> 0 | U24: Reclamation activities - travel time | V24: Reclamation activities - travel time | X24: manhours | Z24: =NA() ->  | AA24: =IF(ISNA(Z24),0,INDEX(IF(RIGHT(Z24,1)="L",UnitCostLow, IF(RIGHT(Z24,1)="H",UnitCostHigh,UnitCostSpecified)),MATCH(LEFT(Z24,LEN(Z24)-1),CostCode,0))) -> 0 | AB24: =AA24*Y24 -> 0
B25: Long term reclamation activities (e.g. pump flooding) - transport | D25: each | F25: =NA() ->  | G25: =IF(ISNA(F25),0,INDEX(IF(RIGHT(F25,1)="L",UnitCostLow, IF(RIGHT(F25,1)="H",UnitCostHigh,UnitCostSpecified)),MATCH(LEFT(F25,LEN(F25)-1),CostCode,0))) -> 0 | H25: =G25*E25 -> 0 | K25: Long term reclamation activities (eg pump flooding) - transport | L25: Long term reclamation activities (e.g. pump flooding) - transport | N25: each | P25: =NA() ->  | Q25: =IF(ISNA(P25),0,INDEX(IF(RIGHT(P25,1)="L",UnitCostLow, IF(RIGHT(P25,1)="H",UnitCostHigh,UnitCostSpecified)),MATCH(LEFT(P25,LEN(P25)-1),CostCode,0))) -> 0 | R25: =Q25*O25 -> 0 | U25: Long term reclamation activities (eg pump flooding) - transport | V25: Long term reclamation activities (e.g. pump flooding) - transport | X25: each | Z25: =NA() ->  | AA25: =IF(ISNA(Z25),0,INDEX(IF(RIGHT(Z25,1)="L",UnitCostLow, IF(RIGHT(Z25,1)="H",UnitCostHigh,UnitCostSpecified)),MATCH(LEFT(Z25,LEN(Z25)-1),CostCode,0))) -> 0 | AB25: =AA25*Y25 -> 0
B26: Long term reclamation activities (e.g. pump flooding) - travel time | D26: each | F26: =NA() ->  | G26: =IF(ISNA(F26),0,INDEX(IF(RIGHT(F26,1)="L",UnitCostLow, IF(RIGHT(F26,1)="H",UnitCostHigh,UnitCostSpecified)),MATCH(LEFT(F26,LEN(F26)-1),CostCode,0))) -> 0 | H26: =G26*E26 -> 0 | K26: Long term reclamation activities (eg pump flooding) - travel time | L26: Long term reclamation activities (e.g. pump flooding) - travel time | N26: each | P26: =NA() ->  | Q26: =IF(ISNA(P26),0,INDEX(IF(RIGHT(P26,1)="L",UnitCostLow, IF(RIGHT(P26,1)="H",UnitCostHigh,UnitCostSpecified)),MATCH(LEFT(P26,LEN(P26)-1),CostCode,0))) -> 0 | R26: =Q26*O26 -> 0 | U26: Long term reclamation activities (eg pump flooding) - travel time | V26: Long term reclamation activities (e.g. pump flooding) - travel time | X26: each | Z26: =NA() ->  | AA26: =IF(ISNA(Z26),0,INDEX(IF(RIGHT(Z26,1)="L",UnitCostLow, IF(RIGHT(Z26,1)="H",UnitCostHigh,UnitCostSpecified)),MATCH(LEFT(Z26,LEN(Z26)-1),CostCode,0))) -> 0 | AB26: =AA26*Y26 -> 0
B27: Monitoring Airfare | D27: each | F27: =NA() ->  | G27: =IF(ISNA(F27),0,INDEX(IF(RIGHT(F27,1)="L",UnitCostLow, IF(RIGHT(F27,1)="H",UnitCostHigh,UnitCostSpecified)),MATCH(LEFT(F27,LEN(F27)-1),CostCode,0))) -> 0 | H27: =G27*E27 -> 0 | K27: Monitoring Airfare | L27: Monitoring Airfare | N27: each | P27: =NA() ->  | Q27: =IF(ISNA(P27),0,INDEX(IF(RIGHT(P27,1)="L",UnitCostLow, IF(RIGHT(P27,1)="H",UnitCostHigh,UnitCostSpecified)),MATCH(LEFT(P27,LEN(P27)-1),CostCode,0))) -> 0 | R27: =Q27*O27 -> 0 | U27: Monitoring Airfare | V27: Monitoring Airfare | X27: each | Z27: =NA() ->  | AA27: =IF(ISNA(Z27),0,INDEX(IF(RIGHT(Z27,1)="L",UnitCostLow, IF(RIGHT(Z27,1)="H",UnitCostHigh,UnitCostSpecified)),MATCH(LEFT(Z27,LEN(Z27)-1),CostCode,0))) -> 0 | AB27: =AA27*Y27 -> 0
B28: WORKER ACCOMODATIONS | K28: WORKER ACCOMODATIONS | L28: WORKER ACCOMODATIONS | U28: WORKER ACCOMODATIONS | V28: WORKER ACCOMODATIONS
B29: Reclamation activities | D29: manmonths | F29: =NA() ->  | G29: =IF(ISNA(F29),0,INDEX(IF(RIGHT(F29,1)="L",UnitCostLow, IF(RIGHT(F29,1)="H",UnitCostHigh,UnitCostSpecified)),MATCH(LEFT(F29,LEN(F29)-1),CostCode,0))) -> 0 | H29: =G29*E29 -> 0 | K29: Reclamation activities | L29: Reclamation activities | N29: manmonths | P29: =NA() ->  | Q29: =IF(ISNA(P29),0,INDEX(IF(RIGHT(P29,1)="L",UnitCostLow, IF(RIGHT(P29,1)="H",UnitCostHigh,UnitCostSpecified)),MATCH(LEFT(P29,LEN(P29)-1),CostCode,0))) -> 0 | R29: =Q29*O29 -> 0 | U29: Reclamation activities | V29: Reclamation activities | X29: manmonths | Z29: =NA() ->  | AA29: =IF(ISNA(Z29),0,INDEX(IF(RIGHT(Z29,1)="L",UnitCostLow, IF(RIGHT(Z29,1)="H",UnitCostHigh,UnitCostSpecified)),MATCH(LEFT(Z29,LEN(Z29)-1),CostCode,0))) -> 0 | AB29: =AA29*Y29 -> 0
B30: Long term reclamation activities (e.g. pump flooding) | D30: manmonths | F30: =NA() ->  | G30: =IF(ISNA(F30),0,INDEX(IF(RIGHT(F30,1)="L",UnitCostLow, IF(RIGHT(F30,1)="H",UnitCostHigh,UnitCostSpecified)),MATCH(LEFT(F30,LEN(F30)-1),CostCode,0))) -> 0 | H30: =G30*E30 -> 0 | K30: Long term reclamation activities (eg pump flooding) | L30: Long term reclamation activities (e.g. pump flooding) | N30: manmonths | P30: =NA() ->  | Q30: =IF(ISNA(P30),0,INDEX(IF(RIGHT(P30,1)="L",UnitCostLow, IF(RIGHT(P30,1)="H",UnitCostHigh,UnitCostSpecified)),MATCH(LEFT(P30,LEN(P30)-1),CostCode,0))) -> 0 | R30: =Q30*O30 -> 0 | U30: Long term reclamation activities (eg pump flooding) | V30: Long term reclamation activities (e.g. pump flooding) | X30: manmonths | Z30: =NA() ->  | AA30: =IF(ISNA(Z30),0,INDEX(IF(RIGHT(Z30,1)="L",UnitCostLow, IF(RIGHT(Z30,1)="H",UnitCostHigh,UnitCostSpecified)),MATCH(LEFT(Z30,LEN(Z30)-1),CostCode,0))) -> 0 | AB30: =AA30*Y30 -> 0
B31: MOBILIZE FUEL | K31: MOBILIZE FUEL | L31: MOBILIZE FUEL | U31: MOBILIZE FUEL | V31: MOBILIZE FUEL
B32: Fuel freight - reclamation activities | D32: litre | F32: =NA() ->  | G32: =IF(ISNA(F32),0,INDEX(IF(RIGHT(F32,1)="L",UnitCostLow, IF(RIGHT(F32,1)="H",UnitCostHigh,UnitCostSpecified)),MATCH(LEFT(F32,LEN(F32)-1),CostCode,0))) -> 0 | H32: =G32*E32 -> 0 | K32: Fuel freight - reclamation activities | L32: Fuel freight - reclamation activities | N32: litre | P32: =NA() ->  | Q32: =IF(ISNA(P32),0,INDEX(IF(RIGHT(P32,1)="L",UnitCostLow, IF(RIGHT(P32,1)="H",UnitCostHigh,UnitCostSpecified)),MATCH(LEFT(P32,LEN(P32)-1),CostCode,0))) -> 0 | R32: =Q32*O32 -> 0 | U32: Fuel freight - reclamation activities | V32: Fuel freight - reclamation activities | X32: litre | Z32: =NA() ->  | AA32: =IF(ISNA(Z32),0,INDEX(IF(RIGHT(Z32,1)="L",UnitCostLow, IF(RIGHT(Z32,1)="H",UnitCostHigh,UnitCostSpecified)),MATCH(LEFT(Z32,LEN(Z32)-1),CostCode,0))) -> 0 | AB32: =AA32*Y32 -> 0
B33: Fuel freight - long term reclamation activities | D33: litre | F33: =NA() ->  | G33: =IF(ISNA(F33),0,INDEX(IF(RIGHT(F33,1)="L",UnitCostLow, IF(RIGHT(F33,1)="H",UnitCostHigh,UnitCostSpecified)),MATCH(LEFT(F33,LEN(F33)-1),CostCode,0))) -> 0 | H33: =G33*E33 -> 0 | K33: Fuel freight - long term reclamation activities | L33: Fuel freight - long term reclamation activities | N33: litre | P33: =NA() ->  | Q33: =IF(ISNA(P33),0,INDEX(IF(RIGHT(P33,1)="L",UnitCostLow, IF(RIGHT(P33,1)="H",UnitCostHigh,UnitCostSpecified)),MATCH(LEFT(P33,LEN(P33)-1),CostCode,0))) -> 0 | R33: =Q33*O33 -> 0 | U33: Fuel freight - long term reclamation activities | V33: Fuel freight - long term reclamation activities | X33: litre | Z33: =NA() ->  | AA33: =IF(ISNA(Z33),0,INDEX(IF(RIGHT(Z33,1)="L",UnitCostLow, IF(RIGHT(Z33,1)="H",UnitCostHigh,UnitCostSpecified)),MATCH(LEFT(Z33,LEN(Z33)-1),CostCode,0))) -> 0 | AB33: =AA33*Y33 -> 0
B34: Fuel freight accommodations | D34: litre | F34: =NA() ->  | G34: =IF(ISNA(F34),0,INDEX(IF(RIGHT(F34,1)="L",UnitCostLow, IF(RIGHT(F34,1)="H",UnitCostHigh,UnitCostSpecified)),MATCH(LEFT(F34,LEN(F34)-1),CostCode,0))) -> 0 | H34: =G34*E34 -> 0 | K34: Fuel freight accomodations | L34: Fuel freight accommodations | N34: litre | P34: =NA() ->  | Q34: =IF(ISNA(P34),0,INDEX(IF(RIGHT(P34,1)="L",UnitCostLow, IF(RIGHT(P34,1)="H",UnitCostHigh,UnitCostSpecified)),MATCH(LEFT(P34,LEN(P34)-1),CostCode,0))) -> 0 | R34: =Q34*O34 -> 0 | U34: Fuel freight accomodations | V34: Fuel freight accommodations | X34: litre | Z34: =NA() ->  | AA34: =IF(ISNA(Z34),0,INDEX(IF(RIGHT(Z34,1)="L",UnitCostLow, IF(RIGHT(Z34,1)="H",UnitCostHigh,UnitCostSpecified)),MATCH(LEFT(Z34,LEN(Z34)-1),CostCode,0))) -> 0 | AB34: =AA34*Y34 -> 0
B35: WINTER ROAD FOR MOBILIZATION | K35: WINTER ROAD | L35: WINTER ROAD FOR MOBILIZATION | U35: WINTER ROAD | V35: WINTER ROAD FOR MOBILIZATION
B36: Construction and operation | D36: km | F36: =NA() ->  | G36: =IF(ISNA(F36),0,INDEX(IF(RIGHT(F36,1)="L",UnitCostLow, IF(RIGHT(F36,1)="H",UnitCostHigh,UnitCostSpecified)),MATCH(LEFT(F36,LEN(F36)-1),CostCode,0))) -> 0 | H36: =G36*E36 -> 0 | K36: Construction and operation | L36: Construction and operation | N36: km | P36: =NA() ->  | Q36: =IF(ISNA(P36),0,INDEX(IF(RIGHT(P36,1)="L",UnitCostLow, IF(RIGHT(P36,1)="H",UnitCostHigh,UnitCostSpecified)),MATCH(LEFT(P36,LEN(P36)-1),CostCode,0))) -> 0 | R36: =Q36*O36 -> 0 | U36: Construction and operation | V36: Construction and operation | X36: km | Z36: =NA() ->  | AA36: =IF(ISNA(Z36),0,INDEX(IF(RIGHT(Z36,1)="L",UnitCostLow, IF(RIGHT(Z36,1)="H",UnitCostHigh,UnitCostSpecified)),MATCH(LEFT(Z36,LEN(Z36)-1),CostCode,0))) -> 0 | AB36: =AA36*Y36 -> 0
B37: Limited winter use | D37: km | F37: =NA() ->  | G37: =IF(ISNA(F37),0,INDEX(IF(RIGHT(F37,1)="L",UnitCostLow, IF(RIGHT(F37,1)="H",UnitCostHigh,UnitCostSpecified)),MATCH(LEFT(F37,LEN(F37)-1),CostCode,0))) -> 0 | H37: =G37*E37 -> 0 | K37: Limited winter use | L37: Limited winter use | N37: km | P37: =NA() ->  | Q37: =IF(ISNA(P37),0,INDEX(IF(RIGHT(P37,1)="L",UnitCostLow, IF(RIGHT(P37,1)="H",UnitCostHigh,UnitCostSpecified)),MATCH(LEFT(P37,LEN(P37)-1),CostCode,0))) -> 0 | R37: =Q37*O37 -> 0 | U37: Limited winter use | V37: Limited winter use | X37: km | Z37: =NA() ->  | AA37: =IF(ISNA(Z37),0,INDEX(IF(RIGHT(Z37,1)="L",UnitCostLow, IF(RIGHT(Z37,1)="H",UnitCostHigh,UnitCostSpecified)),MATCH(LEFT(Z37,LEN(Z37)-1),CostCode,0))) -> 0 | AB37: =AA37*Y37 -> 0
B38: Winter road tariff | D38: kmtonne | F38: =NA() ->  | G38: =IF(ISNA(F38),0,INDEX(IF(RIGHT(F38,1)="L",UnitCostLow, IF(RIGHT(F38,1)="H",UnitCostHigh,UnitCostSpecified)),MATCH(LEFT(F38,LEN(F38)-1),CostCode,0))) -> 0 | H38: =G38*E38 -> 0 | K38: Winter road tarriff | L38: Winter road tariff | N38: kmtonne | P38: =NA() ->  | Q38: =IF(ISNA(P38),0,INDEX(IF(RIGHT(P38,1)="L",UnitCostLow, IF(RIGHT(P38,1)="H",UnitCostHigh,UnitCostSpecified)),MATCH(LEFT(P38,LEN(P38)-1),CostCode,0))) -> 0 | R38: =Q38*O38 -> 0 | U38: Winter road tarriff | V38: Winter road tariff | X38: kmtonne | Z38: =NA() ->  | AA38: =IF(ISNA(Z38),0,INDEX(IF(RIGHT(Z38,1)="L",UnitCostLow, IF(RIGHT(Z38,1)="H",UnitCostHigh,UnitCostSpecified)),MATCH(LEFT(Z38,LEN(Z38)-1),CostCode,0))) -> 0 | AB38: =AA38*Y38 -> 0
B39: DEMOBILIZE HEAVY EQUIPMENT | K39: DEMOBILIZE HEAVY EQUIPMENT | L39: DEMOBILIZE HEAVY EQUIPMENT | U39: DEMOBILIZE HEAVY EQUIPMENT | V39: DEMOBILIZE HEAVY EQUIPMENT
B40: Excavators | D40: kmtonne | F40: =NA() ->  | G40: =IF(ISNA(F40),0,INDEX(IF(RIGHT(F40,1)="L",UnitCostLow, IF(RIGHT(F40,1)="H",UnitCostHigh,UnitCostSpecified)),MATCH(LEFT(F40,LEN(F40)-1),CostCode,0))) -> 0 | H40: =G40*E40 -> 0 | K40: Excavators | L40: Excavators | N40: kmtonne | P40: =NA() ->  | Q40: =IF(ISNA(P40),0,INDEX(IF(RIGHT(P40,1)="L",UnitCostLow, IF(RIGHT(P40,1)="H",UnitCostHigh,UnitCostSpecified)),MATCH(LEFT(P40,LEN(P40)-1),CostCode,0))) -> 0 | R40: =Q40*O40 -> 0 | U40: Excavators | V40: Excavators | X40: kmtonne | Z40: =NA() ->  | AA40: =IF(ISNA(Z40),0,INDEX(IF(RIGHT(Z40,1)="L",UnitCostLow, IF(RIGHT(Z40,1)="H",UnitCostHigh,UnitCostSpecified)),MATCH(LEFT(Z40,LEN(Z40)-1),CostCode,0))) -> 0 | AB40: =AA40*Y40 -> 0
B41: Dump trucks | D41: kmtonne | F41: =NA() ->  | G41: 0 | H41: 0 | K41: Dump trucks | L41: Dump trucks | N41: kmtonne | P41: =NA() ->  | Q41: 0 | R41: 0 | U41: Dump trucks | V41: Dump trucks | X41: kmtonne | Z41: =NA() ->  | AA41: 0 | AB41: 0
B42: Dozers | D42: kmtonne | F42: =NA() ->  | G42: 0 | H42: 0 | K42: Dozers | L42: Dozers | N42: kmtonne | P42: =NA() ->  | Q42: 0 | R42: 0 | U42: Dozers | V42: Dozers | X42: kmtonne | Z42: =NA() ->  | AA42: 0 | AB42: 0
B43: Demolition shears | D43: kmtonne | F43: =NA() ->  | G43: 0 | H43: 0 | K43: Demolition shears | L43: Demolition shears | N43: kmtonne | P43: =NA() ->  | Q43: 0 | R43: 0 | U43: Demolition shears | V43: Demolition shears | X43: kmtonne | Z43: =NA() ->  | AA43: 0 | AB43: 0
B44: Crane | D44: kmtonne | F44: =NA() ->  | G44: 0 | H44: 0 | K44: Crane | L44: Crane | N44: kmtonne | P44: =NA() ->  | Q44: 0 | R44: 0 | U44: Crane | V44: Crane | X44: kmtonne | Z44: =NA() ->  | AA44: 0 | AB44: 0
B45: Loader | D45: kmtonne | F45: =NA() ->  | G45: 0 | H45: =G45*E45 -> 0 | K45: Loader | L45: Loader | N45: kmtonne | P45: =NA() ->  | Q45: 0 | R45: =Q45*O45 -> 0 | U45: Loader | V45: Loader | X45: kmtonne | Z45: =NA() ->  | AA45: 0 | AB45: =AA45*Y45 -> 0
B46: Compactor | D46: kmtonne | F46: =NA() ->  | G46: 0 | H46: =G46*E46 -> 0 | K46: Compactor | L46: Compactor | N46: kmtonne | P46: =NA() ->  | Q46: 0 | R46: =Q46*O46 -> 0 | U46: Compactor | V46: Compactor | X46: kmtonne | Z46: =NA() ->  | AA46: 0 | AB46: =AA46*Y46 -> 0
B47: Light duty vehicles | D47: kmtonne | F47: =NA() ->  | G47: 0 | H47: 0 | K47: Light duty vehicles | L47: Light duty vehicles | N47: kmtonne | P47: =NA() ->  | Q47: 0 | R47: =Q47*O47 -> 0 | U47: Light duty vehicles | V47: Light duty vehicles | X47: kmtonne | Z47: =NA() ->  | AA47: 0 | AB47: =AA47*Y47 -> 0
B48: Other | D48: kmtonne | F48: =NA() ->  | G48: 0 | H48: 0 | K48: Other | L48: Other | N48: kmtonne | P48: =NA() ->  | Q48: 0 | R48: 0 | U48: Other | V48: Other | X48: kmtonne | Z48: =NA() ->  | AA48: 0 | AB48: 0
B49: DEMOBILIZE CAMP | K49: DEMOBILIZE CAMP | L49: DEMOBILIZE CAMP | U49: DEMOBILIZE CAMP | V49: DEMOBILIZE CAMP
B50: Camp Demobilization | D50: allow | F50: =NA() ->  | G50: =IF(ISNA(F50),0,INDEX(IF(RIGHT(F50,1)="L",UnitCostLow, IF(RIGHT(F50,1)="H",UnitCostHigh,UnitCostSpecified)),MATCH(LEFT(F50,LEN(F50)-1),CostCode,0))) -> 0 | H50: =G50*E50 -> 0 | K50: Camp Demobilization | L50: Camp Demobilization | N50: allow | P50: =NA() ->  | Q50: =IF(ISNA(P50),0,INDEX(IF(RIGHT(P50,1)="L",UnitCostLow, IF(RIGHT(P50,1)="H",UnitCostHigh,UnitCostSpecified)),MATCH(LEFT(P50,LEN(P50)-1),CostCode,0))) -> 0 | R50: =Q50*O50 -> 0 | U50: Camp Demobilization | V50: Camp Demobilization | X50: allow | Z50: =NA() ->  | AA50: =IF(ISNA(Z50),0,INDEX(IF(RIGHT(Z50,1)="L",UnitCostLow, IF(RIGHT(Z50,1)="H",UnitCostHigh,UnitCostSpecified)),MATCH(LEFT(Z50,LEN(Z50)-1),CostCode,0))) -> 0 | AB50: =AA50*Y50 -> 0
B51: DEMOBILIZE WORKERS | K51: DEMOBILIZE WORKERS | L51: DEMOBILIZE WORKERS | U51: DEMOBILIZE WORKERS | V51: DEMOBILIZE WORKERS
B52: crew travel time | D52: mandays | F52: =NA() ->  | G52: =IF(ISNA(F52),0,INDEX(IF(RIGHT(F52,1)="L",UnitCostLow, IF(RIGHT(F52,1)="H",UnitCostHigh,UnitCostSpecified)),MATCH(LEFT(F52,LEN(F52)-1),CostCode,0))) -> 0 | H52: =G52*E52 -> 0 | K52: crew travel time | L52: crew travel time | N52: mandays | P52: =NA() ->  | Q52: =IF(ISNA(P52),0,INDEX(IF(RIGHT(P52,1)="L",UnitCostLow, IF(RIGHT(P52,1)="H",UnitCostHigh,UnitCostSpecified)),MATCH(LEFT(P52,LEN(P52)-1),CostCode,0))) -> 0 | R52: =Q52*O52 -> 0 | U52: crew travel time | V52: crew travel time | X52: mandays | Z52: =NA() ->  | AA52: =IF(ISNA(Z52),0,INDEX(IF(RIGHT(Z52,1)="L",UnitCostLow, IF(RIGHT(Z52,1)="H",UnitCostHigh,UnitCostSpecified)),MATCH(LEFT(Z52,LEN(Z52)-1),CostCode,0))) -> 0 | AB52: =AA52*Y52 -> 0
B53: crew transportation | D53: each | F53: =NA() ->  | G53: =IF(ISNA(F53),0,INDEX(IF(RIGHT(F53,1)="L",UnitCostLow, IF(RIGHT(F53,1)="H",UnitCostHigh,UnitCostSpecified)),MATCH(LEFT(F53,LEN(F53)-1),CostCode,0))) -> 0 | H53: =G53*E53 -> 0 | K53: crew transportation | L53: crew transportation | N53: each | P53: =NA() ->  | Q53: =IF(ISNA(P53),0,INDEX(IF(RIGHT(P53,1)="L",UnitCostLow, IF(RIGHT(P53,1)="H",UnitCostHigh,UnitCostSpecified)),MATCH(LEFT(P53,LEN(P53)-1),CostCode,0))) -> 0 | R53: =Q53*O53 -> 0 | U53: crew transportation | V53: crew transportation | X53: each | Z53: =NA() ->  | AA53: =IF(ISNA(Z53),0,INDEX(IF(RIGHT(Z53,1)="L",UnitCostLow, IF(RIGHT(Z53,1)="H",UnitCostHigh,UnitCostSpecified)),MATCH(LEFT(Z53,LEN(Z53)-1),CostCode,0))) -> 0 | AB53: =AA53*Y53 -> 0
B54: WINTER ROAD FOR DEMOBILIZATION | K54: WINTER ROAD | L54: WINTER ROAD FOR DEMOBILIZATION | U54: WINTER ROAD | V54: WINTER ROAD FOR DEMOBILIZATION
B55: Construction and operation | D55: km | F55: =NA() ->  | G55: =IF(ISNA(F55),0,INDEX(IF(RIGHT(F55,1)="L",UnitCostLow, IF(RIGHT(F55,1)="H",UnitCostHigh,UnitCostSpecified)),MATCH(LEFT(F55,LEN(F55)-1),CostCode,0))) -> 0 | H55: =G55*E55 -> 0 | K55: Construction and operation | L55: Construction and operation | N55: km | P55: =NA() ->  | Q55: =IF(ISNA(P55),0,INDEX(IF(RIGHT(P55,1)="L",UnitCostLow, IF(RIGHT(P55,1)="H",UnitCostHigh,UnitCostSpecified)),MATCH(LEFT(P55,LEN(P55)-1),CostCode,0))) -> 0 | R55: =Q55*O55 -> 0 | U55: Construction and operation | V55: Construction and operation | X55: km | Z55: =NA() ->  | AA55: =IF(ISNA(Z55),0,INDEX(IF(RIGHT(Z55,1)="L",UnitCostLow, IF(RIGHT(Z55,1)="H",UnitCostHigh,UnitCostSpecified)),MATCH(LEFT(Z55,LEN(Z55)-1),CostCode,0))) -> 0 | AB55: =AA55*Y55 -> 0
B56: Limited winter use | D56: km | F56: =NA() ->  | G56: =IF(ISNA(F56),0,INDEX(IF(RIGHT(F56,1)="L",UnitCostLow, IF(RIGHT(F56,1)="H",UnitCostHigh,UnitCostSpecified)),MATCH(LEFT(F56,LEN(F56)-1),CostCode,0))) -> 0 | H56: =G56*E56 -> 0 | K56: Limited winter use | L56: Limited winter use | N56: km | P56: =NA() ->  | Q56: =IF(ISNA(P56),0,INDEX(IF(RIGHT(P56,1)="L",UnitCostLow, IF(RIGHT(P56,1)="H",UnitCostHigh,UnitCostSpecified)),MATCH(LEFT(P56,LEN(P56)-1),CostCode,0))) -> 0 | R56: =Q56*O56 -> 0 | U56: Limited winter use | V56: Limited winter use | X56: km | Z56: =NA() ->  | AA56: =IF(ISNA(Z56),0,INDEX(IF(RIGHT(Z56,1)="L",UnitCostLow, IF(RIGHT(Z56,1)="H",UnitCostHigh,UnitCostSpecified)),MATCH(LEFT(Z56,LEN(Z56)-1),CostCode,0))) -> 0 | AB56: =AA56*Y56 -> 0
B57: Winter road tariff | D57: kmtonne | F57: =NA() ->  | G57: =IF(ISNA(F57),0,INDEX(IF(RIGHT(F57,1)="L",UnitCostLow, IF(RIGHT(F57,1)="H",UnitCostHigh,UnitCostSpecified)),MATCH(LEFT(F57,LEN(F57)-1),CostCode,0))) -> 0 | H57: =G57*E57 -> 0 | K57: Winter road tarriff | L57: Winter road tariff | N57: kmtonne | P57: =NA() ->  | Q57: =IF(ISNA(P57),0,INDEX(IF(RIGHT(P57,1)="L",UnitCostLow, IF(RIGHT(P57,1)="H",UnitCostHigh,UnitCostSpecified)),MATCH(LEFT(P57,LEN(P57)-1),CostCode,0))) -> 0 | R57: =Q57*O57 -> 0 | U57: Winter road tarriff | V57: Winter road tariff | X57: kmtonne | Z57: =NA() ->  | AA57: =IF(ISNA(Z57),0,INDEX(IF(RIGHT(Z57,1)="L",UnitCostLow, IF(RIGHT(Z57,1)="H",UnitCostHigh,UnitCostSpecified)),MATCH(LEFT(Z57,LEN(Z57)-1),CostCode,0))) -> 0 | AB57: =AA57*Y57 -> 0
G58: Total | H58: =SUM(H4:H57)+0.0001 -> 0.0001 | Q58: Total | R58: =SUM(R4:R57)+0.0001 -> 0.0001 | AA58: Total | AB58: =SUM(AB4:AB57)+0.0001 -> 0.0001

Sheet PostClosure
A1: 1 | B1: Post-Closure Activities:
B3: ACTIVITY/MATERIAL | C3: Notes | D3: Units | E3: Quantity | F3: Cost Code | G3: Unit Cost | H3: Cost
B4: MONITORING, INSPECTIONS & REPORTING
B5: Geotechnical inspection | D5: each | F5: =NA() ->  | G5: =IF(ISNA(F5),0,INDEX(IF(RIGHT(F5,1)="L",UnitCostLow, IF(RIGHT(F5,1)="H",UnitCostHigh,UnitCostSpecified)),MATCH(LEFT(F5,LEN(F5)-1),CostCode,0))) -> 0 | H5: =G5*E5 -> 0
B6: Survey inspection | D6: each | F6: =NA() ->  | G6: 0 | H6: 0
B7: Site water monitoring (AEMP and SNP) | D7: each | F7: =NA() ->  | G7: 0 | H7: 0
B8: - Active closure and flooding | D8: each | F8: =NA() ->  | G8: 0 | H8: 0
B9: - Post pit flooding | D9: each | F9: =NA() ->  | G9: 0 | H9: 0
B10: Air Quality Monitoring Program (AQMP) | D10: each | F10: =NA() ->  | G10: 0 | H10: 0
B11: Wildlife Effects Monitoring Program (WEMP) | D11: each | F11: =NA() ->  | G11: 0 | H11: 0
B12: Vegetation Monitoring | D12: each | F12: =NA() ->  | G12: 0 | H12: 0
B13: Other | D13: each | F13: =NA() ->  | G13: 0 | H13: =G13*E13 -> 0
B14: COVER MAINTENANCE & REPORTING
B15: Repair erosion - infill gullies | D15: allow | F15: =NA() ->  | G15: =IF(ISNA(F15),0,INDEX(IF(RIGHT(F15,1)="L",UnitCostLow, IF(RIGHT(F15,1)="H",UnitCostHigh,UnitCostSpecified)),MATCH(LEFT(F15,LEN(F15)-1),CostCode,0))) -> 0 | H15: =G15*E15 -> 0
B16: Repair erosion - upgrade diversion ditches | D16: allow | F16: =NA() ->  | G16: 0 | H16: 0
B17: Remove problem vegetation | D17: allow | F17: =NA() ->  | G17: 0 | H17: 0
B18: Repair animal damage | D18: allow | F18: =NA() ->  | G18: 0 | H18: 0
B19: Repair/upgrade access controls | D19: allow | F19: =NA() ->  | G19: 0 | H19: 0
B20: Other | D20: allow | F20: =NA() ->  | G20: 0 | H20: 0
B21: SPILLWAY MAINTENANCE & REPORTING
B22: Repair erosion | D22: m3 | F22: =NA() ->  | G22: =IF(ISNA(F22),0,INDEX(IF(RIGHT(F22,1)="L",UnitCostLow, IF(RIGHT(F22,1)="H",UnitCostHigh,UnitCostSpecified)),MATCH(LEFT(F22,LEN(F22)-1),CostCode,0))) -> 0 | H22: =G22*E22 -> 0
B23: Clear spillway | D23: each | F23: =NA() ->  | G23: =IF(ISNA(F23),0,INDEX(IF(RIGHT(F23,1)="L",UnitCostLow, IF(RIGHT(F23,1)="H",UnitCostHigh,UnitCostSpecified)),MATCH(LEFT(F23,LEN(F23)-1),CostCode,0))) -> 0 | H23: =G23*E23 -> 0
B24: CWTS MAINTENANCE
B25: Maintain flow, restore vegetation | D25: allow | F25: =NA() ->  | G25: =IF(ISNA(F25),0,INDEX(IF(RIGHT(F25,1)="L",UnitCostLow, IF(RIGHT(F25,1)="H",UnitCostHigh,UnitCostSpecified)),MATCH(LEFT(F25,LEN(F25)-1),CostCode,0))) -> 0 | H25: =G25*E25 -> 0
B26: Subtotal, Annual post-closure costs | H26: =SUM(H4:H25) -> 0
B27: Number of years of post closure activities | D27: years | E27: 0
B28: Long Term Water Treatment* | C28: See water treatment tab | H28: ='Water Treatment'!X36 -> 0
G29: Total | H29: =PCAnnualTotal*E27+H28+0.0000001 -> 1e-07
B31: *Include water treatment cost if treatment is considered long term, such as ARD/ML.
B208: Year | C208: Value
B209: =Summary!$K$3 -> 8 | C209: =PCAnnualTotal*(1+Summary!$K$4)^PostClosure!B209 -> 0
B210: =B209+1 -> 9 | C210: =PCAnnualTotal*(1+Summary!$K$4)^PostClosure!B210 -> 0
B211: =B210+1 -> 10 | C211: =PCAnnualTotal*(1+Summary!$K$4)^PostClosure!B211 -> 0
B212: 11 | C212: =PCAnnualTotal*(1+Summary!$K$4)^PostClosure!B212 -> 0
B213: 12 | C213: =PCAnnualTotal*(1+Summary!$K$4)^PostClosure!B213 -> 0
B214: 13 | C214: =PCAnnualTotal*(1+Summary!$K$4)^PostClosure!B214 -> 0
B215: 14 | C215: =PCAnnualTotal*(1+Summary!$K$4)^PostClosure!B215 -> 0
B216: 15 | C216: =PCAnnualTotal*(1+Summary!$K$4)^PostClosure!B216 -> 0
B217: 16 | C217: =PCAnnualTotal*(1+Summary!$K$4)^PostClosure!B217 -> 0
B218: 17 | C218: =PCAnnualTotal*(1+Summary!$K$4)^PostClosure!B218 -> 0
B219: 18 | C219: =PCAnnualTotal*(1+Summary!$K$4)^PostClosure!B219 -> 0
B220: 19 | C220: =PCAnnualTotal*(1+Summary!$K$4)^PostClosure!B220 -> 0
B221: 20 | C221: =PCAnnualTotal*(1+Summary!$K$4)^PostClosure!B221 -> 0
B222: 21 | C222: =PCAnnualTotal*(1+Summary!$K$4)^PostClosure!B222 -> 0
B223: 22 | C223: =PCAnnualTotal*(1+Summary!$K$4)^PostClosure!B223 -> 0
B224: 23 | C224: =PCAnnualTotal*(1+Summary!$K$4)^PostClosure!B224 -> 0
B225: 24 | C225: =PCAnnualTotal*(1+Summary!$K$4)^PostClosure!B225 -> 0
B226: 25 | C226: =PCAnnualTotal*(1+Summary!$K$4)^PostClosure!B226 -> 0
B227: 26 | C227: =PCAnnualTotal*(1+Summary!$K$4)^PostClosure!B227 -> 0
B228: 27 | C228: =PCAnnualTotal*(1+Summary!$K$4)^PostClosure!B228 -> 0
B229: 28 | C229: =PCAnnualTotal*(1+Summary!$K$4)^PostClosure!B229 -> 0
B230: 29 | C230: =PCAnnualTotal*(1+Summary!$K$4)^PostClosure!B230 -> 0
B231: 30 | C231: =PCAnnualTotal*(1+Summary!$K$4)^PostClosure!B231 -> 0
B232: 31 | C232: =PCAnnualTotal*(1+Summary!$K$4)^PostClosure!B232 -> 0
B233: 32 | C233: =PCAnnualTotal*(1+Summary!$K$4)^PostClosure!B233 -> 0
B234: 33 | C234: =PCAnnualTotal*(1+Summary!$K$4)^PostClosure!B234 -> 0
B235: 34 | C235: =PCAnnualTotal*(1+Summary!$K$4)^PostClosure!B235 -> 0
B236: 35 | C236: =PCAnnualTotal*(1+Summary!$K$4)^PostClosure!B236 -> 0
B237: 36 | C237: =PCAnnualTotal*(1+Summary!$K$4)^PostClosure!B237 -> 0
B238: 37 | C238: =PCAnnualTotal*(1+Summary!$K$4)^PostClosure!B238 -> 0
B239: 38 | C239: =PCAnnualTotal*(1+Summary!$K$4)^PostClosure!B239 -> 0
B240: 39 | C240: =PCAnnualTotal*(1+Summary!$K$4)^PostClosure!B240 -> 0
B241: 40 | C241: =PCAnnualTotal*(1+Summary!$K$4)^PostClosure!B241 -> 0
B242: 41 | C242: =PCAnnualTotal*(1+Summary!$K$4)^PostClosure!B242 -> 0
B243: 42 | C243: =PCAnnualTotal*(1+Summary!$K$4)^PostClosure!B243 -> 0
B244: 43 | C244: =PCAnnualTotal*(1+Summary!$K$4)^PostClosure!B244 -> 0
B245: 44 | C245: =PCAnnualTotal*(1+Summary!$K$4)^PostClosure!B245 -> 0
B246: 45 | C246: =PCAnnualTotal*(1+Summary!$K$4)^PostClosure!B246 -> 0
B247: 46 | C247: =PCAnnualTotal*(1+Summary!$K$4)^PostClosure!B247 -> 0
B248: 47 | C248: =PCAnnualTotal*(1+Summary!$K$4)^PostClosure!B248 -> 0
B249: 48 | C249: =PCAnnualTotal*(1+Summary!$K$4)^PostClosure!B249 -> 0
B250: 49 | C250: =PCAnnualTotal*(1+Summary!$K$4)^PostClosure!B250 -> 0
B251: 50 | C251: =PCAnnualTotal*(1+Summary!$K$4)^PostClosure!B251 -> 0
B252: 51 | C252: =PCAnnualTotal*(1+Summary!$K$4)^PostClosure!B252 -> 0
B253: 52 | C253: =PCAnnualTotal*(1+Summary!$K$4)^PostClosure!B253 -> 0
B254: 53 | C254: =PCAnnualTotal*(1+Summary!$K$4)^PostClosure!B254 -> 0
B255: 54 | C255: =PCAnnualTotal*(1+Summary!$K$4)^PostClosure!B255 -> 0
B256: 55 | C256: =PCAnnualTotal*(1+Summary!$K$4)^PostClosure!B256 -> 0
B257: 56 | C257: =PCAnnualTotal*(1+Summary!$K$4)^PostClosure!B257 -> 0
B258: 57 | C258: =PCAnnualTotal*(1+Summary!$K$4)^PostClosure!B258 -> 0
B259: 58 | C259: =PCAnnualTotal*(1+Summary!$K$4)^PostClosure!B259 -> 0
B260: 59 | C260: =PCAnnualTotal*(1+Summary!$K$4)^PostClosure!B260 -> 0
B261: 60 | C261: =PCAnnualTotal*(1+Summary!$K$4)^PostClosure!B261 -> 0
B262: 61 | C262: =PCAnnualTotal*(1+Summary!$K$4)^PostClosure!B262 -> 0
B263: 62 | C263: =PCAnnualTotal*(1+Summary!$K$4)^PostClosure!B263 -> 0
B264: 63 | C264: =PCAnnualTotal*(1+Summary!$K$4)^PostClosure!B264 -> 0
B265: 64 | C265: =PCAnnualTotal*(1+Summary!$K$4)^PostClosure!B265 -> 0
B266: 65 | C266: =PCAnnualTotal*(1+Summary!$K$4)^PostClosure!B266 -> 0
B267: 66 | C267: =PCAnnualTotal*(1+Summary!$K$4)^PostClosure!B267 -> 0
B268: 67 | C268: =PCAnnualTotal*(1+Summary!$K$4)^PostClosure!B268 -> 0
B269: 68 | C269: =PCAnnualTotal*(1+Summary!$K$4)^PostClosure!B269 -> 0
B270: 69 | C270: =PCAnnualTotal*(1+Summary!$K$4)^PostClosure!B270 -> 0
B271: 70 | C271: =PCAnnualTotal*(1+Summary!$K$4)^PostClosure!B271 -> 0
B272: 71 | C272: =PCAnnualTotal*(1+Summary!$K$4)^PostClosure!B272 -> 0
B273: 72 | C273: =PCAnnualTotal*(1+Summary!$K$4)^PostClosure!B273 -> 0
B274: 73 | C274: =PCAnnualTotal*(1+Summary!$K$4)^PostClosure!B274 -> 0
B275: =B274+1 -> 74 | C275: =PCAnnualTotal*(1+Summary!$K$4)^PostClosure!B275 -> 0
B276: 75 | C276: =PCAnnualTotal*(1+Summary!$K$4)^PostClosure!B276 -> 0
B277: 76 | C277: =PCAnnualTotal*(1+Summary!$K$4)^PostClosure!B277 -> 0
B278: 77 | C278: =PCAnnualTotal*(1+Summary!$K$4)^PostClosure!B278 -> 0
B279: 78 | C279: =PCAnnualTotal*(1+Summary!$K$4)^PostClosure!B279 -> 0
B280: 79 | C280: =PCAnnualTotal*(1+Summary!$K$4)^PostClosure!B280 -> 0
B281: 80 | C281: =PCAnnualTotal*(1+Summary!$K$4)^PostClosure!B281 -> 0
B282: 81 | C282: =PCAnnualTotal*(1+Summary!$K$4)^PostClosure!B282 -> 0
B283: 82 | C283: =PCAnnualTotal*(1+Summary!$K$4)^PostClosure!B283 -> 0
B284: 83 | C284: =PCAnnualTotal*(1+Summary!$K$4)^PostClosure!B284 -> 0
B285: 84 | C285: =PCAnnualTotal*(1+Summary!$K$4)^PostClosure!B285 -> 0
B286: 85 | C286: =PCAnnualTotal*(1+Summary!$K$4)^PostClosure!B286 -> 0
B287: 86 | C287: =PCAnnualTotal*(1+Summary!$K$4)^PostClosure!B287 -> 0
B288: 87 | C288: =PCAnnualTotal*(1+Summary!$K$4)^PostClosure!B288 -> 0
B289: 88 | C289: =PCAnnualTotal*(1+Summary!$K$4)^PostClosure!B289 -> 0
B290: 89 | C290: =PCAnnualTotal*(1+Summary!$K$4)^PostClosure!B290 -> 0
B291: 90 | C291: =PCAnnualTotal*(1+Summary!$K$4)^PostClosure!B291 -> 0
B292: 91 | C292: =PCAnnualTotal*(1+Summary!$K$4)^PostClosure!B292 -> 0
B293: 92 | C293: =PCAnnualTotal*(1+Summary!$K$4)^PostClosure!B293 -> 0
B294: 93 | C294: =PCAnnualTotal*(1+Summary!$K$4)^PostClosure!B294 -> 0
B295: 94 | C295: =PCAnnualTotal*(1+Summary!$K$4)^PostClosure!B295 -> 0
B296: 95 | C296: =PCAnnualTotal*(1+Summary!$K$4)^PostClosure!B296 -> 0
B297: 96 | C297: =PCAnnualTotal*(1+Summary!$K$4)^PostClosure!B297 -> 0
B298: 97 | C298: =PCAnnualTotal*(1+Summary!$K$4)^PostClosure!B298 -> 0
B299: 98 | C299: =PCAnnualTotal*(1+Summary!$K$4)^PostClosure!B299 -> 0
B300: 99 | C300: =PCAnnualTotal*(1+Summary!$K$4)^PostClosure!B300 -> 0
B301: 100 | C301: =PCAnnualTotal*(1+Summary!$K$4)^PostClosure!B301 -> 0
B302: 101 | C302: =PCAnnualTotal*(1+Summary!$K$4)^PostClosure!B302 -> 0
B303: 102 | C303: =PCAnnualTotal*(1+Summary!$K$4)^PostClosure!B303 -> 0
B304: 103 | C304: =PCAnnualTotal*(1+Summary!$K$4)^PostClosure!B304 -> 0
B305: 104 | C305: =PCAnnualTotal*(1+Summary!$K$4)^PostClosure!B305 -> 0
B306: 105 | C306: =PCAnnualTotal*(1+Summary!$K$4)^PostClosure!B306 -> 0
B307: 106 | C307: =PCAnnualTotal*(1+Summary!$K$4)^PostClosure!B307 -> 0
B308: 107 | C308: =PCAnnualTotal*(1+Summary!$K$4)^PostClosure!B308 -> 0
B309: 108 | C309: =PCAnnualTotal*(1+Summary!$K$4)^PostClosure!B309 -> 0
B310: 109 | C310: =PCAnnualTotal*(1+Summary!$K$4)^PostClosure!B310 -> 0
B311: 110 | C311: =PCAnnualTotal*(1+Summary!$K$4)^PostClosure!B311 -> 0
B312: 111 | C312: =PCAnnualTotal*(1+Summary!$K$4)^PostClosure!B312 -> 0
B313: 112 | C313: =PCAnnualTotal*(1+Summary!$K$4)^PostClosure!B313 -> 0
B314: 113 | C314: =PCAnnualTotal*(1+Summary!$K$4)^PostClosure!B314 -> 0
B315: 114 | C315: =PCAnnualTotal*(1+Summary!$K$4)^PostClosure!B315 -> 0
B316: 115 | C316: =PCAnnualTotal*(1+Summary!$K$4)^PostClosure!B316 -> 0
B317: 116 | C317: =PCAnnualTotal*(1+Summary!$K$4)^PostClosure!B317 -> 0
B318: 117 | C318: =PCAnnualTotal*(1+Summary!$K$4)^PostClosure!B318 -> 0
B319: 118 | C319: =PCAnnualTotal*(1+Summary!$K$4)^PostClosure!B319 -> 0
B320: 119 | C320: =PCAnnualTotal*(1+Summary!$K$4)^PostClosure!B320 -> 0
B321: 120 | C321: =PCAnnualTotal*(1+Summary!$K$4)^PostClosure!B321 -> 0
B322: 121 | C322: =PCAnnualTotal*(1+Summary!$K$4)^PostClosure!B322 -> 0
B323: 122 | C323: =PCAnnualTotal*(1+Summary!$K$4)^PostClosure!B323 -> 0
B324: 123 | C324: =PCAnnualTotal*(1+Summary!$K$4)^PostClosure!B324 -> 0
B325: 124 | C325: =PCAnnualTotal*(1+Summary!$K$4)^PostClosure!B325 -> 0
B326: 125 | C326: =PCAnnualTotal*(1+Summary!$K$4)^PostClosure!B326 -> 0
B327: 126 | C327: =PCAnnualTotal*(1+Summary!$K$4)^PostClosure!B327 -> 0
B328: 127 | C328: =PCAnnualTotal*(1+Summary!$K$4)^PostClosure!B328 -> 0
B329: 128 | C329: =PCAnnualTotal*(1+Summary!$K$4)^PostClosure!B329 -> 0
B330: 129 | C330: =PCAnnualTotal*(1+Summary!$K$4)^PostClosure!B330 -> 0
B331: 130 | C331: =PCAnnualTotal*(1+Summary!$K$4)^PostClosure!B331 -> 0
B332: 131 | C332: =PCAnnualTotal*(1+Summary!$K$4)^PostClosure!B332 -> 0
B333: 132 | C333: =PCAnnualTotal*(1+Summary!$K$4)^PostClosure!B333 -> 0
B334: 133 | C334: =PCAnnualTotal*(1+Summary!$K$4)^PostClosure!B334 -> 0
B335: 134 | C335: =PCAnnualTotal*(1+Summary!$K$4)^PostClosure!B335 -> 0
B336: 135 | C336: =PCAnnualTotal*(1+Summary!$K$4)^PostClosure!B336 -> 0
B337: 136 | C337: =PCAnnualTotal*(1+Summary!$K$4)^PostClosure!B337 -> 0
B338: 137 | C338: =PCAnnualTotal*(1+Summary!$K$4)^PostClosure!B338 -> 0
B339: =B338+1 -> 138 | C339: =PCAnnualTotal*(1+Summary!$K$4)^PostClosure!B339 -> 0
B340: 139 | C340: =PCAnnualTotal*(1+Summary!$K$4)^PostClosure!B340 -> 0
B341: 140 | C341: =PCAnnualTotal*(1+Summary!$K$4)^PostClosure!B341 -> 0
B342: 141 | C342: =PCAnnualTotal*(1+Summary!$K$4)^PostClosure!B342 -> 0
B343: 142 | C343: =PCAnnualTotal*(1+Summary!$K$4)^PostClosure!B343 -> 0
B344: 143 | C344: =PCAnnualTotal*(1+Summary!$K$4)^PostClosure!B344 -> 0
B345: 144 | C345: =PCAnnualTotal*(1+Summary!$K$4)^PostClosure!B345 -> 0
B346: 145 | C346: =PCAnnualTotal*(1+Summary!$K$4)^PostClosure!B346 -> 0
B347: 146 | C347: =PCAnnualTotal*(1+Summary!$K$4)^PostClosure!B347 -> 0
B348: 147 | C348: =PCAnnualTotal*(1+Summary!$K$4)^PostClosure!B348 -> 0
B349: 148 | C349: =PCAnnualTotal*(1+Summary!$K$4)^PostClosure!B349 -> 0
B350: 149 | C350: =PCAnnualTotal*(1+Summary!$K$4)^PostClosure!B350 -> 0
B351: 150 | C351: =PCAnnualTotal*(1+Summary!$K$4)^PostClosure!B351 -> 0
B352: 151 | C352: =PCAnnualTotal*(1+Summary!$K$4)^PostClosure!B352 -> 0
B353: 152 | C353: =PCAnnualTotal*(1+Summary!$K$4)^PostClosure!B353 -> 0
B354: 153 | C354: =PCAnnualTotal*(1+Summary!$K$4)^PostClosure!B354 -> 0
B355: 154 | C355: =PCAnnualTotal*(1+Summary!$K$4)^PostClosure!B355 -> 0
B356: 155 | C356: =PCAnnualTotal*(1+Summary!$K$4)^PostClosure!B356 -> 0
B357: 156 | C357: =PCAnnualTotal*(1+Summary!$K$4)^PostClosure!B357 -> 0
B358: 157 | C358: =PCAnnualTotal*(1+Summary!$K$4)^PostClosure!B358 -> 0
B359: 158 | C359: =PCAnnualTotal*(1+Summary!$K$4)^PostClosure!B359 -> 0
B360: 159 | C360: =PCAnnualTotal*(1+Summary!$K$4)^PostClosure!B360 -> 0
B361: 160 | C361: =PCAnnualTotal*(1+Summary!$K$4)^PostClosure!B361 -> 0
B362: 161 | C362: =PCAnnualTotal*(1+Summary!$K$4)^PostClosure!B362 -> 0
B363: 162 | C363: =PCAnnualTotal*(1+Summary!$K$4)^PostClosure!B363 -> 0
B364: 163 | C364: =PCAnnualTotal*(1+Summary!$K$4)^PostClosure!B364 -> 0
B365: 164 | C365: =PCAnnualTotal*(1+Summary!$K$4)^PostClosure!B365 -> 0
B366: 165 | C366: =PCAnnualTotal*(1+Summary!$K$4)^PostClosure!B366 -> 0
B367: 166 | C367: =PCAnnualTotal*(1+Summary!$K$4)^PostClosure!B367 -> 0
B368: 167 | C368: =PCAnnualTotal*(1+Summary!$K$4)^PostClosure!B368 -> 0
B369: 168 | C369: =PCAnnualTotal*(1+Summary!$K$4)^PostClosure!B369 -> 0
B370: 169 | C370: =PCAnnualTotal*(1+Summary!$K$4)^PostClosure!B370 -> 0
B371: 170 | C371: =PCAnnualTotal*(1+Summary!$K$4)^PostClosure!B371 -> 0
B372: 171 | C372: =PCAnnualTotal*(1+Summary!$K$4)^PostClosure!B372 -> 0
B373: 172 | C373: =PCAnnualTotal*(1+Summary!$K$4)^PostClosure!B373 -> 0
B374: 173 | C374: =PCAnnualTotal*(1+Summary!$K$4)^PostClosure!B374 -> 0
B375: 174 | C375: =PCAnnualTotal*(1+Summary!$K$4)^PostClosure!B375 -> 0
B376: 175 | C376: =PCAnnualTotal*(1+Summary!$K$4)^PostClosure!B376 -> 0
B377: 176 | C377: =PCAnnualTotal*(1+Summary!$K$4)^PostClosure!B377 -> 0
B378: 177 | C378: =PCAnnualTotal*(1+Summary!$K$4)^PostClosure!B378 -> 0
... 259 more rows

Sheet Water Treatment
A1: 1 | B1: ICM Water Treatment | J1: Construction Water Treatment | R1: Post-Closure Activities Long Term Water Treatment
B3: ACTIVITY/MATERIAL | C3: Notes | D3: Units | E3: Quantity | F3: Cost Code | G3: Unit Cost | H3: Cost | J3: ACTIVITY/MATERIAL | K3: Notes | L3: Units | M3: Quantity | N3: Cost Code | O3: Unit Cost | P3: Cost | R3: ACTIVITY/MATERIAL | S3: Notes | T3: Units | U3: Quantity | V3: Cost Code | W3: Unit Cost | X3: Cost
B4: Treatment Plant - Construction | J4: Treatment Plant - Construction | R4: Treatment Plant - Construction
B5: Construction of Treatment Plant | D5: lump sum | F5: =NA() ->  | G5: =IF(ISNA(F5),0,INDEX(IF(RIGHT(F5,1)="L",UnitCostLow, IF(RIGHT(F5,1)="H",UnitCostHigh,UnitCostSpecified)),MATCH(LEFT(F5,LEN(F5)-1),CostCode,0))) -> 0 | H5: =G5*E5 -> 0 | J5: Construction of Treatment Plant | L5: lump sum | N5: =NA() ->  | O5: =IF(ISNA(N5),0,INDEX(IF(RIGHT(N5,1)="L",UnitCostLow, IF(RIGHT(N5,1)="H",UnitCostHigh,UnitCostSpecified)),MATCH(LEFT(N5,LEN(N5)-1),CostCode,0))) -> 0 | P5: =O5*M5 -> 0 | R5: Construction of Treatment Plant | T5: lump sum | V5: =NA() ->  | W5: =IF(ISNA(V5),0,INDEX(IF(RIGHT(V5,1)="L",UnitCostLow, IF(RIGHT(V5,1)="H",UnitCostHigh,UnitCostSpecified)),MATCH(LEFT(V5,LEN(V5)-1),CostCode,0))) -> 0 | X5: =W5*U5 -> 0
B6: Annual Operational Cost | D6: m3 | F6: =NA() ->  | G6: =IF(ISNA(F6),0,INDEX(IF(RIGHT(F6,1)="L",UnitCostLow, IF(RIGHT(F6,1)="H",UnitCostHigh,UnitCostSpecified)),MATCH(LEFT(F6,LEN(F6)-1),CostCode,0))) -> 0 | H6: =G6*E6 -> 0 | J6: Annual Operational Cost | L6: m3 | N6: =NA() ->  | O6: =IF(ISNA(N6),0,INDEX(IF(RIGHT(N6,1)="L",UnitCostLow, IF(RIGHT(N6,1)="H",UnitCostHigh,UnitCostSpecified)),MATCH(LEFT(N6,LEN(N6)-1),CostCode,0))) -> 0 | P6: =O6*M6 -> 0 | R6: Annual Operational Cost | T6: m3 | V6: =NA() ->  | W6: =IF(ISNA(V6),0,INDEX(IF(RIGHT(V6,1)="L",UnitCostLow, IF(RIGHT(V6,1)="H",UnitCostHigh,UnitCostSpecified)),MATCH(LEFT(V6,LEN(V6)-1),CostCode,0))) -> 0 | X6: =W6*U6 -> 0
B7: ADDITION OF REAGENTS | J7: ADDITION OF REAGENTS | R7: ADDITION OF REAGENTS
B8: H2O2 | D8: kg | F8: =NA() ->  | G8: =IF(ISNA(F8),0,INDEX(IF(RIGHT(F8,1)="L",UnitCostLow, IF(RIGHT(F8,1)="H",UnitCostHigh,UnitCostSpecified)),MATCH(LEFT(F8,LEN(F8)-1),CostCode,0))) -> 0 | H8: =G8*E8 -> 0 | J8: H2O2 | L8: kg | N8: =NA() ->  | O8: =IF(ISNA(N8),0,INDEX(IF(RIGHT(N8,1)="L",UnitCostLow, IF(RIGHT(N8,1)="H",UnitCostHigh,UnitCostSpecified)),MATCH(LEFT(N8,LEN(N8)-1),CostCode,0))) -> 0 | P8: =O8*M8 -> 0 | R8: H2O2 | T8: kg | V8: =NA() ->  | W8: =IF(ISNA(V8),0,INDEX(IF(RIGHT(V8,1)="L",UnitCostLow, IF(RIGHT(V8,1)="H",UnitCostHigh,UnitCostSpecified)),MATCH(LEFT(V8,LEN(V8)-1),CostCode,0))) -> 0 | X8: =W8*U8 -> 0
B9: lime | D9: kg | F9: =NA() ->  | G9: 0 | H9: 0 | J9: lime | L9: kg | N9: =NA() ->  | O9: 0 | P9: 0 | R9: lime | T9: kg | V9: =NA() ->  | W9: 0 | X9: 0
B10: ferric sulphate | D10: kg | F10: =NA() ->  | G10: 0 | H10: 0 | J10: ferric sulphate | L10: kg | N10: =NA() ->  | O10: 0 | P10: 0 | R10: ferric sulphate | T10: kg | V10: =NA() ->  | W10: 0 | X10: 0
B11: ferrous sulphate | D11: kg | F11: =NA() ->  | G11: 0 | H11: 0 | J11: ferrous sulphate | L11: kg | N11: =NA() ->  | O11: 0 | P11: 0 | R11: ferrous sulphate | T11: kg | V11: =NA() ->  | W11: 0 | X11: 0
B12: flocculants | D12: kg | F12: =NA() ->  | G12: 0 | H12: 0 | J12: flocculants | L12: kg | N12: =NA() ->  | O12: 0 | P12: 0 | R12: flocculants | T12: kg | V12: =NA() ->  | W12: 0 | X12: 0
B13: Other | F13: =NA() ->  | G13: 0 | H13: 0 | J13: Other | N13: =NA() ->  | O13: 0 | P13: 0 | R13: Other | V13: =NA() ->  | W13: 0 | X13: 0
B14: LABOUR AND SUPPLIES | J14: LABOUR AND SUPPLIES | R14: LABOUR AND SUPPLIES
B15: Annual fuel | D15: litres | F15: =NA() ->  | G15: =IF(ISNA(F15),0,INDEX(IF(RIGHT(F15,1)="L",UnitCostLow, IF(RIGHT(F15,1)="H",UnitCostHigh,UnitCostSpecified)),MATCH(LEFT(F15,LEN(F15)-1),CostCode,0))) -> 0 | H15: =G15*E15 -> 0 | J15: Annual fuel | L15: litres | N15: =NA() ->  | O15: =IF(ISNA(N15),0,INDEX(IF(RIGHT(N15,1)="L",UnitCostLow, IF(RIGHT(N15,1)="H",UnitCostHigh,UnitCostSpecified)),MATCH(LEFT(N15,LEN(N15)-1),CostCode,0))) -> 0 | P15: =O15*M15 -> 0 | R15: Annual fuel | T15: litres | V15: =NA() ->  | W15: =IF(ISNA(V15),0,INDEX(IF(RIGHT(V15,1)="L",UnitCostLow, IF(RIGHT(V15,1)="H",UnitCostHigh,UnitCostSpecified)),MATCH(LEFT(V15,LEN(V15)-1),CostCode,0))) -> 0 | X15: =W15*U15 -> 0
B16: Annual power | D16: kW-h | F16: =NA() ->  | G16: 0 | H16: 0 | J16: Annual power | L16: kW-h | N16: =NA() ->  | O16: 0 | P16: 0 | R16: Annual power | T16: kW-h | V16: =NA() ->  | W16: 0 | X16: 0
B17: Electrician/mechanic to maintain treatment plant | D17: allow | F17: =NA() ->  | G17: 0 | H17: 0 | J17: Electrician/mechanic to maintain treatment plant | L17: allow | N17: =NA() ->  | O17: 0 | P17: 0 | R17: Electrician/mechanic to maintain treatment plant | T17: allow | V17: =NA() ->  | W17: 0 | X17: 0
B18: Equipment maintenance and parts | D18: allow | F18: =NA() ->  | G18: 0 | H18: 0 | J18: Equipment maintenance and parts | L18: allow | N18: =NA() ->  | O18: 0 | P18: 0 | R18: Equipment maintenance and parts | T18: allow | V18: =NA() ->  | W18: 0 | X18: 0
B19: Misc. supplies, hoses, tools | D19: allow | F19: =NA() ->  | G19: 0 | H19: 0 | J19: Misc. supplies, hoses, tools | L19: allow | N19: =NA() ->  | O19: 0 | P19: 0 | R19: Misc. supplies, hoses, tools | T19: allow | V19: =NA() ->  | W19: 0 | X19: 0
B20: Communications | D20: allow | F20: =NA() ->  | G20: 0 | H20: 0 | J20: Communications | L20: allow | N20: =NA() ->  | O20: 0 | P20: 0 | R20: Communications | T20: allow | V20: =NA() ->  | W20: 0 | X20: 0
B21: Other | F21: =NA() ->  | G21: 0 | H21: 0 | J21: Other | N21: =NA() ->  | O21: 0 | P21: 0 | R21: Other | V21: =NA() ->  | W21: 0 | X21: 0
B22: WATER SAMPLING AND ANALYSES | J22: WATER SAMPLING AND ANALYSES | R22: WATER SAMPLING AND ANALYSES
B23: Sampling equipment | D23: allow | F23: =NA() ->  | G23: =IF(ISNA(F23),0,INDEX(IF(RIGHT(F23,1)="L",UnitCostLow, IF(RIGHT(F23,1)="H",UnitCostHigh,UnitCostSpecified)),MATCH(LEFT(F23,LEN(F23)-1),CostCode,0))) -> 0 | H23: =G23*E23 -> 0 | J23: Sampling equipment | L23: allow | N23: =NA() ->  | O23: =IF(ISNA(N23),0,INDEX(IF(RIGHT(N23,1)="L",UnitCostLow, IF(RIGHT(N23,1)="H",UnitCostHigh,UnitCostSpecified)),MATCH(LEFT(N23,LEN(N23)-1),CostCode,0))) -> 0 | P23: =O23*M23 -> 0 | R23: Sampling equipment | T23: allow | V23: =NA() ->  | W23: =IF(ISNA(V23),0,INDEX(IF(RIGHT(V23,1)="L",UnitCostLow, IF(RIGHT(V23,1)="H",UnitCostHigh,UnitCostSpecified)),MATCH(LEFT(V23,LEN(V23)-1),CostCode,0))) -> 0 | X23: =W23*U23 -> 0
B24: Analyses | D24: allow | F24: =NA() ->  | G24: =IF(ISNA(F24),0,INDEX(IF(RIGHT(F24,1)="L",UnitCostLow, IF(RIGHT(F24,1)="H",UnitCostHigh,UnitCostSpecified)),MATCH(LEFT(F24,LEN(F24)-1),CostCode,0))) -> 0 | H24: =G24*E24 -> 0 | J24: Analyses | L24: allow | N24: =NA() ->  | O24: =IF(ISNA(N24),0,INDEX(IF(RIGHT(N24,1)="L",UnitCostLow, IF(RIGHT(N24,1)="H",UnitCostHigh,UnitCostSpecified)),MATCH(LEFT(N24,LEN(N24)-1),CostCode,0))) -> 0 | P24: =O24*M24 -> 0 | R24: Analyses | T24: allow | V24: =NA() ->  | W24: =IF(ISNA(V24),0,INDEX(IF(RIGHT(V24,1)="L",UnitCostLow, IF(RIGHT(V24,1)="H",UnitCostHigh,UnitCostSpecified)),MATCH(LEFT(V24,LEN(V24)-1),CostCode,0))) -> 0 | X24: =W24*U24 -> 0
B25: Shipping to laboratory | D25: allow | F25: =NA() ->  | G25: =IF(ISNA(F25),0,INDEX(IF(RIGHT(F25,1)="L",UnitCostLow, IF(RIGHT(F25,1)="H",UnitCostHigh,UnitCostSpecified)),MATCH(LEFT(F25,LEN(F25)-1),CostCode,0))) -> 0 | H25: =G25*E25 -> 0 | J25: Shipping to laboratory | L25: allow | N25: =NA() ->  | O25: =IF(ISNA(N25),0,INDEX(IF(RIGHT(N25,1)="L",UnitCostLow, IF(RIGHT(N25,1)="H",UnitCostHigh,UnitCostSpecified)),MATCH(LEFT(N25,LEN(N25)-1),CostCode,0))) -> 0 | P25: =O25*M25 -> 0 | R25: Shipping to laboratory | T25: allow | V25: =NA() ->  | W25: =IF(ISNA(V25),0,INDEX(IF(RIGHT(V25,1)="L",UnitCostLow, IF(RIGHT(V25,1)="H",UnitCostHigh,UnitCostSpecified)),MATCH(LEFT(V25,LEN(V25)-1),CostCode,0))) -> 0 | X25: =W25*U25 -> 0
B26: Reporting | D26: allow | F26: =NA() ->  | G26: =IF(ISNA(F26),0,INDEX(IF(RIGHT(F26,1)="L",UnitCostLow, IF(RIGHT(F26,1)="H",UnitCostHigh,UnitCostSpecified)),MATCH(LEFT(F26,LEN(F26)-1),CostCode,0))) -> 0 | H26: =G26*E26 -> 0 | J26: Reporting | L26: allow | N26: =NA() ->  | O26: =IF(ISNA(N26),0,INDEX(IF(RIGHT(N26,1)="L",UnitCostLow, IF(RIGHT(N26,1)="H",UnitCostHigh,UnitCostSpecified)),MATCH(LEFT(N26,LEN(N26)-1),CostCode,0))) -> 0 | P26: =O26*M26 -> 0 | R26: Reporting | T26: allow | V26: =NA() ->  | W26: =IF(ISNA(V26),0,INDEX(IF(RIGHT(V26,1)="L",UnitCostLow, IF(RIGHT(V26,1)="H",UnitCostHigh,UnitCostSpecified)),MATCH(LEFT(V26,LEN(V26)-1),CostCode,0))) -> 0 | X26: =W26*U26 -> 0
B27: Other | F27: =NA() ->  | G27: =IF(ISNA(F27),0,INDEX(IF(RIGHT(F27,1)="L",UnitCostLow, IF(RIGHT(F27,1)="H",UnitCostHigh,UnitCostSpecified)),MATCH(LEFT(F27,LEN(F27)-1),CostCode,0))) -> 0 | H27: =G27*E27 -> 0 | J27: Other | N27: =NA() ->  | O27: =IF(ISNA(N27),0,INDEX(IF(RIGHT(N27,1)="L",UnitCostLow, IF(RIGHT(N27,1)="H",UnitCostHigh,UnitCostSpecified)),MATCH(LEFT(N27,LEN(N27)-1),CostCode,0))) -> 0 | P27: =O27*M27 -> 0 | R27: Other | V27: =NA() ->  | W27: =IF(ISNA(V27),0,INDEX(IF(RIGHT(V27,1)="L",UnitCostLow, IF(RIGHT(V27,1)="H",UnitCostHigh,UnitCostSpecified)),MATCH(LEFT(V27,LEN(V27)-1),CostCode,0))) -> 0 | X27: =W27*U27 -> 0
B28: SITE ACCESS | J28: SITE ACCESS | R28: SITE ACCESS
B29: Road maintenance (incl. snow removal) | D29: allow | F29: =NA() ->  | G29: =IF(ISNA(F29),0,INDEX(IF(RIGHT(F29,1)="L",UnitCostLow, IF(RIGHT(F29,1)="H",UnitCostHigh,UnitCostSpecified)),MATCH(LEFT(F29,LEN(F29)-1),CostCode,0))) -> 0 | H29: =G29*E29 -> 0 | J29: Road maintenance (incl. snow removal) | L29: allow | N29: =NA() ->  | O29: =IF(ISNA(N29),0,INDEX(IF(RIGHT(N29,1)="L",UnitCostLow, IF(RIGHT(N29,1)="H",UnitCostHigh,UnitCostSpecified)),MATCH(LEFT(N29,LEN(N29)-1),CostCode,0))) -> 0 | P29: =O29*M29 -> 0 | R29: Road maintenance (incl. snow removal) | T29: allow | V29: =NA() ->  | W29: =IF(ISNA(V29),0,INDEX(IF(RIGHT(V29,1)="L",UnitCostLow, IF(RIGHT(V29,1)="H",UnitCostHigh,UnitCostSpecified)),MATCH(LEFT(V29,LEN(V29)-1),CostCode,0))) -> 0 | X29: =W29*U29 -> 0
B30: Winter road tariff | D30: allow | F30: =NA() ->  | G30: =IF(ISNA(F30),0,INDEX(IF(RIGHT(F30,1)="L",UnitCostLow, IF(RIGHT(F30,1)="H",UnitCostHigh,UnitCostSpecified)),MATCH(LEFT(F30,LEN(F30)-1),CostCode,0))) -> 0 | H30: =G30*E30 -> 0 | J30: Winter road tariff | L30: allow | N30: =NA() ->  | O30: =IF(ISNA(N30),0,INDEX(IF(RIGHT(N30,1)="L",UnitCostLow, IF(RIGHT(N30,1)="H",UnitCostHigh,UnitCostSpecified)),MATCH(LEFT(N30,LEN(N30)-1),CostCode,0))) -> 0 | P30: =O30*M30 -> 0 | R30: Winter road tariff | T30: allow | V30: =NA() ->  | W30: =IF(ISNA(V30),0,INDEX(IF(RIGHT(V30,1)="L",UnitCostLow, IF(RIGHT(V30,1)="H",UnitCostHigh,UnitCostSpecified)),MATCH(LEFT(V30,LEN(V30)-1),CostCode,0))) -> 0 | X30: =W30*U30 -> 0
B31: Truck rental | D31: allow | F31: =NA() ->  | G31: =IF(ISNA(F31),0,INDEX(IF(RIGHT(F31,1)="L",UnitCostLow, IF(RIGHT(F31,1)="H",UnitCostHigh,UnitCostSpecified)),MATCH(LEFT(F31,LEN(F31)-1),CostCode,0))) -> 0 | H31: =G31*E31 -> 0 | J31: Truck rental | L31: allow | N31: =NA() ->  | O31: =IF(ISNA(N31),0,INDEX(IF(RIGHT(N31,1)="L",UnitCostLow, IF(RIGHT(N31,1)="H",UnitCostHigh,UnitCostSpecified)),MATCH(LEFT(N31,LEN(N31)-1),CostCode,0))) -> 0 | P31: =O31*M31 -> 0 | R31: Truck rental | T31: allow | V31: =NA() ->  | W31: =IF(ISNA(V31),0,INDEX(IF(RIGHT(V31,1)="L",UnitCostLow, IF(RIGHT(V31,1)="H",UnitCostHigh,UnitCostSpecified)),MATCH(LEFT(V31,LEN(V31)-1),CostCode,0))) -> 0 | X31: =W31*U31 -> 0
B32: Air support | D32: allow | F32: =NA() ->  | G32: =IF(ISNA(F32),0,INDEX(IF(RIGHT(F32,1)="L",UnitCostLow, IF(RIGHT(F32,1)="H",UnitCostHigh,UnitCostSpecified)),MATCH(LEFT(F32,LEN(F32)-1),CostCode,0))) -> 0 | H32: =G32*E32 -> 0 | J32: Air support | L32: allow | N32: =NA() ->  | O32: =IF(ISNA(N32),0,INDEX(IF(RIGHT(N32,1)="L",UnitCostLow, IF(RIGHT(N32,1)="H",UnitCostHigh,UnitCostSpecified)),MATCH(LEFT(N32,LEN(N32)-1),CostCode,0))) -> 0 | P32: =O32*M32 -> 0 | R32: Air support | T32: allow | V32: =NA() ->  | W32: =IF(ISNA(V32),0,INDEX(IF(RIGHT(V32,1)="L",UnitCostLow, IF(RIGHT(V32,1)="H",UnitCostHigh,UnitCostSpecified)),MATCH(LEFT(V32,LEN(V32)-1),CostCode,0))) -> 0 | X32: =W32*U32 -> 0
G34: Annual water treatment costs | H34: =SUM(H6:H33)+0.0001 -> 0.0001 | O34: Annual water treatment costs | P34: =SUM(P6:P33)+0.0001 -> 0.0001 | W34: Annual water treatment costs | X34: =SUM(X6:X33)+0.000001 -> 1e-06
B35: Number of years of water treatment | D35: years | E35: 0 | J35: Number of years of water treatment | L35: years | M35: 0 | R35: Number of years of water treatment | T35: years | U35: 0
G36: Total | H36: =H34*E35+H5 -> 0 | O36: Total | P36: =P34*M35+P5 -> 0 | W36: Total | X36: =X34*U35+X5 -> 0
B38: Note: This post-closure cost is linked back to the ICM Worksheet | J38: Note: This operational cost is linked back to the Water Management Worksheet | R38: Note: This post-closure cost is linked back to the Post Closure Worksheet
B126: Year | C126: Value
B127: =Summary!K3 -> 8 | C127: =X5*(1+Summary!$K$4)^'Water Treatment'!B127+$X$34*(1+Summary!$K$4)^'Water Treatment'!B127 -> 1.266770081e-06
B128: =B127+1 -> 9 | C128: =$X$34*(1+Summary!$K$4)^'Water Treatment'!B128 -> 1.304773184e-06
B129: =B128+1 -> 10 | C129: =$X$34*(1+Summary!$K$4)^'Water Treatment'!B129 -> 1.343916379e-06
B130: 11 | C130: =$X$34*(1+Summary!$K$4)^'Water Treatment'!B130 -> 1.384233871e-06
B131: 12 | C131: =$X$34*(1+Summary!$K$4)^'Water Treatment'!B131 -> 1.425760887e-06
B132: 13 | C132: =$X$34*(1+Summary!$K$4)^'Water Treatment'!B132 -> 1.468533713e-06
B133: 14 | C133: =$X$34*(1+Summary!$K$4)^'Water Treatment'!B133 -> 1.512589725e-06
B134: 15 | C134: =$X$34*(1+Summary!$K$4)^'Water Treatment'!B134 -> 1.557967417e-06
B135: 16 | C135: =$X$34*(1+Summary!$K$4)^'Water Treatment'!B135 -> 1.604706439e-06
B136: 17 | C136: =$X$34*(1+Summary!$K$4)^'Water Treatment'!B136 -> 1.652847632e-06
B137: 18 | C137: =$X$34*(1+Summary!$K$4)^'Water Treatment'!B137 -> 1.702433061e-06
B138: 19 | C138: =$X$34*(1+Summary!$K$4)^'Water Treatment'!B138 -> 1.753506053e-06
B139: 20 | C139: =$X$34*(1+Summary!$K$4)^'Water Treatment'!B139 -> 1.806111235e-06
B140: 21 | C140: =$X$34*(1+Summary!$K$4)^'Water Treatment'!B140 -> 1.860294572e-06
B141: 22 | C141: =$X$34*(1+Summary!$K$4)^'Water Treatment'!B141 -> 1.916103409e-06
B142: 23 | C142: =$X$34*(1+Summary!$K$4)^'Water Treatment'!B142 -> 1.973586511e-06
B143: 24 | C143: =$X$34*(1+Summary!$K$4)^'Water Treatment'!B143 -> 2.032794106e-06
B144: 25 | C144: =$X$34*(1+Summary!$K$4)^'Water Treatment'!B144 -> 2.09377793e-06
B145: 26 | C145: =$X$34*(1+Summary!$K$4)^'Water Treatment'!B145 -> 2.156591268e-06
B146: 27 | C146: =$X$34*(1+Summary!$K$4)^'Water Treatment'!B146 -> 2.221289006e-06
B147: 28 | C147: =$X$34*(1+Summary!$K$4)^'Water Treatment'!B147 -> 2.287927676e-06
B148: 29 | C148: =$X$34*(1+Summary!$K$4)^'Water Treatment'!B148 -> 2.356565506e-06
B149: 30 | C149: =$X$34*(1+Summary!$K$4)^'Water Treatment'!B149 -> 2.427262471e-06
B150: 31 | C150: =$X$34*(1+Summary!$K$4)^'Water Treatment'!B150 -> 2.500080345e-06
B151: 32 | C151: =$X$34*(1+Summary!$K$4)^'Water Treatment'!B151 -> 2.575082756e-06
B152: 33 | C152: =$X$34*(1+Summary!$K$4)^'Water Treatment'!B152 -> 2.652335238e-06
B153: 34 | C153: =$X$34*(1+Summary!$K$4)^'Water Treatment'!B153 -> 2.731905296e-06
B154: 35 | C154: =$X$34*(1+Summary!$K$4)^'Water Treatment'!B154 -> 2.813862454e-06
B155: 36 | C155: =$X$34*(1+Summary!$K$4)^'Water Treatment'!B155 -> 2.898278328e-06
B156: 37 | C156: =$X$34*(1+Summary!$K$4)^'Water Treatment'!B156 -> 2.985226678e-06
B157: 38 | C157: =$X$34*(1+Summary!$K$4)^'Water Treatment'!B157 -> 3.074783478e-06
B158: 39 | C158: =$X$34*(1+Summary!$K$4)^'Water Treatment'!B158 -> 3.167026983e-06
B159: 40 | C159: =$X$34*(1+Summary!$K$4)^'Water Treatment'!B159 -> 3.262037792e-06
B160: 41 | C160: =$X$34*(1+Summary!$K$4)^'Water Treatment'!B160 -> 3.359898926e-06
B161: 42 | C161: =$X$34*(1+Summary!$K$4)^'Water Treatment'!B161 -> 3.460695894e-06
B162: 43 | C162: =$X$34*(1+Summary!$K$4)^'Water Treatment'!B162 -> 3.56451677e-06
B163: 44 | C163: =$X$34*(1+Summary!$K$4)^'Water Treatment'!B163 -> 3.671452273e-06
B164: 45 | C164: =$X$34*(1+Summary!$K$4)^'Water Treatment'!B164 -> 3.781595842e-06
B165: 46 | C165: =$X$34*(1+Summary!$K$4)^'Water Treatment'!B165 -> 3.895043717e-06
B166: 47 | C166: =$X$34*(1+Summary!$K$4)^'Water Treatment'!B166 -> 4.011895028e-06
B167: 48 | C167: =$X$34*(1+Summary!$K$4)^'Water Treatment'!B167 -> 4.132251879e-06
B168: 49 | C168: =$X$34*(1+Summary!$K$4)^'Water Treatment'!B168 -> 4.256219436e-06
B169: 50 | C169: =$X$34*(1+Summary!$K$4)^'Water Treatment'!B169 -> 4.383906019e-06
B170: 51 | C170: =$X$34*(1+Summary!$K$4)^'Water Treatment'!B170 -> 4.515423199e-06
B171: 52 | C171: =$X$34*(1+Summary!$K$4)^'Water Treatment'!B171 -> 4.650885895e-06
B172: 53 | C172: =$X$34*(1+Summary!$K$4)^'Water Treatment'!B172 -> 4.790412472e-06
B173: 54 | C173: =$X$34*(1+Summary!$K$4)^'Water Treatment'!B173 -> 4.934124846e-06
B174: 55 | C174: =$X$34*(1+Summary!$K$4)^'Water Treatment'!B174 -> 5.082148592e-06
B175: 56 | C175: =$X$34*(1+Summary!$K$4)^'Water Treatment'!B175 -> 5.234613049e-06
B176: 57 | C176: =$X$34*(1+Summary!$K$4)^'Water Treatment'!B176 -> 5.391651441e-06
B177: 58 | C177: =$X$34*(1+Summary!$K$4)^'Water Treatment'!B177 -> 5.553400984e-06
B178: 59 | C178: =$X$34*(1+Summary!$K$4)^'Water Treatment'!B178 -> 5.720003014e-06
B179: 60 | C179: =$X$34*(1+Summary!$K$4)^'Water Treatment'!B179 -> 5.891603104e-06
B180: 61 | C180: =$X$34*(1+Summary!$K$4)^'Water Treatment'!B180 -> 6.068351197e-06
B181: 62 | C181: =$X$34*(1+Summary!$K$4)^'Water Treatment'!B181 -> 6.250401733e-06
B182: 63 | C182: =$X$34*(1+Summary!$K$4)^'Water Treatment'!B182 -> 6.437913785e-06
B183: 64 | C183: =$X$34*(1+Summary!$K$4)^'Water Treatment'!B183 -> 6.631051199e-06
B184: 65 | C184: =$X$34*(1+Summary!$K$4)^'Water Treatment'!B184 -> 6.829982735e-06
B185: 66 | C185: =$X$34*(1+Summary!$K$4)^'Water Treatment'!B185 -> 7.034882217e-06
B186: 67 | C186: =$X$34*(1+Summary!$K$4)^'Water Treatment'!B186 -> 7.245928683e-06
B187: 68 | C187: =$X$34*(1+Summary!$K$4)^'Water Treatment'!B187 -> 7.463306544e-06
B188: 69 | C188: =$X$34*(1+Summary!$K$4)^'Water Treatment'!B188 -> 7.68720574e-06
B189: 70 | C189: =$X$34*(1+Summary!$K$4)^'Water Treatment'!B189 -> 7.917821912e-06
B190: 71 | C190: =$X$34*(1+Summary!$K$4)^'Water Treatment'!B190 -> 8.155356569e-06
B191: 72 | C191: =$X$34*(1+Summary!$K$4)^'Water Treatment'!B191 -> 8.400017267e-06
B192: 73 | C192: =$X$34*(1+Summary!$K$4)^'Water Treatment'!B192 -> 8.652017785e-06
B193: =B192+1 -> 74 | C193: =$X$34*(1+Summary!$K$4)^'Water Treatment'!B193 -> 8.911578318e-06
B194: 75 | C194: =$X$34*(1+Summary!$K$4)^'Water Treatment'!B194 -> 9.178925668e-06
B195: 76 | C195: =$X$34*(1+Summary!$K$4)^'Water Treatment'!B195 -> 9.454293438e-06
B196: 77 | C196: =$X$34*(1+Summary!$K$4)^'Water Treatment'!B196 -> 9.737922241e-06
B197: 78 | C197: =$X$34*(1+Summary!$K$4)^'Water Treatment'!B197 -> 1.003005991e-05
B198: 79 | C198: =$X$34*(1+Summary!$K$4)^'Water Treatment'!B198 -> 1.033096171e-05
B199: 80 | C199: =$X$34*(1+Summary!$K$4)^'Water Treatment'!B199 -> 1.064089056e-05
B200: 81 | C200: =$X$34*(1+Summary!$K$4)^'Water Treatment'!B200 -> 1.096011727e-05
B201: 82 | C201: =$X$34*(1+Summary!$K$4)^'Water Treatment'!B201 -> 1.128892079e-05
B202: 83 | C202: =$X$34*(1+Summary!$K$4)^'Water Treatment'!B202 -> 1.162758842e-05
B203: 84 | C203: =$X$34*(1+Summary!$K$4)^'Water Treatment'!B203 -> 1.197641607e-05
B204: 85 | C204: =$X$34*(1+Summary!$K$4)^'Water Treatment'!B204 -> 1.233570855e-05
B205: 86 | C205: =$X$34*(1+Summary!$K$4)^'Water Treatment'!B205 -> 1.270577981e-05
B206: 87 | C206: =$X$34*(1+Summary!$K$4)^'Water Treatment'!B206 -> 1.30869532e-05
B207: 88 | C207: =$X$34*(1+Summary!$K$4)^'Water Treatment'!B207 -> 1.34795618e-05
B208: 89 | C208: =$X$34*(1+Summary!$K$4)^'Water Treatment'!B208 -> 1.388394865e-05
B209: 90 | C209: =$X$34*(1+Summary!$K$4)^'Water Treatment'!B209 -> 1.430046711e-05
B210: 91 | C210: =$X$34*(1+Summary!$K$4)^'Water Treatment'!B210 -> 1.472948112e-05
B211: 92 | C211: =$X$34*(1+Summary!$K$4)^'Water Treatment'!B211 -> 1.517136556e-05
B212: 93 | C212: =$X$34*(1+Summary!$K$4)^'Water Treatment'!B212 -> 1.562650652e-05
B213: 94 | C213: =$X$34*(1+Summary!$K$4)^'Water Treatment'!B213 -> 1.609530172e-05
B214: 95 | C214: =$X$34*(1+Summary!$K$4)^'Water Treatment'!B214 -> 1.657816077e-05
B215: 96 | C215: =$X$34*(1+Summary!$K$4)^'Water Treatment'!B215 -> 1.707550559e-05
B216: 97 | C216: =$X$34*(1+Summary!$K$4)^'Water Treatment'!B216 -> 1.758777076e-05
B217: 98 | C217: =$X$34*(1+Summary!$K$4)^'Water Treatment'!B217 -> 1.811540388e-05
B218: 99 | C218: =$X$34*(1+Summary!$K$4)^'Water Treatment'!B218 -> 1.8658866e-05
B219: 100 | C219: =$X$34*(1+Summary!$K$4)^'Water Treatment'!B219 -> 1.921863198e-05
B220: 101 | C220: =$X$34*(1+Summary!$K$4)^'Water Treatment'!B220 -> 1.979519094e-05
B221: 102 | C221: =$X$34*(1+Summary!$K$4)^'Water Treatment'!B221 -> 2.038904667e-05
B222: 103 | C222: =$X$34*(1+Summary!$K$4)^'Water Treatment'!B222 -> 2.100071807e-05
B223: 104 | C223: =$X$34*(1+Summary!$K$4)^'Water Treatment'!B223 -> 2.163073961e-05
B224: 105 | C224: =$X$34*(1+Summary!$K$4)^'Water Treatment'!B224 -> 2.22796618e-05
B225: 106 | C225: =$X$34*(1+Summary!$K$4)^'Water Treatment'!B225 -> 2.294805165e-05
B226: 107 | C226: =$X$34*(1+Summary!$K$4)^'Water Treatment'!B226 -> 2.36364932e-05
B227: 108 | C227: =$X$34*(1+Summary!$K$4)^'Water Treatment'!B227 -> 2.4345588e-05
B228: 109 | C228: =$X$34*(1+Summary!$K$4)^'Water Treatment'!B228 -> 2.507595564e-05
B229: 110 | C229: =$X$34*(1+Summary!$K$4)^'Water Treatment'!B229 -> 2.582823431e-05
B230: 111 | C230: =$X$34*(1+Summary!$K$4)^'Water Treatment'!B230 -> 2.660308134e-05
B231: 112 | C231: =$X$34*(1+Summary!$K$4)^'Water Treatment'!B231 -> 2.740117378e-05
B232: 113 | C232: =$X$34*(1+Summary!$K$4)^'Water Treatment'!B232 -> 2.822320899e-05
B233: 114 | C233: =$X$34*(1+Summary!$K$4)^'Water Treatment'!B233 -> 2.906990526e-05
B234: 115 | C234: =$X$34*(1+Summary!$K$4)^'Water Treatment'!B234 -> 2.994200242e-05
B235: 116 | C235: =$X$34*(1+Summary!$K$4)^'Water Treatment'!B235 -> 3.084026249e-05
B236: 117 | C236: =$X$34*(1+Summary!$K$4)^'Water Treatment'!B236 -> 3.176547037e-05
B237: 118 | C237: =$X$34*(1+Summary!$K$4)^'Water Treatment'!B237 -> 3.271843448e-05
B238: 119 | C238: =$X$34*(1+Summary!$K$4)^'Water Treatment'!B238 -> 3.369998751e-05
B239: 120 | C239: =$X$34*(1+Summary!$K$4)^'Water Treatment'!B239 -> 3.471098714e-05
B240: 121 | C240: =$X$34*(1+Summary!$K$4)^'Water Treatment'!B240 -> 3.575231675e-05
B241: 122 | C241: =$X$34*(1+Summary!$K$4)^'Water Treatment'!B241 -> 3.682488625e-05
B242: 123 | C242: =$X$34*(1+Summary!$K$4)^'Water Treatment'!B242 -> 3.792963284e-05
B243: 124 | C243: =$X$34*(1+Summary!$K$4)^'Water Treatment'!B243 -> 3.906752182e-05
B244: 125 | C244: =$X$34*(1+Summary!$K$4)^'Water Treatment'!B244 -> 4.023954748e-05
B245: 126 | C245: =$X$34*(1+Summary!$K$4)^'Water Treatment'!B245 -> 4.14467339e-05
B246: 127 | C246: =$X$34*(1+Summary!$K$4)^'Water Treatment'!B246 -> 4.269013592e-05
B247: 128 | C247: =$X$34*(1+Summary!$K$4)^'Water Treatment'!B247 -> 4.397084e-05
B248: 129 | C248: =$X$34*(1+Summary!$K$4)^'Water Treatment'!B248 -> 4.52899652e-05
B249: 130 | C249: =$X$34*(1+Summary!$K$4)^'Water Treatment'!B249 -> 4.664866415e-05
B250: 131 | C250: =$X$34*(1+Summary!$K$4)^'Water Treatment'!B250 -> 4.804812408e-05
B251: 132 | C251: =$X$34*(1+Summary!$K$4)^'Water Treatment'!B251 -> 4.94895678e-05
B252: 133 | C252: =$X$34*(1+Summary!$K$4)^'Water Treatment'!B252 -> 5.097425484e-05
B253: 134 | C253: =$X$34*(1+Summary!$K$4)^'Water Treatment'!B253 -> 5.250348248e-05
B254: 135 | C254: =$X$34*(1+Summary!$K$4)^'Water Treatment'!B254 -> 5.407858696e-05
B255: 136 | C255: =$X$34*(1+Summary!$K$4)^'Water Treatment'!B255 -> 5.570094456e-05
B256: 137 | C256: =$X$34*(1+Summary!$K$4)^'Water Treatment'!B256 -> 5.73719729e-05
B257: =B256+1 -> 138 | C257: =$X$34*(1+Summary!$K$4)^'Water Treatment'!B257 -> 5.909313209e-05
B258: 139 | C258: =$X$34*(1+Summary!$K$4)^'Water Treatment'!B258 -> 6.086592605e-05
B259: 140 | C259: =$X$34*(1+Summary!$K$4)^'Water Treatment'!B259 -> 6.269190383e-05
B260: 141 | C260: =$X$34*(1+Summary!$K$4)^'Water Treatment'!B260 -> 6.457266095e-05
B261: 142 | C261: =$X$34*(1+Summary!$K$4)^'Water Treatment'!B261 -> 6.650984078e-05
B262: 143 | C262: =$X$34*(1+Summary!$K$4)^'Water Treatment'!B262 -> 6.8505136e-05
B263: 144 | C263: =$X$34*(1+Summary!$K$4)^'Water Treatment'!B263 -> 7.056029008e-05
B264: 145 | C264: =$X$34*(1+Summary!$K$4)^'Water Treatment'!B264 -> 7.267709878e-05

Sheet Unit_Costs
A1: Unit Cost Table (for refining unit costs see "Estimator" worksheet) | N1: Base Rates (DO NOT TOUCH)
B2: Year For Rate Escalation (from 2024) Based on Annual Average CPI (obtained from Statistics Canada)* | J2: Select Location | Q2: Filter by unit
B3: 2024 | D3: If year is highlighted yellow, no CPI data is currently available | J3: Nunavut
B4: *Excludes labour and equipment rental rates which have a 4% annual increase applied from 2024
A5: ITEM | B5: Detail | D5: COST CODE | E5: UNITS | F5: LOW $ | G5: HIGH $ | H5: SPECIFIED $ | N5: ITEM | O5: Detail | Q5: COST CODE | R5: UNITS | S5: LOW $ | T5: HIGH $
A7: Accommodation | N7: Accommodation
D8: ACCM | E8: manday | F8: =IF(ISBLANK(S8)=TRUE,"",IF($B$3=2024,S8,IF(SheetName="Other (enter value below)",S8*(1+$J$4),IF($B$3>_xlfn.AGGREGATE(4,6,INDIRECT("CPI"&SheetName&"!$A:$A"))+1,S8*VLOOKUP($B$3-2,INDIRECT("CPI"&SheetName&"!$A:$C"),3,FALSE),S8*VLOOKUP($B$3-1,INDIRECT("CPI"&SheetName&"!$A:$C"),3,FALSE))))) -> 163 | G8: =IF(ISBLANK(T8)=TRUE,"",IF($B$3=2024,T8,IF(SheetName="Other (enter value below)",T8*(1+$J$4),IF($B$3>_xlfn.AGGREGATE(4,6,INDIRECT("CPI"&SheetName&"!$A:$A"))+1,T8*VLOOKUP($B$3-2,INDIRECT("CPI"&SheetName&"!$A:$C"),3,FALSE),T8*VLOOKUP($B$3-1,INDIRECT("CPI"&SheetName&"!$A:$C"),3,FALSE))))) -> 267 | K8: Low (road access) High (remote access) | Q8: ACCM | R8: manday | S8: 163 | T8: 267
A9: Buildings - Decontaminate | N9: Buildings - Decontaminate
B10: Asbestos | D10: BDA | E10: m2 | F10: =IF(ISBLANK(S10)=TRUE,"",IF($B$3=2024,S10,IF(SheetName="Other (enter value below)",S10*(1+$J$4),IF($B$3>_xlfn.AGGREGATE(4,6,INDIRECT("CPI"&SheetName&"!$A:$A"))+1,S10*VLOOKUP($B$3-2,INDIRECT("CPI"&SheetName&"!$A:$C"),3,FALSE),S10*VLOOKUP($B$3-1,INDIRECT("CPI"&SheetName&"!$A:$C"),3,FALSE))))) -> 527 | G10: =IF(ISBLANK(T10)=TRUE,"",IF($B$3=2024,T10,IF(SheetName="Other (enter value below)",T10*(1+$J$4),IF($B$3>_xlfn.AGGREGATE(4,6,INDIRECT("CPI"&SheetName&"!$A:$A"))+1,T10*VLOOKUP($B$3-2,INDIRECT("CPI"&SheetName&"!$A:$C"),3,FALSE),T10*VLOOKUP($B$3-1,INDIRECT("CPI"&SheetName&"!$A:$C"),3,FALSE))))) -> 834 | K10: Low (non friable) High (friable) | O10: Asbestos | Q10: BDA | R10: m2 | S10: 527 | T10: 834
A11: Buildings - Remove | N11: Buildings - Remove
B12: Wood | D12: BRW | E12: m3 | F12: =IF(ISBLANK(S12)=TRUE,"",IF($B$3=2024,S12,IF(SheetName="Other (enter value below)",S12*(1+$J$4),IF($B$3>_xlfn.AGGREGATE(4,6,INDIRECT("CPI"&SheetName&"!$A:$A"))+1,S12*VLOOKUP($B$3-2,INDIRECT("CPI"&SheetName&"!$A:$C"),3,FALSE),S12*VLOOKUP($B$3-1,INDIRECT("CPI"&SheetName&"!$A:$C"),3,FALSE))))) -> 83 | O12: Wood | Q12: BRW | R12: m3 | S12: 83
B13: Concrete | D13: BRC | E13: m3 | F13: 93 | O13: Concrete | Q13: BRC | R13: m3 | S13: 93
B14: Steel - teardown | D14: BRS1 | E14: m3 | F14: 81 | O14: Steel - teardown | Q14: BRS1 | R14: m3 | S14: 81
B15: Steel - for salvage | D15: BRS2 | E15: mt | F15: 250 | O15: Steel - for salvage | Q15: BRS2 | R15: mt | S15: 250
A16: Concrete work | N16: Concrete work
B17: Footing | D17: CFT | E17: m3 | F17: =IF(ISBLANK(S17)=TRUE,"",IF($B$3=2024,S17,IF(SheetName="Other (enter value below)",S17*(1+$J$4),IF($B$3>_xlfn.AGGREGATE(4,6,INDIRECT("CPI"&SheetName&"!$A:$A"))+1,S17*VLOOKUP($B$3-2,INDIRECT("CPI"&SheetName&"!$A:$C"),3,FALSE),S17*VLOOKUP($B$3-1,INDIRECT("CPI"&SheetName&"!$A:$C"),3,FALSE))))) -> 920 | O17: Footing | Q17: CFT | R17: m3 | S17: 920
B18: Foundation | D18: CFD | E18: m3 | F18: 1620 | O18: Foundation | Q18: CFD | R18: m3 | S18: 1620
B19: Grade beam | D19: CGB | E19: m3 | F19: 5380 | O19: Grade beam | Q19: CGB | R19: m3 | S19: 5380
B20: Piers | D20: CPS | E20: m3 | F20: 3260 | O20: Piers | Q20: CPS | R20: m3 | S20: 3260
B21: Pile cap | D21: CPC | E21: m3 | F21: 1920 | O21: Pile cap | Q21: CPC | R21: m3 | S21: 1920
B22: Slab on Grade | D22: CSG | E22: m3 | F22: 900 | O22: Slab on Grade | Q22: CSG | R22: m3 | S22: 900
B23: Rebar | D23: CRB | E23: kg | F23: 3.73 | O23: Rebar | Q23: CRB | R23: kg | S23: 3.73
A24: Contaminated Soils | N24: Contaminated Soils
B25: ESA Phase 1 | D25: CS1 | E25: each | F25: =IF(ISBLANK(S25)=TRUE,"",IF($B$3=2024,S25,IF(SheetName="Other (enter value below)",S25*(1+$J$4),IF($B$3>_xlfn.AGGREGATE(4,6,INDIRECT("CPI"&SheetName&"!$A:$A"))+1,S25*VLOOKUP($B$3-2,INDIRECT("CPI"&SheetName&"!$A:$C"),3,FALSE),S25*VLOOKUP($B$3-1,INDIRECT("CPI"&SheetName&"!$A:$C"),3,FALSE))))) -> 50000 | K25: See user manual for details | O25: ESA Phase 1 | Q25: CS1 | R25: each | S25: 50000
B26: ESA Phase 2/3 | D26: CS2 | E26: each | F26: 300000 | O26: ESA Phase 2 | Q26: CS2 | R26: each | S26: 300000
B27: Remediate on site | D27: CSR | E27: m3 | F27: 177 | G27: 400 | K27: Low (bioremediate) High (engineered landfill) | O27: Remediate on site | Q27: CSR | R27: m3 | S27: 177 | T27: 400
A28: Dozing | N28: Dozing
B29: doze rock piles | D29: DR | E29: m3 | F29: =IF(ISBLANK(S29)=TRUE,"",IF($B$3=2024,S29,IF(SheetName="Other (enter value below)",S29*(1+$J$4),IF($B$3>_xlfn.AGGREGATE(4,6,INDIRECT("CPI"&SheetName&"!$A:$A"))+1,S29*VLOOKUP($B$3-2,INDIRECT("CPI"&SheetName&"!$A:$C"),3,FALSE),S29*VLOOKUP($B$3-1,INDIRECT("CPI"&SheetName&"!$A:$C"),3,FALSE))))) -> 1.68 | G29: =IF(ISBLANK(T29)=TRUE,"",IF($B$3=2024,T29,IF(SheetName="Other (enter value below)",T29*(1+$J$4),IF($B$3>_xlfn.AGGREGATE(4,6,INDIRECT("CPI"&SheetName&"!$A:$A"))+1,T29*VLOOKUP($B$3-2,INDIRECT("CPI"&SheetName&"!$A:$C"),3,FALSE),T29*VLOOKUP($B$3-1,INDIRECT("CPI"&SheetName&"!$A:$C"),3,FALSE))))) -> 3.84 | O29: doze rock piles | Q29: DR | R29: m3 | S29: 1.68 | T29: 3.84
B30: doze overburden/soil piles | D30: DS | E30: m3 | F30: =IF(ISBLANK(S30)=TRUE,"",IF($B$3=2024,S30,IF(SheetName="Other (enter value below)",S30*(1+$J$4),IF($B$3>_xlfn.AGGREGATE(4,6,INDIRECT("CPI"&SheetName&"!$A:$A"))+1,S30*VLOOKUP($B$3-2,INDIRECT("CPI"&SheetName&"!$A:$C"),3,FALSE),S30*VLOOKUP($B$3-1,INDIRECT("CPI"&SheetName&"!$A:$C"),3,FALSE))))) -> 1.52 | G30: =IF(ISBLANK(T30)=TRUE,"",IF($B$3=2024,T30,IF(SheetName="Other (enter value below)",T30*(1+$J$4),IF($B$3>_xlfn.AGGREGATE(4,6,INDIRECT("CPI"&SheetName&"!$A:$A"))+1,T30*VLOOKUP($B$3-2,INDIRECT("CPI"&SheetName&"!$A:$C"),3,FALSE),T30*VLOOKUP($B$3-1,INDIRECT("CPI"&SheetName&"!$A:$C"),3,FALSE))))) -> 6.08 | O30: doze overburden/soil piles | Q30: DS | R30: m3 | S30: 1.52 | T30: 6.08
A31: Drilling & Blasting, Crushing and Screening, Clearing and Grubbing | N31: Drilling & Blasting, Crushing and Screening, Clearing and Grubbing
B32: Drilling and Blasting | D32: DAB | E32: m3 | F32: =IF(ISBLANK(S32)=TRUE,"",IF($B$3=2024,S32,IF(SheetName="Other (enter value below)",S32*(1+$J$4),IF($B$3>_xlfn.AGGREGATE(4,6,INDIRECT("CPI"&SheetName&"!$A:$A"))+1,S32*VLOOKUP($B$3-2,INDIRECT("CPI"&SheetName&"!$A:$C"),3,FALSE),S32*VLOOKUP($B$3-1,INDIRECT("CPI"&SheetName&"!$A:$C"),3,FALSE))))) -> 6.21 | O32: Drilling and Blasting | Q32: DAB | R32: m3 | S32: 6.21
B33: Crushing and Screening | D33: CAS | E33: m3 | F33: 25.82 | O33: Crushing and Screening | Q33: CAS | R33: m3 | S33: 25.82
B34: Clearing and Grubbing | D34: SBC | E34: m2 | F34: 1.7556875 | G34: 5.839375 | K34: Low (cut & chip trees to 6 inch) High (cut and chip trees to 12 inch) | O34: Clearing and Grubbing | Q34: SBC | R34: m2 | S34: 1.7556875 | T34: 5.839375
A35: Excavate Rock - Low Spec (e.g. Stockpile Source, Bulk Fill) | K35: Low (1KM haul) High (5 KM haul), specify in longer haul distances | N35: Excavate Rock - Low Spec (Stockpile Source)
B36: load/haul/place | D36: RB1 | E36: m3 | F36: =IF(ISBLANK(S36)=TRUE,"",IF($B$3=2024,S36,IF(SheetName="Other (enter value below)",S36*(1+$J$4),IF($B$3>_xlfn.AGGREGATE(4,6,INDIRECT("CPI"&SheetName&"!$A:$A"))+1,S36*VLOOKUP($B$3-2,INDIRECT("CPI"&SheetName&"!$A:$C"),3,FALSE),S36*VLOOKUP($B$3-1,INDIRECT("CPI"&SheetName&"!$A:$C"),3,FALSE))))) -> 17 | G36: 33 | K36: Add drilling and blasting if the source of rock is bedrock | O36: drill/blast/load/short haul | Q36: SP1 | R36: m3 | S36: 17 | T36: 33
B37: RB1 + spread and compact | D37: RB2 | E37: m3 | F37: 18 | G37: 35 | O37: RB1 + spread and compact | Q37: SP3 | R37: m3 | S37: 18 | T37: 35
B38: Specified activity | D38: RBS | E38: m3 | O38: Specified activity | Q38: SPS | R38: m3
A39: Excavate Rock - High Spec (i.e. Rip Rap, Screened) | K39: Low (1KM haul) High (5 KM haul), specify in longer haul distances | N39: Excavate Rock - High Spec (i.e. Rip Rap, Screened)
B40: load/haul/place | D40: RC1 | E40: m3 | F40: =IF(ISBLANK(S40)=TRUE,"",IF($B$3=2024,S40,IF(SheetName="Other (enter value below)",S40*(1+$J$4),IF($B$3>_xlfn.AGGREGATE(4,6,INDIRECT("CPI"&SheetName&"!$A:$A"))+1,S40*VLOOKUP($B$3-2,INDIRECT("CPI"&SheetName&"!$A:$C"),3,FALSE),S40*VLOOKUP($B$3-1,INDIRECT("CPI"&SheetName&"!$A:$C"),3,FALSE))))) -> 25 | G40: 43 | O40: drill/blast/load/short haul | Q40: RC1 | R40: m3 | S40: 25 | T40: 43
B41: RC1 + spread and compact | D41: RC2 | E41: m3 | F41: 28 | G41: 46 | O41: RC1 + spread and compact | Q41: RC3 | R41: m3 | S41: =S40+3 -> 28 | T41: =T40+3 -> 46
B42: Specified activity | D42: RCS | E42: m3 | O42: Specified activity | Q42: RCS | R42: m3
A43: Excavate Soil - Low Spec (i.e. bulk fill and excavation) | K43: Low (1KM haul) High (5 KM haul), specify in longer haul distances | N43: Excavate Soil - Low Spec
B44: excavate/load/haul/place | D44: SB1 | E44: m3 | F44: =IF(ISBLANK(S44)=TRUE,"",IF($B$3=2024,S44,IF(SheetName="Other (enter value below)",S44*(1+$J$4),IF($B$3>_xlfn.AGGREGATE(4,6,INDIRECT("CPI"&SheetName&"!$A:$A"))+1,S44*VLOOKUP($B$3-2,INDIRECT("CPI"&SheetName&"!$A:$C"),3,FALSE),S44*VLOOKUP($B$3-1,INDIRECT("CPI"&SheetName&"!$A:$C"),3,FALSE))))) -> 17 | G44: 31 | O44: excavate/load/short haul | Q44: SB1 | R44: m3 | S44: 17 | T44: 31
B45: SB1 + spread and compact | D45: SB2 | E45: m3 | F45: 18 | G45: 33 | O45: SB1 + spread and compact | Q45: SB3 | R45: m3 | S45: 18 | T45: 33
B46: Tailings | D46: SBT | E46: m3 | F46: 30.2433388 | O46: Tailings | Q46: SBT | R46: m3 | S46: 30.2433388
B47: Specified activity | D47: SBS | E47: m3 | O47: Specified activity | Q47: SBS | R47: m3
A48: Excavate Soil - High Spec (i.e. Engineered Covers, Spillway Clearing, etc.) | K48: Low (1KM haul) High (5 KM haul), specify in longer haul distances | N48: Excavate Soil - High Spec
B49: excavate/load/haul/place | D49: SC1 | E49: m3 | F49: =IF(ISBLANK(S49)=TRUE,"",IF($B$3=2024,S49,IF(SheetName="Other (enter value below)",S49*(1+$J$4),IF($B$3>_xlfn.AGGREGATE(4,6,INDIRECT("CPI"&SheetName&"!$A:$A"))+1,S49*VLOOKUP($B$3-2,INDIRECT("CPI"&SheetName&"!$A:$C"),3,FALSE),S49*VLOOKUP($B$3-1,INDIRECT("CPI"&SheetName&"!$A:$C"),3,FALSE))))) -> 36 | G49: 50 | O49: excavate/load/short haul | Q49: SC1 | R49: m3 | S49: 36 | T49: 50
B50: SC1 + spread and compact | D50: SC2 | E50: m3 | F50: 37 | G50: 52 | O50: SC1 + spread and compact | Q50: SC3 | R50: m3 | S50: 37 | T50: 52
B51: Specified activity | D51: SCS | E51: m3 | O51: Specified activity | Q51: SCS | R51: m3
A52: Fence | N52: Fence
D53: FNC | E53: m | F53: =IF(ISBLANK(S53)=TRUE,"",IF($B$3=2024,S53,IF(SheetName="Other (enter value below)",S53*(1+$J$4),IF($B$3>_xlfn.AGGREGATE(4,6,INDIRECT("CPI"&SheetName&"!$A:$A"))+1,S53*VLOOKUP($B$3-2,INDIRECT("CPI"&SheetName&"!$A:$C"),3,FALSE),S53*VLOOKUP($B$3-1,INDIRECT("CPI"&SheetName&"!$A:$C"),3,FALSE))))) -> 190.8632 | G53: =IF(ISBLANK(T53)=TRUE,"",IF($B$3=2024,T53,IF(SheetName="Other (enter value below)",T53*(1+$J$4),IF($B$3>_xlfn.AGGREGATE(4,6,INDIRECT("CPI"&SheetName&"!$A:$A"))+1,T53*VLOOKUP($B$3-2,INDIRECT("CPI"&SheetName&"!$A:$C"),3,FALSE),T53*VLOOKUP($B$3-1,INDIRECT("CPI"&SheetName&"!$A:$C"),3,FALSE))))) -> 313.0104 | K53: Low (6 ft fence) High (8 ft fence) | Q53: FNC | R53: m | S53: 190.8632 | T53: 313.0104
A54: Fuel and Electricity | N54: Fuel and Electricity
B55: Fuel cost - gas | D55: FCG | E55: litre | F55: =IF(ISBLANK(S55)=TRUE,"",IF($B$3=2024,S55,IF(SheetName="Other (enter value below)",S55*(1+$J$4),IF($B$3>_xlfn.AGGREGATE(4,6,INDIRECT("CPI"&SheetName&"!$A:$A"))+1,S55*VLOOKUP($B$3-2,INDIRECT("CPI"&SheetName&"!$A:$C"),3,FALSE),S55*VLOOKUP($B$3-1,INDIRECT("CPI"&SheetName&"!$A:$C"),3,FALSE))))) -> 1.57 | G55: 1.646 | O55: Fuel cost - gas | Q55: FCG | R55: litre | S55: 1.57 | T55: 1.646
B56: Fuel cost - diesel | D56: FCD | E56: litre | F56: 1.789 | G56: 1.857 | O56: Fuel cost - diesel | Q56: FCD | R56: litre | S56: 1.789 | T56: 1.857
B57: Fuel mobilization | D57: FCM | E57: $/litre | F57: 0.8 | O57: Fuel mobilization | Q57: FCM | R57: $/litre | S57: 0.8
B58: Electricity | D58: FCE | E58: kW-h | F58: 0.95 | O58: Electricity | Q58: FCE | R58: kW-h | S58: 0.95
A59: Geo-Synthetics | N59: Geo-Synthetics
B60: geotextile | D60: GST | E60: m2 | F60: =IF(ISBLANK(S60)=TRUE,"",IF($B$3=2024,S60,IF(SheetName="Other (enter value below)",S60*(1+$J$4),IF($B$3>_xlfn.AGGREGATE(4,6,INDIRECT("CPI"&SheetName&"!$A:$A"))+1,S60*VLOOKUP($B$3-2,INDIRECT("CPI"&SheetName&"!$A:$C"),3,FALSE),S60*VLOOKUP($B$3-1,INDIRECT("CPI"&SheetName&"!$A:$C"),3,FALSE))))) -> 1.6 | O60: geotextile | Q60: GST | R60: m2 | S60: 1.6
B61: geogrid | D61: GSG | E61: m2 | F61: 3.17 | O61: geogrid | Q61: GSG | R61: m2 | S61: 3.17
B62: liner, HDPE | D62: GSHDPE | E62: m2 | F62: 5.233199706 | O62: liner, HDPE | Q62: GSHDPE | R62: m2 | S62: 5.233199706
B63: liner, ES3 | D63: GSES3 | E63: m2 | F63: 23.23 | O63: liner, ES3 | Q63: GSES3 | R63: m2 | S63: 23.23
B64: geotextile installation | D64: GTI | E64: m2 | F64: 6.8864 | O64: geotextile installation | Q64: GTI | R64: m2 | S64: 6.8864
B65: geosynthetic installation | D65: GSI | E65: m2 | F65: 6.8864 | O65: geosynthetic installation | Q65: GSI | S65: 6.8864
B66: bentonite soil amendment | D66: GSBA | E66: tonne | F66: 380 | O66: bentonite soil amendment | Q66: GSBA | R66: tonne | S66: 380
A67: Grouting (/m3 of rock grouted) | N67: Grouting (/m3 of rock grouted)
D68: grout | E68: m3 | F68: =IF(ISBLANK(S68)=TRUE,"",IF($B$3=2024,S68,IF(SheetName="Other (enter value below)",S68*(1+$J$4),IF($B$3>_xlfn.AGGREGATE(4,6,INDIRECT("CPI"&SheetName&"!$A:$A"))+1,S68*VLOOKUP($B$3-2,INDIRECT("CPI"&SheetName&"!$A:$C"),3,FALSE),S68*VLOOKUP($B$3-1,INDIRECT("CPI"&SheetName&"!$A:$C"),3,FALSE))))) -> 503.88 | G68: =IF(ISBLANK(T68)=TRUE,"",IF($B$3=2024,T68,IF(SheetName="Other (enter value below)",T68*(1+$J$4),IF($B$3>_xlfn.AGGREGATE(4,6,INDIRECT("CPI"&SheetName&"!$A:$A"))+1,T68*VLOOKUP($B$3-2,INDIRECT("CPI"&SheetName&"!$A:$C"),3,FALSE),T68*VLOOKUP($B$3-1,INDIRECT("CPI"&SheetName&"!$A:$C"),3,FALSE))))) ->  | Q68: grout | R68: m3 | S68: 503.88
A69: Labour & Equipment Rates | N69: Labour & Equipment Rates
B70: Site manager | D70: sman | E70: $/hr | F70: =IF(ISBLANK(S70)=TRUE,"",IF($B$3=2024,S70,IF(SheetName="Other (enter value below)",S70*(1+$J$4),IF($B$3>_xlfn.AGGREGATE(4,6,INDIRECT("CPI"&SheetName&"!$A:$A"))+1,S70*VLOOKUP($B$3-2,INDIRECT("CPI"&SheetName&"!$A:$C"),3,FALSE),S70*VLOOKUP($B$3-1,INDIRECT("CPI"&SheetName&"!$A:$C"),3,FALSE))))) -> 170 | G70: =IF(ISBLANK(T70)=TRUE,"",IF($B$3=2024,T70,IF(SheetName="Other (enter value below)",T70*(1+$J$4),IF($B$3>_xlfn.AGGREGATE(4,6,INDIRECT("CPI"&SheetName&"!$A:$A"))+1,T70*VLOOKUP($B$3-2,INDIRECT("CPI"&SheetName&"!$A:$C"),3,FALSE),T70*VLOOKUP($B$3-1,INDIRECT("CPI"&SheetName&"!$A:$C"),3,FALSE))))) ->  | O70: Site manager | Q70: sman | R70: $/hr | S70: 170
B71: Supervisor | D71: super | E71: $/hr | F71: 100 | O71: Supervisor | Q71: super | R71: $/hr | S71: 100
B72: Registered engineer | D72: eng | E72: $/hr | F72: 185 | O72: Registered engineer | Q72: eng | R72: $/hr | S72: 185
B73: Environmental coordinator | D73: envco | E73: $/hr | F73: 150 | O73: Environmental coordinator | Q73: envco | R73: $/hr | S73: 150
B74: Environmental technologist | D74: envtech | E74: $/hr | F74: 100 | O74: Environmental technologist | Q74: envtech | R74: $/hr | S74: 100
B75: Electrician | D75: elec | E75: $/hr | F75: 90 | O75: Electrician | Q75: elec | R75: $/hr | S75: 90
B76: Journeyman - various | D76: journey | E76: $/hr | F76: 100 | O76: Journeyman - various | Q76: journey | R76: $/hr | S76: 100
B77: Labour - skilled | D77: lab-s | E77: $/hr | F77: 80 | O77: Labour - skilled | Q77: lab-s | R77: $/hr | S77: 80
B78: Labour - unskilled | D78: lab-us | E78: $/hr | F78: 70 | O78: Labour - unskilled | Q78: lab-us | R78: $/hr | S78: 70
B79: Equipment operator | D79: oper | E79: $/hr | F79: 90 | O79: Equipment operator | Q79: oper | R79: $/hr | S79: 90
B80: Heavy duty mechanic | D80: mech | E80: $/hr | F80: 110 | O80: Heavy duty mechanic | Q80: mech | R80: $/hr | S80: 110
B81: Water treatment plant operator | D81: oper-wt | E81: $/hr | F81: 80 | O81: Water treatment plant operator | Q81: oper-wt | R81: $/hr | S81: 80
B82: Security / first aid | D82: safety | E82: $/hr | F82: 100 | O82: Security / first aid | Q82: safety | R82: $/hr | S82: 100
B83: Administrative staff | D83: admin | E83: $/hr | F83: 100 | O83: Administrative staff | Q83: admin | R83: $/hr | S83: 100
B85: Loader - 4 cu.yd (3.06m3) | D85: load-s | E85: $/hr | F85: =IF(ISBLANK(S85)=TRUE,"",IF($B$3=2024,S85,IF(SheetName="Other (enter value below)",S85*(1+$J$4),IF($B$3>_xlfn.AGGREGATE(4,6,INDIRECT("CPI"&SheetName&"!$A:$A"))+1,S85*VLOOKUP($B$3-2,INDIRECT("CPI"&SheetName&"!$A:$C"),3,FALSE),S85*VLOOKUP($B$3-1,INDIRECT("CPI"&SheetName&"!$A:$C"),3,FALSE))))) -> 223 | G85: =IF(ISBLANK(T85)=TRUE,"",IF($B$3=2024,T85,IF(SheetName="Other (enter value below)",T85*(1+$J$4),IF($B$3>_xlfn.AGGREGATE(4,6,INDIRECT("CPI"&SheetName&"!$A:$A"))+1,T85*VLOOKUP($B$3-2,INDIRECT("CPI"&SheetName&"!$A:$C"),3,FALSE),T85*VLOOKUP($B$3-1,INDIRECT("CPI"&SheetName&"!$A:$C"),3,FALSE))))) ->  | O85: Loader - 4 cu.yd (3.06m3) | Q85: load-s | R85: $/hr | S85: 223
B86: Loader - 7 cu.yd (5.35m3) | D86: load-l | E86: $/hr | F86: 326 | O86: Loader - 7 cu.yd (5.35m3) | Q86: load-l | R86: $/hr | S86: 326
B87: Excavator - 26.76-30.84 tonnes | D87: exc-s | E87: $/hr | F87: 227 | O87: Excavator - 26.76-30.84 tonnes | Q87: exc-s | R87: $/hr | S87: 227
B88: Excavator - 68.95+tonnes | D88: exc-l | E88: $/hr | F88: 459 | O88: Excavator - 68.95+tonnes | Q88: exc-l | R88: $/hr | S88: 459
B89: Grader | D89: grad | E89: $/hr | F89: 195 | O89: Grader | Q89: grad | R89: $/hr | S89: 195
B90: Dump truck off hwy 30-50 tonnes | D90: truck-s | E90: $/hr | F90: 314 | O90: Dump truck off hwy 30-50 tonnes | Q90: truck-s | R90: $/hr | S90: 314
B91: Dump truck off hwy 55-75 tonnes | D91: truck-l | E91: $/hr | F91: 325 | O91: Dump truck off hwy 55-75 tonnes | Q91: truck-l | R91: $/hr | S91: 325
B92: dozer, small | D92: dozers | E92: $/hr | F92: 317 | O92: dozer, small | Q92: dozers | R92: $/hr | S92: 317
B93: dozer, large | D93: dozerl | E93: $/hr | F93: 607 | O93: dozer, large | Q93: dozerl | R93: $/hr | S93: 607
B94: smooth drum compactor | D94: comp | E94: $/hr | F94: 153 | O94: smooth drum compactor | Q94: comp | R94: $/hr | S94: 153
B95: Crawler front end loader 3.75 yd3 (and over) bucket | D95: scoop | E95: $/hr | F95: 298 | O95: Crawler front end loader 3.75 yd3 (and over) bucket | Q95: scoop | R95: $/hr | S95: 298
B96: flat bed truck with hiab | D96: hiab | E96: $/hr | F96: 182 | O96: flat bed truck with hiab | Q96: hiab | R96: $/hr | S96: 182
B97: fuel truck | D97: ftruck | E97: $/hr | F97: 225 | O97: fuel truck | Q97: ftruck | R97: $/hr | S97: 225
B98: water truck | D98: wtruck | E98: $/hr | F98: 138 | O98: water truck | Q98: wtruck | R98: $/hr | S98: 138
A99: Mobilize Heavy Equipment | N99: Mobilize Heavy Equipment
B100: Road access | D100: MHER | E100: kmtonne | F100: =IF(ISBLANK(S100)=TRUE,"",IF($B$3=2024,S100,IF(SheetName="Other (enter value below)",S100*(1+$J$4),IF($B$3>_xlfn.AGGREGATE(4,6,INDIRECT("CPI"&SheetName&"!$A:$A"))+1,S100*VLOOKUP($B$3-2,INDIRECT("CPI"&SheetName&"!$A:$C"),3,FALSE),S100*VLOOKUP($B$3-1,INDIRECT("CPI"&SheetName&"!$A:$C"),3,FALSE))))) -> 0.4 | O100: Road access | Q100: MHER | R100: kmtonne | S100: 0.4
B101: Sealift | D101: MHES | E101: kmtonne | F101: 0.12 | O101: Sealift | Q101: MHEA | R101: kmtonne | S101: 0.12
B102: Barge | D102: MHEB | E102: tonne | F102: 6000 | G102: 10000 | K102: Low and High are based on distance from port | O102: Barge | Q102: MHEB | R102: tonne | S102: 6000 | T102: 10000
B103: Other (e.g. airlift) | D103: MHEA | E103: kmtonne | O103: Other
A104: Mobilize Camp | N104: Mobilize Camp
B105: Road access | D105: MCR | E105: each | F105: =IF(ISBLANK(S105)=TRUE,"",IF($B$3=2024,S105,IF(SheetName="Other (enter value below)",S105*(1+$J$4),IF($B$3>_xlfn.AGGREGATE(4,6,INDIRECT("CPI"&SheetName&"!$A:$A"))+1,S105*VLOOKUP($B$3-2,INDIRECT("CPI"&SheetName&"!$A:$C"),3,FALSE),S105*VLOOKUP($B$3-1,INDIRECT("CPI"&SheetName&"!$A:$C"),3,FALSE))))) -> 100000 | G105: =IF(ISBLANK(T105)=TRUE,"",IF($B$3=2024,T105,IF(SheetName="Other (enter value below)",T105*(1+$J$4),IF($B$3>_xlfn.AGGREGATE(4,6,INDIRECT("CPI"&SheetName&"!$A:$A"))+1,T105*VLOOKUP($B$3-2,INDIRECT("CPI"&SheetName&"!$A:$C"),3,FALSE),T105*VLOOKUP($B$3-1,INDIRECT("CPI"&SheetName&"!$A:$C"),3,FALSE))))) -> 1000000 | K105: 50 person camp, road access (low) remote access (high) | O105: Road access | Q105: MCR | R105: each | S105: 100000 | T105: 1000000
A106: Mobilize Workers (round trip) | N106: Mobilize Workers
B107: flight (charter 20 person) | D107: MWC | E107: km | F107: =IF(ISBLANK(S107)=TRUE,"",IF($B$3=2024,S107,IF(SheetName="Other (enter value below)",S107*(1+$J$4),IF($B$3>_xlfn.AGGREGATE(4,6,INDIRECT("CPI"&SheetName&"!$A:$A"))+1,S107*VLOOKUP($B$3-2,INDIRECT("CPI"&SheetName&"!$A:$C"),3,FALSE),S107*VLOOKUP($B$3-1,INDIRECT("CPI"&SheetName&"!$A:$C"),3,FALSE))))) -> 12 | K107: Low (short flight < 500 km) High (long flight >500 km) | O107: flight (charter to Site) | Q107: MWC | R107: each | S107: 12
B108: flight (charter 50 person) | D108: MWC1 | E108: km | F108: 20 | S108: 20
B109: flight (commercial south to north) | D109: MWA | E109: per person | F109: 1000 | G109: 3000 | K109: Low (short flight < 1000 km ) High (>1000 km) | O109: flight (commercial south to north) | Q109: MWA | R109: each | S109: 1000 | T109: 3000
B110: Helicopter - Small (e.g. Bell 206) | D110: MHL | E110: per hour | F110: 1500 | O110: Helicopter - Small (e.g. Bell 206) | Q110: MHL | R110: per hour | S110: 1500
B111: Helicopter - Medium (e.g. Sikorsky S-76) | D111: MHM | E111: per hour | F111: 3000 | O111: Helicopter - Medium (e.g. Sikorsky S-76) | Q111: MHM | R111: per hour | S111: 3000
B112: Helicopter - Heavy (e.g. CH-47 Chinook) | D112: MHH | E112: per hour | F112: 7000 | O112: Helicopter - Heavy (e.g. CH-47 Chinook) | Q112: MHH | R112: per hour | S112: 7000
A113: Oil Removal | N113: Oil Removal
B114: oil removal | D114: OR | E114: litre | F114: =IF(ISBLANK(S114)=TRUE,"",IF($B$3=2024,S114,IF(SheetName="Other (enter value below)",S114*(1+$J$4),IF($B$3>_xlfn.AGGREGATE(4,6,INDIRECT("CPI"&SheetName&"!$A:$A"))+1,S114*VLOOKUP($B$3-2,INDIRECT("CPI"&SheetName&"!$A:$C"),3,FALSE),S114*VLOOKUP($B$3-1,INDIRECT("CPI"&SheetName&"!$A:$C"),3,FALSE))))) -> 0.94 | G114: =IF(ISBLANK(T114)=TRUE,"",IF($B$3=2024,T114,IF(SheetName="Other (enter value below)",T114*(1+$J$4),IF($B$3>_xlfn.AGGREGATE(4,6,INDIRECT("CPI"&SheetName&"!$A:$A"))+1,T114*VLOOKUP($B$3-2,INDIRECT("CPI"&SheetName&"!$A:$C"),3,FALSE),T114*VLOOKUP($B$3-1,INDIRECT("CPI"&SheetName&"!$A:$C"),3,FALSE))))) ->  | O114: oil removal | Q114: OR | R114: litre | S114: 0.94
A115: PCB Removal | N115: PCB Removal
B116: Remove from site | D116: PCBR | E116: litre | F116: =IF(ISBLANK(S116)=TRUE,"",IF($B$3=2024,S116,IF(SheetName="Other (enter value below)",S116*(1+$J$4),IF($B$3>_xlfn.AGGREGATE(4,6,INDIRECT("CPI"&SheetName&"!$A:$A"))+1,S116*VLOOKUP($B$3-2,INDIRECT("CPI"&SheetName&"!$A:$C"),3,FALSE),S116*VLOOKUP($B$3-1,INDIRECT("CPI"&SheetName&"!$A:$C"),3,FALSE))))) -> 50 | G116: =IF(ISBLANK(T116)=TRUE,"",IF($B$3=2024,T116,IF(SheetName="Other (enter value below)",T116*(1+$J$4),IF($B$3>_xlfn.AGGREGATE(4,6,INDIRECT("CPI"&SheetName&"!$A:$A"))+1,T116*VLOOKUP($B$3-2,INDIRECT("CPI"&SheetName&"!$A:$C"),3,FALSE),T116*VLOOKUP($B$3-1,INDIRECT("CPI"&SheetName&"!$A:$C"),3,FALSE))))) ->  | O116: Remove from site | Q116: PCBR | R116: litre | S116: 50
A117: Pipes, small (<6in dia.) | N117: Pipes, small (<6in dia.)
B118: remove/dispose on site | D118: PSR | E118: m | F118: =IF(ISBLANK(S118)=TRUE,"",IF($B$3=2024,S118,IF(SheetName="Other (enter value below)",S118*(1+$J$4),IF($B$3>_xlfn.AGGREGATE(4,6,INDIRECT("CPI"&SheetName&"!$A:$A"))+1,S118*VLOOKUP($B$3-2,INDIRECT("CPI"&SheetName&"!$A:$C"),3,FALSE),S118*VLOOKUP($B$3-1,INDIRECT("CPI"&SheetName&"!$A:$C"),3,FALSE))))) -> 62 | O118: remove/dispose on site | Q118: PSR | R118: m | S118: 62
B119: supply (4") | D119: PSS4 | E119: m | F119: 15 | G119: 87 | O119: supply (4") | Q119: PSS4 | R119: m | S119: 15 | T119: 87
B120: install (4") | D120: PSI4 | E120: m | F120: 248 | G120: 294 | O120: install (4") | Q120: PSI4 | R120: m | S120: 248 | T120: 294
B121: supply (6") | D121: PSS6 | E121: m | F121: 32 | G121: 115 | O121: supply (6") | Q121: PSS6 | R121: m | S121: 32 | T121: 115
B122: install (6") | D122: PSI6 | E122: m | F122: 299 | G122: 333 | O122: install (6") | Q122: PSI6 | R122: m | S122: 299 | T122: 333
A123: Pipes, large (>6in dia.) | N123: Pipes, large (>6in dia.)
B124: remove/dispose on site (6"-8") | D124: PLR1 | E124: m | F124: =IF(ISBLANK(S124)=TRUE,"",IF($B$3=2024,S124,IF(SheetName="Other (enter value below)",S124*(1+$J$4),IF($B$3>_xlfn.AGGREGATE(4,6,INDIRECT("CPI"&SheetName&"!$A:$A"))+1,S124*VLOOKUP($B$3-2,INDIRECT("CPI"&SheetName&"!$A:$C"),3,FALSE),S124*VLOOKUP($B$3-1,INDIRECT("CPI"&SheetName&"!$A:$C"),3,FALSE))))) -> 71 | O124: remove/dispose on site (6"-8") | Q124: PLR1 | R124: m | S124: 71
B125: remove/dispose on site (10"-12") | D125: PLR2 | E125: m | F125: 90 | O125: remove/dispose on site (10"-12") | Q125: PLR2 | R125: m | S125: 90
B126: supply (8") | D126: PLS8 | E126: m | F126: 59 | G126: 222 | O126: supply (8") | Q126: PLS8 | R126: m | S126: 59 | T126: 222
B127: install (8") | D127: PLI8 | E127: m | F127: 340 | G127: 376 | O127: install (8") | Q127: PLI8 | R127: m | S127: 340 | T127: 376
B128: supply (10") | D128: PLS10 | E128: m | F128: 101 | G128: 291 | O128: supply (10") | Q128: PLS10 | R128: m | S128: 101 | T128: 291
B129: install (10") | D129: PLI10 | E129: m | F129: 350 | G129: 445 | O129: install (10") | Q129: PLI10 | R129: m | S129: 350 | T129: 445
B130: supply (12") | D130: PLS12 | E130: m | F130: 140 | G130: 348 | O130: supply (12") | Q130: PLS12 | R130: m | S130: 140 | T130: 348
B131: install (12") | D131: PLI12 | E131: m | F131: 442 | G131: 507 | O131: install (12") | Q131: PLI12 | R131: m | S131: 442 | T131: 507
A132: Power Lines | N132: Power Lines
B133: remove/dispose on site | D133: POWR | E133: m | F133: =IF(ISBLANK(S133)=TRUE,"",IF($B$3=2024,S133,IF(SheetName="Other (enter value below)",S133*(1+$J$4),IF($B$3>_xlfn.AGGREGATE(4,6,INDIRECT("CPI"&SheetName&"!$A:$A"))+1,S133*VLOOKUP($B$3-2,INDIRECT("CPI"&SheetName&"!$A:$C"),3,FALSE),S133*VLOOKUP($B$3-1,INDIRECT("CPI"&SheetName&"!$A:$C"),3,FALSE))))) -> 40 | G133: =IF(ISBLANK(T133)=TRUE,"",IF($B$3=2024,T133,IF(SheetName="Other (enter value below)",T133*(1+$J$4),IF($B$3>_xlfn.AGGREGATE(4,6,INDIRECT("CPI"&SheetName&"!$A:$A"))+1,T133*VLOOKUP($B$3-2,INDIRECT("CPI"&SheetName&"!$A:$C"),3,FALSE),T133*VLOOKUP($B$3-1,INDIRECT("CPI"&SheetName&"!$A:$C"),3,FALSE))))) ->  | O133: remove/dispose on site | Q133: POWR | R133: m | S133: 40
A134: Process Chemicals | N134: Process Chemicals
B135: Remove from site | D135: PCR | E135: kg | F135: =IF(ISBLANK(S135)=TRUE,"",IF($B$3=2024,S135,IF(SheetName="Other (enter value below)",S135*(1+$J$4),IF($B$3>_xlfn.AGGREGATE(4,6,INDIRECT("CPI"&SheetName&"!$A:$A"))+1,S135*VLOOKUP($B$3-2,INDIRECT("CPI"&SheetName&"!$A:$C"),3,FALSE),S135*VLOOKUP($B$3-1,INDIRECT("CPI"&SheetName&"!$A:$C"),3,FALSE))))) -> 1.7 | G135: =IF(ISBLANK(T135)=TRUE,"",IF($B$3=2024,T135,IF(SheetName="Other (enter value below)",T135*(1+$J$4),IF($B$3>_xlfn.AGGREGATE(4,6,INDIRECT("CPI"&SheetName&"!$A:$A"))+1,T135*VLOOKUP($B$3-2,INDIRECT("CPI"&SheetName&"!$A:$C"),3,FALSE),T135*VLOOKUP($B$3-1,INDIRECT("CPI"&SheetName&"!$A:$C"),3,FALSE))))) ->  | O135: Remove from site | Q135: PCR | R135: kg | S135: 1.7
A136: Pumps | N136: Pumps
B137: Centrifugal Pumps, Single stage, vertical split case, 3550RPM, Specific gravity 1.0, from 50gpm to 900gpm | D137: PC1 | E137: each | F137: 32700 | G137: 64000 | O137: Centrifugal Pumps, Single stage, vertical split case, 3550RPM, Specific gravity 1.0, from 50gpm to 900gpm | Q137: PC1 | R137: each | S137: 32700 | T137: 64000
B138: Centrifugal Pumps, Single stage, vertical split case, 1750RPM, Specific gravity 1.0, from 50gpm to 3500gpm | D138: PC2 | E138: each | F138: 25000 | G138: 131000 | O138: Centrifugal Pumps, Single stage, vertical split case, 1750RPM, Specific gravity 1.0, from 50gpm to 3500gpm | Q138: PC2 | R138: each | S138: 25000 | T138: 131000
B139: Centrifugal Pumps, Single stage, horizontal split case, 3550RPM, Specific gravity 1.0, 1000gpm to 3500ggpm | D139: PC3 | E139: each | F139: 82000 | G139: 138000 | O139: Centrifugal Pumps, Single stage, horizontal split case, 3550RPM, Specific gravity 1.0, 1000gpm to 3500ggpm | Q139: PC3 | R139: each | S139: 82000 | T139: 138000
B140: Centrifugal Pumps, Single stage, horizontal split case, 1750RPM, Specific gravity 1.0, 1000gpm to 5000gpm | D140: PC4 | E140: each | F140: 99000 | G140: 263000 | O140: Centrifugal Pumps, Single stage, horizontal split case, 1750RPM, Specific gravity 1.0, 1000gpm to 5000gpm | Q140: PC4 | R140: each | S140: 99000 | T140: 263000
B141: Centrifugal Pumps, multi stage, radially split case, 3550RPM, Specific gravity 1.0, 100gpm to 700gpm | D141: PC5 | E141: each | F141: 158700 | G141: 366000 | O141: Centrifugal Pumps, multi stage, radially split case, 3550RPM, Specific gravity 1.0, 100gpm to 700gpm | Q141: PC5 | R141: each | S141: 158700 | T141: 366000
B142: Turbine pumps, vertical, single an multi stage, 3550 rmp, gravity 1, 100gpm to 6000gpm | D142: PC6 | E142: each | F142: 59000 | G142: 224000 | O142: Turbine pumps, vertical, single an multi stage, 3550 rmp, gravity 1, 100gpm to 6000gpm | Q142: PC6 | R142: each | S142: 59000 | T142: 224000
B143: Turbine pumps, vertical, single an multi stage, 1170rmp, gravity 1, 2000gpm to 10000gpm | D143: PC7 | E143: each | F143: 182000 | G143: 341000 | O143: Turbine pumps, vertical, single an multi stage, 1170rmp, gravity 1, 2000gpm to 10000gpm | Q143: PC7 | R143: each | S143: 182000 | T143: 341000
B144: Pump shipping | D144: PS | E144: % | F144: 0.09 | G144: 0.13 | O144: Pump shipping | Q144: PS | R144: % | S144: 0.09 | T144: 0.13
B145: Pump operating cost | D145: POC | E145: kw-h | F145: 0.95 | O145: Pump operating cost | Q145: POC | R145: kw-h | S145: 0.95
B146: Pump maintenance | D146: PM | E146: allow | F146: 25000 | O146: Pump maintenance | Q146: PM | R146: allow | S146: 25000
A147: Pump sand Backfill | N147: Pump sand Backfill
D148: PBF | E148: m3 | F148: =IF(ISBLANK(S148)=TRUE,"",IF($B$3=2024,S148,IF(SheetName="Other (enter value below)",S148*(1+$J$4),IF($B$3>_xlfn.AGGREGATE(4,6,INDIRECT("CPI"&SheetName&"!$A:$A"))+1,S148*VLOOKUP($B$3-2,INDIRECT("CPI"&SheetName&"!$A:$C"),3,FALSE),S148*VLOOKUP($B$3-1,INDIRECT("CPI"&SheetName&"!$A:$C"),3,FALSE))))) -> 120 | G148: =IF(ISBLANK(T148)=TRUE,"",IF($B$3=2024,T148,IF(SheetName="Other (enter value below)",T148*(1+$J$4),IF($B$3>_xlfn.AGGREGATE(4,6,INDIRECT("CPI"&SheetName&"!$A:$A"))+1,T148*VLOOKUP($B$3-2,INDIRECT("CPI"&SheetName&"!$A:$C"),3,FALSE),T148*VLOOKUP($B$3-1,INDIRECT("CPI"&SheetName&"!$A:$C"),3,FALSE))))) ->  | Q148: PBF | R148: m3 | S148: 120
A149: Scarify - road/mine site | N149: Scarify - road/mine site
D150: SCFY | E150: ha | F150: =IF(ISBLANK(S150)=TRUE,"",IF($B$3=2024,S150,IF(SheetName="Other (enter value below)",S150*(1+$J$4),IF($B$3>_xlfn.AGGREGATE(4,6,INDIRECT("CPI"&SheetName&"!$A:$A"))+1,S150*VLOOKUP($B$3-2,INDIRECT("CPI"&SheetName&"!$A:$C"),3,FALSE),S150*VLOOKUP($B$3-1,INDIRECT("CPI"&SheetName&"!$A:$C"),3,FALSE))))) -> 7000 | G150: =IF(ISBLANK(T150)=TRUE,"",IF($B$3=2024,T150,IF(SheetName="Other (enter value below)",T150*(1+$J$4),IF($B$3>_xlfn.AGGREGATE(4,6,INDIRECT("CPI"&SheetName&"!$A:$A"))+1,T150*VLOOKUP($B$3-2,INDIRECT("CPI"&SheetName&"!$A:$C"),3,FALSE),T150*VLOOKUP($B$3-1,INDIRECT("CPI"&SheetName&"!$A:$C"),3,FALSE))))) ->  | Q150: SCFY | R150: ha | S150: 7000
A151: Shaft, Raise & Portal Closures | N151: Shaft, Raise & Portal Closures
B152: Shaft & Raises | D152: SR | E152: m2 | F152: =IF(ISBLANK(S152)=TRUE,"",IF($B$3=2024,S152,IF(SheetName="Other (enter value below)",S152*(1+$J$4),IF($B$3>_xlfn.AGGREGATE(4,6,INDIRECT("CPI"&SheetName&"!$A:$A"))+1,S152*VLOOKUP($B$3-2,INDIRECT("CPI"&SheetName&"!$A:$C"),3,FALSE),S152*VLOOKUP($B$3-1,INDIRECT("CPI"&SheetName&"!$A:$C"),3,FALSE))))) -> 2000 | G152: =IF(ISBLANK(T152)=TRUE,"",IF($B$3=2024,T152,IF(SheetName="Other (enter value below)",T152*(1+$J$4),IF($B$3>_xlfn.AGGREGATE(4,6,INDIRECT("CPI"&SheetName&"!$A:$A"))+1,T152*VLOOKUP($B$3-2,INDIRECT("CPI"&SheetName&"!$A:$C"),3,FALSE),T152*VLOOKUP($B$3-1,INDIRECT("CPI"&SheetName&"!$A:$C"),3,FALSE))))) -> 5000 | K152: Low ( <16 m2) High ( >16 m2) | O152: Shaft & Raises | Q152: SR | R152: m2 | S152: 2000 | T152: 5000
B153: Portals | D153: POR | E153: m3 | F153: =IF(ISBLANK(S153)=TRUE,"",IF($B$3=2024,S153,IF(SheetName="Other (enter value below)",S153*(1+$J$4),IF($B$3>_xlfn.AGGREGATE(4,6,INDIRECT("CPI"&SheetName&"!$A:$A"))+1,S153*VLOOKUP($B$3-2,INDIRECT("CPI"&SheetName&"!$A:$C"),3,FALSE),S153*VLOOKUP($B$3-1,INDIRECT("CPI"&SheetName&"!$A:$C"),3,FALSE))))) -> 37 | G153: =IF(ISBLANK(T153)=TRUE,"",IF($B$3=2024,T153,IF(SheetName="Other (enter value below)",T153*(1+$J$4),IF($B$3>_xlfn.AGGREGATE(4,6,INDIRECT("CPI"&SheetName&"!$A:$A"))+1,T153*VLOOKUP($B$3-2,INDIRECT("CPI"&SheetName&"!$A:$C"),3,FALSE),T153*VLOOKUP($B$3-1,INDIRECT("CPI"&SheetName&"!$A:$C"),3,FALSE))))) -> 52 | K153: Low: unit cost code SC2; High: excavate & backfill collapsed portal; Spec: installed pressure plug | O153: Portals | Q153: POR | R153: m3 | S153: 37 | T153: 52
A154: Site Inspection Report | N154: Site Inspection Report
D155: RPT | E155: each | F155: =IF(ISBLANK(S155)=TRUE,"",IF($B$3=2024,S155,IF(SheetName="Other (enter value below)",S155*(1+$J$4),IF($B$3>_xlfn.AGGREGATE(4,6,INDIRECT("CPI"&SheetName&"!$A:$A"))+1,S155*VLOOKUP($B$3-2,INDIRECT("CPI"&SheetName&"!$A:$C"),3,FALSE),S155*VLOOKUP($B$3-1,INDIRECT("CPI"&SheetName&"!$A:$C"),3,FALSE))))) -> 24000 | G155: =IF(ISBLANK(T155)=TRUE,"",IF($B$3=2024,T155,IF(SheetName="Other (enter value below)",T155*(1+$J$4),IF($B$3>_xlfn.AGGREGATE(4,6,INDIRECT("CPI"&SheetName&"!$A:$A"))+1,T155*VLOOKUP($B$3-2,INDIRECT("CPI"&SheetName&"!$A:$C"),3,FALSE),T155*VLOOKUP($B$3-1,INDIRECT("CPI"&SheetName&"!$A:$C"),3,FALSE))))) ->  | K155: See user manual | Q155: RPT | R155: each | S155: 24000
A156: Survey/Instrumentation | N156: Survey/Instrumentation
D157: SI | E157: each | F157: =IF(ISBLANK(S157)=TRUE,"",IF($B$3=2024,S157,IF(SheetName="Other (enter value below)",S157*(1+$J$4),IF($B$3>_xlfn.AGGREGATE(4,6,INDIRECT("CPI"&SheetName&"!$A:$A"))+1,S157*VLOOKUP($B$3-2,INDIRECT("CPI"&SheetName&"!$A:$C"),3,FALSE),S157*VLOOKUP($B$3-1,INDIRECT("CPI"&SheetName&"!$A:$C"),3,FALSE))))) -> 6000 | G157: =IF(ISBLANK(T157)=TRUE,"",IF($B$3=2024,T157,IF(SheetName="Other (enter value below)",T157*(1+$J$4),IF($B$3>_xlfn.AGGREGATE(4,6,INDIRECT("CPI"&SheetName&"!$A:$A"))+1,T157*VLOOKUP($B$3-2,INDIRECT("CPI"&SheetName&"!$A:$C"),3,FALSE),T157*VLOOKUP($B$3-1,INDIRECT("CPI"&SheetName&"!$A:$C"),3,FALSE))))) ->  | K157: Est 2 days effort | Q157: SI | R157: each | S157: 6000
A158: Treatment Plant - Construct | N158: Treatment Plant - Construct
B159: Small (< 1000 m3/d) | D159: TPS | E159: lump sum | F159: =IF(ISBLANK(S159)=TRUE,"",IF($B$3=2024,S159,IF(SheetName="Other (enter value below)",S159*(1+$J$4),IF($B$3>_xlfn.AGGREGATE(4,6,INDIRECT("CPI"&SheetName&"!$A:$A"))+1,S159*VLOOKUP($B$3-2,INDIRECT("CPI"&SheetName&"!$A:$C"),3,FALSE),S159*VLOOKUP($B$3-1,INDIRECT("CPI"&SheetName&"!$A:$C"),3,FALSE))))) -> 1400000 | G159: 4000000 | O159: Small (< 1000 m3/d) | Q159: TPS | R159: lump sum | S159: 1400000 | T159: 4000000
B160: Large (> 1000 m3/d) | D160: TPL | E160: lump sum | F160: 4500000 | G160: 11300000 | O160: Large (> 1000 m3/d) | Q160: TPL | R160: lump sum | S160: 4500000 | T160: 11300000
B161: Constructed Wetland | D161: CWTS | E161: ha | F161: TBD | K161: site specific costs to be developed if required | O161: Constructed Wetland | Q161: CWTS | R161: ha | S161: TBD
A162: Treatment Plant - Operate | N162: Treatment Plant - Operate
D163: TPO | E163: m3 | F163: =IF(ISBLANK(S163)=TRUE,"",IF($B$3=2024,S163,IF(SheetName="Other (enter value below)",S163*(1+$J$4),IF($B$3>_xlfn.AGGREGATE(4,6,INDIRECT("CPI"&SheetName&"!$A:$A"))+1,S163*VLOOKUP($B$3-2,INDIRECT("CPI"&SheetName&"!$A:$C"),3,FALSE),S163*VLOOKUP($B$3-1,INDIRECT("CPI"&SheetName&"!$A:$C"),3,FALSE))))) -> 1 | G163: =IF(ISBLANK(T163)=TRUE,"",IF($B$3=2024,T163,IF(SheetName="Other (enter value below)",T163*(1+$J$4),IF($B$3>_xlfn.AGGREGATE(4,6,INDIRECT("CPI"&SheetName&"!$A:$A"))+1,T163*VLOOKUP($B$3-2,INDIRECT("CPI"&SheetName&"!$A:$C"),3,FALSE),T163*VLOOKUP($B$3-1,INDIRECT("CPI"&SheetName&"!$A:$C"),3,FALSE))))) -> 4 | K163: Low (TSS removal) High (Complex) | Q163: TPO | R163: m3 | S163: 1 | T163: 4
A164: Treatment Chemicals | N164: Treatment Chemicals
B165: ferric sulphate | D165: ferric | E165: kg | F165: =IF(ISBLANK(S165)=TRUE,"",IF($B$3=2024,S165,IF(SheetName="Other (enter value below)",S165*(1+$J$4),IF($B$3>_xlfn.AGGREGATE(4,6,INDIRECT("CPI"&SheetName&"!$A:$A"))+1,S165*VLOOKUP($B$3-2,INDIRECT("CPI"&SheetName&"!$A:$C"),3,FALSE),S165*VLOOKUP($B$3-1,INDIRECT("CPI"&SheetName&"!$A:$C"),3,FALSE))))) -> 1.37 | G165: =IF(ISBLANK(T165)=TRUE,"",IF($B$3=2024,T165,IF(SheetName="Other (enter value below)",T165*(1+$J$4),IF($B$3>_xlfn.AGGREGATE(4,6,INDIRECT("CPI"&SheetName&"!$A:$A"))+1,T165*VLOOKUP($B$3-2,INDIRECT("CPI"&SheetName&"!$A:$C"),3,FALSE),T165*VLOOKUP($B$3-1,INDIRECT("CPI"&SheetName&"!$A:$C"),3,FALSE))))) ->  | O165: ferric sulphate | Q165: ferric | R165: kg | S165: 1.37
B166: ferrous sulphate | D166: ferrous | E166: kg | F166: 1.52 | O166: ferrous sulphate | Q166: ferrous | R166: kg | S166: 1.52
B167: lime | D167: lime | E167: kg | F167: 0.296044 | O167: lime | Q167: lime | R167: kg | S167: 0.296044
B168: hydrogen peroxide, 35% | D168: hperox | E168: kg | F168: 1.05924 | O168: hydrogen peroxide, 35% | Q168: hperox | R168: kg | S168: 1.05924
B169: Sodium Metabisulfate | D169: Nametab | E169: kg | F169: 1.36 | O169: Sodium Metabisulfate | Q169: Nametab | R169: kg | S169: 1.36
B170: Caustic soda, 50% | D170: caustic | E170: kg | F170: 0.491596 | O170: Caustic soda, 50% | Q170: caustic | R170: kg | S170: 0.491596
B171: Sulfuric acid, 93% | D171: sulfuric | E171: kg | F171: 0.363528 | O171: Sulfuric acid, 93% | Q171: sulfuric | R171: kg | S171: 0.363528
B172: flocculant | D172: flocc | E172: kg | F172: 6.9 | O172: flocculant | Q172: flocc | R172: kg | S172: 6.9
B173: copper sulphate | D173: copper | E173: kg | F173: 3.30673 | O173: copper sulphate | Q173: copper | R173: kg | S173: 3.30673
B174: shipping | D174: shipping | E174: kg | F174: 0.23 | O174: shipping | Q174: shipping | R174: kg | S174: 0.23
A175: Vegetation | N175: Vegetation
B176: Hydroseed, Flat | D176: VHF | E176: ha | F176: =IF(ISBLANK(S176)=TRUE,"",IF($B$3=2024,S176,IF(SheetName="Other (enter value below)",S176*(1+$J$4),IF($B$3>_xlfn.AGGREGATE(4,6,INDIRECT("CPI"&SheetName&"!$A:$A"))+1,S176*VLOOKUP($B$3-2,INDIRECT("CPI"&SheetName&"!$A:$C"),3,FALSE),S176*VLOOKUP($B$3-1,INDIRECT("CPI"&SheetName&"!$A:$C"),3,FALSE))))) -> 3200 | O176: Hydroseed, Flat | Q176: VHF | R176: ha | S176: 3200
B177: Hydroseed, Sloped | D177: VHS | E177: ha | F177: 4800 | O177: Hydroseed, Sloped | Q177: VHS | R177: ha | S177: 4800
B178: Veg. blanket/erosion mat | D178: VB | E178: ha | F178: 24960 | O178: Veg. blanket/erosion mat | Q178: VB | R178: ha | S178: 24960
B179: Tree planting (light soil) | D179: VT1 | E179: ha | F179: 8140 | O179: Tree planting (light soil) | Q179: VT1 | R179: ha | S179: 8140
B180: Tree planting (medium soil) | D180: VT2 | E180: ha | F180: 9955 | O180: Tree planting (medium soil) | Q180: VT2 | R180: ha | S180: 9955
B181: Tree planting (heavy soil) | D181: VT3 | E181: ha | F181: 16500 | O181: Tree planting (heavy soil) | Q181: VT3 | R181: ha | S181: 16500
B182: Wetland species | D182: VW | E182: ha | O182: Wetland species | Q182: VW | R182: ha
A183: Waste Disposal | N183: Waste Disposal
B184: Hazardous Waste Tipping Fee | D184: WTH | E184: tonne | F184: =IF(ISBLANK(S184)=TRUE,"",IF($B$3=2024,S184,IF(SheetName="Other (enter value below)",S184*(1+$J$4),IF($B$3>_xlfn.AGGREGATE(4,6,INDIRECT("CPI"&SheetName&"!$A:$A"))+1,S184*VLOOKUP($B$3-2,INDIRECT("CPI"&SheetName&"!$A:$C"),3,FALSE),S184*VLOOKUP($B$3-1,INDIRECT("CPI"&SheetName&"!$A:$C"),3,FALSE))))) -> 3000 | G184: =IF(ISBLANK(T184)=TRUE,"",IF($B$3=2024,T184,IF(SheetName="Other (enter value below)",T184*(1+$J$4),IF($B$3>_xlfn.AGGREGATE(4,6,INDIRECT("CPI"&SheetName&"!$A:$A"))+1,T184*VLOOKUP($B$3-2,INDIRECT("CPI"&SheetName&"!$A:$C"),3,FALSE),T184*VLOOKUP($B$3-1,INDIRECT("CPI"&SheetName&"!$A:$C"),3,FALSE))))) ->  | K184: Includes transport | O184: Hazardous Waste Tipping Fee | Q184: WTH | R184: tonne | S184: 3000
B185: Non-Hazardous Waste Tipping Fee | D185: WTNH | E185: tonne | F185: =IF(ISBLANK(S185)=TRUE,"",IF($B$3=2024,S185,IF(SheetName="Other (enter value below)",S185*(1+$J$4),IF($B$3>_xlfn.AGGREGATE(4,6,INDIRECT("CPI"&SheetName&"!$A:$A"))+1,S185*VLOOKUP($B$3-2,INDIRECT("CPI"&SheetName&"!$A:$C"),3,FALSE),S185*VLOOKUP($B$3-1,INDIRECT("CPI"&SheetName&"!$A:$C"),3,FALSE))))) -> 800 | G185: =IF(ISBLANK(T185)=TRUE,"",IF($B$3=2024,T185,IF(SheetName="Other (enter value below)",T185*(1+$J$4),IF($B$3>_xlfn.AGGREGATE(4,6,INDIRECT("CPI"&SheetName&"!$A:$A"))+1,T185*VLOOKUP($B$3-2,INDIRECT("CPI"&SheetName&"!$A:$C"),3,FALSE),T185*VLOOKUP($B$3-1,INDIRECT("CPI"&SheetName&"!$A:$C"),3,FALSE))))) ->  | O185: Non-Hazardous Waste Tipping Fee | Q185: WTNH | R185: tonne | S185: 800
A186: Water Sampling/Analysis/Reporting | N186: Water Sampling/Analysis/Reporting
D187: WS | E187: each | F187: =IF(ISBLANK(S187)=TRUE,"",IF($B$3=2024,S187,IF(SheetName="Other (enter value below)",S187*(1+$J$4),IF($B$3>_xlfn.AGGREGATE(4,6,INDIRECT("CPI"&SheetName&"!$A:$A"))+1,S187*VLOOKUP($B$3-2,INDIRECT("CPI"&SheetName&"!$A:$C"),3,FALSE),S187*VLOOKUP($B$3-1,INDIRECT("CPI"&SheetName&"!$A:$C"),3,FALSE))))) -> 80000 | G187: =IF(ISBLANK(T187)=TRUE,"",IF($B$3=2024,T187,IF(SheetName="Other (enter value below)",T187*(1+$J$4),IF($B$3>_xlfn.AGGREGATE(4,6,INDIRECT("CPI"&SheetName&"!$A:$A"))+1,T187*VLOOKUP($B$3-2,INDIRECT("CPI"&SheetName&"!$A:$C"),3,FALSE),T187*VLOOKUP($B$3-1,INDIRECT("CPI"&SheetName&"!$A:$C"),3,FALSE))))) ->  | K187: See User Manual | Q187: WS | R187: each | S187: 80000
A188: Winter Trail | N188: Winter Trail
B189: =O189 -> Snow | D189: =Q189 -> WT | E189: =R189 -> km | F189: =IF(ISBLANK(S189)=TRUE,"",IF($B$3=2024,S189,IF(SheetName="Other (enter value below)",S189*(1+$J$4),IF($B$3>_xlfn.AGGREGATE(4,6,INDIRECT("CPI"&SheetName&"!$A:$A"))+1,S189*VLOOKUP($B$3-2,INDIRECT("CPI"&SheetName&"!$A:$C"),3,FALSE),S189*VLOOKUP($B$3-1,INDIRECT("CPI"&SheetName&"!$A:$C"),3,FALSE))))) -> 2000 | G189: =IF(ISBLANK(T189)=TRUE,"",IF($B$3=2024,T189,IF(SheetName="Other (enter value below)",T189*(1+$J$4),IF($B$3>_xlfn.AGGREGATE(4,6,INDIRECT("CPI"&SheetName&"!$A:$A"))+1,T189*VLOOKUP($B$3-2,INDIRECT("CPI"&SheetName&"!$A:$C"),3,FALSE),T189*VLOOKUP($B$3-1,INDIRECT("CPI"&SheetName&"!$A:$C"),3,FALSE))))) -> 10000 | O189: Snow | Q189: WT | R189: km | S189: 2000 | T189: 10000
B190: =O190 -> Soil | D190: =Q190 -> WT1 | E190: km | F190: =IF(ISBLANK(S190)=TRUE,"",IF($B$3=2024,S190,IF(SheetName="Other (enter value below)",S190*(1+$J$4),IF($B$3>_xlfn.AGGREGATE(4,6,INDIRECT("CPI"&SheetName&"!$A:$A"))+1,S190*VLOOKUP($B$3-2,INDIRECT("CPI"&SheetName&"!$A:$C"),3,FALSE),S190*VLOOKUP($B$3-1,INDIRECT("CPI"&SheetName&"!$A:$C"),3,FALSE))))) -> 1000 | G190: =IF(ISBLANK(T190)=TRUE,"",IF($B$3=2024,T190,IF(SheetName="Other (enter value below)",T190*(1+$J$4),IF($B$3>_xlfn.AGGREGATE(4,6,INDIRECT("CPI"&SheetName&"!$A:$A"))+1,T190*VLOOKUP($B$3-2,INDIRECT("CPI"&SheetName&"!$A:$C"),3,FALSE),T190*VLOOKUP($B$3-1,INDIRECT("CPI"&SheetName&"!$A:$C"),3,FALSE))))) -> 3000 | O190: Soil | Q190: WT1 | R190: km | S190: 1000 | T190: 3000
A191: Winter Road | N191: Winter Road
B192: =O192 -> Bridge | D192: =Q192 -> WRB | E192: =R192 -> each | F192: =IF(ISBLANK(S192)=TRUE,"",IF($B$3=2024,S192,IF(SheetName="Other (enter value below)",S192*(1+$J$4),IF($B$3>_xlfn.AGGREGATE(4,6,INDIRECT("CPI"&SheetName&"!$A:$A"))+1,S192*VLOOKUP($B$3-2,INDIRECT("CPI"&SheetName&"!$A:$C"),3,FALSE),S192*VLOOKUP($B$3-1,INDIRECT("CPI"&SheetName&"!$A:$C"),3,FALSE))))) -> 25000 | G192: 50000 | K192: Low (simple wooden or ice) High (complex steel frame or modular) | O192: Bridge | Q192: WRB | R192: each | S192: 25000 | T192: 50000
B193: Construction and Maintenance | D193: WRC | E193: km | F193: 25000 | O193: Construction | Q193: WRC | R193: km | S193: 25000
B194: Usage | D194: WRU | E194: kmtonne | F194: 0.5 | O194: Usage | Q194: WRU | R194: kmtonne | S194: 0.5

Sheet Estimator
B1: Unit Cost Estimator | D1: 1 | E1: Equipment Productivity Figures and Graphs have been reproduced from Caterpillar Performance Handbook - Edition 42
B2: EXCAVATION | G2: HAUL AND DUMPING | L2: SPREADING/DOZING
B3: Productivity | G3: Productivity | L3: Productivity
B4: Machine | C4: Cat 336EL | G4: Machine | H4: Cat 770 | L4: Machine | M4: Cat D8
B5: bucket capacity | D5: 3.16 | E5: m3 | G5: truck capacity | I5: 25.1 | J5: m3 | L5: Estimate production using example curves provided or | N5: 600 | O5: m3/hr
B6: fill factor | D6: 0.75 | E6: % | G6: fill factor | I6: 0.8 | J6: % | L6: equivalent from other supplier
B7: cycle time | D7: 45 | E7: seconds | L7: Correction factors (see table provided)
B8: operator skill | D8: 0.8 | E8: % | G8: load time | I8: 6 | J8: min. | L8: operator skill | N8: 0.75
B9: machine availability | D9: 0.83 | E9: % | G9: haul distance | I9: 1.5 | J9: km | L9: material type, see table | N9: 0.8
B10: altitude adjustment | D10: 1 | E10: % | G10: average velocity | I10: 20 | J10: km/hr | L10: slot dozing | N10: 1
B11: Hourly productivity | D11: =D5*D6*(60*60/D7)*D8*D9*D10 -> 125.8944 | E11: m3/hr | G11: haul time + return time | I11: =+I9/I10*60*2 -> 9 | J11: min. | L11: side by side dozing | N11: 1
G12: wait time | I12: 0.5 | J12: min. | L12: visibility | N12: 1
G13: dump time | I13: 1 | J13: min. | L13: job efficiency | N13: 0.83
G14: cycle time | I14: =I8+SUM(I11:I13) -> 16.5 | J14: min. | L14: altitude adjustment | N14: 1
G15: machine availability | I15: 0.83 | J15: % | L15: slope adjustment | N15: 1
G16: altitude adjustment | I16: 1 | J16: % | L16: Hourly productivity | N16: =+N5*N8*N9*N10*N11*N12*N13*N14*N15 -> 298.8 | O16: m3/hr
I17: =I14*I15*I16 -> 13.695 | J17: ave. min/cycle
G18: Hourly productivity | I18: =I5*I6*60/I17 -> 87.97371303 | J18: m3/hr
B19: Operating Costs | G19: Operating Costs | L19: Operating Costs
B20: - Contractor | G20: - Contractor | L20: - Contractor
B21: Contractor hourly rate | D21: 180 | E21: $/hr | G21: Contractor hourly rate | I21: 225 | J21: $/hr | L21: Hourly rate - contractor supplied | N21: 260 | O21: $/hr
B22: Excavation cost - contractor rate | D22: =D21/D11 -> 1.429769712 | E22: $/m3 | G22: Haul and Dump - contractor rate | I22: =I21/I18 -> 2.557582171 | J22: $/m3 | L22: Dozing - contractor rate | N22: =N21/N16 -> 0.8701472557 | O22: $/m3
B24: - Owner | G24: - Owner | L24: - Owner
B25: ownership, daily | E25: $/day | G25: ownership, daily | J25: $/day | L25: ownership, daily | O25: $/day
B26: maintenance | E26: $/hr | G26: maintenance | J26: $/hr | L26: maintenance | O26: $/hr
B27: fuel | E27: $/hr | G27: fuel | J27: $/hr | L27: fuel | O27: $/hr
B28: consumables (cutters, tires) | E28: $/hr | G28: consumables (cutters, tires) | J28: $/hr | L28: consumables (cutters, tires) | O28: $/hr
B29: operator | E29: $/hr | G29: operator | J29: $/hr | L29: operator | O29: $/hr
B30: Owner hourly rate | D30: =D25/10+SUM(D26:D29) -> 0 | E30: $/hr | G30: Owner hourly rate | I30: =I25/10+SUM(I26:I29) -> 0 | J30: $/hr | L30: Owner hourly rate | N30: =N25/10+SUM(N26:N29) -> 0
B31: Excavation cost - owner rate | D31: =D30/D11 -> 0 | E31: $/m3 | G31: Haul/Dumping Cost - owner rate | I31: =I30/I18 -> 0 | J31: $/m3 | L31: Spreading/Dozing Cost - owner rate | N31: =N30/N16 -> 0 | O31: $/hr
B32: Excavation cost - select contractor or owner rate (D22 or D31) | E32: $/m3 | G32: Haul/Dumping Cost - select contractor or owner rate (I22 or I31 | J32: $/m3 | L32: Spreading/Dozing Cost - select contractor or owner rate (N22 or N31) | O32: $/m3
B36: Excavator | G36: Trucking | L36: Dozing
C37: Cat 320 | D37: Cat 325B | E37: Cat 375 | H37: Cat 771 D | I37: Cat 777D | J37: Cat 789C
B38: heaped bucket capacity, m3 | C38: 1.5 | D38: 2.2 | E38: 5.4 | G38: Truck capacity - heaped, m3 | H38: 27.5 | I38: 60.5 | J38: 137
D39: Typical Cycle Times (seconds)
B40: easy digging, shallow digging, small swing angle | C40: 16 | D40: 18 | E40: 20
B41: med. to hard digging, rocky soil, swing angle to 90 deg. | C41: 23 | D41: 23 | E41: 25
B42: tough digging, sandstone, caliche, at max. machine depth, swing angle > 120 deg. | C42: 27 | D42: 29 | E42: 35
B44: Material | C44: Fill Factor (% of heaped bucket capacity
B45: Moist loam or sandy clay | D45: 100 - 110
B46: sand and gravel (not till) | D46: 95 - 110
B47: hard tough clay | D47: 80 - 90
B48: rock - will blasted | D48: 60 - 75
B49: rock - poorly blasted | D49: 40 -60
B51: Operator Skill | C51: poor | D51: average | E51: good
B52: Correction factor | C52: 0.6 | D52: 0.75 | E52: 1
B54: Machine availability | C54: poor | D54: average | E54: good
B55: Correction factor | C55: 0.9 | D55: 0.95 | E55: 1

Sheet UR-Short list_New (hidden)
G1: Previous rates | J1: Updated 2024-09
A2: ITEM | B2: Detail | D2: COST CODE | E2: UNITS | F2: Price Sources | G2: LOW $ | H2: HIGH $ | I2: SPECIFIED $ | J2: UR | K2: Low | L2: High | M2: Price basis/Reference | N2: Addition Comments
A4: Accommodation
D5: ACCM | E5: manday | F5: Published database | G5: 100 | H5: 175 | I5: 0 | J5: 225 | K5: 163 | L5: 267 | M5: Published database - Construction Labour Relations Alberta | N5: Subsistence Rates – Construction Labour Relations (clra.org), added 30% for Yellowknife
A6: Buildings - Decontaminate
B7: Asbestos | D7: BDA | E7: m2 | F7: Task database | G7: 25.6 | H7: 51.2 | I7: 0 | J7: 571 | K7: 527 | L7: 834 | M7: Richardson Costonline 2024 | N7: Asbestos Abatement: 1.material and labour for containment work 2. removal work 3. clean-up work/final cleanup 4.miscellaneous 5. indirect labour/air sampling test/transportation and disposal 6 contractor overhead and profit
B8: Bulk Asbestos removal - Building ceiling | D8: BDA1 | E8: m2 | F8: Task database | J8: 30 | K8: 20 | L8: 40 | M8: RS means 2024 Q2 Yellowknife | N8: different ceiling system (low: plater and lath, high: metal pan grid system: UR: average)
B9: Bulk Asbestos removal - Building partition | D9: BDA2 | E9: m2 | F9: Task database | J9: 69 | K9: 43 | L9: 94 | M9: RS means 2024 Q2 Yellowknife | N9: price range by partition type (low: gypsum board, high: stud, plaster, lath & studs, UR: average)
B10: Bulk Asbestos removal - Building wood stud walls | D10: BDA3 | E10: m2 | F10: Task database | J10: 20 | M10: RS means 2024 Q2 Yellowknife | N10: structural demolition, wood stud walls
B11: Bulk Asbestos removal - Piping and fittings | D11: BDA4 | E11: m2 | F11: Task database | J11: 216 | K11: 92 | L11: 340 | M11: RS means 2024 Q2 Yellowknife | N11: Low" for straight pipe over16'' High: piping fitting (over 16'' dia pipe)
B12: Bulk Asbestos removal - Ducting | D12: BDA5 | E12: m2 | F12: Task database | J12: 68.0032 | M12: RS means 2024 Q2 Yellowknife | N12: for ducts and AHU insulation
B13: Asbestos waste packaging handling and disposal, disposal charge | D13: BDA6 | E13: m3 | F13: Task database | J13: 301 | K13: 87 | L13: 514 | M13: RS means 2024 Q2 Yellowknife | N13: including waste packaging, disposal and charge fee
A14: Buildings - Remove
B15: Wood | D15: BRW | E15: m3 | F15: Task database | G15: 27.5 | H15: 41 | I15: 0 | J15: 83 | M15: Richardson Costonline 2024 | N15: note: 1. no mechanical system removal or salvage included 2. Based on building volume
B16: Concrete | D16: BRC | E16: m3 | F16: Task database | G16: 40 | H16: 65 | I16: 6 | J16: 93 | M16: Richardson Costonline 2024 | N16: note: 1. no mechanical system removal or salvage included 2. Based on building volume
B17: Steel - teardown | D17: BRS1 | E17: m3 | F17: Task database | G17: 45 | H17: 65 | I17: 0 | J17: 81 | M17: Richardson Costonline 2024 | N17: note: 1. no mechanical system removal or salvage included 2. Based on building volume
B18: Steel - for salvage | D18: BRS2 | E18: mt | F18: Task database | G18: 67 | H18: 100 | I18: 0 | J18: 250 | M18: RS means 2024 Q2 Yellowknife | N18: steel scrap and salvage, changed the UoM from m2 to mt
A19: Concrete work
B20: Small pour | D20: CSF | E20: m3 | F20: Task database | G20: 426.5 | H20: 639.75 | I20: 0 | J20: see below | N20: removed
B21: Large pour | D21: CLF | E21: m3 | F21: Task database | G21: 353.5 | H21: 530.25 | I21: 2130 | J21: see below | N21: removed
B22: Footing | D22: CFT | E22: m3 | F22: historical data | J22: 920 | M22: ATRL - Historical data | N22: Contractor 2023 Sudbury Canada. rebar supply and install excluded, not include batch plant
B23: Foundation | D23: CFD | E23: m3 | F23: historical data | J23: 1620 | M23: ATRL - Historical data | N23: Contractor 2023 Sudbury Canada. rebar supply and install excluded, not include batch plant
B24: Grade beam | D24: CGB | E24: m3 | F24: historical data | J24: 5380 | M24: ATRL - Historical data | N24: Contractor 2023 Sudbury Canada. rebar supply and install excluded, not include batch plant
B25: Piers | D25: CPS | E25: m3 | F25: historical data | J25: 3260 | M25: ATRL - Historical data | N25: Contractor 2023 Sudbury Canada. rebar supply and install excluded, not include batch plant
B26: Pile cap | D26: CPC | E26: m3 | F26: historical data | J26: 1920 | M26: ATRL - Historical data | N26: Contractor 2023 Sudbury Canada. rebar supply and install excluded, not include batch plant
B27: Slab on Grade | D27: CSG | E27: m3 | F27: historical data | J27: 900 | M27: ATRL - Historical data | N27: Contractor 2023 Sudbury Canada. rebar supply and install excluded, not include batch plant
B28: Rebar | D28: CRB | E28: kg | F28: historical data | J28: 3.73 | M28: ATRL - Historical data | N28: Contractor 2023 Sudbury Canada. rebar only
A30: Contaminated Soils
B31: ESA Phase 1 | D31: CS1 | E31: per mine area | F31: TBD | G31: 7500 | H31: 0 | I31: 0 | J31: 15000 | M31: Estimated (rounded) | N31: Environmental site assessment phase 1: preliminary site assessment 1. historical research: title history report, aerial photos, maps, interview - 1 personx2 days (could be varies as per site size) 2.Site inspection: 2 person x2 days (could be varies as per site size) 3. report: 1personx 3 days (could be varies as per site size)
B32: ESA Phase 2 | D32: CS2 | E32: per mine area | F32: TBD | G32: 50000 | H32: 0 | I32: 0 | J32: 100000 | M32: Estimated (rounded) | N32: Environmental site assessment phase 2: Site Characterization 1. physical sampling and analysis of soil/groundwater/buildings etc. 2. technical report 3. take 4 to 10 weeks (typically) 4. soil boring average: 2000/ea, groundwater monitoring well: 4000 to 8000/ea laboratory cost varies according to specific analysis need 5. Analysis report : risk, cost, etc. Assumption for the unit rate: duration of Phase 2: 10 weeks 5 soil boring=5x2000, 5 groundwater monitoring=5*8000, 20,000 laboratory allowance, report duration: 3weeks=3x40hoursx200/hr, site visit for the monitoring data for duration of 7 weeks=1personx4hr/each timex5daysx7weeksx150/hr
B33: HHRA | D33: CS3 | E33: each | J33: 200000 | M33: Estimated (rounded) | N33: Corportate Experience
B34: ERA | D34: CS4 | E34: each | J34: 500000 | M34: Estimated (rounded) | N34: Corportate Experience
B35: Finalize ICRP / Develop RAP | E35: % | F35: of directs | M35: TBD | N35: ON SUMMARY SHEET
B36: OWNERS COSTS | E36: % | F36: of directs | M36: TBD | N36: ON SUMMARY SHEET
B37: Remediate on site | D37: CSR | E37: m3 | F37: TBD | G37: 47 | H37: 146 | I37: 0 | M37: TBD | N37: soil and groundwater
A38: Dozing
B39: doze rock piles | D39: DR | E39: m3 | F39: First principles | G39: 1.05 | H39: 2.4 | I39: 0 | J39: 27.90730033 | K39: =G39*1.6 -> 1.68 | L39: =H39*1.6 -> 3.84 | M39: Escalated (rounded) | N39: Schedule Duration (weeks per year):20 week with 4 trucks, Qty:300000m3 | O39: Needs to be confrimed
B40: doze overburden/soil piles | D40: DS | E40: m3 | F40: First principles | G40: 0.95 | H40: 3.8 | I40: 0 | J40: 19.72550663 | K40: =G40*1.6 -> 1.52 | L40: =H40*1.6 -> 6.08 | M40: Escalated (rounded) | N40: Schedule Duration (weeks per year):20 week with 3 trucks, Qty:300000m3 | O40: Needs to be confrimed
A42: Drilling and Blasting | D42: DAB | E42: m3 | J42: 6.21 | M42: ATRL - Civil Moulinette
A44: Crushing and Screening | D44: CAS | E44: m3 | J44: 25.82 | M44: ATRL - Civil Moulinette
A46: Clear and Grub | D46: SBC | E46: m2 | F46: First principles | J46: 2.4972375 | K46: 1.7556875 | L46: 5.839375 | M46: RS means 2024 Q2 Yellowknife | N46: UR: clear and grub, cut and chip trees 12" dia Low: clear and grub, cut and chip light trees 6" dia High: clear and grub, cut and chip light trees 6" dia
A48: Excavate Rock, Low Specs
B50: Bedrock Source
B51: drill/blast/load/short haul | D51: RB1 | E51: m3 | F51: First principles | G51: 11.4 | H51: 17.05 | I51: 0 | J51: 29 | K51: 24 | L51: 40 | M51: ATRL - Civil Moulinette
B52: drill/blast/load/short haul-1km | D52: RB1A | E52: m3 | F52: First principles | J52: 23.43658798 | M52: ATRL - Civil Moulinette | N52: Schedule Duration (weeks per year):12 week with 6 trucks, Qty:300000m3 | O52: =J52-J70 -> 6.21
B53: drill/blast/load/short haul-3km | D53: RB1B | E53: m3 | F53: First principles | J53: 28.8925041 | M53: ATRL - Civil Moulinette | N53: Schedule Duration (weeks per year):15 week with 8 trucks, Qty:300000m3 | O53: =J53-J71 -> 6.21
B54: drill/blast/load/short haul-5km | D54: RB1C | E54: m3 | F54: First principles | J54: 39.47767268 | M54: ATRL - Civil Moulinette | N54: Schedule Duration (weeks per year):22 week with 8trucks, Qty:300000m3 | O54: =J54-J72 -> 6.21
B55: drill/blast/load/long haul | D55: RB2 | E55: m3 | F55: First principles | G55: 12.05 | H55: 17.8 | I55: 0 | J55: 88 | K55: 61 | L55: 101 | M55: ATRL - Civil Moulinette
B56: drill/blast/load/long haul-10km | D56: RB2A | E56: m3 | F56: First principles | J56: 60.91685316 | M56: ATRL - Civil Moulinette | N56: Schedule Duration (weeks per year):40 week with 8 trucks, Qty:300000m3 | O56: =J56-J75 -> 3.524341195
B57: drill/blast/load/long haul-15km | D57: RB2B | E57: m3 | F57: First principles | J57: 87.80960842 | M57: ATRL - Civil Moulinette | N57: Schedule Duration (weeks per year):50 week with 10 trucks, Qty:300000m3 | O57: =J57-J76 -> 6.21
B58: drill/blast/load/long haul-20km | D58: RB2C | E58: m3 | F58: First principles | J58: 100.87 | M58: ATRL - Civil Moulinette | N58: Schedule Duration (weeks per year):58 week with 10 trucks, Qty:300000m3 | O58: =J58-J77 -> 6.214081664
B59: RB1 + spread and compact | D59: RB3 | E59: m3 | F59: First principles | G59: 12.05 | H59: 17.8 | I59: 0 | J59: 30 | K59: 25 | L59: 41 | M59: ATRL - Civil Moulinette
B60: RB1A + spread and compact-1km haul | D60: RB3A | E60: m3 | F60: First principles | J60: 24.20823367 | M60: ATRL - Civil Moulinette | N60: Schedule Duration (weeks per year):12 week with 6 trucks, Qty:300000m3 | O60: =J60-J80 -> 6.21
B61: RB1B + spread and compact-3km haul | D61: RB3B | E61: m3 | F61: First principles | J61: 29.85706122 | M61: ATRL - Civil Moulinette | N61: Schedule Duration (weeks per year):15 week with 8 trucks, Qty:300000m3 | O61: =J61-J81 -> 6.21
B62: RB1C + spread and compact-5km haul | D62: RB3C | E62: m3 | F62: First principles | J62: 40.89235646 | M62: ATRL - Civil Moulinette | N62: Schedule Duration (weeks per year):22 week with 8 trucks, Qty:300000m3 | O62: =J62-J82 -> 6.21
B63: RB2 + spread and compact | D63: RB4 | E63: m3 | F63: First principles | G63: 12.5 | H63: 30.75 | J63: 92 | K63: 67 | L63: 105 | M63: ATRL - Civil Moulinette
B64: RB2A + spread and compact-10km haul | D64: RB4A | E64: m3 | F64: First principles | J64: 66.17466428 | M64: ATRL - Civil Moulinette | N64: Schedule Duration (weeks per year):40 week with 8 trucks, Qty:300000m3 | O64: =J64-J85 -> 6.21
B65: RB2B+ spread and compact-15km haul | D65: RB4B | E65: m3 | F65: First principles | J65: 91.02479881 | M65: ATRL - Civil Moulinette | N65: Schedule Duration (weeks per year):50 week with 10 trucks, Qty:300000m3 | O65: =J65-J86 -> 6.21
B66: RB2C + spread and compact-20km haul | D66: RB4C | E66: m3 | F66: First principles | J66: 104.5951666 | M66: ATRL - Civil Moulinette | N66: Schedule Duration (weeks per year):58 week with 10 trucks, Qty:300000m3 | O66: =J66-J87 -> 6.21
B68: Stockpile Source
B69: excavate/load/short haul | D69: SP1 | E69: m3 | J69: 23 | K69: 18 | L69: 34
B70: Excavation/load/short haul-1km | D70: RB1AA | E70: m3 | F70: First principles | J70: 17.22658798 | M70: ATRL - Civil Moulinette | N70: Schedule Duration (weeks per year):12 week with 6 trucks, Qty:300000m3
B71: Excavation/load/short haul-3km | D71: RB1BB | E71: m3 | F71: First principles | J71: 22.6825041 | M71: ATRL - Civil Moulinette | N71: Schedule Duration (weeks per year):15 week with 8 trucks, Qty:300000m3
B72: Excavation/load/short haul-5km | D72: RB1CC | E72: m3 | F72: First principles | J72: 33.26767268 | M72: ATRL - Civil Moulinette | N72: Schedule Duration (weeks per year):22 week with 8 trucks, Qty:300000m3
B73: Excavation/load/long haul | D73: RB2 | E73: m3 | F73: First principles | I73: 0 | K73: 58 | L73: 95 | M73: ATRL - Civil Moulinette
B74: excavate/load/long haul | D74: SP2 | E74: m3 | J74: 82 | K74: 58 | L74: 95
B75: Excavation/long haul-10km | D75: RB2AA | E75: m3 | F75: First principles | J75: 57.39251196 | M75: ATRL - Civil Moulinette | N75: Schedule Duration (weeks per year):40 week with 8 trucks, Qty:300000m3
B76: Excavation/load/long haul-15km | D76: RB2BB | E76: m3 | F76: First principles | J76: 81.59960842 | M76: ATRL - Civil Moulinette | N76: Schedule Duration (weeks per year):50 week with 10 trucks, Qty:300000m3
B77: Excavation/load/long haul-20km | D77: RB2CC | E77: m3 | F77: First principles | J77: 94.65591834 | M77: ATRL - Civil Moulinette | N77: Schedule Duration (weeks per year):58 week with 10 trucks, Qty:300000m3
B78: RB + spread and compact | D78: RB3 | E78: m3 | F78: First principles | I78: 0 | K78: 18 | L78: 35 | M78: ATRL - Civil Moulinette
B79: SP1 + spread and compact | E79: m3 | J79: 24 | K79: 18 | L79: 35
B80: RB1AA + spread and compact-1km haul | D80: RB3AA | E80: m3 | F80: First principles | J80: 17.99823367 | M80: ATRL - Civil Moulinette | N80: Schedule Duration (weeks per year):12 week with 6 trucks, Qty:300000m3
B81: RB1BB + spread and compact-3km haul | D81: RB3BB | E81: m3 | F81: First principles | J81: 23.64706122 | M81: ATRL - Civil Moulinette | N81: Schedule Duration (weeks per year):15 week with 8 trucks, Qty:300000m3
B82: RB1CC + spread and compact-5km haul | D82: RB3CC | E82: m3 | F82: First principles | J82: 34.68235646 | M82: ATRL - Civil Moulinette | N82: Schedule Duration (weeks per year):22 week with 8 trucks, Qty:300000m3
B83: RB2 + spread and compact | D83: RB4 | E83: m3 | F83: First principles | K83: 60 | L83: 99 | M83: ATRL - Civil Moulinette
B84: SP2 + spread and compact | E84: m3 | J84: 85 | K84: 60 | L84: 99
B85: RB2AA + spread and compact-10km haul | D85: RB4AA | E85: m3 | F85: First principles | J85: 59.96466428 | M85: ATRL - Civil Moulinette | N85: Schedule Duration (weeks per year):40 week with 8 trucks, Qty:300000m3
B86: RB2BB + spread and compact-15km haul | D86: RB4BB | E86: m3 | F86: First principles | J86: 84.81479881 | M86: ATRL - Civil Moulinette | N86: Schedule Duration (weeks per year):50 week with 10 trucks, Qty:300000m3
B87: RB2CC + spread and compact-20km haul | D87: RB4CC | E87: m3 | F87: First principles | J87: 98.38516663 | M87: ATRL - Civil Moulinette | N87: Schedule Duration (weeks per year):58 week with 10 trucks, Qty:300000m3
B88: Specified activity | D88: RBS | E88: m3 | F88: First principles | G88: 0 | H88: 0 | M88: TBD
A89: Excavate Rock; High Spec's and QA/QC
B91: With Drill/blasting and Crushing & screening
B92: drill/blast/load/short haul | D92: RC1 | E92: m3 | F92: First principles | G92: 12.05 | H92: 17.8 | I92: 0 | J92: 55 | K92: 50 | L92: 66 | M92: ATRL - Civil Moulinette
B93: drill/blast/load/long haul-1km | D93: RC1A | E93: m3 | F93: First principles | J93: 49.25658798 | M93: ATRL - Civil Moulinette | N93: Schedule Duration (weeks per year):12 week with 6 trucks, Qty:300000m3, including crushing & screening
B94: drill/blast/load/long haul-3km | D94: RC1B | E94: m3 | F94: First principles | J94: 54.7125041 | M94: ATRL - Civil Moulinette | N94: Schedule Duration (weeks per year):15 week with 8 trucks, Qty:300000m3, including crushing & screening
B95: drill/blast/load/long haul-5km | D95: RC1C | E95: m3 | F95: First principles | J95: 65.29767268 | M95: ATRL - Civil Moulinette | N95: Schedule Duration (weeks per year):22 week with 8trucks, Qty:300000m3, including crushing & screening
B96: drill/blast/load/long haul | D96: RC2 | E96: m3 | F96: First principles | G96: 12.7 | H96: 18.4 | I96: 0 | J96: 114 | K96: 90 | L96: 127 | M96: ATRL - Civil Moulinette
B97: drill/blast/load/long haul-10km | D97: RC2A | E97: m3 | F97: First principles | J97: 89.42251196 | M97: ATRL - Civil Moulinette | N97: Schedule Duration (weeks per year):40 week with 8 trucks, Qty:300000m3, including crushing & screening
B98: drill/blast/load/long haul-15km | D98: RC2B | E98: m3 | F98: First principles | J98: 113.6296084 | M98: ATRL - Civil Moulinette | N98: Schedule Duration (weeks per year):50 week with 10 trucks, Qty:300000m3, including crushing & screening
B99: drill/blast/load/long haul-20km | D99: RC2C | E99: m3 | F99: First principles | J99: 126.6855458 | M99: ATRL - Civil Moulinette | N99: Schedule Duration (weeks per year):58 week with 10 trucks, Qty:300000m3, including crushing & screening
B100: RC1 + spread and compact | D100: RC3 | E100: m3 | F100: First principles | G100: 12.7 | H100: 18.4 | I100: 0 | J100: 56 | K100: 51 | L100: 67 | M100: ATRL - Civil Moulinette
B101: RC1A + spread and compact-1km haul | D101: RC3A | E101: m3 | F101: First principles | J101: 50.02823367 | M101: ATRL - Civil Moulinette | N101: Schedule Duration (weeks per year):12 week with 6 trucks, Qty:300000m3, including crushing & screening
B102: RC1B + spread and compact-3km haul | D102: RC3B | E102: m3 | F102: First principles | J102: 55.67706122 | M102: ATRL - Civil Moulinette | N102: Schedule Duration (weeks per year):15 week with 8 trucks, Qty:300000m3, including crushing & screening
B103: RC1C + spread and compact-5km haul | D103: RC3C | E103: m3 | F103: First principles | J103: 66.71235646 | M103: ATRL - Civil Moulinette | N103: Schedule Duration (weeks per year):22 week with 8 trucks, Qty:300000m3, including crushing & screening
B104: RC2 + spread and compact | D104: RC4 | E104: m3 | F104: First principles | G104: 13.5 | H104: 19.2 | I104: 0 | J104: 117 | K104: 92 | L104: 131 | M104: ATRL - Civil Moulinette
B105: RC2A + spread and compact-10km haul | D105: RC4A | E105: m3 | F105: First principles | J105: 91.99466428 | M105: ATRL - Civil Moulinette | N105: Schedule Duration (weeks per year):40 week with 8 trucks, Qty:300000m3, including crushing & screening
B106: RC2B + spread and compact-15km haul | D106: RC4B | E106: m3 | F106: First principles | J106: 116.8447988 | M106: ATRL - Civil Moulinette | N106: Schedule Duration (weeks per year):50 week with 10 trucks, Qty:300000m3, including crushing & screening
B107: RC2C + spread and compact-20km haul | D107: RC4C | E107: m3 | F107: First principles | J107: 130.4151666 | M107: ATRL - Civil Moulinette | N107: Schedule Duration (weeks per year):58 week with 10 trucks, Qty:300000m3, including crushing & screening
B108: Specified activity | D108: RCS | E108: m3 | F108: First principles | G108: 0 | H108: 0 | I108: 175 | M108: TBD
B110: Without Crushing & screening (incl drill and blasting)
J111: 29 | K111: 24 | L111: 40
B112: Excavation/load/short haul-1km | D112: RC1AA | E112: m3 | F112: First principles | J112: 23.43658798 | M112: ATRL - Civil Moulinette | N112: Schedule Duration (weeks per year):12 week with 6 trucks, Qty:300000m3 | O112: do we need this
B113: Excavation/load/short haul-3km | D113: RC1BB | E113: m3 | F113: First principles | J113: 28.8925041 | M113: ATRL - Civil Moulinette | N113: Schedule Duration (weeks per year):15 week with 8 trucks, Qty:300000m3 | O113: do we need this
B114: Excavation/load/short haul-5km | D114: RC1CC | E114: m3 | F114: First principles | J114: 39.47767268 | M114: ATRL - Civil Moulinette | N114: Schedule Duration (weeks per year):22 week with 8trucks, Qty:300000m3 | O114: do we need this
B115: Excavation/load/long haul | D115: RC2 | E115: m3 | F115: First principles | I115: 0 | M115: ATRL - Civil Moulinette | O115: do we need this
J116: 88 | K116: 64 | L116: 101 | O116: do we need this
B117: Excavation/long haul-10km | D117: RC2AA | E117: m3 | F117: First principles | J117: 63.60251196 | M117: ATRL - Civil Moulinette | N117: Schedule Duration (weeks per year):40 week with 8 trucks, Qty:300000m3, | O117: do we need this
B118: Excavation/load/long haul-15km | D118: RC2BB | E118: m3 | F118: First principles | J118: 87.80960842 | M118: ATRL - Civil Moulinette | N118: Schedule Duration (weeks per year):50 week with 10 trucks, Qty:300000m3 | O118: do we need this
B119: Excavation/load/long haul-20km | D119: RC2CC | E119: m3 | F119: First principles | J119: 100.8655458 | M119: ATRL - Civil Moulinette | N119: Schedule Duration (weeks per year):58 week with 10 trucks, Qty:300000m3 | O119: do we need this
B120: RC1 + spread and compact | D120: RC3 | E120: m3 | F120: First principles | I120: 0 | M120: ATRL - Civil Moulinette | O120: do we need this
J121: 30 | K121: 25 | L121: 41 | O121: do we need this
B122: RC1AA + spread and compact-1km haul | D122: RC3AA | E122: m3 | F122: First principles | J122: 24.20823367 | M122: ATRL - Civil Moulinette | N122: Schedule Duration (weeks per year):12 week with 6 trucks, Qty:300000m3, | O122: do we need this
B123: RC1BB + spread and compact-3km haul | D123: RC3BB | E123: m3 | F123: First principles | J123: 29.85706122 | M123: ATRL - Civil Moulinette | N123: Schedule Duration (weeks per year):15 week with 8 trucks, Qty:300000m3, | O123: do we need this
B124: RC1CC + spread and compact-5km haul | D124: RC3CC | E124: m3 | F124: First principles | J124: 40.89235646 | M124: ATRL - Civil Moulinette | N124: Schedule Duration (weeks per year):22 week with 8 trucks, Qty:300000m3, | O124: do we need this
B125: RC2 + spread and compact | D125: RC4 | E125: m3 | F125: First principles | I125: 0 | M125: ATRL - Civil Moulinette | O125: do we need this
J126: 92 | K126: 67 | L126: 105 | O126: do we need this
B127: RC2AA + spread and compact-10km haul | D127: RC4AA | E127: m3 | F127: First principles | J127: 66.17466428 | M127: ATRL - Civil Moulinette | N127: Schedule Duration (weeks per year):40 week with 8 trucks, Qty:300000m3 | O127: do we need this
B128: RC2BB + spread and compact-15km haul | D128: RC4BB | E128: m3 | F128: First principles | J128: 91.02479881 | M128: ATRL - Civil Moulinette | N128: Schedule Duration (weeks per year):50 week with 10 trucks, Qty:300000m3, | O128: do we need this
B129: RC2CC+ spread and compact-20km haul | D129: RC4CC | E129: m3 | F129: First principles | J129: 104.5951666 | M129: ATRL - Civil Moulinette | N129: Schedule Duration (weeks per year):58 week with 10 trucks, Qty:300000m3 | O129: do we need this
B131: Without Crushing/Screening/ Driiling/Blasting | O131: km
B132: Excavation/load/short haul-1km | D132: RC1AA1 | E132: m3 | F132: First principles | J132: 21.7 | M132: ATRL - Civil Moulinette | N132: Schedule Duration (weeks per year):12 week with 6 trucks, Qty:300000m3 | O132: 20 | P132: =J70/J132 -> 0.7938519805 | Q132: =1-P132 -> 0.2061480195
B133: Excavation/load/short haul-3km | D133: RC1BB1 | E133: m3 | F133: First principles | J133: 27.71 | M133: ATRL - Civil Moulinette | N133: Schedule Duration (weeks per year):15 week with 8 trucks, Qty:300000m3 | O133: 23 | P133: =J71/J133 -> 0.8185674523 | Q133: =1-P133 -> 0.1814325477
B134: Excavation/load/short haul-5km | D134: RC1CC1 | E134: m3 | F134: First principles | J134: 34.94 | M134: ATRL - Civil Moulinette | N134: Schedule Duration (weeks per year):22 week with 8trucks, Qty:300000m3 | O134: 29 | P134: =J72/J134 -> 0.952137169 | Q134: =1-P134 -> 0.04786283101
B135: Excavation/load/long haul | D135: RC2 | E135: m3 | F135: First principles | I135: 0 | M135: ATRL - Civil Moulinette
B136: Excavation/long haul-10km | D136: RC2AA1 | E136: m3 | F136: First principles | J136: 57.39251196 | M136: ATRL - Civil Moulinette | N136: Schedule Duration (weeks per year):40 week with 8 trucks, Qty:300000m3,
B137: Excavation/load/long haul-15km | D137: RC2BB1 | E137: m3 | F137: First principles | J137: 81.59960842 | M137: ATRL - Civil Moulinette | N137: Schedule Duration (weeks per year):50 week with 10 trucks, Qty:300000m3
B138: Excavation/load/long haul-20km | D138: RC2CC1 | E138: m3 | F138: First principles | J138: 94.65554577 | M138: ATRL - Civil Moulinette | N138: Schedule Duration (weeks per year):58 week with 10 trucks, Qty:300000m3
B139: RC1 + spread and compact | D139: RC3 | E139: m3 | F139: First principles | I139: 0 | M139: ATRL - Civil Moulinette
B140: RC1AA1 + spread and compact-1km haul | D140: RC3AA1 | E140: m3 | F140: First principles | J140: 17.99823367 | M140: ATRL - Civil Moulinette | N140: Schedule Duration (weeks per year):12 week with 6 trucks, Qty:300000m3,
B141: RC1BB1 + spread and compact-3km haul | D141: RC3BB1 | E141: m3 | F141: First principles | J141: 23.64706122 | M141: ATRL - Civil Moulinette | N141: Schedule Duration (weeks per year):15 week with 8 trucks, Qty:300000m3,
B142: RC1CC1 + spread and compact-5km haul | D142: RC3CC1 | E142: m3 | F142: First principles | J142: 34.68235646 | M142: ATRL - Civil Moulinette | N142: Schedule Duration (weeks per year):22 week with 8 trucks, Qty:300000m3,
B143: RC2 + spread and compact | D143: RC4 | E143: m3 | F143: First principles | I143: 0 | M143: ATRL - Civil Moulinette
B144: RC2AA1 + spread and compact-10km haul | D144: RC4AA1 | E144: m3 | F144: First principles | J144: 59.96466428 | M144: ATRL - Civil Moulinette | N144: Schedule Duration (weeks per year):40 week with 8 trucks, Qty:300000m3
B145: RC2BB1 + spread and compact-15km haul | D145: RC4BB1 | E145: m3 | F145: First principles | J145: 84.81479881 | M145: ATRL - Civil Moulinette | N145: Schedule Duration (weeks per year):50 week with 10 trucks, Qty:300000m3,
B146: RC2CC1+ spread and compact-20km haul | D146: RC4CC1 | E146: m3 | F146: First principles | J146: 98.38516663 | M146: ATRL - Civil Moulinette | N146: Schedule Duration (weeks per year):58 week with 10 trucks, Qty:300000m3
A147: Excavate Rock, High Specs (i.e., Rip Rap, Screened)
B149: Bedrock Source
B150: With Drill/blasting
B151: drill/blast/load/short haul/place | D151: RR1 | E151: m3 | F151: First principles | G151: 13.5 | H151: 17.75 | I151: 0 | J151: 36 | K151: 25 | L151: 43 | M151: ATRL - Civil Moulinette
B152: drill/blast/load/short haul | D152: RR1 | E152: m3 | J152: 36 | K152: 25 | L152: 43
B153: drill/blast/load/short haul-1km | D153: RR1A | E153: m3 | F153: First principles | J153: 24.77182052 | M153: ATRL - Civil Moulinette | N153: Schedule Duration (weeks per year):15 week with 5 trucks, Qty:300000m3
B154: drill/blast/load/short haul-3km | D154: RR1B | E154: m3 | F154: First principles | J154: 35.94972656 | M154: ATRL - Civil Moulinette | N154: Schedule Duration (weeks per year):22 week with 6 trucks, Qty:300000m3
B155: drill/blast/load/short haul-5km | D155: RR1C | E155: m3 | F155: First principles | J155: 42.89031998 | M155: ATRL - Civil Moulinette | N155: Schedule Duration (weeks per year):25 week with 8 trucks, Qty:300000m3
B156: drill/blast/load/long haul/place | D156: RR2 | E156: m3 | F156: First principles | G156: 14.2 | H156: 20.65 | I156: 0 | J156: 99 | K156: 72 | L156: 114 | M156: ATRL - Civil Moulinette
B157: drill/blast/load/long haul | D157: RR2 | E157: m3 | J157: 99 | K157: 72 | L157: 114
B158: drill/blast/load/long haul-10km | D158: RR2A | E158: m3 | F158: First principles | J158: 71.58657596 | M158: ATRL - Civil Moulinette | N158: Schedule Duration (weeks per year):45 week with 8 trucks, Qty:300000m3
B159: drill/blast/load/long haul-15km | D159: RR2B | E159: m3 | F159: First principles | J159: 98.41156144 | M159: ATRL - Civil Moulinette | N159: Schedule Duration (weeks per year):56 week with 10 trucks, Qty:300000m3
B160: drill/blast/load/long haul-20km | D160: RR2C | E160: m3 | F160: First principles | J160: 113.099491 | M160: ATRL - Civil Moulinette | N160: Schedule Duration (weeks per year):65 week with 10 trucks, Qty:300000m3
B161: source is waste dump/short haul | D161: RR3 | E161: m3 | F161: First principles | G161: 7 | H161: 0 | I161: 0 | J161: 22 | K161: 14 | L161: 34 | M161: ATRL - Civil Moulinette
J162: 22 | K162: 14 | L162: 34
B163: source is waste dump/short haul-1km | D163: RR3A | E163: m3 | F163: First principles | J163: 13.56749963 | M163: ATRL - Civil Moulinette | N163: Schedule Duration (weeks per year):10 week with 7 trucks, Qty:300000m3
B164: source is waste dump/short haul-3km | D164: RR3B | E164: m3 | F164: First principles | J164: 21.50051858 | M164: ATRL - Civil Moulinette | N164: Schedule Duration (weeks per year):15 week with 9trucks, Qty:300000m3
B165: source is waste dump/short haul-5km | D165: RR3C | E165: m3 | F165: First principles | J165: 33.36945551 | M165: ATRL - Civil Moulinette | N165: Schedule Duration (weeks per year):25 week with 8 trucks, Qty:300000m3
B166: source is waste dump/long haul | D166: RR4 | E166: m3 | F166: First principles | G166: 7.6 | H166: 0 | I166: 0 | J166: 86 | K166: 59 | L166: 100 | M166: ATRL - Civil Moulinette
J167: 86 | K167: 59 | L167: 100
B168: source is waste dump/short haul-10km | D168: RR4A | E168: m3 | F168: First principles | J168: 58.21438841 | M168: ATRL - Civil Moulinette | N168: Schedule Duration (weeks per year):38 week with10 trucks,Qty:300000m3
B169: source is waste dump/short haul-15km | D169: RR4B | E169: m3 | F169: First principles | J169: 85.78962503 | M169: ATRL - Civil Moulinette | N169: Schedule Duration (weeks per year):56 week with 10 trucks, Qty:300000m3
B170: source is waste dump/short haul-20km | D170: RR4C | E170: m3 | F170: First principles | J170: 99.57724334 | M170: ATRL - Civil Moulinette | N170: Schedule Duration (weeks per year):65 week with 10 trucks, Qty:300000m3
B172: Without Driiling/Blasting | F172: First principles | G172: 0 | H172: 0 | I172: 0
B173: excavate/load/short haul-1km | D173: RR1A1 | E173: m3 | F173: First principles | J173: 17.75182052 | M173: ATRL - Civil Moulinette | N173: Schedule Duration (weeks per year):15 week with 5 trucks, Qty:300000m3
B174: excavate/load/short haul-3km | D174: RR1B1 | E174: m3 | F174: First principles | J174: 28.92972656 | M174: ATRL - Civil Moulinette | N174: Schedule Duration (weeks per year):22 week with 6 trucks, Qty:300000m3
B175: excavate/load/short haul-5km | D175: RR1C1 | E175: m3 | F175: First principles | J175: 35.87031998 | M175: ATRL - Civil Moulinette | N175: Schedule Duration (weeks per year):25 week with 8 trucks, Qty:300000m3
B176: excavate/load/long haul | D176: RR2 | E176: m3 | F176: First principles | I176: 0 | M176: ATRL - Civil Moulinette
B177: excavate/load/long haul-10km | D177: RR2A1 | E177: m3 | F177: First principles | J177: 64.56657596 | M177: ATRL - Civil Moulinette | N177: Schedule Duration (weeks per year):45 week with 8 trucks, Qty:300000m3
B178: excavate/load/long haul-15km | D178: RR2B1 | E178: m3 | F178: First principles | J178: 91.39156144 | M178: ATRL - Civil Moulinette | N178: Schedule Duration (weeks per year):56 week with 10 trucks, Qty:300000m3
B179: excavate/load/long haul-20km | D179: RR2C1 | E179: m3 | F179: First principles | J179: 106.079491 | M179: ATRL - Civil Moulinette | N179: Schedule Duration (weeks per year):65 week with 10 trucks, Qty:300000m3
B180: Specified activity | D180: RRS | E180: m3 | F180: First principles
A182: Excavate Soil, Low Spec's
B183: excavate/load/short haul | D183: SB1 | E183: m3 | F183: First principles | G183: 4.3 | H183: 5.9 | I183: 0 | J183: 27 | K183: 17 | L183: 31 | M183: ATRL - Civil Moulinette
B185: excavate/load/short haul | D185: SB1 | E185: m3 | J185: 27 | K185: 17 | L185: 31
B186: excavate/load/short haul-1km | D186: SB1A | E186: m3 | F186: First principles | J186: 16.27297525 | M186: ATRL - Civil Moulinette | N186: Schedule Duration (weeks per year):15 week with 4 trucks, Qty:300000m3
B187: excavate/load/short haul-3km | D187: SB1B | E187: m3 | F187: First principles | J187: 26.03600342 | M187: ATRL - Civil Moulinette | N187: Schedule Duration (weeks per year):22 week with 5 trucks, Qty:300000m3 | O187: check
B188: excavate/load/short haul-5km | D188: SB1C | E188: m3 | F188: First principles | J188: 30.2433388 | M188: ATRL - Civil Moulinette | N188: Schedule Duration (weeks per year):20 week with 8 trucks, Qty:300000m3
B189: excavate/load/long haul | D189: SB2 | E189: m3 | F189: First principles | G189: 4.6 | H189: 7.3 | I189: 0 | J189: 74 | K189: 51 | L189: 98 | M189: ATRL - Civil Moulinette
B190: excavate/load/long haul | D190: SB2 | E190: m3 | J190: 74 | K190: 51 | L190: 98
B191: excavate/load/long haul-10km | D191: SB2A | E191: m3 | F191: First principles | J191: 50.21844797 | M191: ATRL - Civil Moulinette | N191: Schedule Duration (weeks per year):35 week with 8 trucks, Qty:300000m3
B192: excavate/load/long haul-15km | D192: SB2B | E192: m3 | F192: First principles | J192: 73.60331922 | M192: ATRL - Civil Moulinette | N192: Schedule Duration (weeks per year):48 week with 9trucks, Qty:300000m3
B193: excavate/load/long haul-20km | D193: SB2C | E193: m3 | F193: First principles | J193: 97.92 | M193: ATRL - Civil Moulinette | N193: Schedule Duration (weeks per year):60 week with 10 trucks, Qty:300000m3
B194: SB1 + spread and compact | D194: SB3 | E194: m3 | F194: First principles | G194: 5.1 | H194: 8.9 | I194: 0 | J194: 29 | K194: 18 | L194: 33 | M194: ATRL - Civil Moulinette
B195: SB1 + spread and compact | E195: m3 | J195: 29 | K195: 18 | L195: 33
B196: SB1 + spread and compact-1km | D196: SB3A | E196: m3 | F196: First principles | J196: 17.23753236 | M196: ATRL - Civil Moulinette | N196: Schedule Duration (weeks per year):15 week with 4 trucks, Qty:300000m3
B197: SB1 + spread and compact-3km | D197: SB3B | E197: m3 | F197: First principles | J197: 28.17543727 | M197: ATRL - Civil Moulinette | N197: Schedule Duration (weeks per year):22 week with 5 trucks, Qty:300000m3
B198: SB1 + spread and compact-5km | D198: SB3C | E198: m3 | F198: First principles | J198: 32.21211921 | M198: ATRL - Civil Moulinette | N198: Schedule Duration (weeks per year):23 week with 7 trucks, Qty:300000m3
B199: SB2 + spread and compact | D199: SB4 | E199: m3 | F199: First principles | G199: 5.5 | H199: 11 | I199: 0 | J199: 77 | K199: 50 | L199: 102 | M199: ATRL - Civil Moulinette
B200: SB2 + spread and compact | E200: m3 | J200: 77 | K200: 50 | L200: 102
B201: SB2 + spread and compact-10km | D201: SB4A | E201: m3 | F201: First principles | J201: 49.52889504 | M201: ATRL - Civil Moulinette | N201: Schedule Duration (weeks per year):31 week with 9 trucks, Qty:300000m3
B202: SB2 + spread and compact-15km | D202: SB4B | E202: m3 | F202: First principles | J202: 76.689902 | M202: ATRL - Civil Moulinette | N202: Schedule Duration (weeks per year):48 week with 9 trucks, Qty:300000m3
B203: SB2 + spread and compact-20km | D203: SB4C | E203: m3 | F203: First principles | J203: 101.7777586 | M203: ATRL - Civil Moulinette | N203: Schedule Duration (weeks per year):60 week with 10 trucks, Qty:300000m3
B204: Specified activity | D204: SBS | E204: m3 | F204: First principles | G204: 3.2 | H204: 6.3 | M204: TBD | N204: need to be identified
B205: Tailings | D205: SBT | E205: m3 | F205: First principles | G205: 1.35 | H205: 3.7 | I205: 15.5 | M205: ATRL - Civil Moulinette | N205: Schedule Duration (weeks per year):20 week with 8 trucks, Qty:300000m3 (USE Soil excavation rates)
A206: Excavate Soil, High Spec's
B208: excavate/load/short haul | D208: SC1 | E208: m3 | F208: First principles | G208: 6.8 | H208: 9.3 | I208: 0 | J208: 46 | K208: 36 | L208: 50 | M208: ATRL - Civil Moulinette
B209: excavate/load/short haul-1km | D209: SC1A | E209: m3 | F209: First principles | J209: 35.67297525 | M209: ATRL - Civil Moulinette | N209: Schedule Duration (weeks per year):15 week with 4 trucks, Qty:300000m3, including screening | O209: =J209-J227 -> 19.4 | Q209: =K185*1.6 -> 27.2
B210: excavate/load/short haul-3km | D210: SC1B | E210: m3 | F210: First principles | J210: 45.43600342 | M210: ATRL - Civil Moulinette | N210: Schedule Duration (weeks per year):22 week with 5 trucks, Qty:300000m3, including screening | O210: =J210-J228 -> 19.4
B211: excavate/load/short haul-5km | D211: SC1C | E211: m3 | F211: First principles | J211: 49.6433388 | M211: ATRL - Civil Moulinette | N211: Schedule Duration (weeks per year):20 week with 8 trucks, Qty:300000m3, including screening | O211: =J211-J229 -> 19.4
B212: excavate/load/long haul | D212: SC2 | E212: m3 | F212: First principles | G212: 7.1 | H212: 11.75 | I212: 0 | J212: 94 | K212: 70 | L212: 118 | M212: ATRL - Civil Moulinette
B213: excavate/load/long haul-10km | D213: SC2A | E213: m3 | F213: First principles | J213: 69.61844797 | M213: ATRL - Civil Moulinette | N213: Schedule Duration (weeks per year):35 week with 8 trucks, Qty:300000m3, including screening | O213: =J213-J231 -> 19.4
B214: excavate/load/long haul-15km | D214: SC2B | E214: m3 | F214: First principles | J214: 93.00331922 | M214: ATRL - Civil Moulinette | N214: Schedule Duration (weeks per year):48 week with 9trucks, Qty:300000m3, including screening | O214: =J214-J232 -> 19.4
B215: excavate/load/long haul-20km | D215: SC2C | E215: m3 | F215: First principles | J215: 117.3195301 | M215: ATRL - Civil Moulinette | N215: Schedule Duration (weeks per year):60 week with 10 trucks, Qty:300000m3, including screening | O215: =J215-J233 -> 19.4
B216: SC1 + spread and compact | D216: SC3 | E216: m3 | F216: First principles | G216: 8.9 | H216: 14.2 | I216: 0 | J216: 48 | K216: 37 | L216: 52 | M216: ATRL - Civil Moulinette
... 189 more rows

Sheet CPINunavut (hidden)
A1: Year | B1: Annual CPI (2002 Base Period) | C1: Cumulative CPI Change from 2024 | D1: REF_DATE | E1: GEO | F1: DGUID | G1: Products and product groups | H1: UOM | I1: UOM_ID | J1: SCALAR_FACTOR | K1: SCALAR_ID | L1: VECTOR | M1: COORDINATE | N1: VALUE | O1: STATUS | P1: SYMBOL | Q1: TERMINATED | R1: DECIMALS
A2: =IFERROR(VALUE(dtl_downloadDbLoadingData[[#This Row],[REF_DATE]]),"") -> 2019 | B2: =IFERROR(VALUE(dtl_downloadDbLoadingData[[#This Row],[VALUE]]),"") -> 131.4 | D2: 2019 | E2: Iqaluit, Nunavut | F2: 2011A00056204003 | G2: All-items | H2: 2002=100 | I2: 17 | J2: units | K2: 0 | L2: v41713462 | M2: 31.2 | N2: 131.4 | R2: 1
A3: =IFERROR(VALUE(dtl_downloadDbLoadingData[[#This Row],[REF_DATE]]),"") -> 2020 | B3: =IFERROR(VALUE(dtl_downloadDbLoadingData[[#This Row],[VALUE]]),"") -> 131.4 | D3: 2020 | E3: Iqaluit, Nunavut | F3: 2011A00056204003 | G3: All-items | H3: 2002=100 | I3: 17 | J3: units | K3: 0 | L3: v41713462 | M3: 31.2 | N3: 131.4 | R3: 1
A4: =IFERROR(VALUE(dtl_downloadDbLoadingData[[#This Row],[REF_DATE]]),"") -> 2021 | B4: =IFERROR(VALUE(dtl_downloadDbLoadingData[[#This Row],[VALUE]]),"") -> 133.2 | D4: 2021 | E4: Iqaluit, Nunavut | F4: 2011A00056204003 | G4: All-items | H4: 2002=100 | I4: 17 | J4: units | K4: 0 | L4: v41713462 | M4: 31.2 | N4: 133.2 | R4: 1
A5: =IFERROR(VALUE(dtl_downloadDbLoadingData[[#This Row],[REF_DATE]]),"") -> 2022 | B5: =IFERROR(VALUE(dtl_downloadDbLoadingData[[#This Row],[VALUE]]),"") -> 138.4 | D5: 2022 | E5: Iqaluit, Nunavut | F5: 2011A00056204003 | G5: All-items | H5: 2002=100 | I5: 17 | J5: units | K5: 0 | L5: v41713462 | M5: 31.2 | N5: 138.4 | R5: 1
A6: =IFERROR(VALUE(dtl_downloadDbLoadingData[[#This Row],[REF_DATE]]),"") -> 2023 | B6: =IFERROR(VALUE(dtl_downloadDbLoadingData[[#This Row],[VALUE]]),"") -> 141.9 | D6: 2023 | E6: Iqaluit, Nunavut | F6: 2011A00056204003 | G6: All-items | H6: 2002=100 | I6: 17 | J6: units | K6: 0 | L6: v41713462 | M6: 31.2 | N6: 141.9 | R6: 1
A7: =IFERROR(VALUE(dtl_downloadDbLoadingData[[#This Row],[REF_DATE]]),"") -> 0 | B7: =IFERROR(VALUE(dtl_downloadDbLoadingData[[#This Row],[VALUE]]),"") -> 0 | C7: 1
A8: =IFERROR(VALUE(dtl_downloadDbLoadingData[[#This Row],[REF_DATE]]),"") -> 0 | B8: =IFERROR(VALUE(dtl_downloadDbLoadingData[[#This Row],[VALUE]]),"") -> 0 | C8: =IFERROR(C7+((B8/B7)-1),"") -> 
A9: =IFERROR(VALUE(dtl_downloadDbLoadingData[[#This Row],[REF_DATE]]),"") ->  | B9: =IFERROR(VALUE(dtl_downloadDbLoadingData[[#This Row],[VALUE]]),"") -> 
A10: =IFERROR(VALUE(dtl_downloadDbLoadingData[[#This Row],[REF_DATE]]),"") ->  | B10: =IFERROR(VALUE(dtl_downloadDbLoadingData[[#This Row],[VALUE]]),"") -> 
A11: =IFERROR(VALUE(dtl_downloadDbLoadingData[[#This Row],[REF_DATE]]),"") ->  | B11: =IFERROR(VALUE(dtl_downloadDbLoadingData[[#This Row],[VALUE]]),"") -> 
A12: =IFERROR(VALUE(dtl_downloadDbLoadingData[[#This Row],[REF_DATE]]),"") ->  | B12: =IFERROR(VALUE(dtl_downloadDbLoadingData[[#This Row],[VALUE]]),"") -> 
A13: =IFERROR(VALUE(dtl_downloadDbLoadingData[[#This Row],[REF_DATE]]),"") ->  | B13: =IFERROR(VALUE(dtl_downloadDbLoadingData[[#This Row],[VALUE]]),"") -> 
A14: =IFERROR(VALUE(dtl_downloadDbLoadingData[[#This Row],[REF_DATE]]),"") ->  | B14: =IFERROR(VALUE(dtl_downloadDbLoadingData[[#This Row],[VALUE]]),"") -> 
A15: =IFERROR(VALUE(dtl_downloadDbLoadingData[[#This Row],[REF_DATE]]),"") ->  | B15: =IFERROR(VALUE(dtl_downloadDbLoadingData[[#This Row],[VALUE]]),"") -> 
A16: =IFERROR(VALUE(dtl_downloadDbLoadingData[[#This Row],[REF_DATE]]),"") ->  | B16: =IFERROR(VALUE(dtl_downloadDbLoadingData[[#This Row],[VALUE]]),"") -> 
A17: =IFERROR(VALUE(dtl_downloadDbLoadingData[[#This Row],[REF_DATE]]),"") ->  | B17: =IFERROR(VALUE(dtl_downloadDbLoadingData[[#This Row],[VALUE]]),"") -> 
A18: =IFERROR(VALUE(dtl_downloadDbLoadingData[[#This Row],[REF_DATE]]),"") ->  | B18: =IFERROR(VALUE(dtl_downloadDbLoadingData[[#This Row],[VALUE]]),"") -> 
A19: =IFERROR(VALUE(dtl_downloadDbLoadingData[[#This Row],[REF_DATE]]),"") ->  | B19: =IFERROR(VALUE(dtl_downloadDbLoadingData[[#This Row],[VALUE]]),"") -> 
A20: =IFERROR(VALUE(dtl_downloadDbLoadingData[[#This Row],[REF_DATE]]),"") ->  | B20: =IFERROR(VALUE(dtl_downloadDbLoadingData[[#This Row],[VALUE]]),"") -> 
A21: =IFERROR(VALUE(dtl_downloadDbLoadingData[[#This Row],[REF_DATE]]),"") ->  | B21: =IFERROR(VALUE(dtl_downloadDbLoadingData[[#This Row],[VALUE]]),"") -> 
A22: =IFERROR(VALUE(dtl_downloadDbLoadingData[[#This Row],[REF_DATE]]),"") ->  | B22: =IFERROR(VALUE(dtl_downloadDbLoadingData[[#This Row],[VALUE]]),"") -> 
A23: =IFERROR(VALUE(dtl_downloadDbLoadingData[[#This Row],[REF_DATE]]),"") ->  | B23: =IFERROR(VALUE(dtl_downloadDbLoadingData[[#This Row],[VALUE]]),"") -> 
A24: =IFERROR(VALUE(dtl_downloadDbLoadingData[[#This Row],[REF_DATE]]),"") ->  | B24: =IFERROR(VALUE(dtl_downloadDbLoadingData[[#This Row],[VALUE]]),"") -> 
A25: =IFERROR(VALUE(dtl_downloadDbLoadingData[[#This Row],[REF_DATE]]),"") ->  | B25: =IFERROR(VALUE(dtl_downloadDbLoadingData[[#This Row],[VALUE]]),"") -> 
A26: =IFERROR(VALUE(dtl_downloadDbLoadingData[[#This Row],[REF_DATE]]),"") ->  | B26: =IFERROR(VALUE(dtl_downloadDbLoadingData[[#This Row],[VALUE]]),"") -> 
A27: =IFERROR(VALUE(dtl_downloadDbLoadingData[[#This Row],[REF_DATE]]),"") ->  | B27: =IFERROR(VALUE(dtl_downloadDbLoadingData[[#This Row],[VALUE]]),"") -> 
A28: =IFERROR(VALUE(dtl_downloadDbLoadingData[[#This Row],[REF_DATE]]),"") ->  | B28: =IFERROR(VALUE(dtl_downloadDbLoadingData[[#This Row],[VALUE]]),"") -> 
A29: =IFERROR(VALUE(dtl_downloadDbLoadingData[[#This Row],[REF_DATE]]),"") ->  | B29: =IFERROR(VALUE(dtl_downloadDbLoadingData[[#This Row],[VALUE]]),"") -> 
A30: =IFERROR(VALUE(dtl_downloadDbLoadingData[[#This Row],[REF_DATE]]),"") ->  | B30: =IFERROR(VALUE(dtl_downloadDbLoadingData[[#This Row],[VALUE]]),"") -> 
A31: =IFERROR(VALUE(dtl_downloadDbLoadingData[[#This Row],[REF_DATE]]),"") ->  | B31: =IFERROR(VALUE(dtl_downloadDbLoadingData[[#This Row],[VALUE]]),"") -> 
A32: =IFERROR(VALUE(dtl_downloadDbLoadingData[[#This Row],[REF_DATE]]),"") ->  | B32: =IFERROR(VALUE(dtl_downloadDbLoadingData[[#This Row],[VALUE]]),"") -> 
A33: =IFERROR(VALUE(dtl_downloadDbLoadingData[[#This Row],[REF_DATE]]),"") ->  | B33: =IFERROR(VALUE(dtl_downloadDbLoadingData[[#This Row],[VALUE]]),"") -> 
A34: =IFERROR(VALUE(dtl_downloadDbLoadingData[[#This Row],[REF_DATE]]),"") ->  | B34: =IFERROR(VALUE(dtl_downloadDbLoadingData[[#This Row],[VALUE]]),"") -> 
A35: =IFERROR(VALUE(dtl_downloadDbLoadingData[[#This Row],[REF_DATE]]),"") ->  | B35: =IFERROR(VALUE(dtl_downloadDbLoadingData[[#This Row],[VALUE]]),"") -> 
A36: =IFERROR(VALUE(dtl_downloadDbLoadingData[[#This Row],[REF_DATE]]),"") ->  | B36: =IFERROR(VALUE(dtl_downloadDbLoadingData[[#This Row],[VALUE]]),"") -> 
A37: =IFERROR(VALUE(dtl_downloadDbLoadingData[[#This Row],[REF_DATE]]),"") ->  | B37: =IFERROR(VALUE(dtl_downloadDbLoadingData[[#This Row],[VALUE]]),"") -> 
A38: =IFERROR(VALUE(dtl_downloadDbLoadingData[[#This Row],[REF_DATE]]),"") ->  | B38: =IFERROR(VALUE(dtl_downloadDbLoadingData[[#This Row],[VALUE]]),"") -> 
A39: =IFERROR(VALUE(dtl_downloadDbLoadingData[[#This Row],[REF_DATE]]),"") ->  | B39: =IFERROR(VALUE(dtl_downloadDbLoadingData[[#This Row],[VALUE]]),"") -> 
A40: =IFERROR(VALUE(dtl_downloadDbLoadingData[[#This Row],[REF_DATE]]),"") ->  | B40: =IFERROR(VALUE(dtl_downloadDbLoadingData[[#This Row],[VALUE]]),"") -> 
A41: =IFERROR(VALUE(dtl_downloadDbLoadingData[[#This Row],[REF_DATE]]),"") ->  | B41: =IFERROR(VALUE(dtl_downloadDbLoadingData[[#This Row],[VALUE]]),"") -> 
A42: =IFERROR(VALUE(dtl_downloadDbLoadingData[[#This Row],[REF_DATE]]),"") ->  | B42: =IFERROR(VALUE(dtl_downloadDbLoadingData[[#This Row],[VALUE]]),"") -> 
A43: =IFERROR(VALUE(dtl_downloadDbLoadingData[[#This Row],[REF_DATE]]),"") ->  | B43: =IFERROR(VALUE(dtl_downloadDbLoadingData[[#This Row],[VALUE]]),"") -> 
A44: =IFERROR(VALUE(dtl_downloadDbLoadingData[[#This Row],[REF_DATE]]),"") ->  | B44: =IFERROR(VALUE(dtl_downloadDbLoadingData[[#This Row],[VALUE]]),"") -> 
A45: =IFERROR(VALUE(dtl_downloadDbLoadingData[[#This Row],[REF_DATE]]),"") ->  | B45: =IFERROR(VALUE(dtl_downloadDbLoadingData[[#This Row],[VALUE]]),"") -> 
A46: =IFERROR(VALUE(dtl_downloadDbLoadingData[[#This Row],[REF_DATE]]),"") ->  | B46: =IFERROR(VALUE(dtl_downloadDbLoadingData[[#This Row],[VALUE]]),"") -> 
A47: =IFERROR(VALUE(dtl_downloadDbLoadingData[[#This Row],[REF_DATE]]),"") ->  | B47: =IFERROR(VALUE(dtl_downloadDbLoadingData[[#This Row],[VALUE]]),"") -> 
A48: =IFERROR(VALUE(dtl_downloadDbLoadingData[[#This Row],[REF_DATE]]),"") ->  | B48: =IFERROR(VALUE(dtl_downloadDbLoadingData[[#This Row],[VALUE]]),"") -> 
A49: =IFERROR(VALUE(dtl_downloadDbLoadingData[[#This Row],[REF_DATE]]),"") ->  | B49: =IFERROR(VALUE(dtl_downloadDbLoadingData[[#This Row],[VALUE]]),"") -> 
A50: =IFERROR(VALUE(dtl_downloadDbLoadingData[[#This Row],[REF_DATE]]),"") ->  | B50: =IFERROR(VALUE(dtl_downloadDbLoadingData[[#This Row],[VALUE]]),"") -> 
A51: =IFERROR(VALUE(dtl_downloadDbLoadingData[[#This Row],[REF_DATE]]),"") ->  | B51: =IFERROR(VALUE(dtl_downloadDbLoadingData[[#This Row],[VALUE]]),"") -> 
A52: =IFERROR(VALUE(dtl_downloadDbLoadingData[[#This Row],[REF_DATE]]),"") ->  | B52: =IFERROR(VALUE(dtl_downloadDbLoadingData[[#This Row],[VALUE]]),"") -> 
A53: =IFERROR(VALUE(dtl_downloadDbLoadingData[[#This Row],[REF_DATE]]),"") ->  | B53: =IFERROR(VALUE(dtl_downloadDbLoadingData[[#This Row],[VALUE]]),"") -> 
A54: =IFERROR(VALUE(dtl_downloadDbLoadingData[[#This Row],[REF_DATE]]),"") ->  | B54: =IFERROR(VALUE(dtl_downloadDbLoadingData[[#This Row],[VALUE]]),"") -> 
A55: =IFERROR(VALUE(dtl_downloadDbLoadingData[[#This Row],[REF_DATE]]),"") ->  | B55: =IFERROR(VALUE(dtl_downloadDbLoadingData[[#This Row],[VALUE]]),"") -> 
A56: =IFERROR(VALUE(dtl_downloadDbLoadingData[[#This Row],[REF_DATE]]),"") ->  | B56: =IFERROR(VALUE(dtl_downloadDbLoadingData[[#This Row],[VALUE]]),"") -> 
A57: =IFERROR(VALUE(dtl_downloadDbLoadingData[[#This Row],[REF_DATE]]),"") ->  | B57: =IFERROR(VALUE(dtl_downloadDbLoadingData[[#This Row],[VALUE]]),"") -> 
A58: =IFERROR(VALUE(dtl_downloadDbLoadingData[[#This Row],[REF_DATE]]),"") ->  | B58: =IFERROR(VALUE(dtl_downloadDbLoadingData[[#This Row],[VALUE]]),"") -> 
A59: =IFERROR(VALUE(dtl_downloadDbLoadingData[[#This Row],[REF_DATE]]),"") ->  | B59: =IFERROR(VALUE(dtl_downloadDbLoadingData[[#This Row],[VALUE]]),"") -> 
A60: =IFERROR(VALUE(dtl_downloadDbLoadingData[[#This Row],[REF_DATE]]),"") ->  | B60: =IFERROR(VALUE(dtl_downloadDbLoadingData[[#This Row],[VALUE]]),"") -> 
A61: =IFERROR(VALUE(dtl_downloadDbLoadingData[[#This Row],[REF_DATE]]),"") ->  | B61: =IFERROR(VALUE(dtl_downloadDbLoadingData[[#This Row],[VALUE]]),"") -> 
A62: =IFERROR(VALUE(dtl_downloadDbLoadingData[[#This Row],[REF_DATE]]),"") ->  | B62: =IFERROR(VALUE(dtl_downloadDbLoadingData[[#This Row],[VALUE]]),"") -> 
A63: =IFERROR(VALUE(dtl_downloadDbLoadingData[[#This Row],[REF_DATE]]),"") ->  | B63: =IFERROR(VALUE(dtl_downloadDbLoadingData[[#This Row],[VALUE]]),"") -> 
A64: =IFERROR(VALUE(dtl_downloadDbLoadingData[[#This Row],[REF_DATE]]),"") ->  | B64: =IFERROR(VALUE(dtl_downloadDbLoadingData[[#This Row],[VALUE]]),"") -> 
A65: =IFERROR(VALUE(dtl_downloadDbLoadingData[[#This Row],[REF_DATE]]),"") ->  | B65: =IFERROR(VALUE(dtl_downloadDbLoadingData[[#This Row],[VALUE]]),"") -> 
A66: =IFERROR(VALUE(dtl_downloadDbLoadingData[[#This Row],[REF_DATE]]),"") ->  | B66: =IFERROR(VALUE(dtl_downloadDbLoadingData[[#This Row],[VALUE]]),"") -> 
A67: =IFERROR(VALUE(dtl_downloadDbLoadingData[[#This Row],[REF_DATE]]),"") ->  | B67: =IFERROR(VALUE(dtl_downloadDbLoadingData[[#This Row],[VALUE]]),"") -> 
A68: =IFERROR(VALUE(dtl_downloadDbLoadingData[[#This Row],[REF_DATE]]),"") ->  | B68: =IFERROR(VALUE(dtl_downloadDbLoadingData[[#This Row],[VALUE]]),"") ->  | C68: =IFERROR(C67+((B68/B67)-1),"") -> 
A69: =IFERROR(VALUE(dtl_downloadDbLoadingData[[#This Row],[REF_DATE]]),"") ->  | B69: =IFERROR(VALUE(dtl_downloadDbLoadingData[[#This Row],[VALUE]]),"") -> 
A70: =IFERROR(VALUE(dtl_downloadDbLoadingData[[#This Row],[REF_DATE]]),"") ->  | B70: =IFERROR(VALUE(dtl_downloadDbLoadingData[[#This Row],[VALUE]]),"") -> 
A71: =IFERROR(VALUE(dtl_downloadDbLoadingData[[#This Row],[REF_DATE]]),"") ->  | B71: =IFERROR(VALUE(dtl_downloadDbLoadingData[[#This Row],[VALUE]]),"") -> 
A72: =IFERROR(VALUE(dtl_downloadDbLoadingData[[#This Row],[REF_DATE]]),"") ->  | B72: =IFERROR(VALUE(dtl_downloadDbLoadingData[[#This Row],[VALUE]]),"") -> 
A73: =IFERROR(VALUE(dtl_downloadDbLoadingData[[#This Row],[REF_DATE]]),"") ->  | B73: =IFERROR(VALUE(dtl_downloadDbLoadingData[[#This Row],[VALUE]]),"") -> 
A74: =IFERROR(VALUE(dtl_downloadDbLoadingData[[#This Row],[REF_DATE]]),"") ->  | B74: =IFERROR(VALUE(dtl_downloadDbLoadingData[[#This Row],[VALUE]]),"") -> 
A75: =IFERROR(VALUE(dtl_downloadDbLoadingData[[#This Row],[REF_DATE]]),"") ->  | B75: =IFERROR(VALUE(dtl_downloadDbLoadingData[[#This Row],[VALUE]]),"") -> 
A76: =IFERROR(VALUE(dtl_downloadDbLoadingData[[#This Row],[REF_DATE]]),"") ->  | B76: =IFERROR(VALUE(dtl_downloadDbLoadingData[[#This Row],[VALUE]]),"") -> 
A77: =IFERROR(VALUE(dtl_downloadDbLoadingData[[#This Row],[REF_DATE]]),"") ->  | B77: =IFERROR(VALUE(dtl_downloadDbLoadingData[[#This Row],[VALUE]]),"") -> 
A78: =IFERROR(VALUE(dtl_downloadDbLoadingData[[#This Row],[REF_DATE]]),"") ->  | B78: =IFERROR(VALUE(dtl_downloadDbLoadingData[[#This Row],[VALUE]]),"") -> 
A79: =IFERROR(VALUE(dtl_downloadDbLoadingData[[#This Row],[REF_DATE]]),"") ->  | B79: =IFERROR(VALUE(dtl_downloadDbLoadingData[[#This Row],[VALUE]]),"") -> 
A80: =IFERROR(VALUE(dtl_downloadDbLoadingData[[#This Row],[REF_DATE]]),"") ->  | B80: =IFERROR(VALUE(dtl_downloadDbLoadingData[[#This Row],[VALUE]]),"") -> 
A81: =IFERROR(VALUE(dtl_downloadDbLoadingData[[#This Row],[REF_DATE]]),"") ->  | B81: =IFERROR(VALUE(dtl_downloadDbLoadingData[[#This Row],[VALUE]]),"") -> 
A82: =IFERROR(VALUE(dtl_downloadDbLoadingData[[#This Row],[REF_DATE]]),"") ->  | B82: =IFERROR(VALUE(dtl_downloadDbLoadingData[[#This Row],[VALUE]]),"") -> 
A83: =IFERROR(VALUE(dtl_downloadDbLoadingData[[#This Row],[REF_DATE]]),"") ->  | B83: =IFERROR(VALUE(dtl_downloadDbLoadingData[[#This Row],[VALUE]]),"") -> 
A84: =IFERROR(VALUE(dtl_downloadDbLoadingData[[#This Row],[REF_DATE]]),"") ->  | B84: =IFERROR(VALUE(dtl_downloadDbLoadingData[[#This Row],[VALUE]]),"") -> 
A85: =IFERROR(VALUE(dtl_downloadDbLoadingData[[#This Row],[REF_DATE]]),"") ->  | B85: =IFERROR(VALUE(dtl_downloadDbLoadingData[[#This Row],[VALUE]]),"") -> 
A86: =IFERROR(VALUE(dtl_downloadDbLoadingData[[#This Row],[REF_DATE]]),"") ->  | B86: =IFERROR(VALUE(dtl_downloadDbLoadingData[[#This Row],[VALUE]]),"") -> 
A87: =IFERROR(VALUE(dtl_downloadDbLoadingData[[#This Row],[REF_DATE]]),"") ->  | B87: =IFERROR(VALUE(dtl_downloadDbLoadingData[[#This Row],[VALUE]]),"") -> 
A88: =IFERROR(VALUE(dtl_downloadDbLoadingData[[#This Row],[REF_DATE]]),"") ->  | B88: =IFERROR(VALUE(dtl_downloadDbLoadingData[[#This Row],[VALUE]]),"") -> 
A89: =IFERROR(VALUE(dtl_downloadDbLoadingData[[#This Row],[REF_DATE]]),"") ->  | B89: =IFERROR(VALUE(dtl_downloadDbLoadingData[[#This Row],[VALUE]]),"") -> 
A90: =IFERROR(VALUE(dtl_downloadDbLoadingData[[#This Row],[REF_DATE]]),"") ->  | B90: =IFERROR(VALUE(dtl_downloadDbLoadingData[[#This Row],[VALUE]]),"") -> 
A91: =IFERROR(VALUE(dtl_downloadDbLoadingData[[#This Row],[REF_DATE]]),"") ->  | B91: =IFERROR(VALUE(dtl_downloadDbLoadingData[[#This Row],[VALUE]]),"") -> 
A92: =IFERROR(VALUE(dtl_downloadDbLoadingData[[#This Row],[REF_DATE]]),"") ->  | B92: =IFERROR(VALUE(dtl_downloadDbLoadingData[[#This Row],[VALUE]]),"") -> 
A93: =IFERROR(VALUE(dtl_downloadDbLoadingData[[#This Row],[REF_DATE]]),"") ->  | B93: =IFERROR(VALUE(dtl_downloadDbLoadingData[[#This Row],[VALUE]]),"") -> 
A94: =IFERROR(VALUE(dtl_downloadDbLoadingData[[#This Row],[REF_DATE]]),"") ->  | B94: =IFERROR(VALUE(dtl_downloadDbLoadingData[[#This Row],[VALUE]]),"") -> 
A95: =IFERROR(VALUE(dtl_downloadDbLoadingData[[#This Row],[REF_DATE]]),"") ->  | B95: =IFERROR(VALUE(dtl_downloadDbLoadingData[[#This Row],[VALUE]]),"") -> 
A96: =IFERROR(VALUE(dtl_downloadDbLoadingData[[#This Row],[REF_DATE]]),"") ->  | B96: =IFERROR(VALUE(dtl_downloadDbLoadingData[[#This Row],[VALUE]]),"") -> 
A97: =IFERROR(VALUE(dtl_downloadDbLoadingData[[#This Row],[REF_DATE]]),"") ->  | B97: =IFERROR(VALUE(dtl_downloadDbLoadingData[[#This Row],[VALUE]]),"") -> 
A98: =IFERROR(VALUE(dtl_downloadDbLoadingData[[#This Row],[REF_DATE]]),"") ->  | B98: =IFERROR(VALUE(dtl_downloadDbLoadingData[[#This Row],[VALUE]]),"") -> 
A99: =IFERROR(VALUE(dtl_downloadDbLoadingData[[#This Row],[REF_DATE]]),"") ->  | B99: =IFERROR(VALUE(dtl_downloadDbLoadingData[[#This Row],[VALUE]]),"") -> 
A100: =IFERROR(VALUE(dtl_downloadDbLoadingData[[#This Row],[REF_DATE]]),"") ->  | B100: =IFERROR(VALUE(dtl_downloadDbLoadingData[[#This Row],[VALUE]]),"") -> 
A101: =IFERROR(VALUE(dtl_downloadDbLoadingData[[#This Row],[REF_DATE]]),"") ->  | B101: =IFERROR(VALUE(dtl_downloadDbLoadingData[[#This Row],[VALUE]]),"") -> 
A102: =IFERROR(VALUE(dtl_downloadDbLoadingData[[#This Row],[REF_DATE]]),"") ->  | B102: =IFERROR(VALUE(dtl_downloadDbLoadingData[[#This Row],[VALUE]]),"") -> 
A103: =IFERROR(VALUE(dtl_downloadDbLoadingData[[#This Row],[REF_DATE]]),"") ->  | B103: =IFERROR(VALUE(dtl_downloadDbLoadingData[[#This Row],[VALUE]]),"") -> 
A104: =IFERROR(VALUE(dtl_downloadDbLoadingData[[#This Row],[REF_DATE]]),"") ->  | B104: =IFERROR(VALUE(dtl_downloadDbLoadingData[[#This Row],[VALUE]]),"") -> 
A105: =IFERROR(VALUE(dtl_downloadDbLoadingData[[#This Row],[REF_DATE]]),"") ->  | B105: =IFERROR(VALUE(dtl_downloadDbLoadingData[[#This Row],[VALUE]]),"") -> 
A106: =IFERROR(VALUE(dtl_downloadDbLoadingData[[#This Row],[REF_DATE]]),"") ->  | B106: =IFERROR(VALUE(dtl_downloadDbLoadingData[[#This Row],[VALUE]]),"") -> 
A107: =IFERROR(VALUE(dtl_downloadDbLoadingData[[#This Row],[REF_DATE]]),"") ->  | B107: =IFERROR(VALUE(dtl_downloadDbLoadingData[[#This Row],[VALUE]]),"") -> 
A108: =IFERROR(VALUE(dtl_downloadDbLoadingData[[#This Row],[REF_DATE]]),"") ->  | B108: =IFERROR(VALUE(dtl_downloadDbLoadingData[[#This Row],[VALUE]]),"") -> 
A109: =IFERROR(VALUE(dtl_downloadDbLoadingData[[#This Row],[REF_DATE]]),"") ->  | B109: =IFERROR(VALUE(dtl_downloadDbLoadingData[[#This Row],[VALUE]]),"") -> 
A110: =IFERROR(VALUE(dtl_downloadDbLoadingData[[#This Row],[REF_DATE]]),"") ->  | B110: =IFERROR(VALUE(dtl_downloadDbLoadingData[[#This Row],[VALUE]]),"") -> 
A111: =IFERROR(VALUE(dtl_downloadDbLoadingData[[#This Row],[REF_DATE]]),"") ->  | B111: =IFERROR(VALUE(dtl_downloadDbLoadingData[[#This Row],[VALUE]]),"") -> 
A112: =IFERROR(VALUE(dtl_downloadDbLoadingData[[#This Row],[REF_DATE]]),"") ->  | B112: =IFERROR(VALUE(dtl_downloadDbLoadingData[[#This Row],[VALUE]]),"") -> 
A113: =IFERROR(VALUE(dtl_downloadDbLoadingData[[#This Row],[REF_DATE]]),"") ->  | B113: =IFERROR(VALUE(dtl_downloadDbLoadingData[[#This Row],[VALUE]]),"") -> 
A114: =IFERROR(VALUE(dtl_downloadDbLoadingData[[#This Row],[REF_DATE]]),"") ->  | B114: =IFERROR(VALUE(dtl_downloadDbLoadingData[[#This Row],[VALUE]]),"") -> 
A115: =IFERROR(VALUE(dtl_downloadDbLoadingData[[#This Row],[REF_DATE]]),"") ->  | B115: =IFERROR(VALUE(dtl_downloadDbLoadingData[[#This Row],[VALUE]]),"") -> 
A116: =IFERROR(VALUE(dtl_downloadDbLoadingData[[#This Row],[REF_DATE]]),"") ->  | B116: =IFERROR(VALUE(dtl_downloadDbLoadingData[[#This Row],[VALUE]]),"") -> 
A117: =IFERROR(VALUE(dtl_downloadDbLoadingData[[#This Row],[REF_DATE]]),"") ->  | B117: =IFERROR(VALUE(dtl_downloadDbLoadingData[[#This Row],[VALUE]]),"") -> 
A118: =IFERROR(VALUE(dtl_downloadDbLoadingData[[#This Row],[REF_DATE]]),"") ->  | B118: =IFERROR(VALUE(dtl_downloadDbLoadingData[[#This Row],[VALUE]]),"") -> 
A119: =IFERROR(VALUE(dtl_downloadDbLoadingData[[#This Row],[REF_DATE]]),"") ->  | B119: =IFERROR(VALUE(dtl_downloadDbLoadingData[[#This Row],[VALUE]]),"") -> 
A120: =IFERROR(VALUE(dtl_downloadDbLoadingData[[#This Row],[REF_DATE]]),"") ->  | B120: =IFERROR(VALUE(dtl_downloadDbLoadingData[[#This Row],[VALUE]]),"") -> 
A121: =IFERROR(VALUE(dtl_downloadDbLoadingData[[#This Row],[REF_DATE]]),"") ->  | B121: =IFERROR(VALUE(dtl_downloadDbLoadingData[[#This Row],[VALUE]]),"") -> 
A122: =IFERROR(VALUE(dtl_downloadDbLoadingData[[#This Row],[REF_DATE]]),"") ->  | B122: =IFERROR(VALUE(dtl_downloadDbLoadingData[[#This Row],[VALUE]]),"") -> 
A123: =IFERROR(VALUE(dtl_downloadDbLoadingData[[#This Row],[REF_DATE]]),"") ->  | B123: =IFERROR(VALUE(dtl_downloadDbLoadingData[[#This Row],[VALUE]]),"") -> 
A124: =IFERROR(VALUE(dtl_downloadDbLoadingData[[#This Row],[REF_DATE]]),"") ->  | B124: =IFERROR(VALUE(dtl_downloadDbLoadingData[[#This Row],[VALUE]]),"") -> 
A125: =IFERROR(VALUE(dtl_downloadDbLoadingData[[#This Row],[REF_DATE]]),"") ->  | B125: =IFERROR(VALUE(dtl_downloadDbLoadingData[[#This Row],[VALUE]]),"") -> 
A126: =IFERROR(VALUE(dtl_downloadDbLoadingData[[#This Row],[REF_DATE]]),"") ->  | B126: =IFERROR(VALUE(dtl_downloadDbLoadingData[[#This Row],[VALUE]]),"") -> 
A127: =IFERROR(VALUE(dtl_downloadDbLoadingData[[#This Row],[REF_DATE]]),"") ->  | B127: =IFERROR(VALUE(dtl_downloadDbLoadingData[[#This Row],[VALUE]]),"") -> 
A128: =IFERROR(VALUE(dtl_downloadDbLoadingData[[#This Row],[REF_DATE]]),"") ->  | B128: =IFERROR(VALUE(dtl_downloadDbLoadingData[[#This Row],[VALUE]]),"") -> 
A129: =IFERROR(VALUE(dtl_downloadDbLoadingData[[#This Row],[REF_DATE]]),"") ->  | B129: =IFERROR(VALUE(dtl_downloadDbLoadingData[[#This Row],[VALUE]]),"") -> 
A130: =IFERROR(VALUE(dtl_downloadDbLoadingData[[#This Row],[REF_DATE]]),"") ->  | B130: =IFERROR(VALUE(dtl_downloadDbLoadingData[[#This Row],[VALUE]]),"") -> 
A131: =IFERROR(VALUE(dtl_downloadDbLoadingData[[#This Row],[REF_DATE]]),"") ->  | B131: =IFERROR(VALUE(dtl_downloadDbLoadingData[[#This Row],[VALUE]]),"") -> 
A132: =IFERROR(VALUE(dtl_downloadDbLoadingData[[#This Row],[REF_DATE]]),"") ->  | B132: =IFERROR(VALUE(dtl_downloadDbLoadingData[[#This Row],[VALUE]]),"") ->  | C132: =IFERROR(C131+((B132/B131)-1),"") -> 
A133: =IFERROR(VALUE(dtl_downloadDbLoadingData[[#This Row],[REF_DATE]]),"") ->  | B133: =IFERROR(VALUE(dtl_downloadDbLoadingData[[#This Row],[VALUE]]),"") -> 
A134: =IFERROR(VALUE(dtl_downloadDbLoadingData[[#This Row],[REF_DATE]]),"") ->  | B134: =IFERROR(VALUE(dtl_downloadDbLoadingData[[#This Row],[VALUE]]),"") -> 
A135: =IFERROR(VALUE(dtl_downloadDbLoadingData[[#This Row],[REF_DATE]]),"") ->  | B135: =IFERROR(VALUE(dtl_downloadDbLoadingData[[#This Row],[VALUE]]),"") -> 
A136: =IFERROR(VALUE(dtl_downloadDbLoadingData[[#This Row],[REF_DATE]]),"") ->  | B136: =IFERROR(VALUE(dtl_downloadDbLoadingData[[#This Row],[VALUE]]),"") -> 
A137: =IFERROR(VALUE(dtl_downloadDbLoadingData[[#This Row],[REF_DATE]]),"") ->  | B137: =IFERROR(VALUE(dtl_downloadDbLoadingData[[#This Row],[VALUE]]),"") -> 
A138: =IFERROR(VALUE(dtl_downloadDbLoadingData[[#This Row],[REF_DATE]]),"") ->  | B138: =IFERROR(VALUE(dtl_downloadDbLoadingData[[#This Row],[VALUE]]),"") -> 
A139: =IFERROR(VALUE(dtl_downloadDbLoadingData[[#This Row],[REF_DATE]]),"") ->  | B139: =IFERROR(VALUE(dtl_downloadDbLoadingData[[#This Row],[VALUE]]),"") -> 
A140: =IFERROR(VALUE(dtl_downloadDbLoadingData[[#This Row],[REF_DATE]]),"") ->  | B140: =IFERROR(VALUE(dtl_downloadDbLoadingData[[#This Row],[VALUE]]),"") -> 
A141: =IFERROR(VALUE(dtl_downloadDbLoadingData[[#This Row],[REF_DATE]]),"") ->  | B141: =IFERROR(VALUE(dtl_downloadDbLoadingData[[#This Row],[VALUE]]),"") -> 
A142: =IFERROR(VALUE(dtl_downloadDbLoadingData[[#This Row],[REF_DATE]]),"") ->  | B142: =IFERROR(VALUE(dtl_downloadDbLoadingData[[#This Row],[VALUE]]),"") -> 
A143: =IFERROR(VALUE(dtl_downloadDbLoadingData[[#This Row],[REF_DATE]]),"") ->  | B143: =IFERROR(VALUE(dtl_downloadDbLoadingData[[#This Row],[VALUE]]),"") -> 
A144: =IFERROR(VALUE(dtl_downloadDbLoadingData[[#This Row],[REF_DATE]]),"") ->  | B144: =IFERROR(VALUE(dtl_downloadDbLoadingData[[#This Row],[VALUE]]),"") -> 
A145: =IFERROR(VALUE(dtl_downloadDbLoadingData[[#This Row],[REF_DATE]]),"") ->  | B145: =IFERROR(VALUE(dtl_downloadDbLoadingData[[#This Row],[VALUE]]),"") -> 
A146: =IFERROR(VALUE(dtl_downloadDbLoadingData[[#This Row],[REF_DATE]]),"") ->  | B146: =IFERROR(VALUE(dtl_downloadDbLoadingData[[#This Row],[VALUE]]),"") -> 
A147: =IFERROR(VALUE(dtl_downloadDbLoadingData[[#This Row],[REF_DATE]]),"") ->  | B147: =IFERROR(VALUE(dtl_downloadDbLoadingData[[#This Row],[VALUE]]),"") -> 
A148: =IFERROR(VALUE(dtl_downloadDbLoadingData[[#This Row],[REF_DATE]]),"") ->  | B148: =IFERROR(VALUE(dtl_downloadDbLoadingData[[#This Row],[VALUE]]),"") -> 
A149: =IFERROR(VALUE(dtl_downloadDbLoadingData[[#This Row],[REF_DATE]]),"") ->  | B149: =IFERROR(VALUE(dtl_downloadDbLoadingData[[#This Row],[VALUE]]),"") -> 
A150: =IFERROR(VALUE(dtl_downloadDbLoadingData[[#This Row],[REF_DATE]]),"") ->  | B150: =IFERROR(VALUE(dtl_downloadDbLoadingData[[#This Row],[VALUE]]),"") -> 
A151: =IFERROR(VALUE(dtl_downloadDbLoadingData[[#This Row],[REF_DATE]]),"") ->  | B151: =IFERROR(VALUE(dtl_downloadDbLoadingData[[#This Row],[VALUE]]),"") -> 
A152: =IFERROR(VALUE(dtl_downloadDbLoadingData[[#This Row],[REF_DATE]]),"") ->  | B152: =IFERROR(VALUE(dtl_downloadDbLoadingData[[#This Row],[VALUE]]),"") -> 
A153: =IFERROR(VALUE(dtl_downloadDbLoadingData[[#This Row],[REF_DATE]]),"") ->  | B153: =IFERROR(VALUE(dtl_downloadDbLoadingData[[#This Row],[VALUE]]),"") -> 
A154: =IFERROR(VALUE(dtl_downloadDbLoadingData[[#This Row],[REF_DATE]]),"") ->  | B154: =IFERROR(VALUE(dtl_downloadDbLoadingData[[#This Row],[VALUE]]),"") -> 
A155: =IFERROR(VALUE(dtl_downloadDbLoadingData[[#This Row],[REF_DATE]]),"") ->  | B155: =IFERROR(VALUE(dtl_downloadDbLoadingData[[#This Row],[VALUE]]),"") -> 
A156: =IFERROR(VALUE(dtl_downloadDbLoadingData[[#This Row],[REF_DATE]]),"") ->  | B156: =IFERROR(VALUE(dtl_downloadDbLoadingData[[#This Row],[VALUE]]),"") -> 
A157: =IFERROR(VALUE(dtl_downloadDbLoadingData[[#This Row],[REF_DATE]]),"") ->  | B157: =IFERROR(VALUE(dtl_downloadDbLoadingData[[#This Row],[VALUE]]),"") -> 
A158: =IFERROR(VALUE(dtl_downloadDbLoadingData[[#This Row],[REF_DATE]]),"") ->  | B158: =IFERROR(VALUE(dtl_downloadDbLoadingData[[#This Row],[VALUE]]),"") -> 
A159: =IFERROR(VALUE(dtl_downloadDbLoadingData[[#This Row],[REF_DATE]]),"") ->  | B159: =IFERROR(VALUE(dtl_downloadDbLoadingData[[#This Row],[VALUE]]),"") -> 
A160: =IFERROR(VALUE(dtl_downloadDbLoadingData[[#This Row],[REF_DATE]]),"") ->  | B160: =IFERROR(VALUE(dtl_downloadDbLoadingData[[#This Row],[VALUE]]),"") -> 
A161: =IFERROR(VALUE(dtl_downloadDbLoadingData[[#This Row],[REF_DATE]]),"") ->  | B161: =IFERROR(VALUE(dtl_downloadDbLoadingData[[#This Row],[VALUE]]),"") -> 
A162: =IFERROR(VALUE(dtl_downloadDbLoadingData[[#This Row],[REF_DATE]]),"") ->  | B162: =IFERROR(VALUE(dtl_downloadDbLoadingData[[#This Row],[VALUE]]),"") -> 
A163: =IFERROR(VALUE(dtl_downloadDbLoadingData[[#This Row],[REF_DATE]]),"") ->  | B163: =IFERROR(VALUE(dtl_downloadDbLoadingData[[#This Row],[VALUE]]),"") -> 
A164: =IFERROR(VALUE(dtl_downloadDbLoadingData[[#This Row],[REF_DATE]]),"") ->  | B164: =IFERROR(VALUE(dtl_downloadDbLoadingData[[#This Row],[VALUE]]),"") -> 
A165: =IFERROR(VALUE(dtl_downloadDbLoadingData[[#This Row],[REF_DATE]]),"") ->  | B165: =IFERROR(VALUE(dtl_downloadDbLoadingData[[#This Row],[VALUE]]),"") -> 
A166: =IFERROR(VALUE(dtl_downloadDbLoadingData[[#This Row],[REF_DATE]]),"") ->  | B166: =IFERROR(VALUE(dtl_downloadDbLoadingData[[#This Row],[VALUE]]),"") -> 
A167: =IFERROR(VALUE(dtl_downloadDbLoadingData[[#This Row],[REF_DATE]]),"") ->  | B167: =IFERROR(VALUE(dtl_downloadDbLoadingData[[#This Row],[VALUE]]),"") -> 
A168: =IFERROR(VALUE(dtl_downloadDbLoadingData[[#This Row],[REF_DATE]]),"") ->  | B168: =IFERROR(VALUE(dtl_downloadDbLoadingData[[#This Row],[VALUE]]),"") -> 
A169: =IFERROR(VALUE(dtl_downloadDbLoadingData[[#This Row],[REF_DATE]]),"") ->  | B169: =IFERROR(VALUE(dtl_downloadDbLoadingData[[#This Row],[VALUE]]),"") -> 
A170: =IFERROR(VALUE(dtl_downloadDbLoadingData[[#This Row],[REF_DATE]]),"") ->  | B170: =IFERROR(VALUE(dtl_downloadDbLoadingData[[#This Row],[VALUE]]),"") -> 
A171: =IFERROR(VALUE(dtl_downloadDbLoadingData[[#This Row],[REF_DATE]]),"") ->  | B171: =IFERROR(VALUE(dtl_downloadDbLoadingData[[#This Row],[VALUE]]),"") -> 
A172: =IFERROR(VALUE(dtl_downloadDbLoadingData[[#This Row],[REF_DATE]]),"") ->  | B172: =IFERROR(VALUE(dtl_downloadDbLoadingData[[#This Row],[VALUE]]),"") -> 
A173: =IFERROR(VALUE(dtl_downloadDbLoadingData[[#This Row],[REF_DATE]]),"") ->  | B173: =IFERROR(VALUE(dtl_downloadDbLoadingData[[#This Row],[VALUE]]),"") -> 
A174: =IFERROR(VALUE(dtl_downloadDbLoadingData[[#This Row],[REF_DATE]]),"") ->  | B174: =IFERROR(VALUE(dtl_downloadDbLoadingData[[#This Row],[VALUE]]),"") -> 
A175: =IFERROR(VALUE(dtl_downloadDbLoadingData[[#This Row],[REF_DATE]]),"") ->  | B175: =IFERROR(VALUE(dtl_downloadDbLoadingData[[#This Row],[VALUE]]),"") -> 
A176: =IFERROR(VALUE(dtl_downloadDbLoadingData[[#This Row],[REF_DATE]]),"") ->  | B176: =IFERROR(VALUE(dtl_downloadDbLoadingData[[#This Row],[VALUE]]),"") -> 
A177: =IFERROR(VALUE(dtl_downloadDbLoadingData[[#This Row],[REF_DATE]]),"") ->  | B177: =IFERROR(VALUE(dtl_downloadDbLoadingData[[#This Row],[VALUE]]),"") -> 
A178: =IFERROR(VALUE(dtl_downloadDbLoadingData[[#This Row],[REF_DATE]]),"") ->  | B178: =IFERROR(VALUE(dtl_downloadDbLoadingData[[#This Row],[VALUE]]),"") -> 
A179: =IFERROR(VALUE(dtl_downloadDbLoadingData[[#This Row],[REF_DATE]]),"") ->  | B179: =IFERROR(VALUE(dtl_downloadDbLoadingData[[#This Row],[VALUE]]),"") -> 
A180: =IFERROR(VALUE(dtl_downloadDbLoadingData[[#This Row],[REF_DATE]]),"") ->  | B180: =IFERROR(VALUE(dtl_downloadDbLoadingData[[#This Row],[VALUE]]),"") -> 
A181: =IFERROR(VALUE(dtl_downloadDbLoadingData[[#This Row],[REF_DATE]]),"") ->  | B181: =IFERROR(VALUE(dtl_downloadDbLoadingData[[#This Row],[VALUE]]),"") -> 
A182: =IFERROR(VALUE(dtl_downloadDbLoadingData[[#This Row],[REF_DATE]]),"") ->  | B182: =IFERROR(VALUE(dtl_downloadDbLoadingData[[#This Row],[VALUE]]),"") -> 
A183: =IFERROR(VALUE(dtl_downloadDbLoadingData[[#This Row],[REF_DATE]]),"") ->  | B183: =IFERROR(VALUE(dtl_downloadDbLoadingData[[#This Row],[VALUE]]),"") -> 
A184: =IFERROR(VALUE(dtl_downloadDbLoadingData[[#This Row],[REF_DATE]]),"") ->  | B184: =IFERROR(VALUE(dtl_downloadDbLoadingData[[#This Row],[VALUE]]),"") -> 
A185: =IFERROR(VALUE(dtl_downloadDbLoadingData[[#This Row],[REF_DATE]]),"") ->  | B185: =IFERROR(VALUE(dtl_downloadDbLoadingData[[#This Row],[VALUE]]),"") -> 
A186: =IFERROR(VALUE(dtl_downloadDbLoadingData[[#This Row],[REF_DATE]]),"") ->  | B186: =IFERROR(VALUE(dtl_downloadDbLoadingData[[#This Row],[VALUE]]),"") -> 
A187: =IFERROR(VALUE(dtl_downloadDbLoadingData[[#This Row],[REF_DATE]]),"") ->  | B187: =IFERROR(VALUE(dtl_downloadDbLoadingData[[#This Row],[VALUE]]),"") -> 
A188: =IFERROR(VALUE(dtl_downloadDbLoadingData[[#This Row],[REF_DATE]]),"") ->  | B188: =IFERROR(VALUE(dtl_downloadDbLoadingData[[#This Row],[VALUE]]),"") -> 
A189: =IFERROR(VALUE(dtl_downloadDbLoadingData[[#This Row],[REF_DATE]]),"") ->  | B189: =IFERROR(VALUE(dtl_downloadDbLoadingData[[#This Row],[VALUE]]),"") -> 
A190: =IFERROR(VALUE(dtl_downloadDbLoadingData[[#This Row],[REF_DATE]]),"") ->  | B190: =IFERROR(VALUE(dtl_downloadDbLoadingData[[#This Row],[VALUE]]),"") -> 
A191: =IFERROR(VALUE(dtl_downloadDbLoadingData[[#This Row],[REF_DATE]]),"") ->  | B191: =IFERROR(VALUE(dtl_downloadDbLoadingData[[#This Row],[VALUE]]),"") -> 
A192: =IFERROR(VALUE(dtl_downloadDbLoadingData[[#This Row],[REF_DATE]]),"") ->  | B192: =IFERROR(VALUE(dtl_downloadDbLoadingData[[#This Row],[VALUE]]),"") -> 
A193: =IFERROR(VALUE(dtl_downloadDbLoadingData[[#This Row],[REF_DATE]]),"") ->  | B193: =IFERROR(VALUE(dtl_downloadDbLoadingData[[#This Row],[VALUE]]),"") -> 
A194: =IFERROR(VALUE(dtl_downloadDbLoadingData[[#This Row],[REF_DATE]]),"") ->  | B194: =IFERROR(VALUE(dtl_downloadDbLoadingData[[#This Row],[VALUE]]),"") -> 
A195: =IFERROR(VALUE(dtl_downloadDbLoadingData[[#This Row],[REF_DATE]]),"") ->  | B195: =IFERROR(VALUE(dtl_downloadDbLoadingData[[#This Row],[VALUE]]),"") -> 
A196: =IFERROR(VALUE(dtl_downloadDbLoadingData[[#This Row],[REF_DATE]]),"") ->  | B196: =IFERROR(VALUE(dtl_downloadDbLoadingData[[#This Row],[VALUE]]),"") ->  | C196: =IFERROR(C195+((B196/B195)-1),"") -> 
A197: =IFERROR(VALUE(dtl_downloadDbLoadingData[[#This Row],[REF_DATE]]),"") ->  | B197: =IFERROR(VALUE(dtl_downloadDbLoadingData[[#This Row],[VALUE]]),"") -> 
A198: =IFERROR(VALUE(dtl_downloadDbLoadingData[[#This Row],[REF_DATE]]),"") ->  | B198: =IFERROR(VALUE(dtl_downloadDbLoadingData[[#This Row],[VALUE]]),"") -> 
A199: =IFERROR(VALUE(dtl_downloadDbLoadingData[[#This Row],[REF_DATE]]),"") ->  | B199: =IFERROR(VALUE(dtl_downloadDbLoadingData[[#This Row],[VALUE]]),"") -> 
A200: =IFERROR(VALUE(dtl_downloadDbLoadingData[[#This Row],[REF_DATE]]),"") ->  | B200: =IFERROR(VALUE(dtl_downloadDbLoadingData[[#This Row],[VALUE]]),"") -> 
... 129 more rows

Sheet CPINWT (hidden)
D3: Sum of VALUE | E3: Column Labels
A4: Year | B4: Annual CPI (2002 Base Period) | C4: Cumulative CPI Change from 2024 | D4: Row Labels | E4: All-items | F4: Grand Total
A5: =IFERROR(VALUE(D5),"") -> 2019 | B5: =IFERROR(VALUE(GETPIVOTDATA("VALUE",$D$3,"REF_DATE",A5,"Products and product groups","All-items")),"") -> 138.8 | D5: 2019 | E5: 138.8 | F5: 138.8
A6: =IFERROR(VALUE(D6),"") -> 2020 | B6: =IFERROR(VALUE(GETPIVOTDATA("VALUE",$D$3,"REF_DATE",A6,"Products and product groups","All-items")),"") -> 138.9 | D6: 2020 | E6: 138.9 | F6: 138.9
A7: 2021 | B7: 142 | D7: 2021 | E7: 142 | F7: 142
A8: 2022 | B8: 151.9 | D8: 2022 | E8: 151.9 | F8: 151.9
A9: 2023 | B9: 156.9 | D9: 2023 | E9: 156.9 | F9: 156.9
C10: 1 | D10: Grand Total | E10: 728.5 | F10: 728.5
A11: 0 | C11: =IFERROR(C10+((B11/B10)-1),"") -> 
A12: 0
A13: 0
A14: 0
A15: 0
A16: 0
A17: 0
A18: 0
A19: 0
A20: 0
A21: 0
A22: 0
A23: 0
A24: 0
A25: 0
A26: 0
A27: 0
A28: 0
A29: 0
A30: 0
A31: 0
A32: 0
A33: 0 | B33: =IFERROR(VALUE(GETPIVOTDATA("VALUE",$D$3,"REF_DATE",A33,"Products and product groups","All-items")),"") -> 
A34: 0
A35: 0
A36: 0
A37: 0
A38: 0
A39: 0
A40: 0
A41: 0
A42: 0
A43: 0
A44: 0
A45: 0
A46: 0
A47: 0
A48: 0
A49: 0
A50: 0
A51: 0
A52: 0
A53: 0
A54: 0
A55: 0
A56: 0
A57: 0
A58: 0
A59: 0 | B59: =IFERROR(VALUE(dtl_downloadDbLoadingData[[#This Row],[VALUE]]),"") -> 
A60: 0 | B60: =IFERROR(VALUE(dtl_downloadDbLoadingData[[#This Row],[VALUE]]),"") -> 
A61: 0 | B61: =IFERROR(VALUE(dtl_downloadDbLoadingData[[#This Row],[VALUE]]),"") -> 
A62: 0 | B62: =IFERROR(VALUE(dtl_downloadDbLoadingData[[#This Row],[VALUE]]),"") -> 
A63: 0 | B63: =IFERROR(VALUE(dtl_downloadDbLoadingData[[#This Row],[VALUE]]),"") -> 
A64: 0 | B64: =IFERROR(VALUE(dtl_downloadDbLoadingData[[#This Row],[VALUE]]),"") -> 
A65: 0 | B65: =IFERROR(VALUE(dtl_downloadDbLoadingData[[#This Row],[VALUE]]),"") -> 
A66: 0 | B66: =IFERROR(VALUE(dtl_downloadDbLoadingData[[#This Row],[VALUE]]),"") -> 
A67: 0 | B67: =IFERROR(VALUE(dtl_downloadDbLoadingData[[#This Row],[VALUE]]),"") -> 
A68: 0 | B68: =IFERROR(VALUE(dtl_downloadDbLoadingData[[#This Row],[VALUE]]),"") -> 

Sheet CPINWT_base (hidden)
A1: REF_DATE | B1: GEO | C1: DGUID | D1: Products and product groups | E1: UOM | F1: UOM_ID | G1: SCALAR_FACTOR | H1: SCALAR_ID | I1: VECTOR | J1: COORDINATE | K1: VALUE | L1: STATUS | M1: SYMBOL | N1: TERMINATED | O1: DECIMALS
A2: 2019 | B2: Yellowknife, Northwest Territories | C2: 2011A00056106023 | D2: All-items | E2: 2002=100 | F2: 17 | G2: units | H2: 0 | I2: v41695020 | J2: 30.2 | K2: 138.8 | O2: 1
A3: 2020 | B3: Yellowknife, Northwest Territories | C3: 2011A00056106023 | D3: All-items | E3: 2002=100 | F3: 17 | G3: units | H3: 0 | I3: v41695020 | J3: 30.2 | K3: 138.9 | O3: 1
A4: 2021 | B4: Yellowknife, Northwest Territories | C4: 2011A00056106023 | D4: All-items | E4: 2002=100 | F4: 17 | G4: units | H4: 0 | I4: v41695020 | J4: 30.2 | K4: 142 | O4: 1
A5: 2022 | B5: Yellowknife, Northwest Territories | C5: 2011A00056106023 | D5: All-items | E5: 2002=100 | F5: 17 | G5: units | H5: 0 | I5: v41695020 | J5: 30.2 | K5: 151.9 | O5: 1
A6: 2023 | B6: Yellowknife, Northwest Territories | C6: 2011A00056106023 | D6: All-items | E6: 2002=100 | F6: 17 | G6: units | H6: 0 | I6: v41695020 | J6: 30.2 | K6: 156.9 | O6: 1
A7: 2019 | B7: Yellowknife, Northwest Territories | C7: 2011A00056106023 | D7: Food | E7: 2002=100 | F7: 17 | G7: units | H7: 0 | I7: v41695021 | J7: 30.3 | K7: 146.1 | O7: 1
A8: 2020 | B8: Yellowknife, Northwest Territories | C8: 2011A00056106023 | D8: Food | E8: 2002=100 | F8: 17 | G8: units | H8: 0 | I8: v41695021 | J8: 30.3 | K8: 146.2 | O8: 1
A9: 2021 | B9: Yellowknife, Northwest Territories | C9: 2011A00056106023 | D9: Food | E9: 2002=100 | F9: 17 | G9: units | H9: 0 | I9: v41695021 | J9: 30.3 | K9: 147.3 | O9: 1
A10: 2022 | B10: Yellowknife, Northwest Territories | C10: 2011A00056106023 | D10: Food | E10: 2002=100 | F10: 17 | G10: units | H10: 0 | I10: v41695021 | J10: 30.3 | K10: 159.2 | O10: 1
A11: 2023 | B11: Yellowknife, Northwest Territories | C11: 2011A00056106023 | D11: Food | E11: 2002=100 | F11: 17 | G11: units | H11: 0 | I11: v41695021 | J11: 30.3 | K11: 176.3 | O11: 1
A12: 2019 | B12: Yellowknife, Northwest Territories | C12: 2011A00056106023 | D12: Shelter | E12: 2002=100 | F12: 17 | G12: units | H12: 0 | I12: v41695053 | J12: 30.79 | K12: 159.9 | O12: 1
A13: 2020 | B13: Yellowknife, Northwest Territories | C13: 2011A00056106023 | D13: Shelter | E13: 2002=100 | F13: 17 | G13: units | H13: 0 | I13: v41695053 | J13: 30.79 | K13: 160.5 | O13: 1
A14: 2021 | B14: Yellowknife, Northwest Territories | C14: 2011A00056106023 | D14: Shelter | E14: 2002=100 | F14: 17 | G14: units | H14: 0 | I14: v41695053 | J14: 30.79 | K14: 163.8 | O14: 1
A15: 2022 | B15: Yellowknife, Northwest Territories | C15: 2011A00056106023 | D15: Shelter | E15: 2002=100 | F15: 17 | G15: units | H15: 0 | I15: v41695053 | J15: 30.79 | K15: 176.4 | O15: 1
A16: 2023 | B16: Yellowknife, Northwest Territories | C16: 2011A00056106023 | D16: Shelter | E16: 2002=100 | F16: 17 | G16: units | H16: 0 | I16: v41695053 | J16: 30.79 | K16: 183.6 | O16: 1
A17: 2019 | B17: Yellowknife, Northwest Territories | C17: 2011A00056106023 | D17: Household operations, furnishings and equipment | E17: 2002=100 | F17: 17 | G17: units | H17: 0 | I17: v41695058 | J17: 30.96 | K17: 114.1 | O17: 1
A18: 2020 | B18: Yellowknife, Northwest Territories | C18: 2011A00056106023 | D18: Household operations, furnishings and equipment | E18: 2002=100 | F18: 17 | G18: units | H18: 0 | I18: v41695058 | J18: 30.96 | K18: 113 | O18: 1
A19: 2021 | B19: Yellowknife, Northwest Territories | C19: 2011A00056106023 | D19: Household operations, furnishings and equipment | E19: 2002=100 | F19: 17 | G19: units | H19: 0 | I19: v41695058 | J19: 30.96 | K19: 112.7 | O19: 1
A20: 2022 | B20: Yellowknife, Northwest Territories | C20: 2011A00056106023 | D20: Household operations, furnishings and equipment | E20: 2002=100 | F20: 17 | G20: units | H20: 0 | I20: v41695058 | J20: 30.96 | K20: 118.3 | O20: 1
A21: 2023 | B21: Yellowknife, Northwest Territories | C21: 2011A00056106023 | D21: Household operations, furnishings and equipment | E21: 2002=100 | F21: 17 | G21: units | H21: 0 | I21: v41695058 | J21: 30.96 | K21: 110.7 | O21: 1
A22: 2019 | B22: Yellowknife, Northwest Territories | C22: 2011A00056106023 | D22: Clothing and footwear | E22: 2002=100 | F22: 17 | G22: units | H22: 0 | I22: v41695073 | J22: 30.139 | K22: 108.5 | O22: 1
A23: 2020 | B23: Yellowknife, Northwest Territories | C23: 2011A00056106023 | D23: Clothing and footwear | E23: 2002=100 | F23: 17 | G23: units | H23: 0 | I23: v41695073 | J23: 30.139 | K23: 106.5 | O23: 1
A24: 2021 | B24: Yellowknife, Northwest Territories | C24: 2011A00056106023 | D24: Clothing and footwear | E24: 2002=100 | F24: 17 | G24: units | H24: 0 | I24: v41695073 | J24: 30.139 | K24: 107.4 | O24: 1
A25: 2022 | B25: Yellowknife, Northwest Territories | C25: 2011A00056106023 | D25: Clothing and footwear | E25: 2002=100 | F25: 17 | G25: units | H25: 0 | I25: v41695073 | J25: 30.139 | K25: 110.8 | O25: 1
A26: 2023 | B26: Yellowknife, Northwest Territories | C26: 2011A00056106023 | D26: Clothing and footwear | E26: 2002=100 | F26: 17 | G26: units | H26: 0 | I26: v41695073 | J26: 30.139 | K26: 114.1 | O26: 1
A27: 2019 | B27: Yellowknife, Northwest Territories | C27: 2011A00056106023 | D27: Transportation | E27: 2002=100 | F27: 17 | G27: units | H27: 0 | I27: v41695081 | J27: 30.176 | K27: 138.7 | O27: 1
A28: 2020 | B28: Yellowknife, Northwest Territories | C28: 2011A00056106023 | D28: Transportation | E28: 2002=100 | F28: 17 | G28: units | H28: 0 | I28: v41695081 | J28: 30.176 | K28: 139.7 | O28: 1
A29: 2021 | B29: Yellowknife, Northwest Territories | C29: 2011A00056106023 | D29: Transportation | E29: 2002=100 | F29: 17 | G29: units | H29: 0 | I29: v41695081 | J29: 30.176 | K29: 148.6 | O29: 1
A30: 2022 | B30: Yellowknife, Northwest Territories | C30: 2011A00056106023 | D30: Transportation | E30: 2002=100 | F30: 17 | G30: units | H30: 0 | I30: v41695081 | J30: 30.176 | K30: 164 | O30: 1
A31: 2023 | B31: Yellowknife, Northwest Territories | C31: 2011A00056106023 | D31: Transportation | E31: 2002=100 | F31: 17 | G31: units | H31: 0 | I31: v41695081 | J31: 30.176 | K31: 167.2 | O31: 1
A32: 2019 | B32: Yellowknife, Northwest Territories | C32: 2011A00056106023 | D32: Gasoline | E32: 2002=100 | F32: 17 | G32: units | H32: 0 | I32: v41695087 | J32: 30.184 | K32: 150.4 | O32: 1
A33: 2020 | B33: Yellowknife, Northwest Territories | C33: 2011A00056106023 | D33: Gasoline | E33: 2002=100 | F33: 17 | G33: units | H33: 0 | I33: v41695087 | J33: 30.184 | K33: 131.4 | O33: 1
A34: 2021 | B34: Yellowknife, Northwest Territories | C34: 2011A00056106023 | D34: Gasoline | E34: 2002=100 | F34: 17 | G34: units | H34: 0 | I34: v41695087 | J34: 30.184 | K34: 161.8 | O34: 1
A35: 2022 | B35: Yellowknife, Northwest Territories | C35: 2011A00056106023 | D35: Gasoline | E35: 2002=100 | F35: 17 | G35: units | H35: 0 | I35: v41695087 | J35: 30.184 | K35: 201.7 | O35: 1
A36: 2023 | B36: Yellowknife, Northwest Territories | C36: 2011A00056106023 | D36: Gasoline | E36: 2002=100 | F36: 17 | G36: units | H36: 0 | I36: v41695087 | J36: 30.184 | K36: 188.7 | O36: 1
A37: 2019 | B37: Yellowknife, Northwest Territories | C37: 2011A00056106023 | D37: Health and personal care | E37: 2002=100 | F37: 17 | G37: units | H37: 0 | I37: v41695097 | J37: 30.201 | K37: 126.3 | O37: 1
A38: 2020 | B38: Yellowknife, Northwest Territories | C38: 2011A00056106023 | D38: Health and personal care | E38: 2002=100 | F38: 17 | G38: units | H38: 0 | I38: v41695097 | J38: 30.201 | K38: 125.7 | O38: 1
A39: 2021 | B39: Yellowknife, Northwest Territories | C39: 2011A00056106023 | D39: Health and personal care | E39: 2002=100 | F39: 17 | G39: units | H39: 0 | I39: v41695097 | J39: 30.201 | K39: 126 | O39: 1
A40: 2022 | B40: Yellowknife, Northwest Territories | C40: 2011A00056106023 | D40: Health and personal care | E40: 2002=100 | F40: 17 | G40: units | H40: 0 | I40: v41695097 | J40: 30.201 | K40: 131.5 | O40: 1
A41: 2023 | B41: Yellowknife, Northwest Territories | C41: 2011A00056106023 | D41: Health and personal care | E41: 2002=100 | F41: 17 | G41: units | H41: 0 | I41: v41695097 | J41: 30.201 | K41: 138.1 | O41: 1
A42: 2019 | B42: Yellowknife, Northwest Territories | C42: 2011A00056106023 | D42: Recreation, education and reading | E42: 2002=100 | F42: 17 | G42: units | H42: 0 | I42: v41695107 | J42: 30.219 | K42: 108.7 | O42: 1
A43: 2020 | B43: Yellowknife, Northwest Territories | C43: 2011A00056106023 | D43: Recreation, education and reading | E43: 2002=100 | F43: 17 | G43: units | H43: 0 | I43: v41695107 | J43: 30.219 | K43: 108.7 | O43: 1
A44: 2021 | B44: Yellowknife, Northwest Territories | C44: 2011A00056106023 | D44: Recreation, education and reading | E44: 2002=100 | F44: 17 | G44: units | H44: 0 | I44: v41695107 | J44: 30.219 | K44: 110.6 | O44: 1
A45: 2022 | B45: Yellowknife, Northwest Territories | C45: 2011A00056106023 | D45: Recreation, education and reading | E45: 2002=100 | F45: 17 | G45: units | H45: 0 | I45: v41695107 | J45: 30.219 | K45: 117.8 | O45: 1
A46: 2023 | B46: Yellowknife, Northwest Territories | C46: 2011A00056106023 | D46: Recreation, education and reading | E46: 2002=100 | F46: 17 | G46: units | H46: 0 | I46: v41695107 | J46: 30.219 | K46: 118.6 | O46: 1
A47: 2019 | B47: Yellowknife, Northwest Territories | C47: 2011A00056106023 | D47: Alcoholic beverages, tobacco products and recreational cannabis | E47: 2002=100 | F47: 17 | G47: units | H47: 0 | I47: v41695117 | J47: 30.256 | K47: 181.2 | O47: 1
A48: 2020 | B48: Yellowknife, Northwest Territories | C48: 2011A00056106023 | D48: Alcoholic beverages, tobacco products and recreational cannabis | E48: 2002=100 | F48: 17 | G48: units | H48: 0 | I48: v41695117 | J48: 30.256 | K48: 181.7 | O48: 1
A49: 2021 | B49: Yellowknife, Northwest Territories | C49: 2011A00056106023 | D49: Alcoholic beverages, tobacco products and recreational cannabis | E49: 2002=100 | F49: 17 | G49: units | H49: 0 | I49: v41695117 | J49: 30.256 | K49: 182.4 | O49: 1
A50: 2022 | B50: Yellowknife, Northwest Territories | C50: 2011A00056106023 | D50: Alcoholic beverages, tobacco products and recreational cannabis | E50: 2002=100 | F50: 17 | G50: units | H50: 0 | I50: v41695117 | J50: 30.256 | K50: 187 | O50: 1
A51: 2023 | B51: Yellowknife, Northwest Territories | C51: 2011A00056106023 | D51: Alcoholic beverages, tobacco products and recreational cannabis | E51: 2002=100 | F51: 17 | G51: units | H51: 0 | I51: v41695117 | J51: 30.256 | K51: 195 | O51: 1
A52: 2019 | B52: Yellowknife, Northwest Territories | C52: 2011A00056106023 | D52: All-items excluding food and energy | E52: 2002=100 | F52: 17 | G52: units | H52: 0 | I52: v41695134 | J52: 30.285 | K52: 131.6 | O52: 1
A53: 2020 | B53: Yellowknife, Northwest Territories | C53: 2011A00056106023 | D53: All-items excluding food and energy | E53: 2002=100 | F53: 17 | G53: units | H53: 0 | I53: v41695134 | J53: 30.285 | K53: 133 | O53: 1
A54: 2021 | B54: Yellowknife, Northwest Territories | C54: 2011A00056106023 | D54: All-items excluding food and energy | E54: 2002=100 | F54: 17 | G54: units | H54: 0 | I54: v41695134 | J54: 30.285 | K54: 134.9 | O54: 1
A55: 2022 | B55: Yellowknife, Northwest Territories | C55: 2011A00056106023 | D55: All-items excluding food and energy | E55: 2002=100 | F55: 17 | G55: units | H55: 0 | I55: v41695134 | J55: 30.285 | K55: 140.6 | O55: 1
A56: 2023 | B56: Yellowknife, Northwest Territories | C56: 2011A00056106023 | D56: All-items excluding food and energy | E56: 2002=100 | F56: 17 | G56: units | H56: 0 | I56: v41695134 | J56: 30.285 | K56: 143.1 | O56: 1
A57: 2019 | B57: Yellowknife, Northwest Territories | C57: 2011A00056106023 | D57: All-items excluding energy | E57: 2002=100 | F57: 17 | G57: units | H57: 0 | I57: v41695139 | J57: 30.287 | K57: 134.1 | O57: 1
A58: 2020 | B58: Yellowknife, Northwest Territories | C58: 2011A00056106023 | D58: All-items excluding energy | E58: 2002=100 | F58: 17 | G58: units | H58: 0 | I58: v41695139 | J58: 30.287 | K58: 135.3 | O58: 1
A59: 2021 | B59: Yellowknife, Northwest Territories | C59: 2011A00056106023 | D59: All-items excluding energy | E59: 2002=100 | F59: 17 | G59: units | H59: 0 | I59: v41695139 | J59: 30.287 | K59: 137.2 | O59: 1
A60: 2022 | B60: Yellowknife, Northwest Territories | C60: 2011A00056106023 | D60: All-items excluding energy | E60: 2002=100 | F60: 17 | G60: units | H60: 0 | I60: v41695139 | J60: 30.287 | K60: 144.3 | O60: 1
A61: 2023 | B61: Yellowknife, Northwest Territories | C61: 2011A00056106023 | D61: All-items excluding energy | E61: 2002=100 | F61: 17 | G61: units | H61: 0 | I61: v41695139 | J61: 30.287 | K61: 149.5 | O61: 1
A62: 2019 | B62: Yellowknife, Northwest Territories | C62: 2011A00056106023 | D62: Energy | E62: 2002=100 | F62: 17 | G62: units | H62: 0 | I62: v41695140 | J62: 30.288 | K62: 190.2 | O62: 1
A63: 2020 | B63: Yellowknife, Northwest Territories | C63: 2011A00056106023 | D63: Energy | E63: 2002=100 | F63: 17 | G63: units | H63: 0 | I63: v41695140 | J63: 30.288 | K63: 170.9 | O63: 1
A64: 2021 | B64: Yellowknife, Northwest Territories | C64: 2011A00056106023 | D64: Energy | E64: 2002=100 | F64: 17 | G64: units | H64: 0 | I64: v41695140 | J64: 30.288 | K64: 193.9 | O64: 1
A65: 2022 | B65: Yellowknife, Northwest Territories | C65: 2011A00056106023 | D65: Energy | E65: 2002=100 | F65: 17 | G65: units | H65: 0 | I65: v41695140 | J65: 30.288 | K65: 242.3 | O65: 1
A66: 2023 | B66: Yellowknife, Northwest Territories | C66: 2011A00056106023 | D66: Energy | E66: 2002=100 | F66: 17 | G66: units | H66: 0 | I66: v41695140 | J66: 30.288 | K66: 243.8 | O66: 1
A67: 2019 | B67: Yellowknife, Northwest Territories | C67: 2011A00056106023 | D67: Goods | E67: 2002=100 | F67: 17 | G67: units | H67: 0 | I67: v41695128 | J67: 30.274 | K67: 130.2 | O67: 1
A68: 2020 | B68: Yellowknife, Northwest Territories | C68: 2011A00056106023 | D68: Goods | E68: 2002=100 | F68: 17 | G68: units | H68: 0 | I68: v41695128 | J68: 30.274 | K68: 128.2 | O68: 1
A69: 2021 | B69: Yellowknife, Northwest Territories | C69: 2011A00056106023 | D69: Goods | E69: 2002=100 | F69: 17 | G69: units | H69: 0 | I69: v41695128 | J69: 30.274 | K69: 134.1 | O69: 1
A70: 2022 | B70: Yellowknife, Northwest Territories | C70: 2011A00056106023 | D70: Goods | E70: 2002=100 | F70: 17 | G70: units | H70: 0 | I70: v41695128 | J70: 30.274 | K70: 148.1 | O70: 1
A71: 2023 | B71: Yellowknife, Northwest Territories | C71: 2011A00056106023 | D71: Goods | E71: 2002=100 | F71: 17 | G71: units | H71: 0 | I71: v41695128 | J71: 30.274 | K71: 154.9 | O71: 1
A72: 2019 | B72: Yellowknife, Northwest Territories | C72: 2011A00056106023 | D72: Services | E72: 2002=100 | F72: 17 | G72: units | H72: 0 | I72: v41695132 | J72: 30.282 | K72: 147.4 | O72: 1
A73: 2020 | B73: Yellowknife, Northwest Territories | C73: 2011A00056106023 | D73: Services | E73: 2002=100 | F73: 17 | G73: units | H73: 0 | I73: v41695132 | J73: 30.282 | K73: 149.5 | O73: 1
A74: 2021 | B74: Yellowknife, Northwest Territories | C74: 2011A00056106023 | D74: Services | E74: 2002=100 | F74: 17 | G74: units | H74: 0 | I74: v41695132 | J74: 30.282 | K74: 149.5 | O74: 1
A75: 2022 | B75: Yellowknife, Northwest Territories | C75: 2011A00056106023 | D75: Services | E75: 2002=100 | F75: 17 | G75: units | H75: 0 | I75: v41695132 | J75: 30.282 | K75: 153.3 | O75: 1
A76: 2023 | B76: Yellowknife, Northwest Territories | C76: 2011A00056106023 | D76: Services | E76: 2002=100 | F76: 17 | G76: units | H76: 0 | I76: v41695132 | J76: 30.282 | K76: 155.6 | O76: 1

Sheet Monitoring Template (hidden)
A2: Task Name | B2: Task Frequency | C2: Number of Events | D2: Estimated Costs Per Event | E2: Subtotal | F2: Estimated Cost Over 20 Years
A3: Task D: Monitoring Wells and Piezometers
A4: Drilling and Installation | B4: 2026 | C4: 1
A5: Development | B5: 2026 | C5: 1
A6: Task E: Long-term Monitoring and Maintenance Program
A7: Water Sampling (Groundwater, porewater, surface water) | B7: Biannually: 2026 to 2035 | C7: 20
A8: Water Sampling (Groundwater, porewater, surface water) | B8: Annually: 2026 to 2035 | C8: 10
A9: Geotechnical Inspection | B9: Annually: 2026 to 2035 | C9: 10
A10: Vegitation Inspection | B10: Annually: 2026 to 2035 | C10: 10
A11: Wildlife Inspection | B11: Annually: 2026 to 2035 | C11: 10
A12: Site Maintenance | B12: Biannually: 2026 to 2035 | C12: 20
A13: Annual Reporting | B13: Annually: 2026 to 2035 | C13: 10
A14: Task F: Reduced Long-term Monitoring and Maintenance Program
A15: Reduced Water Sampling (annual) | B15: Annually: 2036 to 2045 | C15: 10
A16: Site Maintenance | B16: Annually: 2036 to 2045 | C16: 10
A17: Biennial Reporting | B17: Biennial: 2037, 2039, 2041, 2043, 2045 | C17: 5
A18: Task G: Reduced Long-term Monitoring and Maintenance Program
A19: Reduced Water Sampling (biennial) | B19: Biennial: 2047, 2049, 2051, 2053 | C19: 4
A20: Site Maintenance | B20: Biennial: 2047, 2049, 2051, 2053 | C20: 4
A21: Reporting (Every five years) | B21: 2049, 2054 | C21: 2
A22: Total
A23: Notes: 1 - Inflation % based on: Statistic Canada (2023). Consumer Price Index Portal, Key Indicators. Accessed October 18, 2023 via website: https://www.statcan.gc.ca/en/subjects-start/prices_and_price_indexes/consumer_price_indexes

Sheet TableData (hidden)
B2: Year
B3: 2024
B4: 2025
B5: 2026
B6: 2027
B7: 2028
B8: 2029
B9: 2030
B10: 2031
B11: 2032
B12: 2033
